Workbook

Sheet START
B2: Please select a country from the drop-down menu: | C2: AFG | Afghanistan
B5: Contents | D5: Sheet
B6: Historical and Simulated Annual Average Temperature (ºC) | D6: temperature-scenarios
B7: ='table-all-countries'!B3 -> Impact of Warming Trends on Real GDP for m=30 | D7: table-all-countries
B8: ='table-all-countries (growth)'!B3 -> Impact of Warming Trends on Annual Real GDP Growth for m=30 | D8: table-all-countries (growth)
B9: ='impact-by-scenario'!B4 & " (table)" -> Impact of Warming Trends on Real GDP, Afghanistan (table) | D9: impact-by-scenario
B10: ='impact-by-scenario'!J4 & " (chart)" -> Impact of Warming Trends on Real GDP, Afghanistan (chart) | D10: impact-by-scenario
B11: ='impact-by-scenario'!X4 & " (chart with confidence intervals)" -> Impact of Warming Trends on Real GDP, Afghanistan (chart with confidence intervals) | D11: impact-by-scenario
B12: ='impact-by-scenario'!AL4 & " (four separate charts)" -> Impact of Warming Trends on Real GDP, Afghanistan (four separate charts) | D12: impact-by-scenario
B13: ='impact-by-scenario (Growth)'!B4 & " (table)" -> Impact of Warming Trends on Real GDP Growth, Afghanistan (table) | D13: impact-by-scenario (growth)
B14: =adaptation!B4 & " (table)" -> Impact of Warming Trends on Real GDP (table) | D14: adaptation
B15: =adaptation!J4 -> Impact of Warming Trends on Real GDP, Afghanistan | D15: adaptation
B16: =adaptation!W4 & " (different vertical scale)" -> Impact of Warming Trends on Real GDP, Afghanistan (different vertical scale) | D16: adaptation
B17: ='cross-country-comparison'!B4 -> Impact of Warming Trends on Real GDP, Afghanistan | D17: cross-country comparison
B18: ='cross-country-comparison'!K4 -> Impact of Warming Trends on Real GDP in 2030 | D18: cross-country comparison
B19: ='cross-country-comparison'!V4 -> Impact of Warming Trends on Real GDP in 2050 | D19: cross-country comparison
B21: Notes:
B22: Samuele Centorrino, Emanuele Massetti, Mehdi Raissi, and Filippos Tagklis. "How to Include the Effects of Rising Temperatures in Long-Term GDP Projections", IMF How To Notes 2025, 009 (2025), https://doi.org/10.5089/9798229030021.061 The Dataset provides interactive country-by-country access to estimates of the impact of warming on GDP per capita growth and on GDP per capita levels using methods developed by Kahn et al. (2021). The changes in the level of GDP are equivalent to changes in GDP per capita if the population figure is the same with and without the climate damage. Impacts on GDP for all countries, all emissions scenarios, all years, and all adaptation scenarios is available in the sheets "data-gdp-level" (impact on GDP per capita levels) and "data-gdp-growth" (impact on GDP per capita growth).
B32: User Agreement:
B33: This dataset is distributed under the Creative Commons license CC BY-NC-SA
B34: This license enables reusers to distribute, remix, adapt, and build upon the material in any medium or format for noncommercial purposes only, and only so long as attribution is given to the creator. If you remix, adapt, or build upon the material, you must license the modified material under identical terms. CC BY-NC-SA includes the following elements: BY: credit must be given to the creator. NC: Only noncommercial uses of the work are permitted. SA: Adaptations must be shared under the same terms.
B42: Attribution:
B43: Centorrino et al. (2025) using Kahn et al. (2021), and CMIP6 data (Copernicus Climate Change Service, Climate Data Store, 2021) processed by Massetti and Tagklis (2024).
B45: References:
B46: Samuele Centorrino, Emanuele Massetti, Mehdi Raissi, and Filippos Tagklis. "How to Include the Effects of Rising Temperatures in Long-Term GDP Projections", IMF How To Notes 2025, 009 (2025), https://doi.org/10.5089/9798229030021.061 Kahn, Matthew E., Kamiar Mohaddes, Ryan NC Ng, M. Hashem Pesaran, Mehdi Raissi, and Jui-Chung Yang (2021). "Long-term macroeconomic effects of climate change: A cross-country analysis." Energy Economics 104: 105624. Copernicus Climate Change Service, Climate Data Store (2021): CMIP6 climate projections. Copernicus Climate Change Service (C3S) Climate Data Store (CDS). DOI: 10.24381/cds.c866074c Massetti, E. and F. Tagklis (2025). FADCP Climate Dataset: Temperature and Precipitation. Reference Guide, Fiscal Affairs Department, International Monetary Fund, Washington DC.

Sheet temperature-scenarios
A1: Selected country: | C1: ='data-countries'!F3 -> Afghanistan | Q1: Year | R1: Annual | S1: 30yr smoothed average | T1: CMIP6 Projections
T2: SSP1–2.6 | U2: SSP2–4.5 | V2: SSP3–7.0 | W2: SSP3–7.0 90th
C3: Historical and Simulated Annual Average Temperature (ºC) | Q3: 1960 | R3: =_xlfn._xlws.FILTER('data-cru-cmip6'!$D$2:$D$500000,('data-cru-cmip6'!$A$2:$A$500000='data-countries'!$G$3)*('data-cru-cmip6'!$C$2:$C$500000>=1960)*('data-cru-cmip6'!$C$2:$C$500000<=2021)) -> 12.383 | S3: =_xlfn._xlws.FILTER('data-cru-cmip6'!$E$2:$E$500000,('data-cru-cmip6'!$A$2:$A$500000='data-countries'!$G$3)*('data-cru-cmip6'!$C$2:$C$500000<=2000)) -> 12.462
Q4: 1961 | R4: 12.707 | S4: 12.464
Q5: 1962 | R5: 12.374 | S5: 12.472
Q6: 1963 | R6: 13.349 | S6: 12.451
Q7: 1964 | R7: 11.694 | S7: 12.45
Q8: 1965 | R8: 12.576 | S8: 12.488
Q9: 1966 | R9: 12.867 | S9: 12.543
Q10: 1967 | R10: 12.274 | S10: 12.53
Q11: 1968 | R11: 12.292 | S11: 12.542
Q12: 1969 | R12: 12.246 | S12: 12.527
Q13: 1970 | R13: 13.197 | S13: 12.555
Q14: 1971 | R14: 13.177 | S14: 12.537
Q15: 1972 | R15: 11.136 | S15: 12.56
Q16: 1973 | R16: 12.706 | S16: 12.634
Q17: 1974 | R17: 11.873 | S17: 12.612
Q18: 1975 | R18: 12.066 | S18: 12.636
Q19: 1976 | R19: 12.229 | S19: 12.646
Q20: 1977 | R20: 13.23 | S20: 12.634
Q21: 1978 | R21: 12.84 | S21: 12.647
Q22: 1979 | R22: 12.695 | S22: 12.632
Q23: 80 | R23: 13.055 | S23: 12.667
Q24: 1981 | R24: 13.091 | S24: 12.667
Q25: 1982 | R25: 12.021 | S25: 12.657
C26: IMPORTANT: The following notes and source must be used exactly as indicated to ensure correct description of the data, attribution, and compliance with copyright requirements of sources of raw climate data. References must be added to the reference list. | Q26: 1983 | R26: 12.938 | S26: 12.686
Q27: 1984 | R27: 12.531 | S27: 12.737
Q28: 1985 | R28: 13.066 | S28: 12.778
C29: Notes: The gray line describes historical mean annual temperature based on observations (CRU). The black line describes the 31-year moving average of historical data centered around each year. Colored lines represent the median of 31-year moving averages of CMIP6 ensemble temperature anomalies added to the CRU value (thick black line in the year 2000). SSP1-2.6 is in line with the Paris goal to keep global mean temperature increase below 2ºC with respect to pre-industrial times. SSP2-4.5 represents continuation of present trends. SSP3-7.0 is a high emission scenario. SSP3-7.0 90th shows the 90th percentile of the distribution of temperature anomalies from the model ensemble using the SSP3-7.0 scenario. Source: FADCP Climate Dataset (Massetti and Tagklis, 2025), using CRU data (Harris et al., 2020), and CMIP6 data (Copernicus Climate Change Service, Climate Data Store, 2021). References: Copernicus Climate Change Service, Climate Data Store, (2021): CMIP6 climate projections. Copernicus Climate Change Service (C3S) Climate Data Store (CDS). DOI: 10.24381/cds.c866074c Harris I, Osborn TJ, Jones P and Lister D (2020). Version 4 of the CRU TS Monthly High-Resolution Gridded Multivariate Climate Dataset. Scientific Data (https://doi.org/10.1038/s41597-020-0453-3). Massetti, E. and F. Tagklis (2024). FADCP Climate Dataset: Temperature and Precipitation. Reference Guide, Fiscal Affairs Department, International Monetary Fund, Washington DC. | Q29: 1986 | R29: 12.463 | S29: 12.798
Q30: 1987 | R30: 13.241 | S30: 12.813
Q31: 1988 | R31: 13.73 | S31: 12.877
Q32: 1989 | R32: 12.425 | S32: 12.917
Q33: 1990 | R33: 13.257 | S33: 12.958
Q34: 1991 | R34: 12.678 | S34: 13.018
Q35: 1992 | R35: 12.332 | S35: 13.059
Q36: 1993 | R36: 12.775 | S36: 13.073
Q37: 1994 | R37: 12.88 | S37: 13.101
Q38: 1995 | R38: 12.8 | S38: 13.145
Q39: 1996 | R39: 12.566 | S39: 13.161
Q40: 1997 | R40: 12.56 | S40: 13.157
Q41: 1998 | R41: 13.188 | S41: 13.218
Q42: 1999 | R42: 13.87 | S42: 13.231
Q43: 2000 | R43: 13.514 | S43: 13.269 | T43: =$S$43 -> 13.269 | U43: =$S$43 -> 13.269 | V43: 13.269 | W43: 13.269
Q44: 2001 | R44: 13.801 | T44: =_xlfn._xlws.FILTER('data-cru-cmip6'!$F$2:$F$500000,('data-cru-cmip6'!$A$2:$A$500000='data-countries'!$G$3)*('data-cru-cmip6'!$C$2:$C$500000>=2001)*('data-cru-cmip6'!$C$2:$C$500000<=2099))+$T$43 -> 13.303593 | U44: =_xlfn._xlws.FILTER('data-cru-cmip6'!$G$2:$G$500000,('data-cru-cmip6'!$A$2:$A$500000='data-countries'!$G$3)*('data-cru-cmip6'!$C$2:$C$500000>=2001)*('data-cru-cmip6'!$C$2:$C$500000<=2099))+$U$43 -> 13.308969 | V44: =_xlfn._xlws.FILTER('data-cru-cmip6'!$H$2:$H$500000,('data-cru-cmip6'!$A$2:$A$500000='data-countries'!$G$3)*('data-cru-cmip6'!$C$2:$C$500000>=2001)*('data-cru-cmip6'!$C$2:$C$500000<=2099))+$V$43 -> 13.306301 | W44: =_xlfn._xlws.FILTER('data-cru-cmip6'!$I$2:$I$500000,('data-cru-cmip6'!$A$2:$A$500000='data-countries'!$G$3)*('data-cru-cmip6'!$C$2:$C$500000>=2001)*('data-cru-cmip6'!$C$2:$C$500000<=2099))+$V$43 -> 13.360035
Q45: 2002 | R45: 13.637 | T45: 13.341217 | U45: 13.350311 | V45: 13.346286 | W45: 13.40676
Q46: 2003 | R46: 13.131 | T46: 13.38165 | U46: 13.39202 | V46: 13.38879 | W46: 13.46032
Q47: 2004 | R47: 13.933 | T47: 13.42226 | U47: 13.4353 | V47: 13.43291 | W47: 13.51626
Q48: 2005 | R48: 13.154 | T48: 13.46273 | U48: 13.47927 | V48: 13.47518 | W48: 13.57589
Q49: 2006 | R49: 13.919 | T49: 13.50237 | U49: 13.52164 | V49: 13.51755 | W49: 13.64306
Q50: 2007 | R50: 13.516 | T50: 13.54121 | U50: 13.56266 | V50: 13.5585 | W50: 13.70807
Q51: 2008 | R51: 13.667 | T51: 13.58232 | U51: 13.60542 | V51: 13.59972 | W51: 13.77263
Q52: 2009 | R52: 13.71 | T52: 13.6247 | U52: 13.64804 | V52: 13.64098 | W52: 13.83805
Q53: 2010 | R53: 14.034 | T53: 13.66802 | U53: 13.69106 | V53: 13.68293 | W53: 13.90524
Q54: 2011 | R54: 13.57 | T54: 13.7098 | U54: 13.73564 | V54: 13.72775 | W54: 13.97221
Q55: 2012 | R55: 12.966 | T55: 13.75551 | U55: 13.77903 | V55: 13.77158 | W55: 14.04184
Q56: 2013 | R56: 13.916 | T56: 13.79794 | U56: 13.82197 | V56: 13.81499 | W56: 14.10709
Q57: 2014 | R57: 13.333 | T57: 13.83791 | U57: 13.86594 | V57: 13.85613 | W57: 14.16865
Q58: 2015 | R58: 13.695 | T58: 13.87906 | U58: 13.90879 | V58: 13.89659 | W58: 14.2289
Q59: 2016 | R59: 14.237 | T59: 13.91949 | U59: 13.94802 | V59: 13.93672 | W59: 14.2865
Q60: 2017 | R60: 13.848 | T60: 13.95546 | U60: 13.98866 | V60: 13.97546 | W60: 14.339
Q61: 2018 | R61: 14.276 | T61: 13.99662 | U61: 14.03079 | V61: 14.01396 | W61: 14.3934
Q62: 2019 | R62: 13.587 | T62: 14.03128 | U62: 14.06818 | V62: 14.05506 | W62: 14.4472
Q63: 20 | R63: 12.974 | T63: 14.06134 | U63: 14.10285 | V63: 14.09836 | W63: 14.5023
Q64: 2021 | R64: 14.373 | T64: 14.08946 | U64: 14.13941 | V64: 14.14207 | W64: 14.5572
Q65: 2022 | T65: 14.11621 | U65: 14.17537 | V65: 14.18261 | W65: 14.6145
Q66: 2023 | T66: 14.14391 | U66: 14.21197 | V66: 14.22487 | W66: 14.6693
Q67: 2024 | T67: 14.17528 | U67: 14.24887 | V67: 14.2695 | W67: 14.7303
Q68: 2025 | T68: 14.20769 | U68: 14.2857 | V68: 14.3166 | W68: 14.7945
Q69: 2026 | T69: 14.24013 | U69: 14.3235 | V69: 14.3644 | W69: 14.8597
Q70: 2027 | T70: 14.2726 | U70: 14.3613 | V70: 14.4138 | W70: 14.9283
Q71: 2028 | T71: 14.3062 | U71: 14.395 | V71: 14.4627 | W71: 15.0034
Q72: 2029 | T72: 14.3332 | U72: 14.4291 | V72: 14.5156 | W72: 15.0749
Q73: 2030 | T73: 14.3609 | U73: 14.4691 | V73: 14.5691 | W73: 15.1473
Q74: 2031 | T74: 14.3939 | U74: 14.5109 | V74: 14.6184 | W74: 15.2121
Q75: 2032 | T75: 14.4286 | U75: 14.5517 | V75: 14.6646 | W75: 15.2746
Q76: 2033 | T76: 14.4652 | U76: 14.5964 | V76: 14.7155 | W76: 15.3363
Q77: 2034 | T77: 14.4999 | U77: 14.6406 | V77: 14.766 | W77: 15.399
Q78: 2035 | T78: 14.5356 | U78: 14.6824 | V78: 14.8143 | W78: 15.4556
Q79: 2036 | T79: 14.571 | U79: 14.7241 | V79: 14.8605 | W79: 15.5097
Q80: 2037 | T80: 14.6041 | U80: 14.7611 | V80: 14.9028 | W80: 15.5603
Q81: 2038 | T81: 14.6387 | U81: 14.8027 | V81: 14.9466 | W81: 15.6058
Q82: 2039 | T82: 14.6809 | U82: 14.8457 | V82: 14.9946 | W82: 15.6436
Q83: 40 | T83: 14.7226 | U83: 14.8882 | V83: 15.0423 | W83: 15.6824
Q84: 2041 | T84: 14.7659 | U84: 14.9275 | V84: 15.0856 | W84: 15.7209
Q85: 2042 | T85: 14.8087 | U85: 14.9676 | V85: 15.1333 | W85: 15.765
Q86: 2043 | T86: 14.8496 | U86: 15.0061 | V86: 15.1844 | W86: 15.8089
Q87: 2044 | T87: 14.8881 | U87: 15.0377 | V87: 15.2325 | W87: 15.85
Q88: 2045 | T88: 14.927 | U88: 15.0713 | V88: 15.2835 | W88: 15.8915
Q89: 2046 | T89: 14.9608 | U89: 15.1062 | V89: 15.3383 | W89: 15.9344
Q90: 2047 | T90: 14.9879 | U90: 15.1394 | V90: 15.3955 | W90: 15.98
Q91: 2048 | T91: 15.011 | U91: 15.1767 | V91: 15.4549 | W91: 16.028
Q92: 2049 | T92: 15.0301 | U92: 15.2106 | V92: 15.5157 | W92: 16.0798
Q93: 2050 | T93: 15.0404 | U93: 15.2491 | V93: 15.5731 | W93: 16.1344
Q94: 2051 | T94: 15.0523 | U94: 15.2856 | V94: 15.6292 | W94: 16.1941
Q95: 2052 | T95: 15.0609 | U95: 15.3223 | V95: 15.6836 | W95: 16.253
Q96: 2053 | T96: 15.0669 | U96: 15.3568 | V96: 15.7357 | W96: 16.3137
Q97: 2054 | T97: 15.0725 | U97: 15.3908 | V97: 15.7878 | W97: 16.3757
Q98: 2055 | T98: 15.079 | U98: 15.4299 | V98: 15.8395 | W98: 16.442
Q99: 2056 | T99: 15.0769 | U99: 15.467 | V99: 15.8941 | W99: 16.5069
Q100: 2057 | T100: 15.0792 | U100: 15.5057 | V100: 15.9487 | W100: 16.5725
Q101: 2058 | T101: 15.0859 | U101: 15.5398 | V101: 16.002 | W101: 16.6372
Q102: 2059 | T102: 15.0927 | U102: 15.5723 | V102: 16.0598 | W102: 16.6995
Q103: 60 | T103: 15.0962 | U103: 15.6045 | V103: 16.1121 | W103: 16.7607
Q104: 2061 | T104: 15.1008 | U104: 15.6336 | V104: 16.1641 | W104: 16.8223
Q105: 2062 | T105: 15.1058 | U105: 15.6636 | V105: 16.2175 | W105: 16.8843
Q106: 2063 | T106: 15.107 | U106: 15.6914 | V106: 16.2734 | W106: 16.9491
Q107: 2064 | T107: 15.1065 | U107: 15.721 | V107: 16.3305 | W107: 17.0143
Q108: 2065 | T108: 15.1057 | U108: 15.7472 | V108: 16.3875 | W108: 17.0809
Q109: 2066 | T109: 15.1048 | U109: 15.7682 | V109: 16.4439 | W109: 17.1505
Q110: 2067 | T110: 15.1105 | U110: 15.7924 | V110: 16.4982 | W110: 17.2219
Q111: 2068 | T111: 15.1145 | U111: 15.8139 | V111: 16.5498 | W111: 17.2989
Q112: 2069 | T112: 15.1142 | U112: 15.837 | V112: 16.6027 | W112: 17.3767
Q113: 2070 | T113: 15.1134 | U113: 15.8617 | V113: 16.6532 | W113: 17.4605
Q114: 2071 | T114: 15.1183 | U114: 15.8849 | V114: 16.7077 | W114: 17.5444
Q115: 2072 | T115: 15.1264 | U115: 15.908 | V115: 16.7631 | W115: 17.6259
Q116: 2073 | T116: 15.1274 | U116: 15.931 | V116: 16.8148 | W116: 17.7039
Q117: 2074 | T117: 15.1359 | U117: 15.9556 | V117: 16.8616 | W117: 17.7781
Q118: 2075 | T118: 15.1422 | U118: 15.9769 | V118: 16.9084 | W118: 17.8528
Q119: 2076 | T119: 15.1424 | U119: 15.997 | V119: 16.9558 | W119: 17.9294
Q120: 2077 | T120: 15.1379 | U120: 16.0138 | V120: 17.008 | W120: 18.0057
Q121: 2078 | T121: 15.1317 | U121: 16.0208 | V121: 17.0554 | W121: 18.0848
Q122: 2079 | T122: 15.1229 | U122: 16.0301 | V122: 17.1045 | W122: 18.1613
Q123: 80 | T123: 15.1174 | U123: 16.0387 | V123: 17.1515 | W123: 18.2351
Q124: 2081 | T124: 15.115 | U124: 16.0451 | V124: 17.1947 | W124: 18.307
Q125: 2082 | T125: 15.11 | U125: 16.0462 | V125: 17.2345 | W125: 18.3769
Q126: 2083 | T126: 15.1038 | U126: 16.0447 | V126: 17.2721 | W126: 18.4513
Q127: 2084 | T127: 15.103 | U127: 16.0404 | V127: 17.3115 | W127: 18.5269
Q128: 2085 | T128: 15.0988 | U128: 16.0332 | V128: 17.3536 | W128: 18.6048
Q129: 2086 | T129: 15.0956 | U129: 16.0267 | V129: 17.3945 | W129: 18.6817
Q130: 2087 | T130: 15.0966 | U130: 16.0221 | V130: 17.4325 | W130: 18.7574
Q131: 2088 | T131: 15.0964 | U131: 16.0207 | V131: 17.4647 | W131: 18.8301
Q132: 2089 | T132: 15.097 | U132: 16.0201 | V132: 17.4994 | W132: 18.9007
Q133: 2090 | T133: 15.0979 | U133: 16.0199 | V133: 17.5339 | W133: 18.9704
Q134: 2091 | T134: 15.0987 | U134: 16.0222 | V134: 17.5682 | W134: 19.0397
Q135: 2092 | T135: 15.0949 | U135: 16.024 | V135: 17.6026 | W135: 19.1083
Q136: 2093 | T136: 15.0901 | U136: 16.0306 | V136: 17.6347 | W136: 19.1789
Q137: 2094 | T137: 15.0844 | U137: 16.0376 | V137: 17.6677 | W137: 19.2458
Q138: 2095 | T138: 15.0771 | U138: 16.0441 | V138: 17.6963 | W138: 19.3058
Q139: 2096 | T139: 15.0704 | U139: 16.0501 | V139: 17.7229 | W139: 19.3593
Q140: 2097 | T140: 15.0649 | U140: 16.0555 | V140: 17.7457 | W140: 19.4056
Q141: 2098 | T141: 15.06 | U141: 16.061 | V141: 17.7659 | W141: 19.4451
Q142: 2099 | T142: 15.0598 | U142: 16.0661 | V142: 17.7834 | W142: 19.4793

Sheet table-all-countries
B1: Choose Adaptation Horizon | C1: 30 | D1: This is the m parameter in Kahn et al. (2021). Default: m = 30.
B3: =CONCATENATE("Impact of Warming Trends on Real GDP for m=",C1) -> Impact of Warming Trends on Real GDP for m=30
B5: Percentage
B6: Country | C6: 2030 | G6: 2050 | K6: 2075 | O6: 2100
C7: SSP1-2.6 | D7: SSP2-4.5 | E7: SSP3-7.0 | F7: SSP3-7.0 90th | G7: SSP1-2.6 | H7: SSP2-4.5 | I7: SSP3-7.0 | J7: SSP3-7.0 90th | K7: SSP1-2.6 | L7: SSP2-4.5 | M7: SSP3-7.0 | N7: SSP3-7.0 90th | O7: SSP1-2.6 | P7: SSP2-4.5 | Q7: SSP3-7.0 | R7: SSP3-7.0 90th
C8: Paris | D8: Moderate | E8: High | F8: Hot | G8: Paris | H8: Moderate | I8: High | J8: Hot | K8: Paris | L8: Moderate | M8: High | N8: Hot | O8: Paris | P8: Moderate | Q8: High | R8: Hot | CX8: 26 | CY8: 45 | CZ8: 70 | DA8: 70H | DB8: 26 | DC8: 45 | DD8: 70 | DE8: 70H | DF8: 26 | DG8: 45 | DH8: 70 | DI8: 70H | DJ8: 26 | DK8: 45 | DL8: 70 | DM8: 70H
B9: =_xlfn._xlws.FILTER('data-gdp-level'!B$2:B$10000,('data-gdp-level'!$D$2:$D$10000='table-all-countries'!$C$1)*('data-gdp-level'!$C$2:$C$10000='table-all-countries'!CX$8)*('data-gdp-level'!$E$2:$E$10000=50)) -> Afghanistan | C9: =_xlfn._xlws.FILTER('data-gdp-level'!$U$2:$U$10000,('data-gdp-level'!$D$2:$D$10000='table-all-countries'!$C$1)*('data-gdp-level'!$C$2:$C$10000='table-all-countries'!CX$8)*('data-gdp-level'!$E$2:$E$10000=50)) -> 0.3877443901 | D9: =_xlfn._xlws.FILTER('data-gdp-level'!$U$2:$U$10000,('data-gdp-level'!$D$2:$D$10000='table-all-countries'!$C$1)*('data-gdp-level'!$C$2:$C$10000='table-all-countries'!CY$8)*('data-gdp-level'!$E$2:$E$10000=50)) -> 0.2107606498 | E9: =_xlfn._xlws.FILTER('data-gdp-level'!$U$2:$U$10000,('data-gdp-level'!$D$2:$D$10000='table-all-countries'!$C$1)*('data-gdp-level'!$C$2:$C$10000='table-all-countries'!CZ$8)*('data-gdp-level'!$E$2:$E$10000=50)) -> -0.1307600237 | F9: =_xlfn._xlws.FILTER('data-gdp-level'!$U$2:$U$10000,('data-gdp-level'!$D$2:$D$10000='table-all-countries'!$C$1)*('data-gdp-level'!$C$2:$C$10000='table-all-countries'!DA$8)*('data-gdp-level'!$E$2:$E$10000=50)) -> -0.4325546247 | G9: =_xlfn._xlws.FILTER('data-gdp-level'!$AO$2:$AO$10000,('data-gdp-level'!$D$2:$D$10000='table-all-countries'!$C$1)*('data-gdp-level'!$C$2:$C$10000='table-all-countries'!DB$8)*('data-gdp-level'!$E$2:$E$10000=50)) -> 0.8558863189 | H9: =_xlfn._xlws.FILTER('data-gdp-level'!$AO$2:$AO$10000,('data-gdp-level'!$D$2:$D$10000='table-all-countries'!$C$1)*('data-gdp-level'!$C$2:$C$10000='table-all-countries'!DC$8)*('data-gdp-level'!$E$2:$E$10000=50)) -> 0.5053842595 | I9: =_xlfn._xlws.FILTER('data-gdp-level'!$AO$2:$AO$10000,('data-gdp-level'!$D$2:$D$10000='table-all-countries'!$C$1)*('data-gdp-level'!$C$2:$C$10000='table-all-countries'!DD$8)*('data-gdp-level'!$E$2:$E$10000=50)) -> -0.344863096 | J9: =_xlfn._xlws.FILTER('data-gdp-level'!$AO$2:$AO$10000,('data-gdp-level'!$D$2:$D$10000='table-all-countries'!$C$1)*('data-gdp-level'!$C$2:$C$10000='table-all-countries'!DE$8)*('data-gdp-level'!$E$2:$E$10000=50)) -> -1.192684394 | K9: =_xlfn._xlws.FILTER('data-gdp-level'!$BN$2:$BN$10000,('data-gdp-level'!$D$2:$D$10000='table-all-countries'!$C$1)*('data-gdp-level'!$C$2:$C$10000='table-all-countries'!DF$8)*('data-gdp-level'!$E$2:$E$10000=50)) -> 1.160074035 | L9: =_xlfn._xlws.FILTER('data-gdp-level'!$BN$2:$BN$10000,('data-gdp-level'!$D$2:$D$10000='table-all-countries'!$C$1)*('data-gdp-level'!$C$2:$C$10000='table-all-countries'!DG$8)*('data-gdp-level'!$E$2:$E$10000=50)) -> 0.8066789396 | M9: =_xlfn._xlws.FILTER('data-gdp-level'!$BN$2:$BN$10000,('data-gdp-level'!$D$2:$D$10000='table-all-countries'!$C$1)*('data-gdp-level'!$C$2:$C$10000='table-all-countries'!DH$8)*('data-gdp-level'!$E$2:$E$10000=50)) -> -0.628124552 | N9: =_xlfn._xlws.FILTER('data-gdp-level'!$BN$2:$BN$10000,('data-gdp-level'!$D$2:$D$10000='table-all-countries'!$C$1)*('data-gdp-level'!$C$2:$C$10000='table-all-countries'!DI$8)*('data-gdp-level'!$E$2:$E$10000=50)) -> -2.24608633 | O9: =_xlfn._xlws.FILTER('data-gdp-level'!$CL$2:$CL$10000,('data-gdp-level'!$D$2:$D$10000='table-all-countries'!$C$1)*('data-gdp-level'!$C$2:$C$10000='table-all-countries'!DJ$8)*('data-gdp-level'!$E$2:$E$10000=50)) -> 1.127301039 | P9: =_xlfn._xlws.FILTER('data-gdp-level'!$CL$2:$CL$10000,('data-gdp-level'!$D$2:$D$10000='table-all-countries'!$C$1)*('data-gdp-level'!$C$2:$C$10000='table-all-countries'!DK$8)*('data-gdp-level'!$E$2:$E$10000=50)) -> 1.017813213 | Q9: =_xlfn._xlws.FILTER('data-gdp-level'!$CL$2:$CL$10000,('data-gdp-level'!$D$2:$D$10000='table-all-countries'!$C$1)*('data-gdp-level'!$C$2:$C$10000='table-all-countries'!DL$8)*('data-gdp-level'!$E$2:$E$10000=50)) -> -0.9145354265 | R9: =_xlfn._xlws.FILTER('data-gdp-level'!$CL$2:$CL$10000,('data-gdp-level'!$D$2:$D$10000='table-all-countries'!$C$1)*('data-gdp-level'!$C$2:$C$10000='table-all-countries'!DM$8)*('data-gdp-level'!$E$2:$E$10000=50)) -> -3.321807212
B10: Albania | C10: 0.1157248581 | D10: -0.05817745785 | E10: -0.2824845213 | F10: -0.4659559371 | G10: 0.2738040615 | H10: -0.1535200898 | I10: -0.8034188303 | J10: -1.369168893 | K10: 0.429149908 | L10: -0.2800997555 | M10: -1.558155936 | N10: -2.678646377 | O10: 0.5309165411 | P10: -0.4088751082 | Q10: -2.352742842 | R10: -4.017175006
B11: Algeria | C11: 0.252944389 | D11: 0.06958459873 | E11: -0.3005405898 | F11: -0.6121904788 | G11: 0.5809414201 | H11: 0.1742076291 | I11: -0.8188446002 | J11: -1.712136358 | K11: 0.8517204353 | L11: 0.2975137319 | M11: -1.525644155 | N11: -3.195997704 | O11: 0.9444872253 | P11: 0.4074921144 | Q11: -2.240479036 | R11: -4.650996385
B12: Angola | C12: 0.1080162129 | D12: -0.07333737384 | E12: -0.3198873338 | F12: -0.7390280999 | G12: 0.254908612 | H12: -0.1952220625 | I12: -0.9148515 | J12: -2.179171204 | K12: 0.3969038107 | L12: -0.3592105807 | M12: -1.760060498 | N12: -4.117220169 | O12: 0.4856395657 | P12: -0.5274148992 | Q12: -2.620991713 | R12: -5.99340811
B13: Argentina | C13: -0.01364093977 | D13: -0.106268927 | E13: -0.251004368 | F13: -0.415790508 | G13: -0.03681444676 | H13: -0.344558254 | I13: -0.8897193364 | J13: -1.506100052 | K13: -0.06896267786 | L13: -0.7446811702 | M13: -1.92909187 | N13: -3.147976584 | O13: -0.1030699355 | P13: -1.204830792 | Q13: -3.015361044 | R13: -4.767648375
B14: Armenia | C14: 0.006939277617 | D14: -0.08025790619 | E14: -0.2078793396 | F14: -0.3302478371 | G14: 0.01737401272 | H14: -0.2441997649 | I14: -0.7174948335 | J14: -1.211107793 | K14: 0.02971887564 | L14: -0.5129677914 | M14: -1.630417206 | N14: -2.797939552 | O14: 0.04083705666 | P14: -0.8330836866 | Q14: -2.729151206 | R14: -4.635528314
B15: Australia | C15: -0.0112188562 | D15: -0.1282560957 | E15: -0.3116543709 | F15: -0.5584004656 | G15: -0.02963018589 | H15: -0.4046614167 | I15: -1.076650839 | J15: -1.975851521 | K15: -0.05416930918 | L15: -0.8586930699 | M15: -2.305682527 | N15: -4.06406585 | O15: -0.07929618626 | P15: -1.376995611 | Q15: -3.587723531 | R15: -6.110971805
B16: Austria | C16: 0.01986677128 | D16: -0.1084652866 | E16: -0.2698495962 | F16: -0.5304880026 | G16: 0.04945642101 | H16: -0.3103793246 | I16: -0.8433718116 | J16: -1.764125913 | K16: 0.08392604532 | L16: -0.6143149044 | M16: -1.762313478 | N16: -3.691753567 | O16: 0.1143481319 | P16: -0.9533804816 | Q16: -2.781020064 | R16: -5.681899637
B17: Azerbaijan | C17: 0.0575652298 | D17: -0.05824532555 | E17: -0.2292021949 | F17: -0.3902091805 | G17: 0.1343617075 | H17: -0.1595619756 | I17: -0.7061218603 | J17: -1.27297622 | K17: 0.2070814885 | L17: -0.3035073338 | M17: -1.474361767 | N17: -2.711854107 | O17: 0.2519829276 | P17: -0.4589029746 | Q17: -2.346542701 | R17: -4.287537621
B18: Bangladesh | C18: -0.01886522795 | D18: -0.07360320364 | E18: -0.1777296755 | F18: -0.357583673 | G18: -0.1550851342 | H18: -0.5052597596 | I18: -1.081319495 | J18: -1.913973321 | K18: -0.4877482361 | L18: -1.40933974 | M18: -2.673296967 | N18: -4.260577913 | O18: -0.9342981931 | P18: -2.434549213 | Q18: -4.280426148 | R18: -6.532034757
B19: Belarus | C19: 0.1447843353 | D19: 0.02757744285 | E19: -0.1058244509 | F19: -0.4413100607 | G19: 0.333044552 | H19: 0.06945634971 | I19: -0.2862122751 | J19: -1.321772399 | K19: 0.4995345343 | L19: 0.1197230482 | M19: -0.5365722877 | N19: -2.675158816 | O19: 0.5843266785 | P19: 0.1657722478 | Q19: -0.8011670065 | R19: -4.146499079
B20: Belgium | C20: 0.1482933668 | D20: 0.05065527673 | E20: -0.07004156449 | F20: -0.264766433 | G20: 0.3338698329 | H20: 0.1251151683 | I20: -0.1870028295 | J20: -0.7643341782 | K20: 0.4810560679 | L20: 0.2099249202 | M20: -0.3457703786 | N20: -1.511232018 | O20: 0.5294090007 | P20: 0.2824462429 | Q20: -0.5105860457 | R20: -2.323263208
B21: Belize | C21: 0.0110467363 | D21: -0.1269218121 | E21: -0.2753784382 | F21: -0.5751531129 | G21: 0.02782349906 | H21: -0.3680123128 | I21: -0.8484642035 | J21: -1.821251527 | K21: 0.04796050918 | L21: -0.7287058304 | M21: -1.705325194 | N21: -3.541268643 | O21: 0.06640537898 | P21: -1.118995613 | Q21: -2.584521755 | R21: -5.208192966
B22: Benin | C22: 0.131065226 | D22: -0.07787560612 | E22: -0.3483115845 | F22: -0.6969425215 | G22: 0.3100051197 | H22: -0.2055322975 | I22: -0.965479567 | J22: -1.948008511 | K22: 0.4807104149 | L22: -0.3741640039 | M22: -1.795042441 | N22: -3.563901815 | O22: 0.580140319 | P22: -0.5438769071 | Q22: -2.609275989 | R22: -5.118114685
B23: Bhutan | C23: 0.02149113211 | D23: -0.108567655 | E23: -0.3086050858 | F23: -0.5790256451 | G23: 0.05351649392 | H23: -0.3072023946 | I23: -0.9506705394 | J23: -1.847268779 | K23: 0.09083122124 | L23: -0.599392041 | M23: -1.925115218 | N23: -3.665228806 | O23: 0.1237463229 | P23: -0.9174097513 | Q23: -2.941542512 | R23: -5.451650366
B24: Bolivia | C24: -0.02081649159 | D24: -0.1009206098 | E24: -0.2518333898 | F24: -0.452762279 | G24: -0.1340011738 | H24: -0.6140579481 | I24: -1.410729625 | J24: -2.316659231 | K24: -0.4036771453 | L24: -1.671811508 | M24: -3.406847356 | N24: -5.130476734 | O24: -0.7739555879 | P24: -2.876734262 | Q24: -5.412250549 | R24: -7.857059752
B25: Bosnia and Herzegovina | C25: 0.3252421939 | D25: 0.1348398574 | E25: -0.08016650369 | F25: -0.3026353282 | G25: 0.7375343911 | H25: 0.3316852241 | I25: -0.2093617295 | J25: -0.8222344188 | K25: 1.058759696 | L25: 0.5519127032 | M25: -0.3773937797 | N25: -1.535262497 | O25: 1.139359479 | P25: 0.7338655424 | Q25: -0.545047896 | R25: -2.266534
B26: Botswana | C26: 0.141114125 | D26: -0.07744030044 | E26: -0.2826284108 | F26: -0.5922004624 | G26: 0.3213003311 | H26: -0.2073490738 | I26: -0.8180183434 | J26: -1.817400677 | K26: 0.4724520152 | L26: -0.3845163442 | M26: -1.618149418 | N26: -3.655417382 | O26: 0.5361074364 | P26: -0.5690538945 | Q26: -2.484418459 | R26: -5.552370309
B27: Brazil | C27: 0.07794747034 | D27: -0.1526201408 | E27: -0.4810701808 | F27: -0.854405405 | G27: 0.1893410001 | H27: -0.4156028463 | I27: -1.364424692 | J27: -2.414137173 | K27: 0.3085721232 | L27: -0.7756935517 | M27: -2.540670809 | N27: -4.410419576 | O27: 0.399639326 | P27: -1.142439497 | Q27: -3.680857193 | R27: -6.327884523
B28: Brunei Darussalam | C28: 0.005153598053 | D28: -0.0940449869 | E28: -0.253259654 | F28: -0.4710968465 | G28: 0.01305312609 | H28: -0.2760606171 | I28: -0.8135930544 | J28: -1.558795966 | K28: 0.02266819856 | L28: -0.5552309252 | M28: -1.680030792 | N28: -3.120683143 | O28: 0.03162521956 | P28: -0.8652183825 | Q28: -2.579918799 | R28: -4.648205736
B29: Bulgaria | C29: -0.0274156784 | D29: -0.1271162316 | E29: -0.3131764972 | F29: -0.481886056 | G29: -0.07450147077 | H29: -0.3940546652 | I29: -1.078003875 | J29: -1.721011289 | K29: -0.1406027062 | L29: -0.8322443493 | M29: -2.361125458 | N29: -3.718898195 | O29: -0.2114198188 | P29: -1.342231037 | Q29: -3.767614214 | R29: -5.784246125
B30: Burkina Faso | C30: 0.1097919227 | D30: -0.1102366789 | E30: -0.3548582615 | F30: -0.6703656726 | G30: 0.262581556 | H30: -0.2951725269 | I30: -0.9977266849 | J30: -1.914045713 | K30: 0.4169758067 | L30: -0.5449806197 | M30: -1.880980959 | N30: -3.556690058 | O30: 0.522192058 | P30: -0.8001970292 | Q30: -2.758620389 | R30: -5.142783295
B31: Burundi | C31: 0.1003838326 | D31: -0.05384111578 | E31: -0.224132221 | F31: -0.4829231297 | G31: 0.2297769532 | H31: -0.1438017066 | I31: -0.6514480413 | J31: -1.486133973 | K31: 0.3409177172 | L31: -0.2659339714 | M31: -1.289308501 | N31: -2.968038481 | O31: 0.3917880294 | P31: -0.3926489802 | Q31: -1.974880348 | R31: -4.47164366
B32: Cabo Verde | C32: 0.09220495205 | D32: 0.0221786185 | E32: -0.09830481165 | F32: -0.2020459398 | G32: 0.2100110508 | H32: 0.05550972606 | I32: -0.2723258193 | J32: -0.5905276162 | K32: 0.309342253 | L32: 0.09487591959 | M32: -0.5222365767 | N32: -1.178194573 | O32: 0.3522954071 | P32: 0.1302189101 | Q32: -0.791882923 | R32: -1.819217934
B33: Cambodia | C33: 0.1033266648 | D33: -0.02811697551 | E33: -0.2323311875 | F33: -0.5837350044 | G33: 0.2416309599 | H33: -0.07333748579 | I33: -0.6566660478 | J33: -1.714243626 | K33: 0.370063362 | L33: -0.1320470195 | M33: -1.258342455 | N33: -3.244900538 | O33: 0.4423153593 | P33: -0.190580632 | Q33: -1.876272286 | R33: -4.73081616
B34: Cameroon | C34: 0.00827666366 | D34: -0.127812097 | E34: -0.3970456246 | F34: -0.6044404478 | G34: 0.02092826674 | H34: -0.3725898053 | I34: -1.261499555 | J34: -1.939003054 | K34: 0.03626365305 | L34: -0.7420243692 | M34: -2.530687375 | N34: -3.79355837 | O34: 0.05047857758 | P34: -1.144824046 | Q34: -3.79693793 | R34: -5.592462261
B35: Canada | C35: 0.1027876427 | D35: -0.1238263651 | E35: -0.3861922355 | F35: -0.7382988317 | G35: 0.2446933575 | H35: -0.3379029298 | I35: -1.144265024 | J35: -2.308652433 | K35: 0.3884913239 | L35: -0.6390300074 | M35: -2.300674045 | N35: -4.690030162 | O35: 0.4899991652 | P35: -0.9600863203 | Q35: -3.55815472 | R35: -7.149254852
B36: Central African Republic | C36: -0.003042289673 | D36: -0.1268737621 | E36: -0.3208572447 | F36: -0.6155192152 | G36: -0.007847770801 | H36: -0.387660983 | I36: -1.069208952 | J36: -2.091794071 | K36: -0.0139485065 | L36: -0.8020792442 | M36: -2.233632243 | N36: -4.182485152 | O36: -0.01990278868 | P36: -1.266549697 | Q36: -3.430208195 | R36: -6.212384389
B37: Chad | C37: 0.06975114658 | D37: -0.09261287261 | E37: -0.2521110101 | F37: -0.519194722 | G37: 0.1642739303 | H37: -0.2557983466 | I37: -0.7519638039 | J37: -1.640167075 | K37: 0.2563384515 | L37: -0.4892985183 | M37: -1.516413517 | N37: -3.3209254 | O37: 0.3162785448 | P37: -0.7408500461 | Q37: -2.34477402 | R37: -5.02922473
B38: Chile | C38: -0.003335715859 | D38: -0.09795828707 | E38: -0.2818872989 | F38: -0.4420859523 | G38: -0.008606937458 | H38: -0.2898810859 | I38: -0.9233911557 | J38: -1.486681994 | K38: -0.01530275995 | L38: -0.5879003589 | M38: -1.929629839 | N38: -3.042034223 | O38: -0.02184170214 | P38: -0.9222995877 | Q38: -2.979706481 | R38: -4.586022711
B39: China | C39: 0.1400430859 | D39: -0.1139437786 | E39: -0.4066255504 | F39: -0.8002925945 | G39: 0.338110037 | H39: -0.3010964268 | I39: -1.117440625 | J39: -2.220440901 | K39: 0.5437100555 | L39: -0.5484166304 | M39: -2.068655856 | N39: -4.056603125 | O39: 0.6898729156 | P39: -0.796896834 | Q39: -3.002728426 | R39: -5.823710659
B40: Colombia | C40: -0.03605957765 | D40: -0.158489341 | E40: -0.318955064 | F40: -0.6187962255 | G40: -0.1066956211 | H40: -0.5594280742 | I40: -1.185816925 | J40: -2.273525795 | K40: -0.2183879764 | L40: -1.246629917 | M40: -2.555925443 | N40: -4.588966936 | O40: -0.3479956172 | P40: -2.008844008 | Q40: -3.937137435 | R40: -6.823487239
B41: Comoros | C41: -0.01083094139 | D41: -0.05660652668 | E41: -0.1382075788 | F41: -0.266086838 | G41: -0.02983397829 | H41: -0.1851543671 | I41: -0.5116043151 | J41: -1.053930113 | K41: -0.05716717704 | L41: -0.4103403104 | M41: -1.195946238 | N41: -2.43317657 | O41: -0.08709448346 | P41: -0.6860212156 | Q41: -2.003442264 | R41: -3.918791138
B42: Costa Rica | C42: 0.08648135833 | D42: -0.05439254525 | E42: -0.2109422091 | F42: -0.4117984458 | G42: 0.2030923736 | H42: -0.1448791577 | I42: -0.6038978279 | J42: -1.231666414 | K42: 0.3144783952 | L42: -0.2670034199 | M42: -1.177260505 | N42: -2.417016586 | O42: 0.3829807666 | P42: -0.3929159751 | Q42: -1.782757943 | R42: -3.612510157
B43: Croatia | C43: 0.09567684952 | D43: -0.05379926606 | E43: -0.2318144686 | F43: -0.4520227877 | G43: 0.2272249758 | H43: -0.1423913755 | I43: -0.6618291084 | J43: -1.360019196 | K43: 0.3591155652 | L43: -0.2607718037 | M43: -1.297028194 | N43: -2.726263568 | O43: 0.4500163493 | P43: -0.3820331889 | Q43: -1.984080325 | R43: -4.161233248
B44: Cyprus | C44: 0.04511142331 | D44: -0.05300405296 | E44: -0.2090201022 | F44: -0.3057729611 | G44: 0.106598008 | H44: -0.1453693957 | I44: -0.6435511821 | J44: -0.9784775256 | K44: 0.1674936056 | L44: -0.2767023162 | M44: -1.336049191 | N44: -2.055394039 | O44: 0.208812155 | P44: -0.4183771511 | Q44: -2.109154134 | R44: -3.223626588
B45: Czech Republic | C45: 0.02990957981 | D45: -0.07087646679 | E45: -0.1912064195 | F45: -0.4614484634 | G45: 0.07350917596 | H45: -0.195771093 | I45: -0.5739027632 | J45: -1.517746152 | K45: 0.1225417663 | L45: -0.3754102946 | M45: -1.178347048 | N45: -3.219748537 | O45: 0.1638033476 | P45: -0.5709529519 | Q45: -1.863828095 | R45: -5.046036745
B46: Côte d'Ivoire | C46: 0.04739348361 | D46: -0.1013934685 | E46: -0.3490206961 | F46: -0.6762059155 | G46: 0.1145219669 | H46: -0.2816071404 | I46: -1.048732177 | J46: -2.058205196 | K46: 0.1858067293 | L46: -0.5387648157 | M46: -2.051456168 | N46: -3.906511168 | O46: 0.2402520386 | P46: -0.8116638954 | Q46: -3.052897158 | R46: -5.688653855
B47: Democratic Republic of the Congo | C47: 0.04820777569 | D47: -0.08347282999 | E47: -0.3318795907 | F47: -0.7490386983 | G47: 0.1185872535 | H47: -0.2248957786 | I47: -0.9576032555 | J47: -2.188347852 | K47: 0.1974958231 | L47: -0.4182798074 | M47: -1.83158158 | N47: -4.068855553 | O47: 0.2630918154 | P47: -0.6181892079 | Q47: -2.70121018 | R47: -5.877848288
B48: Denmark | C48: 0.05238503065 | D48: -0.01590077265 | E48: -0.09322296978 | F48: -0.2464690931 | G48: 0.1226793075 | H48: -0.04163345445 | I48: -0.2652482269 | J48: -0.7740843663 | K48: 0.1901967595 | L48: -0.07534727807 | M48: -0.5236674886 | N48: -1.641497616 | O48: 0.2333313996 | P48: -0.1093141075 | Q48: -0.8136927673 | R48: -2.638077835
B49: Djibouti | C49: 0.01926967849 | D49: -0.09764579923 | E49: -0.2746620396 | F49: -0.5002776583 | G49: 0.04797050867 | H49: -0.2768703274 | I49: -0.8505640737 | J49: -1.611362355 | K49: 0.0813905543 | L49: -0.5418127444 | M49: -1.736763026 | N49: -3.241327853 | O49: 0.1108522585 | P49: -0.8318456183 | Q49: -2.673192949 | R49: -4.860684907
B50: Dominican Republic | C50: 0.0618066861 | D50: -0.0501604577 | E50: -0.2055233089 | F50: -0.33239545 | G50: 0.1454865188 | H50: -0.1350228603 | I50: -0.6072669668 | J50: -1.02103159 | K50: 0.226712661 | L50: -0.2518038788 | M50: -1.215376679 | N50: -2.060745539 | O50: 0.2790941869 | P50: -0.3743079474 | Q50: -1.87073616 | R50: -3.140838703
B51: Ecuador | C51: 0.01058292349 | D51: -0.008224617922 | E51: -0.07680740162 | F51: -0.1644044446 | G51: -0.06194860584 | H51: -0.2633227103 | I51: -0.7841663545 | J51: -1.336910316 | K51: -0.2993437738 | L51: -0.9371526945 | M51: -2.315457306 | N51: -3.557780852 | O51: -0.6613735586 | P51: -1.832680154 | Q51: -4.02917368 | R51: -5.843753084
B52: Egypt | C52: 0.2417428837 | D52: 0.04127999274 | E52: -0.2406118635 | F52: -0.4825775692 | G52: 0.5408303724 | H52: 0.1039784795 | I52: -0.6594124992 | J52: -1.368594532 | K52: 0.7573123255 | L52: 0.1791818472 | M52: -1.240584737 | N52: -2.604947366 | O52: 0.783350569 | P52: 0.2479273406 | Q52: -1.840206581 | R52: -3.846383618
B53: El Salvador | C53: 0.398736545 | D53: 0.1710117324 | E53: -0.03074998338 | F53: -0.3186411686 | G53: 0.8913425723 | H53: 0.4199030814 | I53: -0.07923354397 | J53: -0.8514101402 | K53: 1.204214105 | L53: 0.6936316388 | M53: -0.1406091537 | N53: -1.556408358 | O53: 1.130473693 | P53: 0.9099141427 | Q53: -0.2002987219 | R53: -2.25481238
B54: Equatorial Guinea | C54: 0.2499261161 | D54: 0.1343759914 | E54: -0.07695945121 | F54: -0.2964671221 | G54: 0.5562011203 | H54: 0.3233123777 | I54: -0.2024541773 | J54: -0.8207305171 | K54: 0.7703740766 | L54: 0.519523965 | M54: -0.3678817456 | N54: -1.553070923 | O54: 0.7817549193 | P54: 0.6619002052 | Q54: -0.5348438541 | R54: -2.306337967
B55: Eritrea | C55: 0.06157139381 | D55: -0.05125054517 | E55: -0.190895832 | F55: -0.3934894373 | G55: 0.1451654242 | H55: -0.1381566527 | I55: -0.5635368165 | J55: -1.241706857 | K55: 0.2270979518 | L55: -0.2582118548 | M55: -1.13667204 | N55: -2.56228973 | O55: 0.2813409829 | P55: -0.3847703233 | Q55: -1.771265393 | R55: -3.959153924
B56: Estonia | C56: 0.1603242676 | D56: 0.02808146087 | E56: -0.08533994778 | F56: -0.4295391799 | G56: 0.3643854647 | H56: 0.07072397641 | I56: -0.2285322081 | J56: -1.282978795 | K56: 0.5352089147 | L56: 0.1219052313 | M56: -0.4240610414 | N56: -2.597862664 | O56: 0.6075379123 | P56: 0.1687915556 | Q56: -0.6282065021 | R56: -4.03695331
B57: Eswatini | C57: 0.07424982749 | D57: -0.0908950674 | E57: -0.2362735559 | F57: -0.5402623358 | G57: 0.1736086356 | H57: -0.2507315981 | I57: -0.6998461598 | J57: -1.702922645 | K57: 0.2675820537 | L57: -0.4788453217 | M57: -1.403750738 | N57: -3.420396355 | O57: 0.3247157214 | P57: -0.7239328729 | Q57: -2.163940092 | R57: -5.146006306
B58: Ethiopia | C58: 0.2454166672 | D58: 0.04089809127 | E58: -0.2494248507 | F58: -0.6327314749 | G58: 0.5626483957 | H58: 0.103492584 | I58: -0.667475475 | J58: -1.718079199 | K58: 0.8059556699 | L58: 0.179371089 | M58: -1.219215999 | N58: -3.112442694 | O58: 0.8439390099 | P58: 0.2495400214 | Q58: -1.763082236 | R58: -4.454372894
B59: Fiji | C59: 0.06656249972 | D59: -0.03967063274 | E59: -0.1825470047 | F59: -0.3341565487 | G59: 0.1501754336 | H59: -0.1068243355 | I59: -0.5441617082 | J59: -1.039856582 | K59: 0.2170789011 | L59: -0.1992551723 | M59: -1.089893595 | N59: -2.078151451 | O59: 0.2399411504 | P59: -0.2961815211 | Q59: -1.670116659 | R59: -3.122991465
B60: Finland | C60: 0.1117412406 | D60: -0.003955405671 | E60: -0.1651767031 | F60: -0.4544675293 | G60: 0.258142597 | H60: -0.01016259079 | I60: -0.4663411122 | J60: -1.40988906 | K60: 0.3908571501 | L60: -0.01797362932 | M60: -0.9122710946 | N60: -2.935953812 | O60: 0.4641574056 | P60: -0.02552634907 | Q60: -1.40560793 | R60: -4.632106189
B61: France | C61: 0.09188814888 | D61: -0.01302826133 | E61: -0.2173525575 | F61: -0.4338111337 | G61: 0.2164556178 | H61: -0.03369466471 | I61: -0.6231195417 | J61: -1.312142715 | K61: 0.3375172574 | L61: -0.06007724385 | M61: -1.223794678 | N61: -2.627343128 | O61: 0.4156012044 | P61: -0.08597152499 | Q61: -1.872090618 | R61: -3.994872568
B62: Gabon | C62: 0.09660280471 | D62: -0.02478783433 | E62: -0.2429021896 | F62: -0.547520225 | G62: 0.2282904209 | H62: -0.0645018967 | I62: -0.688344568 | J62: -1.612446983 | K62: 0.3564053134 | L62: -0.1158291895 | M62: -1.323050989 | N62: -3.077946604 | O62: 0.4377780862 | P62: -0.1667960238 | Q62: -1.977603432 | R62: -4.510876811
B63: Georgia | C63: 0.01785363085 | D63: -0.08926034897 | E63: -0.2406073949 | F63: -0.3861763748 | G63: 0.04405961184 | H63: -0.2599987428 | I63: -0.7836477172 | J63: -1.328514735 | K63: 0.0738897664 | L63: -0.5245593144 | M63: -1.699929729 | N63: -2.918578865 | O63: 0.09943674661 | P63: -0.8274411287 | Q63: -2.757179663 | R63: -4.67500697
B64: Germany | C64: 0.08631190494 | D64: -0.01319448853 | E64: -0.1207566584 | F64: -0.3620661994 | G64: 0.2014251495 | H64: -0.03418848961 | I64: -0.3370167572 | J64: -1.110239247 | K64: 0.3099075775 | L64: -0.06109877178 | M64: -0.6516229426 | N64: -2.281945451 | O64: 0.3757191754 | P64: -0.08762370892 | Q64: -0.9950019746 | R64: -3.560778652
B65: Ghana | C65: 0.136989638 | D65: -0.01767483412 | E65: -0.3530638118 | F65: -0.7096230999 | G65: 0.3258359244 | H65: -0.0455853433 | I65: -0.9693787321 | J65: -1.959571819 | K65: 0.509196517 | L65: -0.08099009627 | M65: -1.78867398 | N65: -3.562612123 | O65: 0.6198223264 | P65: -0.1154967873 | Q65: -2.589119646 | R65: -5.103440163
B66: Greece | C66: -0.02478435378 | D66: -0.1171167861 | E66: -0.2862665812 | F66: -0.4155003893 | G66: -0.06758858149 | H66: -0.3672122782 | I66: -0.9985911329 | J66: -1.49904186 | K66: -0.1280538524 | L66: -0.7828178419 | M66: -2.20778477 | N66: -3.27996624 | O66: -0.1931821893 | P66: -1.270125848 | Q66: -3.542131398 | R66: -5.146248832
B67: Grenada | C67: 0.3428919119 | D67: 0.09602891859 | E67: -0.1565657817 | F67: -0.2757722122 | G67: 0.7379686756 | H67: 0.2372863523 | I67: -0.4197340027 | J67: -0.7590267655 | K67: 0.959626494 | L67: 0.3980775408 | M67: -0.7782273641 | N67: -1.439918074 | O67: 0.870349595 | P67: 0.5351068935 | Q67: -1.149722796 | R67: -2.156625245
B68: Guatemala | C68: 0.3428249236 | D68: 0.1128144613 | E68: -0.2318369655 | F68: -0.524938325 | G68: 0.7914353942 | H68: 0.2824302953 | I68: -0.6099564516 | J68: -1.397066594 | K68: 1.130841528 | L68: 0.4809324941 | M68: -1.100271085 | N68: -2.51650098 | O68: 1.158794594 | P68: 0.6544763266 | Q68: -1.580763688 | R68: -3.596467972
B69: Guinea | C69: 0.0875104728 | D69: -0.1259230607 | E69: -0.3927353898 | F69: -0.73183568 | G69: 0.2108413856 | H69: -0.3405109906 | I69: -1.112214901 | J69: -2.083892142 | K69: 0.3390434285 | L69: -0.6332667854 | M69: -2.087917722 | N69: -3.837191592 | O69: 0.4316958703 | P69: -0.9326970187 | Q69: -3.043813778 | R69: -5.523416781
B70: Guinea-Bissau | C70: 0.2530045471 | D70: 0.02244043786 | E70: -0.1962356785 | F70: -0.4493317084 | G70: 0.582436363 | H70: 0.05713028861 | I70: -0.5218417954 | J70: -1.218703526 | K70: 0.8441743923 | L70: 0.09985621002 | M70: -0.9520048196 | N70: -2.227205699 | O70: 0.9044654455 | P70: 0.1401792234 | Q70: -1.379596114 | R70: -3.207112882
B71: Guyana | C71: -0.02931523635 | D71: -0.1340716276 | E71: -0.2265562692 | F71: -0.433182936 | G71: -0.1072729234 | H71: -0.5946644152 | I71: -1.028213789 | J71: -1.924622173 | K71: -0.2573737115 | L71: -1.476885018 | M71: -2.448307552 | N71: -4.229019706 | O71: -0.4511972196 | P71: -2.48435538 | Q71: -3.938499824 | R71: -6.484707524
B72: Haiti | C72: 0.04958312516 | D72: -0.03353564129 | E72: -0.1386096249 | F72: -0.2575401353 | G72: 0.1165469412 | H72: -0.08979157465 | I72: -0.4083368297 | J72: -0.8084957243 | K72: 0.181623425 | L72: -0.1666777806 | M72: -0.8271852476 | N72: -1.696381994 | O72: 0.2241194833 | P72: -0.247135894 | Q72: -1.300214373 | R72: -2.684993821
B73: Honduras | C73: 0.1515448084 | D73: -0.02511356936 | E73: -0.2156726813 | F73: -0.4574217707 | G73: 0.348796651 | H73: -0.06514370635 | I73: -0.5972387922 | J73: -1.314897283 | K73: 0.5178585666 | L73: -0.1165454798 | M73: -1.131613001 | N73: -2.50709044 | O73: 0.5903966626 | P73: -0.1672653307 | Q73: -1.683258708 | R73: -3.690739878
B74: Hungary | C74: -0.00824271102 | D74: -0.1060432344 | E74: -0.23002585 | F74: -0.4680932867 | G74: -0.02141864265 | H74: -0.3112639062 | I74: -0.7355922925 | J74: -1.61771413 | K74: -0.03841171085 | L74: -0.6314273059 | M74: -1.576616838 | N74: -3.513819698 | O74: -0.05526841282 | P74: -0.9981710298 | Q74: -2.54278207 | R74: -5.54597155
B75: Iceland | C75: 0.08608182143 | D75: -0.03179968674 | E75: -0.1358349831 | F75: -0.2413331161 | G75: 0.195402874 | H75: -0.08416429467 | I75: -0.3893735883 | J75: -0.729967468 | K75: 0.2869856856 | L75: -0.1542169548 | M75: -0.7716280959 | N75: -1.501594888 | O75: 0.3264001876 | P75: -0.2261581299 | Q75: -1.198122048 | R75: -2.367803592
B76: India | C76: -0.03733412101 | D76: -0.163293786 | E76: -0.3888222715 | F76: -0.6630841058 | G76: -0.1019569324 | H76: -0.5003301674 | I76: -1.263504952 | J76: -2.150329497 | K76: -0.1930394534 | L76: -1.022725367 | M76: -2.536688331 | N76: -4.157336983 | O76: -0.2903942155 | P76: -1.5848668 | Q76: -3.793404469 | R76: -6.090745934
B77: Indonesia | C77: -0.03227132314 | D77: -0.1686480441 | E77: -0.3508421959 | F77: -0.6251959579 | G77: -0.09118800779 | H77: -0.5501628508 | I77: -1.160500789 | J77: -1.98806285 | K77: -0.1782712032 | L77: -1.13129051 | M77: -2.273146439 | N77: -3.742407884 | O77: -0.2741388603 | P77: -1.722389774 | Q77: -3.347484625 | R77: -5.42684997
B78: Iraq | C78: 0.1203195424 | D78: -0.03271963668 | E78: -0.274068988 | F78: -0.4205649343 | G78: 0.2717156029 | H78: -0.08593373372 | I78: -0.8106558993 | J78: -1.294177106 | K78: 0.3946521996 | L78: -0.1560506708 | M78: -1.635646576 | N78: -2.655612242 | O78: 0.440699796 | P78: -0.227037446 | Q78: -2.546222095 | R78: -4.126117156
B79: Ireland | C79: 0.07497192943 | D79: 0.02384936423 | E79: -0.09689258269 | F79: -0.2607023978 | G79: 0.1696294142 | H79: 0.05911487813 | I79: -0.2730702558 | J79: -0.7999481233 | K79: 0.2471602796 | L79: 0.09970124863 | M79: -0.5321019184 | N79: -1.637231556 | O79: 0.2772520529 | P79: 0.1349299353 | Q79: -0.8156804369 | R79: -2.539264815
B80: Islamic Republic of Iran | C80: 0.1167968755 | D80: -0.04270760024 | E80: -0.3014871011 | F80: -0.548153066 | G80: 0.2704108752 | H80: -0.1124178571 | I80: -0.8792622203 | J80: -1.67026005 | K80: 0.4092356568 | L80: -0.2046118589 | M80: -1.740151054 | N80: -3.32808105 | O80: 0.4836791976 | P80: -0.2981882235 | Q80: -2.659119988 | R80: -5.018924016
B81: Israel | C81: 0.05222599218 | D81: -0.06444470289 | E81: -0.2237410431 | F81: -0.3590693363 | G81: 0.1226039846 | H81: -0.1780107605 | I81: -0.6888580113 | J81: -1.160622295 | K81: 0.1906637891 | L81: -0.3412911377 | M81: -1.4325903 | N81: -2.449353822 | O81: 0.2346335217 | P81: -0.5188724097 | Q81: -2.267397265 | R81: -3.844809902
B82: Italy | C82: 0.2252415105 | D82: 0.03462671774 | E82: -0.2250480777 | F82: -0.471732326 | G82: 0.5189220134 | H82: 0.08761700068 | I82: -0.610474424 | J82: -1.322212543 | K82: 0.7688513013 | L82: 0.1519162586 | M82: -1.138367485 | N82: -2.496458037 | O82: 0.8705115539 | P82: 0.2115423429 | Q82: -1.679298092 | R82: -3.671600362
B83: Jamaica | C83: 0.1650890311 | D83: 0.03687712999 | E83: -0.1145845663 | F83: -0.2902541001 | G83: 0.3730470193 | H83: 0.09246806605 | I83: -0.3087283292 | J83: -0.8186616571 | K83: 0.5345411069 | L83: 0.1583572473 | M83: -0.5741588973 | N83: -1.564342017 | O83: 0.5762890552 | P83: 0.2176781466 | Q83: -0.8484395052 | R83: -2.326799143
B84: Japan | C84: 0.01061118062 | D84: -0.1226698232 | E84: -0.2985774012 | F84: -0.5596398776 | G84: 0.02669260326 | H84: -0.3607138561 | I84: -0.9572612487 | J84: -1.871750746 | K84: 0.0459382966 | L84: -0.7279664718 | M84: -1.99912199 | N84: -3.826200979 | O84: 0.06350943861 | P84: -1.138994604 | Q84: -3.110571343 | R84: -5.769026183
B85: Jordan | C85: 0.02112724483 | D85: -0.07757880813 | E85: -0.2518161308 | F85: -0.3783586553 | G85: 0.05148039621 | H85: -0.2251480014 | I85: -0.8351803917 | J85: -1.313812448 | K85: 0.08479874505 | L85: -0.4528827289 | M85: -1.825291851 | N85: -2.890417302 | O85: 0.1118953985 | P85: -0.7131562533 | Q85: -2.958959161 | R85: -4.619360248
B86: Kazakhstan | C86: 0.07048990987 | D86: -0.1013269891 | E86: -0.2942975528 | F86: -0.4842130065 | G86: 0.1658587434 | H86: -0.282370786 | I86: -0.9027010212 | J86: -1.56544766 | K86: 0.2589235275 | L86: -0.5461367618 | M86: -1.877077019 | N86: -3.316860409 | O86: 0.3202580853 | P86: -0.8356986509 | Q86: -2.978297617 | R86: -5.231852999
B87: Kenya | C87: 0.1514912019 | D87: -0.009073949538 | E87: -0.2395426285 | F87: -0.5131724677 | G87: 0.3360458251 | H87: -0.02338095595 | I87: -0.6769763141 | J87: -1.503390556 | K87: 0.4642659891 | L87: -0.04149825306 | M87: -1.298039468 | N87: -2.867549764 | O87: 0.4708086944 | P87: -0.05913114907 | Q87: -1.937109382 | R87: -4.203920289
B88: Korea | C88: -0.0341846543 | D88: -0.1185569767 | E88: -0.2204977507 | F88: -0.4515433628 | G88: -0.1007420016 | H88: -0.4097003504 | I88: -0.8253133379 | J88: -1.787956403 | K88: -0.2060493368 | L88: -0.9326514847 | M88: -1.913275601 | N88: -4.001324748 | O88: -0.3291957463 | P88: -1.564125445 | Q88: -3.154856276 | R88: -6.273721943
B89: Kuwait | C89: 0.1493909812 | D89: 0.001983457504 | E89: -0.2850357345 | F89: -0.534752811 | G89: 0.3419025589 | H89: 0.005075188555 | I89: -0.8155386517 | J89: -1.599658285 | K89: 0.5062318245 | L89: 0.008929795427 | M89: -1.593446057 | N89: -3.163843193 | O89: 0.5790144292 | P89: 0.01261958825 | Q89: -2.422056181 | R89: -4.766863488
B90: Kyrgyz Republic | C90: 0.1571851461 | D90: -0.0256910962 | E90: -0.2871178106 | F90: -0.5941238575 | G90: 0.3685956263 | H90: -0.06654214259 | I90: -0.8037263252 | J90: -1.736133133 | K90: 0.5682331073 | L90: -0.1188458467 | M90: -1.5403083 | N90: -3.363304622 | O90: 0.6865667395 | P90: -0.1703218158 | Q90: -2.311793605 | R90: -5.00185937
B91: Lao P.D.R. | C91: -0.0107099366 | D91: -0.1234912976 | E91: -0.2241472281 | F91: -0.4099226959 | G91: -0.02840575687 | H91: -0.398558081 | I91: -0.7758102572 | J91: -1.489421171 | K91: -0.05218891065 | L91: -0.8621701579 | M91: -1.709346418 | N91: -3.206453958 | O91: -0.07673607871 | P91: -1.401090192 | Q91: -2.740381893 | R91: -4.953863092
B92: Latvia | C92: 0.1336049379 | D92: 0.006083127997 | E92: -0.1032156231 | F92: -0.4037605454 | G92: 0.3064116933 | H92: 0.01552031793 | I92: -0.2803570096 | J92: -1.214879023 | K92: 0.4575706874 | L92: 0.02720789507 | M92: -0.5280813693 | N92: -2.474569262 | O92: 0.5323271725 | P92: 0.03831346875 | Q92: -0.7916030053 | R92: -3.859180709
B93: Lebanon | C93: 0.1504418248 | D93: 0.01956811589 | E93: -0.1704196183 | F93: -0.3131324991 | G93: 0.336244949 | H93: 0.04944648763 | I93: -0.476824753 | J93: -0.9170472649 | K93: 0.4774839558 | L93: 0.08560139621 | M93: -0.9211382238 | N93: -1.824854176 | O93: 0.513124343 | P93: 0.1190448464 | Q93: -1.400915828 | R93: -2.802561076
B94: Lesotho | C94: -0.01375885807 | D94: -0.1305508844 | E94: -0.3113124232 | F94: -0.5387759572 | G94: -0.03682866966 | H94: -0.4257106209 | I94: -1.122949227 | J94: -2.010494809 | K94: -0.0683766467 | L94: -0.9299838372 | M94: -2.497586196 | N94: -4.322707306 | O94: -0.10145399 | P94: -1.523077708 | Q94: -3.983196058 | R94: -6.643513136
B95: Liberia | C95: -0.001201817361 | D95: -0.14351997 | E95: -0.3500346808 | F95: -0.6496289528 | G95: -0.003085020547 | H95: -0.4247202667 | I95: -1.094565711 | J95: -2.023412814 | K95: -0.00544999503 | L95: -0.8466432198 | M95: -2.155218733 | N95: -3.836973552 | O95: -0.007731750081 | P95: -1.294718083 | Q95: -3.198169225 | R95: -5.581001295
B96: Libya | C96: 0.4453918472 | D96: 0.1973087972 | E96: -0.1546035059 | F96: -0.4589769244 | G96: 0.9990621072 | H96: 0.4848222002 | I96: -0.4042829145 | J96: -1.226005841 | K96: 1.343110549 | L96: 0.8001226368 | M96: -0.727917535 | N96: -2.227552711 | O96: 1.23415015 | P96: 1.045965304 | Q96: -1.047704274 | R96: -3.204598095
B97: Lithuania | C97: 0.09566367251 | D97: 0.0001386437116 | E97: -0.1167116856 | F97: -0.392393376 | G97: 0.2237114738 | H97: 0.0003551260017 | I97: -0.3226796238 | J97: -1.203023874 | K97: 0.3455598316 | L97: 0.0006256680927 | M97: -0.618884398 | N97: -2.48545237 | O97: 0.4213543272 | P97: 0.0008853179996 | Q97: -0.9406013038 | R97: -3.907144318
B98: Luxembourg | C98: 0.1706592869 | D98: 0.06479217345 | E98: -0.101700852 | F98: -0.3219527931 | G98: 0.3831338582 | H98: 0.159224914 | I98: -0.2741469728 | J98: -0.932585104 | K98: 0.548406156 | L98: 0.265181382 | M98: -0.5118398023 | N98: -1.842955836 | O98: 0.5965919853 | P98: 0.3538096237 | Q98: -0.7612569561 | R98: -2.82361672
B99: Madagascar | C99: 0.2053893405 | D99: 0.04658194894 | E99: -0.1892940783 | F99: -0.5011720312 | G99: 0.4712226146 | H99: 0.1171687118 | I99: -0.5091766998 | J99: -1.38864099 | K99: 0.6856647666 | L99: 0.2014135623 | M99: -0.9392741453 | N99: -2.564581353 | O99: 0.7472479021 | P99: 0.2778027938 | Q99: -1.371996991 | R99: -3.707400065
B100: Malawi | C100: 0.2021573163 | D100: -0.01013354736 | E100: -0.2831550809 | F100: -0.6930106617 | G100: 0.4647629223 | H100: -0.0260562957 | I100: -0.7768176417 | J100: -1.954959696 | K100: 0.683208887 | L100: -0.04612632065 | M100: -1.452086846 | N100: -3.626837331 | O100: 0.7613332864 | P100: -0.06556459382 | Q100: -2.13271352 | R100: -5.245413006
B101: Malaysia | C101: 0.06605719255 | D101: -0.08773071647 | E101: -0.2895549761 | F101: -0.5725209032 | G101: 0.1592751115 | H101: -0.2366804923 | I101: -0.8236001866 | J101: -1.645525053 | K101: 0.2566663844 | L101: -0.4399348219 | M101: -1.557302501 | N101: -3.047374087 | O101: 0.327982187 | P101: -0.6487221464 | Q101: -2.281969237 | R101: -4.396759069
B102: Mali | C102: 0.1274515547 | D102: -0.09677492195 | E102: -0.3943388798 | F102: -0.7125230217 | G102: 0.2988314385 | H102: -0.2591657077 | I102: -1.13373468 | J102: -2.09565238 | K102: 0.4599655057 | L102: -0.4796127954 | M102: -2.180783065 | N102: -3.980217147 | O102: 0.5538363826 | P102: -0.7069617738 | Q102: -3.239171313 | R102: -5.814232148
B103: Mauritania | C103: 0.1682126971 | D103: -0.01242249041 | E103: -0.2926082906 | F103: -0.5847866201 | G103: 0.3854121928 | H103: -0.03201525913 | I103: -0.8244582411 | J103: -1.711720456 | K103: 0.5690943464 | L103: -0.0568365399 | M103: -1.583004261 | N103: -3.298107724 | O103: 0.6452889273 | P103: -0.08100510076 | Q103: -2.371336311 | R103: -4.876699991
B104: Mauritius | C104: 0.2408384188 | D104: 0.08955255829 | E104: -0.0835364848 | F104: -0.3259772593 | G104: 0.5311993033 | H104: 0.2201959681 | I104: -0.2200661487 | J104: -0.898698303 | K104: 0.7109455773 | L104: 0.3657438525 | M104: -0.4000205984 | N104: -1.676875287 | O104: 0.6678108289 | P104: 0.4847064268 | Q104: -0.5810277374 | R104: -2.451261606
B105: Mexico | C105: -0.002672371552 | D105: -0.1637573661 | E105: -0.4222693375 | F105: -0.6521052442 | G105: -0.00686865931 | H105: -0.4760432284 | I105: -1.296874246 | J105: -2.005875914 | K105: -0.01215351431 | L105: -0.9369187348 | M105: -2.52707475 | N105: -3.815153547 | O105: -0.01726792927 | P105: -1.423589712 | Q105: -3.733081933 | R105: -5.558606581
B106: Moldova | C106: 0.01916696949 | D106: -0.08193782794 | E106: -0.1872350056 | F106: -0.4001164663 | G106: 0.0477315816 | H106: -0.2301877921 | I106: -0.5680091814 | J106: -1.323467609 | K106: 0.08104848738 | L106: -0.4491167045 | M106: -1.180035525 | N106: -2.861485923 | O106: 0.110511649 | P106: -0.6922807118 | Q106: -1.885803574 | R106: -4.578438321
B107: Mongolia | C107: 0.1094097273 | D107: -0.03616665884 | E107: -0.2689255693 | F107: -0.5591738534 | G107: 0.2586818224 | H107: -0.09460294238 | I107: -0.7719986299 | J107: -1.702039713 | K107: 0.4059627125 | L107: -0.1709652704 | M107: -1.519611205 | N107: -3.425227112 | O107: 0.5042616978 | P107: -0.2476485377 | Q107: -2.330362854 | R107: -5.223694004
B108: Montenegro | C108: 0.02942709294 | D108: -0.1192637284 | E108: -0.3088384885 | F108: -0.4705554791 | G108: 0.07333654893 | H108: -0.3316738176 | I108: -0.9240647143 | J108: -1.455001146 | K108: 0.1246043626 | L108: -0.6378309735 | M108: -1.858046099 | N108: -2.934413077 | O108: 0.1699471625 | P108: -0.9681485566 | Q108: -2.855857384 | R108: -4.457350567
B109: Morocco | C109: 0.1091504402 | D109: -0.02993153083 | E109: -0.2591702268 | F109: -0.4470129222 | G109: 0.2547955103 | H109: -0.0781631202 | I109: -0.7442049739 | J109: -1.332592526 | K109: 0.3906268673 | L109: -0.1409631715 | M109: -1.454811543 | N109: -2.626965022 | O109: 0.4694520201 | P109: -0.2037886893 | Q109: -2.207304518 | R109: -3.949265131
B110: Mozambique | C110: 0.05648322153 | D110: -0.09924164451 | E110: -0.3088010297 | F110: -0.6321022758 | G110: 0.1349204931 | H110: -0.275543233 | I110: -0.9302672065 | J110: -1.967395469 | K110: 0.2151223837 | L110: -0.5282511874 | M110: -1.852304445 | N110: -3.82533595 | O110: 0.2724652246 | P110: -0.7988148365 | Q110: -2.803462431 | R110: -5.63399079
B111: Myanmar | C111: 0.1578965214 | D111: 0.008384203708 | E111: -0.2064321581 | F111: -0.5203239528 | G111: 0.3648657924 | H111: 0.0213916623 | I111: -0.565640674 | J111: -1.478321673 | K111: 0.5434873344 | L111: 0.03750040111 | M111: -1.06037517 | N111: -2.771214607 | O111: 0.6201465487 | P111: 0.05280490579 | Q111: -1.564765278 | R111: -4.032684668
B112: Namibia | C112: 0.1980334663 | D112: -0.03033647 | E112: -0.2443548183 | F112: -0.5974391197 | G112: 0.4436449546 | H112: -0.07881856731 | I112: -0.6816617409 | J112: -1.758569798 | K112: 0.6280269101 | L112: -0.141292098 | M112: -1.304917489 | N112: -3.414198553 | O112: 0.666707189 | P112: -0.2031637421 | Q112: -1.960427911 | R112: -5.076016663
B113: Nepal | C113: 0.05023932838 | D113: -0.1050438247 | E113: -0.3128161756 | F113: -0.6310885002 | G113: 0.1226509814 | H113: -0.2888930663 | I113: -0.9267354887 | J113: -1.942272222 | K113: 0.202228447 | L113: -0.5491039374 | M113: -1.834869604 | N113: -3.791304813 | O113: 0.2666521768 | P113: -0.825724646 | Q113: -2.779990272 | R113: -5.605634435
B114: Netherlands | C114: 0.1277421686 | D114: 0.04259767024 | E114: -0.05039246678 | F114: -0.2240185719 | G114: 0.2853651275 | H114: 0.1050947176 | I114: -0.1339891046 | J114: -0.650769368 | K114: 0.406096396 | L114: 0.1760903957 | M114: -0.2467213258 | N114: -1.297593224 | O114: 0.4391642573 | P114: 0.2366188633 | Q114: -0.3632228805 | R114: -2.011433081
B115: New Zealand | C115: -0.01334684755 | D115: -0.06374122251 | E115: -0.1445778964 | F115: -0.2208142304 | G115: -0.05145328497 | H115: -0.3033887199 | I115: -0.7240779521 | J115: -1.10898688 | K115: -0.1282971693 | L115: -0.8115506842 | M115: -1.871387691 | N115: -2.750618435 | O115: -0.2313249761 | P115: -1.460464536 | Q115: -3.180369485 | R115: -4.498883586
B116: Nicaragua | C116: 0.3434482036 | D116: 0.1263081874 | E116: -0.1300719977 | F116: -0.3352153696 | G116: 0.7714843753 | H116: 0.3125867687 | I116: -0.3415105563 | J116: -0.9010066728 | K116: 1.057818163 | L116: 0.523535552 | M116: -0.6178174277 | N116: -1.651890318 | O116: 1.025022144 | P116: 0.6994855137 | Q116: -0.8929483732 | R116: -2.394169407
B117: Niger | C117: -0.01990686552 | D117: -0.1037863714 | E117: -0.2260008907 | F117: -0.3974641757 | G117: -0.05738744773 | H117: -0.3705146101 | I117: -0.8942821503 | J117: -1.647927618 | K117: -0.1151461473 | L117: -0.8659541544 | M117: -2.138589632 | N117: -3.838429956 | O117: -0.1817512186 | P117: -1.480450452 | Q117: -3.580773736 | R117: -6.165321071
B118: Nigeria | C118: 0.08952959292 | D118: -0.09378040668 | E118: -0.3157441084 | F118: -0.6160163323 | G118: 0.210934184 | H118: -0.254187948 | I118: -0.9150488846 | J118: -1.828254787 | K118: 0.3277115454 | L118: -0.4757238963 | M118: -1.768334743 | N118: -3.470570801 | O118: 0.4000308068 | P118: -0.7065327209 | Q118: -2.631318508 | R118: -5.06297188
B119: North Macedonia | C119: 0.03509767672 | D119: -0.02826057757 | E119: -0.0993678799 | F119: -0.2366028361 | G119: 0.08112044959 | H119: -0.07687281601 | I119: -0.2992933343 | J119: -0.7897200036 | K119: 0.1231514698 | L119: -0.1452381522 | M119: -0.6202303078 | N119: -1.728326471 | O119: 0.1470377888 | P119: -0.2185971335 | Q119: -0.9931915358 | R119: -2.79688035
B120: Norway | C120: 0.07452962203 | D120: -0.02369566407 | E120: -0.1446467443 | F120: -0.3852248081 | G120: 0.1743364943 | H120: -0.06210564515 | I120: -0.4140200874 | J120: -1.213913245 | K120: 0.2695427212 | L120: -0.1125233899 | M120: -0.8199181732 | N120: -2.548421647 | O120: 0.3292203609 | P120: -0.1634010405 | Q120: -1.273429381 | R120: -4.027380024
B121: Oman | C121: -0.02126360217 | D121: -0.1443946353 | E121: -0.3125735497 | F121: -0.6203466638 | G121: -0.05798833285 | H121: -0.4702130792 | I121: -1.09396625 | J121: -2.195145215 | K121: -0.1098234138 | L121: -1.011209896 | M121: -2.333243437 | N121: -4.426956291 | O121: -0.1655575015 | P121: -1.620255114 | Q121: -3.605216317 | R121: -6.588968249
B122: Pakistan | C122: -0.04436264612 | D122: -0.138983297 | E122: -0.3342667848 | F122: -0.555056649 | G122: -0.1268337506 | H122: -0.4494150042 | I122: -1.186055068 | J122: -2.016161219 | K122: -0.2516911372 | L122: -0.9710148811 | M122: -2.579250374 | N122: -4.229831916 | O122: -0.3927642871 | P122: -1.573106169 | Q122: -4.04179669 | R122: -6.418839678
B123: Panama | C123: 0.09607290558 | D123: -0.04382672657 | E123: -0.1990595035 | F123: -0.4019127735 | G123: 0.2252547029 | H123: -0.1155590746 | I123: -0.5612042201 | J123: -1.179076048 | K123: 0.3470890706 | L123: -0.2106034259 | M123: -1.07888731 | N123: -2.277334658 | O123: 0.4190020994 | P123: -0.3070642488 | Q123: -1.618392797 | R123: -3.37268525
B124: Papua New Guinea | C124: -0.01562964174 | D124: -0.1176456105 | E124: -0.3097711137 | F124: -0.5297779564 | G124: -0.04147626646 | H124: -0.3553447265 | I124: -0.9965982596 | J124: -1.695552798 | K124: -0.07619686758 | L124: -0.7201854268 | M124: -1.983459725 | N124: -3.25255744 | O124: -0.1119468098 | P124: -1.112556469 | Q124: -2.952889998 | R124: -4.750946391
B125: Paraguay | C125: -0.02769746973 | D125: -0.08710394282 | E125: -0.1672662764 | F125: -0.3671704411 | G125: -0.09233731357 | H125: -0.345791544 | I125: -0.7186309908 | J125: -1.649805 | K125: -0.2090804517 | L125: -0.8567096587 | M125: -1.791195745 | N125: -3.898632327 | O125: -0.3568788819 | P125: -1.502464551 | Q125: -3.057533255 | R125: -6.244337712
B126: Peru | C126: -0.04499530195 | D126: -0.1427767227 | E126: -0.3309289867 | F126: -0.5643152217 | G126: -0.136877306 | H126: -0.5024856454 | I126: -1.252132049 | J126: -2.135638817 | K126: -0.286760613 | L126: -1.132152164 | M126: -2.73986706 | N126: -4.431598564 | O126: -0.4636627785 | P126: -1.852102546 | Q126: -4.255566575 | R126: -6.664285431
B127: Philippines | C127: -0.01406289181 | D127: -0.137406541 | E127: -0.2858935033 | F127: -0.4830512045 | G127: -0.03750777273 | H127: -0.4349320683 | I127: -0.9526848202 | J127: -1.610024892 | K127: -0.06931510889 | L127: -0.9055887353 | M127: -1.943208108 | N127: -3.155622477 | O127: -0.102374507 | P127: -1.412397044 | Q127: -2.927047962 | R127: -4.647001403
B128: Poland | C128: 0.07878151474 | D128: -0.0205054172 | E128: -0.1346377561 | F128: -0.4039531118 | G128: 0.1867341013 | H128: -0.05340485226 | I128: -0.3772270483 | J128: -1.247896409 | K128: 0.2947362787 | L128: -0.09603225232 | M128: -0.7323490878 | N128: -2.581450469 | O128: 0.3693967164 | P128: -0.1385054415 | Q128: -1.121918646 | R128: -4.045742062
B129: Portugal | C129: -0.002400179622 | D129: -0.080866957 | E129: -0.2203703989 | F129: -0.3978572162 | G129: -0.006189906822 | H129: -0.2421151566 | I129: -0.7404165894 | J129: -1.410928856 | K129: -0.01099864391 | L129: -0.4989253247 | M129: -1.613566525 | N129: -3.038740058 | O129: -0.01568955013 | P129: -0.7956036887 | Q129: -2.587451243 | R129: -4.720534532
B130: Puerto Rico | C130: -0.01623389375 | D130: -0.08319796797 | E130: -0.1747370339 | F130: -0.2815706361 | G130: -0.04527388988 | H130: -0.2767193994 | I130: -0.635462964 | J130: -1.06223766 | K130: -0.08782009966 | L130: -0.6126367826 | M130: -1.431313618 | N130: -2.33717095 | O130: -0.1349922501 | P130: -1.010197187 | Q130: -2.307737798 | R130: -3.647669255
B131: Qatar | C131: 0.1684928315 | D131: 0.03785374146 | E131: -0.2209878801 | F131: -0.4878394174 | G131: 0.3899184447 | H131: 0.09518976486 | I131: -0.6109490951 | J131: -1.414145002 | K131: 0.5871131137 | L131: 0.1636935911 | M131: -1.1619564 | N131: -2.743526999 | O131: 0.6861036963 | P131: 0.2260420419 | Q131: -1.740710516 | R131: -4.099829881
B132: Republic of Congo | C132: 0.04274011463 | D132: -0.1325400262 | E132: -0.3957617245 | F132: -0.8169504532 | G132: 0.1055160487 | H132: -0.365498074 | I132: -1.151817846 | J132: -2.381620981 | K132: 0.1766857304 | L132: -0.6917199771 | M132: -2.194370538 | N132: -4.407454106 | O132: 0.236868018 | P132: -1.030385389 | Q132: -3.218175143 | R132: -6.354266517
B133: Romania | C133: 0.007126874667 | D133: -0.1115300483 | E133: -0.2399723811 | F133: -0.4671628657 | G133: 0.01808420838 | H133: -0.3191078386 | I133: -0.7396146565 | J133: -1.541446142 | K133: 0.03148078145 | L133: -0.6320124921 | M133: -1.541446343 | N133: -3.266203404 | O133: 0.04402596321 | P133: -0.9821128137 | Q133: -2.445698915 | R133: -5.105405626
B134: Russia | C134: 0.1913494649 | D134: -0.05111939877 | E134: -0.3651314235 | F134: -0.740818158 | G134: 0.4474024844 | H134: -0.1333618729 | I134: -1.028551932 | J134: -2.181560437 | K134: 0.6868624806 | L134: -0.2402176218 | M134: -1.982551405 | N134: -4.253655065 | O134: 0.8258951566 | P134: -0.3468777479 | Q134: -2.987245617 | R134: -6.350537679
B135: Rwanda | C135: 0.07953548963 | D135: -0.09142990712 | E135: -0.2738275874 | F135: -0.5508683039 | G135: 0.1846819561 | H135: -0.2516945774 | I135: -0.8142310055 | J135: -1.706837293 | K135: 0.2808727888 | L135: -0.4790831338 | M135: -1.619757057 | N135: -3.354585498 | O135: 0.3341985033 | P135: -0.7215308104 | Q135: -2.463793763 | R135: -4.978639332
B136: Samoa | C136: 0.03158736251 | D136: 0.03126996747 | E136: 0.006725800181 | F136: -0.05926910131 | G136: 0.01406644201 | H136: -0.1442213306 | I136: -0.433734045 | J136: -0.9528792121 | K136: -0.1209470581 | L136: -0.6931062264 | M136: -1.511951494 | N136: -2.712194898 | O136: -0.357065229 | P136: -1.440466367 | Q136: -2.758798558 | R136: -4.515274897
B137: San Marino | C137: 0.03158736251 | D137: 0.03126996747 | E137: 0.006725800181 | F137: -0.05926910131 | G137: 0.01406644201 | H137: -0.1442213306 | I137: -0.433734045 | J137: -0.9528792121 | K137: -0.1209470581 | L137: -0.6931062264 | M137: -1.511951494 | N137: -2.712194898 | O137: -0.357065229 | P137: -1.440466367 | Q137: -2.758798558 | R137: -4.515274897
B138: São Tomé and Principe | C138: 0.2701048816 | D138: 0.09901951955 | E138: -0.08042505264 | F138: -0.3048475924 | G138: 0.6144443559 | H138: 0.2457230095 | I138: -0.2099708369 | J138: -0.8209715059 | K138: 0.8680160691 | L138: 0.4133892402 | M138: -0.3779013531 | N138: -1.505350497 | O138: 0.8896695566 | P138: 0.5554093403 | Q138: -0.5444036204 | R138: -2.180047493
B139: Saudi Arabia | C139: 0.06821275157 | D139: -0.05780528459 | E139: -0.2985772098 | F139: -0.5258767179 | G139: 0.1624532805 | H139: -0.155155422 | I139: -0.8979294945 | J139: -1.658898789 | K139: 0.2581541761 | L139: -0.2885964844 | M139: -1.821527355 | N139: -3.386528474 | O139: 0.32604958 | P139: -0.4283177397 | Q139: -2.825080309 | R139: -5.172242154
B140: Senegal | C140: 0.2491222292 | D140: 0.02814838375 | E140: -0.2220528516 | F140: -0.5263134515 | G140: 0.5659837264 | H140: 0.07143115584 | I140: -0.598938229 | J140: -1.462836475 | K140: 0.8088939069 | L140: 0.1243257363 | M140: -1.108370019 | N140: -2.720037743 | O140: 0.8573759513 | P140: 0.1737915048 | Q140: -1.623308488 | R140: -3.951288711
B141: Serbia | C141: -0.01284802653 | D141: -0.1307395588 | E141: -0.2922367036 | F141: -0.4458713763 | G141: -0.03358950723 | H141: -0.3882538883 | I141: -0.9462816353 | J141: -1.504397861 | K141: -0.06067878194 | L141: -0.7926145284 | M141: -2.016962361 | N141: -3.207009589 | O141: -0.08788588479 | P141: -1.253206077 | Q141: -3.203409286 | R141: -5.004290225
B142: Sierra Leone | C142: 0.08389589632 | D142: -0.09223781764 | E142: -0.3287890099 | F142: -0.6361343851 | G142: 0.202253263 | H142: -0.2468844909 | I142: -0.927421187 | J142: -1.815410928 | K142: 0.3255994117 | L142: -0.4556648157 | M142: -1.746451502 | N142: -3.358339843 | O142: 0.4152361703 | P142: -0.6688960483 | Q142: -2.555721037 | R142: -4.844522748
B143: Slovak Republic | C143: 0.02775280833 | D143: -0.08362406654 | E143: -0.2382601953 | F143: -0.541415557 | G143: 0.06871831248 | H143: -0.231691248 | I143: -0.7213074582 | J143: -1.773149989 | K143: 0.1157485977 | L143: -0.4453513665 | M143: -1.483010259 | N143: -3.70640885 | O143: 0.1564572466 | P143: -0.6780313134 | Q143: -2.335108792 | R143: -5.725423442
B144: Slovenia | C144: 0.1794762453 | D144: 0.01948669488 | E144: -0.1683654542 | F144: -0.4596441257 | G144: 0.4142142734 | H144: 0.04947392503 | I144: -0.4584856227 | J144: -1.329725205 | K144: 0.6214759322 | L144: 0.08617814856 | M144: -0.8626860827 | N144: -2.593890938 | O144: 0.7234267163 | P144: 0.1205862998 | Q144: -1.287232098 | R144: -3.906066078
B145: Solomon Islands | C145: 0.0367872838 | D145: -0.08786339366 | E145: -0.26436595 | F145: -0.4792289348 | G145: 0.08920173374 | H145: -0.2440384967 | I145: -0.779960277 | J145: -1.423809609 | K145: 0.1453769355 | L145: -0.4652469248 | M145: -1.500429459 | N145: -2.670391101 | O145: 0.1888274234 | P145: -0.6969355536 | Q145: -2.211209968 | R145: -3.870718211
B146: Somalia | C146: 0.1993194444 | D146: 0.0377681468 | E146: -0.1669896871 | F146: -0.4604459342 | G146: 0.4473530363 | H146: 0.09501075463 | I146: -0.4525516339 | J146: -1.302654566 | K146: 0.6278160472 | L146: 0.16341659 | M146: -0.8431947216 | N146: -2.453063803 | O146: 0.649279908 | P146: 0.225625796 | Q146: -1.243245279 | R146: -3.586659121
B147: South Africa | C147: -0.03207088876 | D147: -0.1720865561 | E147: -0.3308554789 | F147: -0.6300079483 | G147: -0.09207069696 | H147: -0.5991380913 | I147: -1.218149032 | J147: -2.326461106 | K147: -0.1835405651 | L147: -1.33175876 | M147: -2.648196764 | N147: -4.761671471 | O147: -0.2875485286 | P147: -2.152439545 | Q147: -4.112762322 | R147: -7.122601424
B148: South Sudan | C148: 0.346974102 | D148: 0.1593840206 | E148: -0.08079538219 | F148: -0.3514882108 | G148: 0.7626547088 | H148: 0.3869277281 | I148: -0.2111600088 | J148: -0.9594099877 | K148: 1.012968777 | L148: 0.6292975718 | M148: -0.3808033285 | N148: -1.78705662 | O148: 0.9374593977 | P148: 0.8120337945 | Q148: -0.5499561407 | R148: -2.620344433
B149: Spain | C149: 0.1913899751 | D149: 0.03384316272 | E149: -0.2198395092 | F149: -0.4838804028 | G149: 0.4373140671 | H149: 0.08535300264 | I149: -0.6047429077 | J149: -1.389097419 | K149: 0.6412961049 | L149: 0.1473503795 | M149: -1.143332068 | N149: -2.667499239 | O149: 0.7183488322 | P149: 0.2042874635 | Q149: -1.703808949 | R149: -3.957237258
B150: Sri Lanka | C150: 0.02429007589 | D150: -0.09443933776 | E150: -0.265958658 | F150: -0.5149286143 | G150: 0.0602329956 | H150: -0.2631355362 | I150: -0.7893184865 | J150: -1.551041919 | K150: 0.1015725534 | L150: -0.5037847265 | M150: -1.535432602 | N150: -2.936530466 | O150: 0.1373357138 | P150: -0.7577411898 | Q150: -2.281280743 | R150: -4.273132532
B151: St. Vincent and the Grenadines | C151: 0.05026746091 | D151: -0.05771704538 | E151: -0.1541636305 | F151: -0.2750040583 | G151: 0.119109015 | H151: -0.1573340885 | I151: -0.4486850014 | J151: -0.8365105596 | K151: 0.1875147366 | L151: -0.2969412441 | M151: -0.8883056443 | N151: -1.673176463 | O151: 0.2337739098 | P151: -0.4449948507 | Q151: -1.360015038 | R151: -2.53500032
B152: Sudan | C152: 0.3187852259 | D152: 0.109563632 | E152: -0.1952410745 | F152: -0.5181620756 | G152: 0.7179923446 | H152: 0.271684459 | I152: -0.5198938223 | J152: -1.42290124 | K152: 1.001355706 | L152: 0.4570145137 | M152: -0.9525261469 | N152: -2.63292597 | O152: 1.011398936 | P152: 0.6146181865 | Q152: -1.387916217 | R152: -3.820994382
B153: Suriname | C153: -0.02376769004 | D153: -0.1315776076 | E153: -0.2316122073 | F153: -0.4093061332 | G153: -0.07522637138 | H153: -0.5285006169 | I153: -0.9736365352 | J153: -1.730333645 | K153: -0.1635360016 | L153: -1.273616919 | M153: -2.282499695 | N153: -3.820166809 | O153: -0.2720146234 | P153: -2.139989929 | Q153: -3.676219209 | R153: -5.890551191
B154: Sweden | C154: 0.04544645095 | D154: -0.04269748479 | E154: -0.1466843508 | F154: -0.3675197698 | G154: 0.1075018859 | H154: -0.1157875348 | I154: -0.4379524252 | J154: -1.222903161 | K154: 0.1693950906 | L154: -0.21804865 | M154: -0.901803479 | N154: -2.677235518 | O154: 0.2121852841 | P154: -0.32733023 | Q154: -1.439805068 | R154: -4.342107811
B155: Switzerland | C155: 0.04323796036 | D155: -0.09216272204 | E155: -0.2710279192 | F155: -0.526432371 | G155: 0.1052326934 | H155: -0.2554568993 | I155: -0.8198418571 | J155: -1.68255551 | K155: 0.1728783806 | L155: -0.4905571073 | M155: -1.669741317 | N155: -3.436586858 | O155: 0.2272151037 | P155: -0.7452181615 | Q155: -2.59448831 | R155: -5.229300377
B156: Syria | C156: 0.1001609423 | D156: -0.03047750763 | E156: -0.2358891226 | F156: -0.3859476106 | G156: 0.2283110476 | H156: -0.08015520658 | I156: -0.6971414039 | J156: -1.195274383 | K156: 0.337422989 | L156: -0.1457941176 | M156: -1.408544627 | N156: -2.466867693 | O156: 0.386874964 | P156: -0.2124255375 | Q156: -2.198828187 | R156: -3.848311877
B157: Tajikistan | C157: -0.01928272165 | D157: -0.05072386006 | E157: -0.1751096396 | F157: -0.3463200902 | G157: -0.1178070197 | H157: -0.3116683092 | I157: -1.04519275 | J157: -1.969366406 | K157: -0.3545238178 | L157: -0.9190557121 | M157: -2.841526737 | N157: -4.924762058 | O157: -0.6902417073 | P157: -1.733436328 | Q157: -4.899437584 | R157: -7.982116895
B158: Tanzania | C158: 0.02419346339 | D158: -0.1093773968 | E158: -0.2921604183 | F158: -0.5392270529 | G158: 0.05866054344 | H158: -0.3240084096 | I158: -0.9474331153 | J158: -1.796661343 | K158: 0.09585771097 | L158: -0.6561474158 | M158: -1.96243085 | N158: -3.599693988 | O158: 0.1252508561 | P158: -1.026087569 | Q158: -3.013477713 | R158: -5.360603805
B159: Thailand | C159: -0.0212423936 | D159: -0.08300585412 | E159: -0.248295774 | F159: -0.4442880189 | G159: -0.06173245202 | H159: -0.2855900897 | I159: -0.9620869382 | J159: -1.742040532 | K159: -0.1246450506 | L159: -0.6468130614 | M159: -2.169635686 | N159: -3.717381559 | O159: -0.1973450951 | P159: -1.079492333 | Q159: -3.437899445 | R159: -5.658122267
B160: The Bahamas | C160: 0.1728264871 | D160: 0.0519609368 | E160: -0.1174519732 | F160: -0.320528276 | G160: 0.3960450547 | H160: 0.1297197958 | I160: -0.313768184 | J160: -0.8895834815 | K160: 0.5782051057 | L160: 0.2206280717 | M160: -0.5775580906 | N160: -1.66539511 | O160: 0.6370281391 | P160: 0.3007960586 | Q160: -0.845543519 | R160: -2.436566702
B161: The Gambia | C161: 0.2174856327 | D161: 0.0139119899 | E161: -0.2021560535 | F161: -0.4709651718 | G161: 0.4989809397 | H161: 0.03546419856 | I161: -0.5446204296 | J161: -1.305845339 | K161: 0.7275857348 | L161: 0.06209786898 | M161: -1.006663291 | N161: -2.425208271 | O161: 0.7972428192 | P161: 0.08733818151 | Q161: -1.47307813 | R161: -3.521518063
B162: Togo | C162: 0.1327101667 | D162: -0.03333745211 | E162: -0.3608685649 | F162: -0.6844171844 | G162: 0.3146974418 | H162: -0.08656071494 | I162: -0.9994218516 | J162: -1.911037938 | K162: 0.4902016898 | L162: -0.1549886209 | M162: -1.856387947 | N162: -3.498456191 | O162: 0.5953473255 | P162: -0.2225250073 | Q162: -2.696774593 | R162: -5.025913286
B163: Trinidad and Tobago | C163: 0.2918248312 | D163: 0.1299416203 | E163: -0.02668537368 | F163: -0.1924879028 | G163: 0.6498924732 | H163: 0.3177688669 | I163: -0.06886252832 | J163: -0.5135038948 | K163: 0.8775600556 | L163: 0.5219727576 | M163: -0.1224225051 | N163: -0.940573685 | O163: 0.829058056 | P163: 0.6806072058 | Q163: -0.1746746627 | R163: -1.367930446
B164: Tunisia | C164: 0.4483428386 | D164: 0.2393486336 | E164: -0.06846229004 | F164: -0.2981256336 | G164: 1.007464811 | H164: 0.5808311864 | I164: -0.1772984726 | J164: -0.7924084329 | K164: 1.37902267 | L164: 0.9393331842 | M164: -0.3164377006 | N164: -1.445276837 | O164: 1.32890591 | P164: 1.196955885 | Q164: -0.4529622506 | R164: -2.094456289
B165: Turkmenistan | C165: 0.1429850288 | D165: 0.001782320498 | E165: -0.2365712137 | F165: -0.4594832536 | G165: 0.3186898266 | H165: 0.004559828219 | I165: -0.6836472889 | J165: -1.406919458 | K165: 0.4511845616 | L165: 0.008021466905 | M165: -1.356361488 | N165: -2.866686128 | O165: 0.4835118753 | P165: 0.01133382752 | Q165: -2.094848609 | R165: -4.42560913
B166: Türkiye | C166: 0.01258722206 | D166: -0.0842266884 | E166: -0.2486081362 | F166: -0.3430456668 | G166: 0.03113019799 | H166: -0.2517721062 | I166: -0.8502652398 | J166: -1.219925429 | K166: 0.05236781048 | L166: -0.5201747085 | M166: -1.901589224 | N166: -2.748100167 | O166: 0.07071310554 | P166: -0.8344157385 | Q166: -3.12740021 | R166: -4.472511423
B167: Uganda | C167: 0.1734500576 | D167: -0.002533811738 | E167: -0.2508672856 | F167: -0.5357295618 | G167: 0.3927053795 | H167: -0.006498990449 | I167: -0.695764475 | J167: -1.530580959 | K167: 0.5621067546 | L167: -0.0114695701 | M167: -1.312959954 | N167: -2.876154755 | O167: 0.6021422109 | P167: -0.01625588767 | Q167: -1.940058266 | R167: -4.188774804
B168: Ukraine | C168: 0.05915264308 | D168: -0.01484539686 | E168: -0.1523606382 | F168: -0.3830255059 | G168: 0.1431943336 | H168: -0.03849869761 | I168: -0.4313906646 | J168: -1.180867531 | K168: 0.2334756119 | L168: -0.06887313979 | M168: -0.8457374382 | N168: -2.448430698 | O168: 0.3043321054 | P168: -0.09886939261 | Q168: -1.304361215 | R168: -3.854666056
B169: United Arab Emirates | C169: 0.03558307283 | D169: -0.09075313807 | E169: -0.3216970009 | F169: -0.5478279526 | G169: 0.08620157899 | H169: -0.2564855553 | I169: -1.022925294 | J169: -1.816938858 | K169: 0.1406982356 | L169: -0.5019378768 | M169: -2.136124916 | N169: -3.756685805 | O169: 0.1836144726 | P169: -0.7731024806 | Q169: -3.336209155 | R169: -5.723704907
B170: United Kingdom | C170: 0.04059680133 | D170: -0.03137889598 | E170: -0.1260670057 | F170: -0.2618972825 | G170: 0.09397245106 | H170: -0.08506984765 | I170: -0.3815649302 | J170: -0.8591102533 | K170: 0.1428999398 | L170: -0.1600884978 | M170: -0.7898124454 | N170: -1.841211384 | O170: 0.1708571976 | P170: -0.2400781245 | Q170: -1.25710794 | R170: -2.925157858
B171: United States | C171: -0.009139011359 | D171: -0.2237169424 | E171: -0.5065264459 | F171: -0.7211397151 | G171: -0.02366244346 | H171: -0.6697181804 | I171: -1.606456742 | J171: -2.306710012 | K171: -0.04224781374 | L171: -1.349298618 | M171: -3.214070318 | N171: -4.520296296 | O171: -0.06053482135 | P171: -2.078837027 | Q171: -4.813868937 | R171: -6.671130245
B172: Uruguay | C172: 0.08412477781 | D172: -0.002641552862 | E172: -0.1956837659 | F172: -0.3752818064 | G172: 0.1915287407 | H172: -0.006786060419 | I172: -0.5724304232 | J172: -1.153006944 | K172: 0.2814447232 | L172: -0.01199993152 | M172: -1.136884433 | N172: -2.307192557 | O172: 0.3188883442 | P172: -0.01703974353 | Q172: -1.742459654 | R172: -3.484425052
B173: Uzbekistan | C173: 0.07176301329 | D173: -0.04459789999 | E173: -0.2608048709 | F173: -0.4554955612 | G173: 0.1671136469 | H173: -0.1194101917 | I173: -0.795232889 | J173: -1.470773222 | K173: 0.2564721684 | L173: -0.2216502853 | M173: -1.645258664 | N173: -3.101531354 | O173: 0.3102179668 | P173: -0.3286243269 | Q173: -2.601678348 | R173: -4.866425498
B174: Vanuatu | C174: 0.4086007173 | D174: 0.2447615195 | E174: 0.05911062898 | F174: -0.1220898323 | G174: 0.8742580168 | H174: 0.5775684248 | I174: 0.1491861904 | J174: -0.3202275979 | K174: 1.054425155 | L174: 0.884477812 | M174: 0.2576125027 | N174: -0.5787655405 | O174: 0.763686414 | P174: 1.039571065 | Q174: 0.3569635458 | R174: -0.8359751616
B175: Venezuela | C175: 0.07756511935 | D175: -0.1324624883 | E175: -0.4059718461 | F175: -0.696447295 | G175: 0.1845849849 | H175: -0.3662458925 | I175: -1.196286551 | J175: -2.077206149 | K175: 0.291830689 | L175: -0.6964224589 | M175: -2.310094071 | N175: -3.927694615 | O175: 0.3648005621 | P175: -1.042884239 | Q175: -3.416357755 | R175: -5.715037078
B176: Vietnam | C176: -0.02439044348 | D176: -0.1288817659 | E176: -0.2087406644 | F176: -0.3879249039 | G176: -0.0722490197 | H176: -0.4735983006 | I176: -0.8063132267 | J176: -1.539072179 | K176: -0.1484262167 | L176: -1.095708171 | M176: -1.849009535 | N176: -3.35506549 | O176: -0.2377961804 | P176: -1.817017707 | Q176: -2.978863829 | R176: -5.164617899
B177: Yemen | C177: 0.3277001443 | D177: 0.1822671537 | E177: -0.02516170714 | F177: -0.3080138274 | G177: 0.7131223627 | H177: 0.4333437622 | I177: -0.06497945042 | J177: -0.8495599445 | K177: 0.9442572281 | L177: 0.6832091731 | M177: -0.1156430074 | N177: -1.608883704 | O177: 0.8832976797 | P177: 0.8498803952 | Q177: -0.1651919361 | R177: -2.398654161
B178: Zambia | C178: 0.09653316842 | D178: -0.06731863326 | E178: -0.2927150813 | F178: -0.6436497829 | G178: 0.2204239898 | H178: -0.1820259275 | I178: -0.8774553561 | J178: -2.040674213 | K178: 0.3260641128 | L178: -0.3410615438 | M178: -1.768931994 | N178: -4.087285327 | O178: 0.3735739911 | P178: -0.508860516 | Q178: -2.725433155 | R178: -6.127346987
B179: Zimbabwe | C179: 0.01640257171 | D179: -0.1405161922 | E179: -0.3054448523 | F179: -0.5881904855 | G179: 0.04073768689 | H179: -0.422828696 | I179: -0.9975316528 | J179: -2.018296357 | K179: 0.06891328492 | L179: -0.8698783458 | M179: -2.118969356 | N179: -4.200581934 | O179: 0.09358588377 | P179: -1.37745145 | Q179: -3.336557908 | R179: -6.389828948

Sheet table-all-countries (growth)
B1: Choose Adaptation Horizon | C1: 30 | D1: This is the m parameter in Kahn et al. (2021). Default: m = 30.
B3: =CONCATENATE("Impact of Warming Trends on Annual Real GDP Growth for m=",C1) -> Impact of Warming Trends on Annual Real GDP Growth for m=30
B5: Percentage Points
B6: Country
C7: SSP1-2.6 | D7: SSP2-4.5 | E7: SSP3-7.0 | F7: SSP3-7.0 90th
C8: Paris | D8: Moderate | E8: High | F8: Hot | CL8: 26 | CM8: 45 | CN8: 70 | CO8: 70H | CP8: 26 | CQ8: 45 | CR8: 70 | CS8: 70H | CT8: 26 | CU8: 45 | CV8: 70 | CW8: 70H | CX8: 26 | CY8: 45 | CZ8: 70 | DA8: 70H
B9: =_xlfn._xlws.FILTER('data-gdp-growth'!B$2:B$10000,('data-gdp-growth'!$D$2:$D$10000='table-all-countries (growth)'!$C$1)*('data-gdp-growth'!$C$2:$C$10000='table-all-countries (growth)'!CL$8)*('data-gdp-growth'!$E$2:$E$10000=50)) -> Afghanistan | C9: =_xlfn._xlws.FILTER('data-gdp-growth'!$CL$2:$CL$10000,('data-gdp-growth'!$D$2:$D$10000='table-all-countries (growth)'!$C$1)*('data-gdp-growth'!$C$2:$C$10000='table-all-countries (growth)'!CX$8)*('data-gdp-growth'!$E$2:$E$10000=50)) -> -0.007716148899 | D9: =_xlfn._xlws.FILTER('data-gdp-growth'!$CL$2:$CL$10000,('data-gdp-growth'!$D$2:$D$10000='table-all-countries (growth)'!$C$1)*('data-gdp-growth'!$C$2:$C$10000='table-all-countries (growth)'!CY$8)*('data-gdp-growth'!$E$2:$E$10000=50)) -> 0.007103667145 | E9: =_xlfn._xlws.FILTER('data-gdp-growth'!$CL$2:$CL$10000,('data-gdp-growth'!$D$2:$D$10000='table-all-countries (growth)'!$C$1)*('data-gdp-growth'!$C$2:$C$10000='table-all-countries (growth)'!CZ$8)*('data-gdp-growth'!$E$2:$E$10000=50)) -> -0.01230349608 | F9: =_xlfn._xlws.FILTER('data-gdp-growth'!$CL$2:$CL$10000,('data-gdp-growth'!$D$2:$D$10000='table-all-countries (growth)'!$C$1)*('data-gdp-growth'!$C$2:$C$10000='table-all-countries (growth)'!DA$8)*('data-gdp-growth'!$E$2:$E$10000=50)) -> -0.04717867083
B10: Albania | C10: 0.003261759293 | D10: -0.005523374207 | E10: -0.03485714809 | F10: -0.05881886012
B11: Algeria | C11: 0.0004199545504 | D11: 0.00439273859 | E11: -0.03092178546 | F11: -0.06370858629
B12: Angola | C12: 0.002709985659 | D12: -0.007238467152 | E12: -0.0373169579 | F12: -0.08311235201
B13: Argentina | C13: -0.00148495566 | D13: -0.02050794796 | E13: -0.04723510934 | F13: -0.07090105899
B14: Armenia | C14: 0.0004487125345 | D14: -0.0146013303 | E14: -0.05056530694 | F14: -0.08427117371
B15: Australia | C15: -0.001078146819 | D15: -0.02312154863 | E15: -0.056081766 | F15: -0.09082370168
B16: Austria | C16: 0.001213551362 | D16: -0.01510117271 | E16: -0.04548742993 | F16: -0.08879895731
B17: Azerbaijan | C17: 0.001374339417 | D17: -0.006829667995 | E17: -0.03929074628 | F17: -0.07081053091
B18: Bangladesh | C18: -0.02065009521 | D18: -0.04492953503 | E18: -0.07006064657 | F18: -0.1011591898
B19: Belarus | C19: 0.002025076738 | D19: 0.001872101496 | E19: -0.01156581688 | F19: -0.06631247225
B20: Belgium | C20: 0.0001640831919 | D20: 0.002836568851 | E20: -0.007135506455 | F20: -0.03610436718
B21: Belize | C21: 0.0007505118092 | D21: -0.0170922908 | E21: -0.03803185083 | F21: -0.0732336972
B22: Benin | C22: 0.002770052649 | D22: -0.00724258975 | E22: -0.03493124543 | F22: -0.06820704629
B23: Bhutan | C23: 0.00131214648 | D23: -0.01399942655 | E23: -0.04437108 | F23: -0.07877316439
B24: Bolivia | C24: -0.01737586816 | D24: -0.05318786143 | E24: -0.08842473857 | F24: -0.123149102
B25: Bosnia and Herzegovina | C25: -0.001251665796 | D25: 0.006923195098 | E25: -0.007141525018 | F25: -0.03186902986
B26: Botswana | C26: 0.001020226442 | D26: -0.008002924383 | E26: -0.03848117656 | F26: -0.08477017939
B27: Brazil | C27: 0.003293343813 | D27: -0.01574330022 | E27: -0.04932490389 | F27: -0.08521893046
B28: Brunei Darussalam | C28: 0.0003677182147 | D28: -0.01369612696 | E28: -0.03900645902 | F28: -0.06675438812
B29: Bulgaria | C29: -0.003098051636 | D29: -0.02302082766 | E29: -0.06269408967 | F29: -0.09212801788
B30: Burkina Faso | C30: 0.003470407843 | D30: -0.01097111212 | E30: -0.03781450561 | F30: -0.0696338379
B31: Burundi | C31: 0.0009981361485 | D31: -0.005477153887 | E31: -0.03017154773 | F31: -0.06609403639
B32: Cabo Verde | C32: 0.0007426320109 | D32: 0.001422306707 | E32: -0.01185243428 | F32: -0.02835145021
B33: Cambodia | C33: 0.001957344143 | D33: -0.002484578066 | E33: -0.02669815713 | F33: -0.06497855449
B34: Cameroon | C34: 0.0005820040874 | D34: -0.01769834519 | E34: -0.05502035191 | F34: -0.0793510817
B35: Canada | C35: 0.003481822719 | D35: -0.0140931424 | E35: -0.05641264721 | F35: -0.1116833709
B36: Central African Republic | C36: -0.0002500469391 | D36: -0.02058625799 | E36: -0.05209624855 | F36: -0.0901208474
B37: Chad | C37: 0.001922653973 | D37: -0.0110497018 | E37: -0.03661681683 | F37: -0.07550054958
B38: Chile | C38: -0.0002746780451 | D38: -0.01484564246 | E38: -0.04573515237 | F38: -0.06753780589
B39: China | C39: 0.004966347171 | D39: -0.01061710381 | E39: -0.04024931479 | F39: -0.0781249705
B40: Colombia | C40: -0.005827168605 | D40: -0.03348805753 | E40: -0.06010467483 | F40: -0.09982634741
B41: Comoros | C41: -0.001319424933 | D41: -0.01261513941 | E41: -0.03634473621 | F41: -0.06559309983
B42: Costa Rica | C42: 0.002068651589 | D42: -0.005426761605 | E42: -0.02642580131 | F42: -0.05205304287
B43: Croatia | C43: 0.003056487344 | D43: -0.005216057919 | E43: -0.03041799177 | F43: -0.06369063681
B44: Cyprus | C44: 0.001378545297 | D44: -0.00621947811 | E44: -0.03445777423 | F44: -0.05179866897
B45: Czech Republic | C45: 0.001601838159 | D45: -0.008626170201 | E45: -0.03082431517 | F45: -0.08201299377
B46: Côte d'Ivoire | C46: 0.001980804524 | D46: -0.01188196098 | E46: -0.04324048518 | F46: -0.07867712336
B47: Democratic Republic of the Congo | C47: 0.002519320728 | D47: -0.008621269594 | E47: -0.03742442041 | F47: -0.080018862
B48: Denmark | C48: 0.001365784878 | D48: -0.001447948136 | E48: -0.01295871703 | F48: -0.04519337996
B49: Djibouti | C49: 0.001174321495 | D49: -0.01279162687 | E49: -0.04095096178 | F49: -0.07107350074
B50: Dominican Republic | C50: 0.001664931024 | D50: -0.005316210349 | E50: -0.02878928053 | F50: -0.04718544258
B51: Ecuador | C51: -0.01747725618 | D51: -0.04122705624 | E51: -0.07584469381 | F51: -0.1014451076
B52: Egypt | C52: -0.00254237627 | D52: 0.0027882896 | E52: -0.02605857501 | F52: -0.05424050324
B53: El Salvador | C53: -0.01034938046 | D53: 0.007934287831 | E53: -0.002506586277 | F53: -0.03001435239
B54: Equatorial Guinea | C54: -0.003379711146 | D54: 0.004950564453 | E54: -0.007143267187 | F54: -0.03278937211
B55: Eritrea | C55: 0.001768787213 | D55: -0.005506327577 | E55: -0.02822641432 | F55: -0.06184335324
B56: Estonia | C56: 0.00118382925 | D56: 0.001906082793 | E56: -0.008870587967 | F56: -0.06501516774
B57: Eswatini | C57: 0.001712741802 | D57: -0.0107508609 | E57: -0.03351621966 | F57: -0.07615090771
B58: Ethiopia | C58: -0.002436109531 | D58: 0.002861569527 | E58: -0.0232074733 | F58: -0.05849006883
B59: Fiji | C59: 0.0001278205403 | D59: -0.004201670028 | E59: -0.02525810618 | F59: -0.04518850502
B60: Finland | C60: 0.001972052827 | D60: -0.0003158334915 | E60: -0.02203172818 | F60: -0.07733527216
B61: France | C61: 0.002476879426 | D61: -0.001090849844 | E61: -0.02861817212 | F61: -0.06033976769
B62: Gabon | C62: 0.002528042352 | D62: -0.00215935994 | E62: -0.02835143089 | F62: -0.06257031974
B63: Georgia | C63: 0.001002670678 | D63: -0.01362038555 | E63: -0.04791544341 | F63: -0.07926971064
B64: Germany | C64: 0.001971633062 | D64: -0.001119602652 | E64: -0.01519603945 | F64: -0.05725259855
B65: Ghana | C65: 0.003197538884 | D65: -0.001449282248 | E65: -0.03430427085 | F65: -0.06760883031
B66: Greece | C66: -0.002854812237 | D66: -0.02203404481 | E66: -0.05945643439 | F66: -0.08297236345
B67: Grenada | C67: -0.009532756808 | D67: 0.005331709931 | E67: -0.0161494285 | F67: -0.03154789004
B68: Guatemala | C68: -0.004958183911 | D68: 0.006813495114 | E68: -0.02045260018 | F68: -0.04667335506
B69: Guinea | C69: 0.00321268774 | D69: -0.01286943998 | E69: -0.0411519988 | F69: -0.07431284589
B70: Guinea-Bissau | C70: -0.001445048725 | D70: 0.001663872475 | E70: -0.01825403551 | F70: -0.04222185962
B71: Guyana | C71: -0.009003379075 | D71: -0.04459647178 | E71: -0.0652187182 | F71: -0.100439903
B72: Haiti | C72: 0.001371537114 | D72: -0.003487869798 | E72: -0.02116776282 | F72: -0.0441719852
B73: Honduras | C73: 0.001183720946 | D73: -0.002143053432 | E73: -0.02390294177 | F73: -0.05143124978
B74: Hungary | C74: -0.0007133355287 | D74: -0.01650074515 | E74: -0.04368045034 | F74: -0.09148250488
B75: Iceland | C75: 0.0006797333195 | D75: -0.003094596313 | E75: -0.01903601485 | F75: -0.03890005654
B76: India | C76: -0.004250533397 | D76: -0.02451650281 | E76: -0.05449768425 | F76: -0.08571174866
B77: Indonesia | C77: -0.004221001409 | D77: -0.02524251286 | E77: -0.04629569651 | F77: -0.07415745416
B78: Iraq | C78: 0.0004880716611 | D78: -0.003035241885 | E78: -0.04074153505 | F78: -0.06588725115
B79: Ireland | C79: 0.0003720845714 | D79: 0.00139195571 | E79: -0.01252109035 | F79: -0.03973420055
B80: Islamic Republic of Iran | C80: 0.001911038283 | D80: -0.004007011839 | E80: -0.04057285496 | F80: -0.07488498559
B81: Israel | C81: 0.0014050561 | D81: -0.007825772924 | E81: -0.0373663499 | F81: -0.0621781043
B82: Italy | C82: 0.001384419733 | D82: 0.002437241792 | E82: -0.02343153267 | F82: -0.05123056209
B83: Jamaica | C83: -0.0005438687802 | D83: 0.00238741058 | E83: -0.0118530231 | F83: -0.0330385546
B84: Japan | C84: 0.0007138655221 | D84: -0.01828077267 | E84: -0.0488933202 | F84: -0.08605572978
B85: Jordan | C85: 0.001031591599 | D85: -0.01168838043 | E85: -0.05120611161 | F85: -0.07772244762
B86: Kazakhstan | C86: 0.001994270634 | D86: -0.01284118422 | E86: -0.04983978982 | F86: -0.08690140198
B87: Kenya | C87: -0.002039745085 | D87: -0.0007397894282 | E87: -0.02765130821 | F87: -0.05818909445
B88: Korea | C88: -0.005564178186 | D88: -0.02876909994 | E88: -0.05566711111 | F88: -0.1015772339
B89: Kuwait | C89: 0.001317950539 | D89: 0.0001535141022 | E89: -0.03655053127 | F89: -0.07097910752
B90: Kyrgyz Republic | C90: 0.003413659523 | D90: -0.002172798989 | E90: -0.03382283246 | F90: -0.07240674986
B91: Lao P.D.R. | C91: -0.001056820871 | D91: -0.02420637472 | E91: -0.04560329754 | F91: -0.07698826031
B92: Latvia | C92: 0.001706466782 | D92: 0.000460313935 | E92: -0.01154778461 | F92: -0.06251381558
B93: Lebanon | C93: -0.0004989071625 | D93: 0.00136689414 | E93: -0.02117919805 | F93: -0.04338886818
B94: Lesotho | C94: -0.001433649726 | D94: -0.02680164936 | E94: -0.06588842324 | F94: -0.1038020033
B95: Liberia | C95: -9.530258247e-05 | D95: -0.01943646369 | E95: -0.04494401815 | F95: -0.07690435311
B96: Libya | C96: -0.01299901029 | D96: 0.008897971168 | E96: -0.01360849906 | F96: -0.04215958342
B97: Lithuania | C97: 0.002330153737 | D97: 1.081727261e-05 | E97: -0.01422268297 | F97: -0.064343878
B98: Luxembourg | C98: -0.0001911489757 | D98: 0.00341912464 | E98: -0.01086282056 | F98: -0.0435975344
B99: Madagascar | C99: -0.0004086478693 | D99: 0.003082418108 | E99: -0.01854480916 | F99: -0.04947881971
B100: Malawi | C100: 0.0005417822102 | D100: -0.0008137652211 | E100: -0.02934228467 | F100: -0.0711534811
B101: Malaysia | C101: 0.00250351022 | D101: -0.008972984632 | E101: -0.03100973348 | F101: -0.05877740595
B102: Mali | C102: 0.002652431558 | D102: -0.009815436344 | E102: -0.04602297842 | F102: -0.08112994326
B103: Mauritania | C103: 0.001138111738 | D103: -0.001014425072 | E103: -0.03442268049 | F103: -0.06943665823
B104: Mauritius | C104: -0.006005983204 | D104: 0.004500701682 | E104: -0.007728930705 | F104: -0.03331370346
B105: Mexico | C105: -0.0002139353843 | D105: -0.02112411856 | E105: -0.05224197582 | F105: -0.07686309375
B106: Moldova | C106: 0.001176742382 | D106: -0.01081950484 | E106: -0.03197485035 | F106: -0.07795390653
B107: Mongolia | C107: 0.003215084723 | D107: -0.003267890165 | E107: -0.03603560073 | F107: -0.08044588283
B108: Montenegro | C108: 0.001809300861 | D108: -0.01453120484 | E108: -0.04403548928 | F108: -0.06720885474
B109: Morocco | C109: 0.00223235974 | D109: -0.002671554406 | E109: -0.03301141796 | F109: -0.05800748115
B110: Mozambique | C110: 0.001988172534 | D110: -0.01183629025 | E110: -0.04135421093 | F110: -0.07983985738
B111: Myanmar | C111: 0.001234249446 | D111: 0.0006342019454 | E111: -0.02173409235 | F111: -0.05481625775
B112: Namibia | C112: -0.001149163556 | D112: -0.002619558304 | E112: -0.02871251656 | F112: -0.07340133488
B113: Nepal | C113: 0.002437127863 | D113: -0.012082605 | E113: -0.0412612956 | F113: -0.08013833485
B114: Netherlands | C114: -0.0002619369625 | D114: 0.00236506385 | E114: -0.005029542565 | F114: -0.03185400928
B115: New Zealand | C115: -0.004854406353 | D115: -0.02980660117 | E115: -0.05816666242 | F115: -0.07713380619
B116: Nicaragua | C116: -0.007440754724 | D116: 0.006716387533 | E116: -0.01172791494 | F116: -0.03189851883
B117: Niger | C117: -0.002995013737 | D117: -0.02828166342 | E117: -0.06519974857 | F117: -0.104644622
B118: Nigeria | C118: 0.002192135685 | D118: -0.009991515247 | E118: -0.03728498931 | F118: -0.0698657571
B119: North Macedonia | C119: 0.0006697384561 | D119: -0.003211569851 | E119: -0.01683666402 | F119: -0.04803121644
B120: Norway | C120: 0.001851536038 | D120: -0.002171329442 | E120: -0.02027908994 | F120: -0.06682027442
B121: Oman | C121: -0.0024397932 | D121: -0.02697025775 | E121: -0.05540209946 | F121: -0.09635646655
B122: Pakistan | C122: -0.006294459363 | D122: -0.02698975056 | E122: -0.06434536015 | F122: -0.09751078413
B123: Panama | C123: 0.002069431902 | D123: -0.004128292607 | E123: -0.02340822588 | F123: -0.04746492244
B124: Papua New Guinea | C124: -0.001537134788 | D124: -0.01704991331 | E124: -0.04165871168 | F124: -0.0655046744
B125: Paraguay | C125: -0.006851085598 | D125: -0.02978436951 | E125: -0.05720791071 | F125: -0.1050194094
B126: Peru | C126: -0.007999208309 | D126: -0.03199582946 | E126: -0.06628245201 | F126: -0.09959232669
B127: Philippines | C127: -0.001427020296 | D127: -0.02201538587 | E127: -0.04231730307 | F127: -0.06512948237
B128: Poland | C128: 0.002524468882 | D128: -0.001802243474 | E128: -0.0172958609 | F128: -0.06601529486
B129: Portugal | C129: -0.0001969398253 | D129: -0.01333685419 | E129: -0.04326354383 | F129: -0.07419451294
B130: Puerto Rico | C130: -0.002089062593 | D130: -0.01789428516 | E130: -0.03846137696 | F130: -0.0570554168
B131: Qatar | C131: 0.002275765909 | D131: 0.002524036782 | E131: -0.02531814363 | F131: -0.059661266
B132: Republic of Congo | C132: 0.00233636513 | D132: -0.01462898083 | E132: -0.04415323345 | F132: -0.08654663691
B133: Romania | C133: 0.000516300527 | D133: -0.01562317686 | E133: -0.04063700881 | F133: -0.08244187378
B134: Russia | C134: 0.003916918225 | D134: -0.004537345805 | E134: -0.04442609656 | F134: -0.09408292798
B135: Rwanda | C135: 0.001432667952 | D135: -0.01059419544 | E135: -0.03681899717 | F135: -0.07130747909
B136: Samoa | C136: -0.01172593364 | D136: -0.0342389645 | E136: -0.05475090367 | F136: -0.07883291426
B137: San Marino | C137: -0.01172593364 | D137: -0.0342389645 | E137: -0.05475090367 | F137: -0.07883291426
B138: São Tomé and Principe | C138: -0.003593858706 | D138: 0.005483216816 | E138: -0.007066670957 | F138: -0.0288979211
B139: Saudi Arabia | C139: 0.002342566181 | D139: -0.006065197198 | E139: -0.04459251737 | F139: -0.0794250165
B140: Senegal | C140: -0.001733785305 | D140: 0.002031252099 | E140: -0.0221638291 | F140: -0.05351788087
B141: Serbia | C141: -0.001157947554 | D141: -0.0206689567 | E141: -0.05302904466 | F141: -0.08012357702
B142: Sierra Leone | C142: 0.003122685501 | D142: -0.009153517481 | E142: -0.03473849726 | F142: -0.06503826168
B143: Slovak Republic | C143: 0.001605928283 | D143: -0.01026987571 | E143: -0.0381820454 | F143: -0.0904793146
B144: Slovenia | C144: 0.002269769405 | D144: 0.001415635562 | E144: -0.01854773735 | F144: -0.05800047802
B145: Solomon Islands | C145: 0.001593889217 | D145: -0.01000737251 | E145: -0.03036156555 | F145: -0.05200190251
B146: Somalia | C146: -0.002147559979 | D146: 0.002516493855 | E146: -0.01725133339 | F146: -0.04913586573
B147: South Africa | C147: -0.004648444854 | D147: -0.03628324059 | E147: -0.06403964895 | F147: -0.105816818
B148: South Sudan | C148: -0.009254028094 | D148: 0.006511288927 | E148: -0.007201118997 | F148: -0.03610425794
B149: Spain | C149: 0.0007953859498 | D149: 0.002316155302 | E149: -0.02441424209 | F149: -0.05646439829
B150: Sri Lanka | C150: 0.001409294897 | D150: -0.0110121747 | E150: -0.03197149422 | F150: -0.05814824759
B151: St. Vincent and the Grenadines | C151: 0.001533642231 | D151: -0.006447766328 | E151: -0.02061174545 | F151: -0.03733051901
B152: Sudan | C152: -0.004821187138 | D152: 0.006103159133 | E152: -0.01869798624 | F152: -0.05162337073
B153: Suriname | C153: -0.004975146241 | D153: -0.03862909058 | E153: -0.0611102838 | F153: -0.09168942317
B154: Sweden | C154: 0.00145204884 | D154: -0.004782077415 | E154: -0.02440577892 | F154: -0.07623983533
B155: Switzerland | C155: 0.002048291628 | D155: -0.01121190441 | E155: -0.04099540591 | F155: -0.07948624172
B156: Syria | C156: 0.0009588763094 | D156: -0.002851889785 | E156: -0.03535661078 | F156: -0.06184237191
B157: Tajikistan | C157: -0.01604118897 | D157: -0.03814613909 | E157: -0.09293698888 | F157: -0.1390052874
B158: Tanzania | C158: 0.001097872688 | D158: -0.01637438925 | E158: -0.04570154065 | F158: -0.07751449232
B159: Thailand | C159: -0.003267758859 | D159: -0.01954467716 | E159: -0.05535384506 | F159: -0.08570055089
B160: The Bahamas | C160: 6.689198742e-05 | D160: 0.003184895213 | E160: -0.0114960087 | F160: -0.03314456731
B161: The Gambia | C161: -0.0001842968987 | D161: 0.001044270388 | E161: -0.02003602378 | F161: -0.04744651406
B162: Togo | C162: 0.00302703838 | D162: -0.00285454681 | E162: -0.03607837284 | F162: -0.06696942937
B163: Trinidad and Tobago | C163: -0.007243576862 | D163: 0.005769997083 | E163: -0.002196740056 | F163: -0.01829073724
B164: Tunisia | C164: -0.01007565165 | D164: 0.008751426656 | E164: -0.005768357279 | F164: -0.02791974243
B165: Turkmenistan | C165: -0.0005303338668 | D165: 0.0001377879608 | E165: -0.03291849186 | F165: -0.06975595793
B166: Türkiye | C166: 0.0007237619853 | D166: -0.01424067985 | E166: -0.0558010259 | F166: -0.07820262426
B167: Uganda | C167: -0.0008122527724 | D167: -0.0001997459724 | E167: -0.02704213765 | F167: -0.05712513043
B168: Ukraine | C168: 0.002630694478 | D168: -0.001267351104 | E168: -0.02045356486 | F168: -0.06359320411
B169: United Arab Emirates | C169: 0.001598710671 | D169: -0.01202154709 | E169: -0.05315971681 | F169: -0.08741896388
B170: United Kingdom | C170: 0.0007876377878 | D170: -0.003492901295 | E170: -0.0209624945 | F170: -0.04818038104
B171: United States | C171: -0.000771053327 | D171: -0.03201153032 | E171: -0.07021417961 | F171: -0.09596528382
B172: Uruguay | C172: 0.0005813025821 | D172: -0.0002107007159 | E172: -0.02654375605 | F172: -0.05130528121
B173: Uzbekistan | C173: 0.001599206498 | D173: -0.00464067011 | E173: -0.04305754039 | F173: -0.07945890934
B174: Vanuatu | C174: -0.02033742642 | D174: 0.003441559058 | E174: 0.004027538789 | F174: -0.01095522949
B175: Venezuela | C175: 0.002419838543 | D175: -0.01504293293 | E175: -0.04790555433 | F175: -0.07893456198
B176: Vietnam | C176: -0.004037738772 | D176: -0.032160211 | E176: -0.04953548159 | F176: -0.07959319105
B177: Yemen | C177: -0.008020475129 | D177: 0.005396820247 | E177: -0.002085521536 | F177: -0.03461791607
B178: Zambia | C178: 0.0009007326664 | D178: -0.007306868903 | E178: -0.04222925633 | F178: -0.0907992613
B179: Zimbabwe | C179: 0.0009802608547 | D179: -0.02271878168 | E179: -0.05399490427 | F179: -0.09772139099

Sheet impact-by-scenario
B1: Selected Country | D1: ='data-countries'!F3 -> Afghanistan
B2: Choose Adaptation Horizon | D2: 30 | E2: This is the m parameter in Kahn et al. (2021). Default: m = 30. | BP2: Total | BX2: Share of GDP
BJ3: ISO3 | BK3: Country | BL3: Strategy | BM3: m | BN3: p | BO3: 2015 | BP3: 2016 | BQ3: 2017 | BR3: 2018 | BS3: 2019 | BT3: 2020 | BU3: 2021 | BV3: 2022 | BW3: 2023 | BX3: 2024 | BY3: 2025 | BZ3: 2070H | CA3: 2027 | CB3: 2028 | CC3: 2029 | CD3: 2030 | CE3: 2031 | CF3: 2032 | CG3: 2033 | CH3: 2034 | CI3: 2035 | CJ3: 2036 | CK3: 2037 | CL3: 2038 | CM3: 2039 | CN3: 2040 | CO3: 2041 | CP3: 2042 | CQ3: 2043 | CR3: 2044 | CS3: 2045 | CT3: 2046 | CU3: 2047 | CV3: 2048 | CW3: 2049 | CX3: 2050 | CY3: 2051 | CZ3: 2052 | DA3: 2053 | DB3: 2054 | DC3: 2055 | DD3: 2056 | DE3: 2057 | DF3: 2058 | DG3: 2059 | DH3: 2060 | DI3: 2061 | DJ3: 2062 | DK3: 2063 | DL3: 2064 | DM3: 2065 | DN3: 2066 | DO3: 2067 | DP3: 2068 | DQ3: 2069 | DR3: 2070 | DS3: 2071 | DT3: 2072 | DU3: 2073 | DV3: 2074 | DW3: 2075 | DX3: 2076 | DY3: 2077 | DZ3: 2078 | EA3: 2079 | EB3: 2080 | EC3: 2081 | ED3: 2082 | EE3: 2083 | EF3: 2084 | EG3: 2085 | EH3: 2086 | EI3: 2087 | EJ3: 2088 | EK3: 2089 | EL3: 2090 | EM3: 2091 | EN3: 2092 | EO3: 2093 | EP3: 2094 | EQ3: 2095 | ER3: 2096 | ES3: 2097 | ET3: 2098 | EU3: 2099 | EV3: 2100
B4: =CONCATENATE("Impact of Warming Trends on Real GDP, ", 'data-countries'!$F$3) -> Impact of Warming Trends on Real GDP, Afghanistan | J4: =CONCATENATE("Impact of Warming Trends on Real GDP, ",'data-countries'!$F$3) -> Impact of Warming Trends on Real GDP, Afghanistan | X4: =CONCATENATE("Impact of Warming Trends on Real GDP, ",'data-countries'!$F$3) -> Impact of Warming Trends on Real GDP, Afghanistan | AL4: =CONCATENATE("Impact of Warming Trends on Real GDP, ",'data-countries'!$F$3) -> Impact of Warming Trends on Real GDP, Afghanistan | BJ4: =_xlfn._xlws.FILTER('data-gdp-level'!A$2:A$10000,('data-countries'!$G$3='data-gdp-level'!$A$2:$A$10000)*('data-gdp-level'!D2:D10000=$D$2)) -> AFG | BK4: =_xlfn._xlws.FILTER('data-gdp-level'!B$2:B$10000,('data-countries'!$G$3='data-gdp-level'!$A$2:$A$10000)*('data-gdp-level'!D2:D10000=$D$2)) -> Afghanistan | BL4: =_xlfn._xlws.FILTER('data-gdp-level'!C$2:C$10000,('data-countries'!$G$3='data-gdp-level'!$A$2:$A$10000)*('data-gdp-level'!D2:D10000=$D$2)) -> 26 | BM4: =_xlfn._xlws.FILTER('data-gdp-level'!D$2:D$10000,('data-countries'!$G$3='data-gdp-level'!$A$2:$A$10000)*('data-gdp-level'!D2:D10000=$D$2)) -> 30 | BN4: =_xlfn._xlws.FILTER('data-gdp-level'!E$2:E$10000,('data-countries'!$G$3='data-gdp-level'!$A$2:$A$10000)*('data-gdp-level'!D2:D10000=$D$2)) -> 5 | BO4: =_xlfn._xlws.FILTER('data-gdp-level'!F$2:F$10000,('data-countries'!$G$3='data-gdp-level'!$A$2:$A$10000)*('data-gdp-level'!$D$2:$D$10000=$D$2)) -> -7.478558972e-05 | BP4: =_xlfn._xlws.FILTER('data-gdp-level'!G$2:G$10000,('data-countries'!$G$3='data-gdp-level'!$A$2:$A$10000)*('data-gdp-level'!$D$2:$D$10000=$D$2)) -> 0.001419258009 | BQ4: =_xlfn._xlws.FILTER('data-gdp-level'!H$2:H$10000,('data-countries'!$G$3='data-gdp-level'!$A$2:$A$10000)*('data-gdp-level'!$D$2:$D$10000=$D$2)) -> 0.005915899523 | BR4: =_xlfn._xlws.FILTER('data-gdp-level'!I$2:I$10000,('data-countries'!$G$3='data-gdp-level'!$A$2:$A$10000)*('data-gdp-level'!$D$2:$D$10000=$D$2)) -> 0.0146039743 | BS4: =_xlfn._xlws.FILTER('data-gdp-level'!J$2:J$10000,('data-countries'!$G$3='data-gdp-level'!$A$2:$A$10000)*('data-gdp-level'!$D$2:$D$10000=$D$2)) -> 0.02634939303 | BT4: =_xlfn._xlws.FILTER('data-gdp-level'!K$2:K$10000,('data-countries'!$G$3='data-gdp-level'!$A$2:$A$10000)*('data-gdp-level'!$D$2:$D$10000=$D$2)) -> 0.03854941092 | BU4: =_xlfn._xlws.FILTER('data-gdp-level'!L$2:L$10000,('data-countries'!$G$3='data-gdp-level'!$A$2:$A$10000)*('data-gdp-level'!$D$2:$D$10000=$D$2)) -> 0.05134459052 | BV4: =_xlfn._xlws.FILTER('data-gdp-level'!M$2:M$10000,('data-countries'!$G$3='data-gdp-level'!$A$2:$A$10000)*('data-gdp-level'!$D$2:$D$10000=$D$2)) -> 0.06430468991 | BW4: =_xlfn._xlws.FILTER('data-gdp-level'!N$2:N$10000,('data-countries'!$G$3='data-gdp-level'!$A$2:$A$10000)*('data-gdp-level'!$D$2:$D$10000=$D$2)) -> 0.07728259958 | BX4: =_xlfn._xlws.FILTER('data-gdp-level'!O$2:O$10000,('data-countries'!$G$3='data-gdp-level'!$A$2:$A$10000)*('data-gdp-level'!$D$2:$D$10000=$D$2)) -> 0.0889850186 | BY4: =_xlfn._xlws.FILTER('data-gdp-level'!P$2:P$10000,('data-countries'!$G$3='data-gdp-level'!$A$2:$A$10000)*('data-gdp-level'!$D$2:$D$10000=$D$2)) -> 0.1019464533 | BZ4: =_xlfn._xlws.FILTER('data-gdp-level'!Q$2:Q$10000,('data-countries'!$G$3='data-gdp-level'!$A$2:$A$10000)*('data-gdp-level'!$D$2:$D$10000=$D$2)) -> 0.113678799 | CA4: =_xlfn._xlws.FILTER('data-gdp-level'!R$2:R$10000,('data-countries'!$G$3='data-gdp-level'!$A$2:$A$10000)*('data-gdp-level'!$D$2:$D$10000=$D$2)) -> 0.1256465559 | CB4: =_xlfn._xlws.FILTER('data-gdp-level'!S$2:S$10000,('data-countries'!$G$3='data-gdp-level'!$A$2:$A$10000)*('data-gdp-level'!$D$2:$D$10000=$D$2)) -> 0.137510589 | CC4: =_xlfn._xlws.FILTER('data-gdp-level'!T$2:T$10000,('data-countries'!$G$3='data-gdp-level'!$A$2:$A$10000)*('data-gdp-level'!$D$2:$D$10000=$D$2)) -> 0.149208209 | CD4: =_xlfn._xlws.FILTER('data-gdp-level'!U$2:U$10000,('data-countries'!$G$3='data-gdp-level'!$A$2:$A$10000)*('data-gdp-level'!$D$2:$D$10000=$D$2)) -> 0.1607380993 | CE4: =_xlfn._xlws.FILTER('data-gdp-level'!V$2:V$10000,('data-countries'!$G$3='data-gdp-level'!$A$2:$A$10000)*('data-gdp-level'!$D$2:$D$10000=$D$2)) -> 0.1720984212 | CF4: =_xlfn._xlws.FILTER('data-gdp-level'!W$2:W$10000,('data-countries'!$G$3='data-gdp-level'!$A$2:$A$10000)*('data-gdp-level'!$D$2:$D$10000=$D$2)) -> 0.1832872398 | CG4: =_xlfn._xlws.FILTER('data-gdp-level'!X$2:X$10000,('data-countries'!$G$3='data-gdp-level'!$A$2:$A$10000)*('data-gdp-level'!$D$2:$D$10000=$D$2)) -> 0.1943279606 | CH4: =_xlfn._xlws.FILTER('data-gdp-level'!Y$2:Y$10000,('data-countries'!$G$3='data-gdp-level'!$A$2:$A$10000)*('data-gdp-level'!$D$2:$D$10000=$D$2)) -> 0.2052156986 | CI4: =_xlfn._xlws.FILTER('data-gdp-level'!Z$2:Z$10000,('data-countries'!$G$3='data-gdp-level'!$A$2:$A$10000)*('data-gdp-level'!$D$2:$D$10000=$D$2)) -> 0.2159255058 | CJ4: =_xlfn._xlws.FILTER('data-gdp-level'!AA$2:AA$10000,('data-countries'!$G$3='data-gdp-level'!$A$2:$A$10000)*('data-gdp-level'!$D$2:$D$10000=$D$2)) -> 0.226455479 | CK4: =_xlfn._xlws.FILTER('data-gdp-level'!AB$2:AB$10000,('data-countries'!$G$3='data-gdp-level'!$A$2:$A$10000)*('data-gdp-level'!$D$2:$D$10000=$D$2)) -> 0.2368037411 | CL4: =_xlfn._xlws.FILTER('data-gdp-level'!AC$2:AC$10000,('data-countries'!$G$3='data-gdp-level'!$A$2:$A$10000)*('data-gdp-level'!$D$2:$D$10000=$D$2)) -> 0.2473918127 | CM4: =_xlfn._xlws.FILTER('data-gdp-level'!AD$2:AD$10000,('data-countries'!$G$3='data-gdp-level'!$A$2:$A$10000)*('data-gdp-level'!$D$2:$D$10000=$D$2)) -> 0.2578653631 | CN4: =_xlfn._xlws.FILTER('data-gdp-level'!AE$2:AE$10000,('data-countries'!$G$3='data-gdp-level'!$A$2:$A$10000)*('data-gdp-level'!$D$2:$D$10000=$D$2)) -> 0.2681466595 | CO4: =_xlfn._xlws.FILTER('data-gdp-level'!AF$2:AF$10000,('data-countries'!$G$3='data-gdp-level'!$A$2:$A$10000)*('data-gdp-level'!$D$2:$D$10000=$D$2)) -> 0.2782338315 | CP4: =_xlfn._xlws.FILTER('data-gdp-level'!AG$2:AG$10000,('data-countries'!$G$3='data-gdp-level'!$A$2:$A$10000)*('data-gdp-level'!$D$2:$D$10000=$D$2)) -> 0.2881250335 | CQ4: =_xlfn._xlws.FILTER('data-gdp-level'!AH$2:AH$10000,('data-countries'!$G$3='data-gdp-level'!$A$2:$A$10000)*('data-gdp-level'!$D$2:$D$10000=$D$2)) -> 0.2978184447 | CR4: =_xlfn._xlws.FILTER('data-gdp-level'!AI$2:AI$10000,('data-countries'!$G$3='data-gdp-level'!$A$2:$A$10000)*('data-gdp-level'!$D$2:$D$10000=$D$2)) -> 0.3073122703 | CS4: =_xlfn._xlws.FILTER('data-gdp-level'!AJ$2:AJ$10000,('data-countries'!$G$3='data-gdp-level'!$A$2:$A$10000)*('data-gdp-level'!$D$2:$D$10000=$D$2)) -> 0.3166047414 | CT4: =_xlfn._xlws.FILTER('data-gdp-level'!AK$2:AK$10000,('data-countries'!$G$3='data-gdp-level'!$A$2:$A$10000)*('data-gdp-level'!$D$2:$D$10000=$D$2)) -> 0.3256941168 | CU4: =_xlfn._xlws.FILTER('data-gdp-level'!AL$2:AL$10000,('data-countries'!$G$3='data-gdp-level'!$A$2:$A$10000)*('data-gdp-level'!$D$2:$D$10000=$D$2)) -> 0.3345786834 | CV4: =_xlfn._xlws.FILTER('data-gdp-level'!AM$2:AM$10000,('data-countries'!$G$3='data-gdp-level'!$A$2:$A$10000)*('data-gdp-level'!$D$2:$D$10000=$D$2)) -> 0.3432567571 | CW4: =_xlfn._xlws.FILTER('data-gdp-level'!AN$2:AN$10000,('data-countries'!$G$3='data-gdp-level'!$A$2:$A$10000)*('data-gdp-level'!$D$2:$D$10000=$D$2)) -> 0.3517266842 | CX4: =_xlfn._xlws.FILTER('data-gdp-level'!AO$2:AO$10000,('data-countries'!$G$3='data-gdp-level'!$A$2:$A$10000)*('data-gdp-level'!$D$2:$D$10000=$D$2)) -> 0.3599868417 | CY4: =_xlfn._xlws.FILTER('data-gdp-level'!AP$2:AP$10000,('data-countries'!$G$3='data-gdp-level'!$A$2:$A$10000)*('data-gdp-level'!$D$2:$D$10000=$D$2)) -> 0.3680356388 | CZ4: =_xlfn._xlws.FILTER('data-gdp-level'!AQ$2:AQ$10000,('data-countries'!$G$3='data-gdp-level'!$A$2:$A$10000)*('data-gdp-level'!$D$2:$D$10000=$D$2)) -> 0.3758715174 | DA4: =_xlfn._xlws.FILTER('data-gdp-level'!AR$2:AR$10000,('data-countries'!$G$3='data-gdp-level'!$A$2:$A$10000)*('data-gdp-level'!$D$2:$D$10000=$D$2)) -> 0.3834929532 | DB4: =_xlfn._xlws.FILTER('data-gdp-level'!AS$2:AS$10000,('data-countries'!$G$3='data-gdp-level'!$A$2:$A$10000)*('data-gdp-level'!$D$2:$D$10000=$D$2)) -> 0.3908984566 | DC4: =_xlfn._xlws.FILTER('data-gdp-level'!AT$2:AT$10000,('data-countries'!$G$3='data-gdp-level'!$A$2:$A$10000)*('data-gdp-level'!$D$2:$D$10000=$D$2)) -> 0.3980865735 | DD4: =_xlfn._xlws.FILTER('data-gdp-level'!AU$2:AU$10000,('data-countries'!$G$3='data-gdp-level'!$A$2:$A$10000)*('data-gdp-level'!$D$2:$D$10000=$D$2)) -> 0.405055886 | DE4: =_xlfn._xlws.FILTER('data-gdp-level'!AV$2:AV$10000,('data-countries'!$G$3='data-gdp-level'!$A$2:$A$10000)*('data-gdp-level'!$D$2:$D$10000=$D$2)) -> 0.4118050137 | DF4: =_xlfn._xlws.FILTER('data-gdp-level'!AW$2:AW$10000,('data-countries'!$G$3='data-gdp-level'!$A$2:$A$10000)*('data-gdp-level'!$D$2:$D$10000=$D$2)) -> 0.418332614 | DG4: =_xlfn._xlws.FILTER('data-gdp-level'!AX$2:AX$10000,('data-countries'!$G$3='data-gdp-level'!$A$2:$A$10000)*('data-gdp-level'!$D$2:$D$10000=$D$2)) -> 0.4246373832 | DH4: =_xlfn._xlws.FILTER('data-gdp-level'!AY$2:AY$10000,('data-countries'!$G$3='data-gdp-level'!$A$2:$A$10000)*('data-gdp-level'!$D$2:$D$10000=$D$2)) -> 0.4307180573 | DI4: =_xlfn._xlws.FILTER('data-gdp-level'!AZ$2:AZ$10000,('data-countries'!$G$3='data-gdp-level'!$A$2:$A$10000)*('data-gdp-level'!$D$2:$D$10000=$D$2)) -> 0.4365734126 | DJ4: =_xlfn._xlws.FILTER('data-gdp-level'!BA$2:BA$10000,('data-countries'!$G$3='data-gdp-level'!$A$2:$A$10000)*('data-gdp-level'!$D$2:$D$10000=$D$2)) -> 0.4422022664 | DK4: =_xlfn._xlws.FILTER('data-gdp-level'!BB$2:BB$10000,('data-countries'!$G$3='data-gdp-level'!$A$2:$A$10000)*('data-gdp-level'!$D$2:$D$10000=$D$2)) -> 0.447603478 | DL4: =_xlfn._xlws.FILTER('data-gdp-level'!BC$2:BC$10000,('data-countries'!$G$3='data-gdp-level'!$A$2:$A$10000)*('data-gdp-level'!$D$2:$D$10000=$D$2)) -> 0.452775949 | DM4: =_xlfn._xlws.FILTER('data-gdp-level'!BD$2:BD$10000,('data-countries'!$G$3='data-gdp-level'!$A$2:$A$10000)*('data-gdp-level'!$D$2:$D$10000=$D$2)) -> 0.4577186245 | DN4: =_xlfn._xlws.FILTER('data-gdp-level'!BE$2:BE$10000,('data-countries'!$G$3='data-gdp-level'!$A$2:$A$10000)*('data-gdp-level'!$D$2:$D$10000=$D$2)) -> 0.4624293616 | DO4: =_xlfn._xlws.FILTER('data-gdp-level'!BF$2:BF$10000,('data-countries'!$G$3='data-gdp-level'!$A$2:$A$10000)*('data-gdp-level'!$D$2:$D$10000=$D$2)) -> 0.4667171837 | DP4: =_xlfn._xlws.FILTER('data-gdp-level'!BG$2:BG$10000,('data-countries'!$G$3='data-gdp-level'!$A$2:$A$10000)*('data-gdp-level'!$D$2:$D$10000=$D$2)) -> 0.4707732842 | DQ4: =_xlfn._xlws.FILTER('data-gdp-level'!BH$2:BH$10000,('data-countries'!$G$3='data-gdp-level'!$A$2:$A$10000)*('data-gdp-level'!$D$2:$D$10000=$D$2)) -> 0.4745968251 | DR4: =_xlfn._xlws.FILTER('data-gdp-level'!BI$2:BI$10000,('data-countries'!$G$3='data-gdp-level'!$A$2:$A$10000)*('data-gdp-level'!$D$2:$D$10000=$D$2)) -> 0.4781870142 | DS4: =_xlfn._xlws.FILTER('data-gdp-level'!BJ$2:BJ$10000,('data-countries'!$G$3='data-gdp-level'!$A$2:$A$10000)*('data-gdp-level'!$D$2:$D$10000=$D$2)) -> 0.4815431064 | DT4: =_xlfn._xlws.FILTER('data-gdp-level'!BK$2:BK$10000,('data-countries'!$G$3='data-gdp-level'!$A$2:$A$10000)*('data-gdp-level'!$D$2:$D$10000=$D$2)) -> 0.4846644034 | DU4: =_xlfn._xlws.FILTER('data-gdp-level'!BL$2:BL$10000,('data-countries'!$G$3='data-gdp-level'!$A$2:$A$10000)*('data-gdp-level'!$D$2:$D$10000=$D$2)) -> 0.4875502548 | DV4: =_xlfn._xlws.FILTER('data-gdp-level'!BM$2:BM$10000,('data-countries'!$G$3='data-gdp-level'!$A$2:$A$10000)*('data-gdp-level'!$D$2:$D$10000=$D$2)) -> 0.490200058 | DW4: =_xlfn._xlws.FILTER('data-gdp-level'!BN$2:BN$10000,('data-countries'!$G$3='data-gdp-level'!$A$2:$A$10000)*('data-gdp-level'!$D$2:$D$10000=$D$2)) -> 0.4926132588 | DX4: =_xlfn._xlws.FILTER('data-gdp-level'!BO$2:BO$10000,('data-countries'!$G$3='data-gdp-level'!$A$2:$A$10000)*('data-gdp-level'!$D$2:$D$10000=$D$2)) -> 0.4947893519 | DY4: =_xlfn._xlws.FILTER('data-gdp-level'!BP$2:BP$10000,('data-countries'!$G$3='data-gdp-level'!$A$2:$A$10000)*('data-gdp-level'!$D$2:$D$10000=$D$2)) -> 0.4967278809 | DZ4: =_xlfn._xlws.FILTER('data-gdp-level'!BQ$2:BQ$10000,('data-countries'!$G$3='data-gdp-level'!$A$2:$A$10000)*('data-gdp-level'!$D$2:$D$10000=$D$2)) -> 0.4984284386 | EA4: =_xlfn._xlws.FILTER('data-gdp-level'!BR$2:BR$10000,('data-countries'!$G$3='data-gdp-level'!$A$2:$A$10000)*('data-gdp-level'!$D$2:$D$10000=$D$2)) -> 0.4998906677 | EB4: =_xlfn._xlws.FILTER('data-gdp-level'!BS$2:BS$10000,('data-countries'!$G$3='data-gdp-level'!$A$2:$A$10000)*('data-gdp-level'!$D$2:$D$10000=$D$2)) -> 0.5011142605 | EC4: =_xlfn._xlws.FILTER('data-gdp-level'!BT$2:BT$10000,('data-countries'!$G$3='data-gdp-level'!$A$2:$A$10000)*('data-gdp-level'!$D$2:$D$10000=$D$2)) -> 0.5020989593 | ED4: =_xlfn._xlws.FILTER('data-gdp-level'!BU$2:BU$10000,('data-countries'!$G$3='data-gdp-level'!$A$2:$A$10000)*('data-gdp-level'!$D$2:$D$10000=$D$2)) -> 0.5028445566 | EE4: =_xlfn._xlws.FILTER('data-gdp-level'!BV$2:BV$10000,('data-countries'!$G$3='data-gdp-level'!$A$2:$A$10000)*('data-gdp-level'!$D$2:$D$10000=$D$2)) -> 0.5033508953 | EF4: =_xlfn._xlws.FILTER('data-gdp-level'!BW$2:BW$10000,('data-countries'!$G$3='data-gdp-level'!$A$2:$A$10000)*('data-gdp-level'!$D$2:$D$10000=$D$2)) -> 0.5036178687 | EG4: =_xlfn._xlws.FILTER('data-gdp-level'!BX$2:BX$10000,('data-countries'!$G$3='data-gdp-level'!$A$2:$A$10000)*('data-gdp-level'!$D$2:$D$10000=$D$2)) -> 0.5036454203 | EH4: =_xlfn._xlws.FILTER('data-gdp-level'!BY$2:BY$10000,('data-countries'!$G$3='data-gdp-level'!$A$2:$A$10000)*('data-gdp-level'!$D$2:$D$10000=$D$2)) -> 0.5034335445 | EI4: =_xlfn._xlws.FILTER('data-gdp-level'!BZ$2:BZ$10000,('data-countries'!$G$3='data-gdp-level'!$A$2:$A$10000)*('data-gdp-level'!$D$2:$D$10000=$D$2)) -> 0.5029822858 | EJ4: =_xlfn._xlws.FILTER('data-gdp-level'!CA$2:CA$10000,('data-countries'!$G$3='data-gdp-level'!$A$2:$A$10000)*('data-gdp-level'!$D$2:$D$10000=$D$2)) -> 0.5022917396 | EK4: =_xlfn._xlws.FILTER('data-gdp-level'!CB$2:CB$10000,('data-countries'!$G$3='data-gdp-level'!$A$2:$A$10000)*('data-gdp-level'!$D$2:$D$10000=$D$2)) -> 0.5013620513 | EL4: =_xlfn._xlws.FILTER('data-gdp-level'!CC$2:CC$10000,('data-countries'!$G$3='data-gdp-level'!$A$2:$A$10000)*('data-gdp-level'!$D$2:$D$10000=$D$2)) -> 0.5001934169 | EM4: =_xlfn._xlws.FILTER('data-gdp-level'!CD$2:CD$10000,('data-countries'!$G$3='data-gdp-level'!$A$2:$A$10000)*('data-gdp-level'!$D$2:$D$10000=$D$2)) -> 0.4987860826 | EN4: =_xlfn._xlws.FILTER('data-gdp-level'!CE$2:CE$10000,('data-countries'!$G$3='data-gdp-level'!$A$2:$A$10000)*('data-gdp-level'!$D$2:$D$10000=$D$2)) -> 0.4971403445 | EO4: =_xlfn._xlws.FILTER('data-gdp-level'!CF$2:CF$10000,('data-countries'!$G$3='data-gdp-level'!$A$2:$A$10000)*('data-gdp-level'!$D$2:$D$10000=$D$2)) -> 0.4952565487 | EP4: =_xlfn._xlws.FILTER('data-gdp-level'!CG$2:CG$10000,('data-countries'!$G$3='data-gdp-level'!$A$2:$A$10000)*('data-gdp-level'!$D$2:$D$10000=$D$2)) -> 0.4931350908 | EQ4: =_xlfn._xlws.FILTER('data-gdp-level'!CH$2:CH$10000,('data-countries'!$G$3='data-gdp-level'!$A$2:$A$10000)*('data-gdp-level'!$D$2:$D$10000=$D$2)) -> 0.4907764159 | ER4: =_xlfn._xlws.FILTER('data-gdp-level'!CI$2:CI$10000,('data-countries'!$G$3='data-gdp-level'!$A$2:$A$10000)*('data-gdp-level'!$D$2:$D$10000=$D$2)) -> 0.4881810182 | ES4: =_xlfn._xlws.FILTER('data-gdp-level'!CJ$2:CJ$10000,('data-countries'!$G$3='data-gdp-level'!$A$2:$A$10000)*('data-gdp-level'!$D$2:$D$10000=$D$2)) -> 0.4853494408 | ET4: =_xlfn._xlws.FILTER('data-gdp-level'!CK$2:CK$10000,('data-countries'!$G$3='data-gdp-level'!$A$2:$A$10000)*('data-gdp-level'!$D$2:$D$10000=$D$2)) -> 0.4822822749 | EU4: =_xlfn._xlws.FILTER('data-gdp-level'!CL$2:CL$10000,('data-countries'!$G$3='data-gdp-level'!$A$2:$A$10000)*('data-gdp-level'!$D$2:$D$10000=$D$2)) -> 0.4789801602 | EV4: =_xlfn.FORECAST.LINEAR(EV3,EQ4:EU4,EQ3:EU3) -> 0.4762664856
BJ5: AFG | BK5: Afghanistan | BL5: 45 | BM5: 30 | BN5: 5 | BO5: -3.920138379e-05 | BP5: 0.0007442742051 | BQ5: 0.003104778904 | BR5: 0.007690760194 | BS5: 0.01388554697 | BT5: 0.02035542286 | BU5: 0.02717319191 | BV5: 0.03410718493 | BW5: 0.04109603919 | BX5: 0.04753334953 | BY5: 0.05464940424 | BZ5: 0.06111691506 | CA5: 0.06762075422 | CB5: 0.07423897195 | CC5: 0.080814397 | CD5: 0.0873470816 | CE5: 0.09383680004 | CF5: 0.1002832699 | CG5: 0.1066861703 | CH5: 0.1130577092 | CI5: 0.1193968755 | CJ5: 0.1256914084 | CK5: 0.1319410189 | CL5: 0.1381454207 | CM5: 0.144387225 | CN5: 0.150749157 | CO5: 0.1570636581 | CP5: 0.1633304355 | CQ5: 0.1695491981 | CR5: 0.1757196557 | CS5: 0.1818415194 | CT5: 0.1879145017 | CU5: 0.1939383158 | CV5: 0.1999126765 | CW5: 0.2058372996 | CX5: 0.2117119022 | CY5: 0.2175362027 | CZ5: 0.223309921 | DA5: 0.229032778 | DB5: 0.2347044964 | DC5: 0.2403248001 | DD5: 0.2458934146 | DE5: 0.251410067 | DF5: 0.2568744858 | DG5: 0.2622864012 | DH5: 0.267645545 | DI5: 0.2729516509 | DJ5: 0.278204454 | DK5: 0.2834036915 | DL5: 0.288549102 | DM5: 0.2936404265 | DN5: 0.2986774073 | DO5: 0.3036597891 | DP5: 0.3085873183 | DQ5: 0.3134597434 | DR5: 0.3182768148 | DS5: 0.3230382852 | DT5: 0.3277439092 | DU5: 0.3323934438 | DV5: 0.336986648 | DW5: 0.341523283 | DX5: 0.3460031124 | DY5: 0.350425902 | DZ5: 0.3547914201 | EA5: 0.3590994371 | EB5: 0.3633497261 | EC5: 0.3675420625 | ED5: 0.3716762242 | EE5: 0.3757519915 | EF5: 0.3797691475 | EG5: 0.3837274778 | EH5: 0.3876267704 | EI5: 0.3914297101 | EJ5: 0.3951429853 | EK5: 0.3987968715 | EL5: 0.4023911708 | EM5: 0.4059256885 | EN5: 0.4094002323 | EO5: 0.4128146132 | EP5: 0.4161686448 | EQ5: 0.4194621435 | ER5: 0.4226949291 | ES5: 0.4258668239 | ET5: 0.4289776535 | EU5: 0.4320272463 | EV5: =_xlfn.FORECAST.LINEAR(EV4,EQ5:EU5,EQ4:EU4) -> 0.4352035289
B6: Percentage | J6: Percentage | X6: Percentage | AL6: Percentage | BJ6: AFG | BK6: Afghanistan | BL6: 70 | BM6: 30 | BN6: 5 | BO6: -0.001577339317 | BP6: -0.005257071922 | BQ6: -0.01198429109 | BR6: -0.02214890463 | BS6: -0.03485592546 | BT6: -0.04933805158 | BU6: -0.06455107675 | BV6: -0.08024521269 | BW6: -0.09623359894 | BX6: -0.1124127747 | BY6: -0.1287239918 | BZ6: -0.1451321918 | CA6: -0.1616173989 | CB6: -0.1781661623 | CC6: -0.1947632738 | CD6: -0.211414964 | CE6: -0.2281188876 | CF6: -0.2451238722 | CG6: -0.2622750391 | CH6: -0.2794766425 | CI6: -0.2967281821 | CJ6: -0.3140292729 | CK6: -0.3313795961 | CL6: -0.3487788701 | CM6: -0.3662268353 | CN6: -0.3837232442 | CO6: -0.401152098 | CP6: -0.4184630105 | CQ6: -0.4358207542 | CR6: -0.4532251009 | CS6: -0.4706758233 | CT6: -0.4881726947 | CU6: -0.5057154888 | CV6: -0.5234022521 | CW6: -0.5413476922 | CX6: -0.5593393849 | CY6: -0.5773770967 | CZ6: -0.5954605956 | DA6: -0.6135896506 | DB6: -0.6317550172 | DC6: -0.6499643172 | DD6: -0.6682184531 | DE6: -0.6865171966 | DF6: -0.7048603199 | DG6: -0.7232475955 | DH6: -0.7416787964 | DI6: -0.7601536957 | DJ6: -0.7786720671 | DK6: -0.7972336844 | DL6: -0.8157079489 | DM6: -0.8341582303 | DN6: -0.8526504652 | DO6: -0.8711844317 | DP6: -0.8897599083 | DQ6: -0.9083766737 | DR6: -0.9270345073 | DS6: -0.9457331885 | DT6: -0.9644724974 | DU6: -0.9832522143 | DV6: -1.00207212 | DW6: -1.020931995 | DX6: -1.039831622 | DY6: -1.058770783 | DZ6: -1.077749259 | EA6: -1.096766833 | EB6: -1.11582329 | EC6: -1.134918412 | ED6: -1.154051984 | EE6: -1.173223789 | EF6: -1.192433615 | EG6: -1.211681245 | EH6: -1.230966465 | EI6: -1.250289063 | EJ6: -1.269648825 | EK6: -1.289045539 | EL6: -1.308478992 | EM6: -1.327948973 | EN6: -1.34745527 | EO6: -1.366997674 | EP6: -1.386575974 | EQ6: -1.40618996 | ER6: -1.425839424 | ES6: -1.445524157 | ET6: -1.465243951 | EU6: -1.484998598 | EV6: -1.504493493
BJ7: AFG | BK7: Afghanistan | BL7: 70H | BM7: 30 | BN7: 5 | BO7: -0.005025304607 | BP7: -0.01677563119 | BQ7: -0.03833357446 | BR7: -0.07101262236 | BS7: -0.1119955092 | BT7: -0.1587685125 | BU7: -0.2082991516 | BV7: -0.2596647661 | BW7: -0.3122832741 | BX7: -0.3658241607 | BY7: -0.4200969805 | BZ7: -0.4749854182 | CA7: -0.5304204211 | CB7: -0.586359367 | CC7: -0.6427386973 | CD7: -0.699571302 | CE7: -0.75684685 | CF7: -0.8147855084 | CG7: -0.874040153 | CH7: -0.9337205838 | CI7: -0.9938188201 | CJ7: -1.054327281 | CK7: -1.115238633 | CL7: -1.176545703 | CM7: -1.238241429 | CN7: -1.300318837 | CO7: -1.362771021 | CP7: -1.425406799 | CQ7: -1.487647614 | CR7: -1.550234256 | CS7: -1.613160194 | CT7: -1.676418956 | CU7: -1.740004132 | CV7: -1.803909368 | CW7: -1.868128375 | CX7: -1.933481001 | CY7: -1.999369927 | CZ7: -2.06556336 | DA7: -2.13205511 | DB7: -2.198839058 | DC7: -2.265909152 | DD7: -2.3332315 | DE7: -2.400820421 | DF7: -2.468677479 | DG7: -2.536796913 | DH7: -2.605173037 | DI7: -2.673800236 | DJ7: -2.742672972 | DK7: -2.81178578 | DL7: -2.88113327 | DM7: -2.950710128 | DN7: -3.020410589 | DO7: -3.089725545 | DP7: -3.159249172 | DQ7: -3.228976558 | DR7: -3.298902868 | DS7: -3.369023344 | DT7: -3.439333301 | DU7: -3.509828135 | DV7: -3.580503313 | DW7: -3.651354384 | DX7: -3.722376966 | DY7: -3.79356676 | DZ7: -3.864919536 | EA7: -3.936431144 | EB7: -4.008097507 | EC7: -4.079914623 | ED7: -4.151878564 | EE7: -4.223985477 | EF7: -4.296231581 | EG7: -4.36861317 | EH7: -4.441126608 | EI7: -4.513768333 | EJ7: -4.586534853 | EK7: -4.65942275 | EL7: -4.732428672 | EM7: -4.805549339 | EN7: -4.878781541 | EO7: -4.952122134 | EP7: -5.025568042 | EQ7: -5.099116259 | ER7: -5.172763841 | ES7: -5.246507912 | ET7: -5.320345659 | EU7: -5.394274336 | EV7: -5.467325742
B8: SSP | C8: Scenario Name | D8: 2030 | E8: 2050 | F8: 2075 | G8: 2100 | BJ8: AFG | BK8: Afghanistan | BL8: 26 | BM8: 30 | BN8: 50 | BO8: 0.002295743023 | BP8: 0.00850502623 | BQ8: 0.02091206272 | BR8: 0.0406787433 | BS8: 0.06649164098 | BT8: 0.09459315401 | BU8: 0.1239439486 | BV8: 0.1538977872 | BW8: 0.1839960288 | BX8: 0.2140130619 | BY8: 0.2438166716 | BZ8: 0.2733272442 | CA8: 0.3024988469 | CB8: 0.3313033194 | CC8: 0.3597225825 | CD8: 0.3877443901 | CE8: 0.415359765 | CF8: 0.4425615953 | CG8: 0.4693438432 | CH8: 0.4957010944 | CI8: 0.5216283055 | CJ8: 0.5471206622 | CK8: 0.5721735005 | CL8: 0.5967822631 | CM8: 0.6209424751 | CN8: 0.6446497323 | CO8: 0.6678996952 | CP8: 0.690688086 | CQ8: 0.7130106893 | CR8: 0.7348633519 | CS8: 0.7562419848 | CT8: 0.7771425651 | CU8: 0.7975611376 | CV8: 0.8174938171 | CW8: 0.8369367905 | CX8: 0.8558863189 | CY8: 0.8743387399 | CZ8: 0.8922904693 | DA8: 0.9097380035 | DB8: 0.9266779214 | DC8: 0.9431068867 | DD8: 0.9590216494 | DE8: 0.974419048 | DF8: 0.9892960113 | DG8: 1.00364956 | DH8: 1.01747681 | DI8: 1.030774971 | DJ8: 1.043541351 | DK8: 1.055773358 | DL8: 1.067468499 | DM8: 1.078624383 | DN8: 1.089238725 | DO8: 1.099309342 | DP8: 1.108834158 | DQ8: 1.117811207 | DR8: 1.12623863 | DS8: 1.134114676 | DT8: 1.141437709 | DU8: 1.148206203 | DV8: 1.154418744 | DW8: 1.160074035 | DX8: 1.16517089 | DY8: 1.169708243 | DZ8: 1.173685139 | EA8: 1.177100743 | EB8: 1.179954338 | EC8: 1.182245322 | ED8: 1.183973213 | EE8: 1.185137647 | EF8: 1.185738379 | EG8: 1.185775281 | EH8: 1.185248347 | EI8: 1.184157687 | EJ8: 1.182503532 | EK8: 1.18028623 | EL8: 1.177506248 | EM8: 1.174164172 | EN8: 1.170260704 | EO8: 1.165796666 | EP8: 1.160772994 | EQ8: 1.155190743 | ER8: 1.149051081 | ES8: 1.142355292 | ET8: 1.135104774 | EU8: 1.127301039 | EV8: 1.120943117
B9: SSP1–2.6 | C9: Paris | D9: =CONCATENATE(ROUND(_xlfn._xlws.FILTER(_xlfn.ANCHORARRAY(BO$19),($BN$19:$BN$30=50)*($BL$19:$BL$30=26)),2)," [",ROUND(_xlfn._xlws.FILTER(_xlfn.ANCHORARRAY(BO$19),($BN$19:$BN$30=5)*($BL$19:$BL$30=26)),2)," , ",ROUND(_xlfn._xlws.FILTER(_xlfn.ANCHORARRAY(BO$19),($BN$19:$BN$30=95)*($BL$19:$BL$30=26)),2),"]") -> 0.39 [0.16 , 0.63] | E9: =CONCATENATE(ROUND(_xlfn._xlws.FILTER(_xlfn.ANCHORARRAY(BP$19),($BN$19:$BN$30=50)*($BL$19:$BL$30=26)),2)," [",ROUND(_xlfn._xlws.FILTER(_xlfn.ANCHORARRAY(BP$19),($BN$19:$BN$30=5)*($BL$19:$BL$30=26)),2)," , ",ROUND(_xlfn._xlws.FILTER(_xlfn.ANCHORARRAY(BP$19),($BN$19:$BN$30=95)*($BL$19:$BL$30=26)),2),"]") -> 0.86 [0.36 , 1.39] | F9: =CONCATENATE(ROUND(_xlfn._xlws.FILTER(_xlfn.ANCHORARRAY(BQ$19),($BN$19:$BN$30=50)*($BL$19:$BL$30=26)),2)," [",ROUND(_xlfn._xlws.FILTER(_xlfn.ANCHORARRAY(BQ$19),($BN$19:$BN$30=5)*($BL$19:$BL$30=26)),2)," , ",ROUND(_xlfn._xlws.FILTER(_xlfn.ANCHORARRAY(BQ$19),($BN$19:$BN$30=95)*($BL$19:$BL$30=26)),2),"]") -> 1.16 [0.49 , 1.88] | G9: =CONCATENATE(ROUND(_xlfn._xlws.FILTER(_xlfn.ANCHORARRAY(BR$19),($BN$19:$BN$30=50)*($BL$19:$BL$30=26)),2)," [",ROUND(_xlfn._xlws.FILTER(_xlfn.ANCHORARRAY(BR$19),($BN$19:$BN$30=5)*($BL$19:$BL$30=26)),2)," , ",ROUND(_xlfn._xlws.FILTER(_xlfn.ANCHORARRAY(BR$19),($BN$19:$BN$30=95)*($BL$19:$BL$30=26)),2),"]") -> 1.12 [0.48 , 1.81] | BJ9: AFG | BK9: Afghanistan | BL9: 45 | BM9: 30 | BN9: 50 | BO9: 0.00120339097 | BP9: 0.004464511896 | BQ9: 0.01099167925 | BR9: 0.02141153852 | BS9: 0.03505696444 | BT9: 0.04997668557 | BU9: 0.06563452152 | BV9: 0.08169772109 | BW9: 0.09793023551 | BX9: 0.1142169942 | BY9: 0.1304913128 | BZ9: 0.1467137457 | CA9: 0.1628623012 | CB9: 0.178924188 | CC9: 0.194891827 | CD9: 0.2107606498 | CE9: 0.2265277679 | CF9: 0.2421912442 | CG9: 0.2577496816 | CH9: 0.2732019887 | CI9: 0.2885472473 | CJ9: 0.3037846383 | CK9: 0.3189133989 | CL9: 0.3339327997 | CM9: 0.3488421304 | CN9: 0.363640693 | CO9: 0.3783277972 | CP9: 0.392902758 | CQ9: 0.4073648947 | CR9: 0.4217135298 | CS9: 0.4359479893 | CT9: 0.4500676018 | CU9: 0.4640716991 | CV9: 0.4779596156 | CW9: 0.4917306889 | CX9: 0.5053842595 | CY9: 0.5189196713 | CZ9: 0.5323362709 | DA9: 0.5456334087 | DB9: 0.5588104381 | DC9: 0.5718667161 | DD9: 0.5848016034 | DE9: 0.5976144642 | DF9: 0.6103046664 | DG9: 0.622871582 | DH9: 0.6353145865 | DI9: 0.6476330598 | DJ9: 0.6598263858 | DK9: 0.6718939526 | DL9: 0.6838351525 | DM9: 0.6956493825 | DN9: 0.7073360436 | DO9: 0.7188945417 | DP9: 0.7303242875 | DQ9: 0.7416246959 | DR9: 0.7527951873 | DS9: 0.7638351865 | DT9: 0.7747441236 | DU9: 0.7855214338 | DV9: 0.7961665572 | DW9: 0.8066789396 | DX9: 0.817058032 | DY9: 0.8273032906 | DZ9: 0.8374141775 | EA9: 0.8473901602 | EB9: 0.857230712 | EC9: 0.8669353119 | ED9: 0.8765034449 | EE9: 0.8859346019 | EF9: 0.8952282797 | EG9: 0.9043839814 | EH9: 0.9134012161 | EI9: 0.9222794995 | EJ9: 0.9310183532 | EK9: 0.9396173055 | EL9: 0.9480758912 | EM9: 0.9563936516 | EN9: 0.9645701348 | EO9: 0.9726048953 | EP9: 0.9804974948 | EQ9: 0.9882475016 | ER9: 0.9958544909 | ES9: 1.003318045 | ET9: 1.010637754 | EU9: 1.017813213 | EV9: 1.025223919
B10: SSP2–4.5 | C10: Moderate | D10: =CONCATENATE(ROUND(_xlfn._xlws.FILTER(_xlfn.ANCHORARRAY(BO$19),($BN$19:$BN$30=50)*($BL$19:$BL$30=45)),2)," [",ROUND(_xlfn._xlws.FILTER(_xlfn.ANCHORARRAY(BO$19),($BN$19:$BN$30=5)*($BL$19:$BL$30=45)),2)," , ",ROUND(_xlfn._xlws.FILTER(_xlfn.ANCHORARRAY(BO$19),($BN$19:$BN$30=95)*($BL$19:$BL$30=45)),2),"]") -> 0.21 [0.09 , 0.34] | E10: =CONCATENATE(ROUND(_xlfn._xlws.FILTER(_xlfn.ANCHORARRAY(BP$19),($BN$19:$BN$30=50)*($BL$19:$BL$30=45)),2)," [",ROUND(_xlfn._xlws.FILTER(_xlfn.ANCHORARRAY(BP$19),($BN$19:$BN$30=5)*($BL$19:$BL$30=45)),2)," , ",ROUND(_xlfn._xlws.FILTER(_xlfn.ANCHORARRAY(BP$19),($BN$19:$BN$30=95)*($BL$19:$BL$30=45)),2),"]") -> 0.51 [0.21 , 0.82] | F10: =CONCATENATE(ROUND(_xlfn._xlws.FILTER(_xlfn.ANCHORARRAY(BQ$19),($BN$19:$BN$30=50)*($BL$19:$BL$30=45)),2)," [",ROUND(_xlfn._xlws.FILTER(_xlfn.ANCHORARRAY(BQ$19),($BN$19:$BN$30=5)*($BL$19:$BL$30=45)),2)," , ",ROUND(_xlfn._xlws.FILTER(_xlfn.ANCHORARRAY(BQ$19),($BN$19:$BN$30=95)*($BL$19:$BL$30=45)),2),"]") -> 0.81 [0.34 , 1.31] | G10: =CONCATENATE(ROUND(_xlfn._xlws.FILTER(_xlfn.ANCHORARRAY(BR$19),($BN$19:$BN$30=50)*($BL$19:$BL$30=45)),2)," [",ROUND(_xlfn._xlws.FILTER(_xlfn.ANCHORARRAY(BR$19),($BN$19:$BN$30=5)*($BL$19:$BL$30=45)),2)," , ",ROUND(_xlfn._xlws.FILTER(_xlfn.ANCHORARRAY(BR$19),($BN$19:$BN$30=95)*($BL$19:$BL$30=45)),2),"]") -> 1.03 [0.44 , 1.66] | BJ10: AFG | BK10: Afghanistan | BL10: 70 | BM10: 30 | BN10: 50 | BO10: -0.0007066568831 | BP10: -0.002627935704 | BQ10: -0.006484177164 | BR10: -0.01266055125 | BS10: -0.02078591802 | BT10: -0.02973175892 | BU10: -0.03919049756 | BV10: -0.04897128226 | BW10: -0.05893835139 | BX10: -0.06902577841 | BY10: -0.07919546493 | BZ10: -0.08942496995 | CA10: -0.09970190309 | CB10: -0.110019167 | CC10: -0.1203726628 | CD10: -0.1307600237 | CE10: -0.1411798489 | CF10: -0.1516312841 | CG10: -0.1621137855 | CH10: -0.1726269839 | CI10: -0.1831706091 | CJ10: -0.193744447 | CK10: -0.204348315 | CL10: -0.2149820486 | CM10: -0.2256454933 | CN10: -0.2363385006 | CO10: -0.247060925 | CP10: -0.2578126232 | CQ10: -0.268593453 | CR10: -0.2794032727 | CS10: -0.2902419414 | CT10: -0.3011093181 | CU10: -0.3120052622 | CV10: -0.3229296334 | CW10: -0.3338822914 | CX10: -0.344863096 | CY10: -0.3558719075 | CZ10: -0.366908586 | DA10: -0.3779729918 | DB10: -0.3890649855 | DC10: -0.4001844278 | DD10: -0.4113311795 | DE10: -0.4225051017 | DF10: -0.4337060556 | DG10: -0.4449339024 | DH10: -0.4561885039 | DI10: -0.4674697218 | DJ10: -0.4787774179 | DK10: -0.4901114544 | DL10: -0.5014716937 | DM10: -0.5128579984 | DN10: -0.5242702311 | DO10: -0.5357082548 | DP10: -0.5471719327 | DQ10: -0.5586611283 | DR10: -0.5701757052 | DS10: -0.5817155271 | DT10: -0.5932804583 | DU10: -0.6048703631 | DV10: -0.6164851061 | DW10: -0.628124552 | DX10: -0.639788566 | DY10: -0.6514770134 | DZ10: -0.6631897599 | EA10: -0.6749266712 | EB10: -0.6866876134 | EC10: -0.6984724531 | ED10: -0.7102810568 | EE10: -0.7221132916 | EF10: -0.7339690245 | EG10: -0.7458481233 | EH10: -0.7577504556 | EI10: -0.7696758895 | EJ10: -0.7816242935 | EK10: -0.7935955362 | EL10: -0.8055894866 | EM10: -0.817606014 | EN10: -0.8296449881 | EO10: -0.8417062788 | EP10: -0.8537897563 | EQ10: -0.8658952911 | ER10: -0.8780227542 | ES10: -0.8901720167 | ET10: -0.9023429502 | EU10: -0.9145354265 | EV10: -0.9264634494
B11: SSP3–7.0 | C11: High | D11: =CONCATENATE(ROUND(_xlfn._xlws.FILTER(_xlfn.ANCHORARRAY(BO$19),($BN$19:$BN$30=50)*($BL$19:$BL$30=70)),2)," [",ROUND(_xlfn._xlws.FILTER(_xlfn.ANCHORARRAY(BO$19),($BN$19:$BN$30=5)*($BL$19:$BL$30=70)),2)," , ",ROUND(_xlfn._xlws.FILTER(_xlfn.ANCHORARRAY(BO$19),($BN$19:$BN$30=95)*($BL$19:$BL$30=70)),2),"]") -> -0.13 [-0.21 , -0.05] | E11: =CONCATENATE(ROUND(_xlfn._xlws.FILTER(_xlfn.ANCHORARRAY(BP$19),($BN$19:$BN$30=50)*($BL$19:$BL$30=70)),2)," [",ROUND(_xlfn._xlws.FILTER(_xlfn.ANCHORARRAY(BP$19),($BN$19:$BN$30=5)*($BL$19:$BL$30=70)),2)," , ",ROUND(_xlfn._xlws.FILTER(_xlfn.ANCHORARRAY(BP$19),($BN$19:$BN$30=95)*($BL$19:$BL$30=70)),2),"]") -> -0.34 [-0.56 , -0.14] | F11: =CONCATENATE(ROUND(_xlfn._xlws.FILTER(_xlfn.ANCHORARRAY(BQ$19),($BN$19:$BN$30=50)*($BL$19:$BL$30=70)),2)," [",ROUND(_xlfn._xlws.FILTER(_xlfn.ANCHORARRAY(BQ$19),($BN$19:$BN$30=5)*($BL$19:$BL$30=70)),2)," , ",ROUND(_xlfn._xlws.FILTER(_xlfn.ANCHORARRAY(BQ$19),($BN$19:$BN$30=95)*($BL$19:$BL$30=70)),2),"]") -> -0.63 [-1.02 , -0.26] | G11: =CONCATENATE(ROUND(_xlfn._xlws.FILTER(_xlfn.ANCHORARRAY(BR$19),($BN$19:$BN$30=50)*($BL$19:$BL$30=70)),2)," [",ROUND(_xlfn._xlws.FILTER(_xlfn.ANCHORARRAY(BR$19),($BN$19:$BN$30=5)*($BL$19:$BL$30=70)),2)," , ",ROUND(_xlfn._xlws.FILTER(_xlfn.ANCHORARRAY(BR$19),($BN$19:$BN$30=95)*($BL$19:$BL$30=70)),2),"]") -> -0.93 [-1.5 , -0.39] | BJ11: AFG | BK11: Afghanistan | BL11: 70H | BM11: 30 | BN11: 50 | BO11: -0.00225136472 | BP11: -0.008388024947 | BQ11: -0.02073139143 | BR11: -0.04055034808 | BS11: -0.06671179311 | BT11: -0.09566037248 | BU11: -0.1264303904 | BV11: -0.1584208688 | BW11: -0.1912019089 | BX11: -0.2245629761 | BY11: -0.2583806768 | BZ11: -0.2925806297 | CA11: -0.3271199689 | CB11: -0.3619724198 | CC11: -0.3971211141 | CD11: -0.4325546247 | CE11: -0.4682645678 | CF11: -0.5042442907 | CG11: -0.5404881317 | CH11: -0.5769909982 | CI11: -0.6137481302 | CJ11: -0.6507549666 | CK11: -0.6880070709 | CL11: -0.7255000888 | CM11: -0.7632297257 | CN11: -0.8011917337 | CO11: -0.8393819053 | CP11: -0.8777960697 | CQ11: -0.9164300918 | CR11: -0.9552798717 | CS11: -0.9943413448 | CT11: -1.033610482 | CU11: -1.073083292 | CV11: -1.112755819 | CW11: -1.152624146 | CX11: -1.192684394 | CY11: -1.232932727 | CZ11: -1.273365344 | DA11: -1.313978488 | DB11: -1.354768443 | DC11: -1.395731535 | DD11: -1.436864132 | DE11: -1.478162647 | DF11: -1.519623535 | DG11: -1.561243295 | DH11: -1.603018473 | DI11: -1.644945656 | DJ11: -1.687021481 | DK11: -1.729242627 | DL11: -1.77160582 | DM11: -1.814107833 | DN11: -1.856745484 | DO11: -1.899515639 | DP11: -1.942415211 | DQ11: -1.985441157 | DR11: -2.028590484 | DS11: -2.071860244 | DT11: -2.115247539 | DU11: -2.158749514 | DV11: -2.202363364 | DW11: -2.24608633 | DX11: -2.2899157 | DY11: -2.333848808 | DZ11: -2.377883037 | EA11: -2.422015813 | EB11: -2.466244612 | EC11: -2.510566954 | ED11: -2.554980404 | EE11: -2.599482576 | EF11: -2.644071127 | EG11: -2.688743759 | EH11: -2.73349822 | EI11: -2.778332302 | EJ11: -2.823243841 | EK11: -2.868230718 | EL11: -2.913290855 | EM11: -2.95842222 | EN11: -3.003622822 | EO11: -3.048890712 | EP11: -3.094223984 | EQ11: -3.139620772 | ER11: -3.185079253 | ES11: -3.230597642 | ET11: -3.276174197 | EU11: -3.321807212 | EV11: -3.366508125
B12: SSP3–7.0 90th | C12: Hot | D12: =CONCATENATE(ROUND(_xlfn._xlws.FILTER(_xlfn.ANCHORARRAY(BO$19),($BN$19:$BN$30=50)*($BL$19:$BL$30="70H")),2)," [",ROUND(_xlfn._xlws.FILTER(_xlfn.ANCHORARRAY(BO$19),($BN$19:$BN$30=5)*($BL$19:$BL$30="70H")),2)," , ",ROUND(_xlfn._xlws.FILTER(_xlfn.ANCHORARRAY(BO$19),($BN$19:$BN$30=95)*($BL$19:$BL$30="70H")),2),"]") -> -0.43 [-0.7 , -0.18] | E12: =CONCATENATE(ROUND(_xlfn._xlws.FILTER(_xlfn.ANCHORARRAY(BP$19),($BN$19:$BN$30=50)*($BL$19:$BL$30="70H")),2)," [",ROUND(_xlfn._xlws.FILTER(_xlfn.ANCHORARRAY(BP$19),($BN$19:$BN$30=5)*($BL$19:$BL$30="70H")),2)," , ",ROUND(_xlfn._xlws.FILTER(_xlfn.ANCHORARRAY(BP$19),($BN$19:$BN$30=95)*($BL$19:$BL$30="70H")),2),"]") -> -1.19 [-1.93 , -0.5] | F12: =CONCATENATE(ROUND(_xlfn._xlws.FILTER(_xlfn.ANCHORARRAY(BQ$19),($BN$19:$BN$30=50)*($BL$19:$BL$30="70H")),2)," [",ROUND(_xlfn._xlws.FILTER(_xlfn.ANCHORARRAY(BQ$19),($BN$19:$BN$30=5)*($BL$19:$BL$30="70H")),2)," , ",ROUND(_xlfn._xlws.FILTER(_xlfn.ANCHORARRAY(BQ$19),($BN$19:$BN$30=95)*($BL$19:$BL$30="70H")),2),"]") -> -2.25 [-3.65 , -0.95] | G12: =CONCATENATE(ROUND(_xlfn._xlws.FILTER(_xlfn.ANCHORARRAY(BR$19),($BN$19:$BN$30=50)*($BL$19:$BL$30="70H")),2)," [",ROUND(_xlfn._xlws.FILTER(_xlfn.ANCHORARRAY(BR$19),($BN$19:$BN$30=5)*($BL$19:$BL$30="70H")),2)," , ",ROUND(_xlfn._xlws.FILTER(_xlfn.ANCHORARRAY(BR$19),($BN$19:$BN$30=95)*($BL$19:$BL$30="70H")),2),"]") -> -3.37 [-5.47 , -1.42] | BJ12: AFG | BK12: Afghanistan | BL12: 26 | BM12: 30 | BN12: 95 | BO12: 0.005124362075 | BP12: 0.01702278709 | BQ12: 0.03861454792 | BR12: 0.07101198777 | BS12: 0.1112150039 | BT12: 0.1569168913 | BU12: 0.2040310644 | BV12: 0.2520164442 | BW12: 0.3002179009 | BX12: 0.3482811884 | BY12: 0.3960020136 | BZ12: 0.4432557193 | CA12: 0.4899682561 | CB12: 0.5360644554 | CC12: 0.5815336785 | CD12: 0.626444177 | CE12: 0.6717716847 | CF12: 0.71642495 | CG12: 0.7603935292 | CH12: 0.8036682149 | CI12: 0.8462405442 | CJ12: 0.8881025088 | CK12: 0.9290057882 | CL12: 0.9684555314 | CM12: 1.007182042 | CN12: 1.045178239 | CO12: 1.082437154 | CP12: 1.118951916 | CQ12: 1.155444222 | CR12: 1.191540255 | CS12: 1.226839607 | CT12: 1.261342395 | CU12: 1.295057598 | CV12: 1.327978774 | CW12: 1.360099613 | CX12: 1.391413931 | CY12: 1.421789495 | CZ12: 1.450712418 | DA12: 1.478817632 | DB12: 1.506099621 | DC12: 1.532553006 | DD12: 1.558172551 | DE12: 1.582953162 | DF12: 1.606889891 | DG12: 1.629977943 | DH12: 1.652212672 | DI12: 1.673589592 | DJ12: 1.69410437 | DK12: 1.713752838 | DL12: 1.732530989 | DM12: 1.750434984 | DN12: 1.767461151 | DO12: 1.78359687 | DP12: 1.798834853 | DQ12: 1.81318515 | DR12: 1.826644786 | DS12: 1.839210967 | DT12: 1.85088108 | DU12: 1.86165269 | DV12: 1.871523548 | DW12: 1.880491591 | DX12: 1.88855494 | DY12: 1.895711903 | DZ12: 1.901960978 | EA12: 1.907300852 | EB12: 1.9117304 | EC12: 1.915248692 | ED12: 1.917854984 | EE12: 1.919548729 | EF12: 1.920329569 | EG12: 1.920197339 | EH12: 1.919152068 | EI12: 1.917193976 | EJ12: 1.914323476 | EK12: 1.910541173 | EL12: 1.905847864 | EM12: 1.900244537 | EN12: 1.89373237 | EO12: 1.886312732 | EP12: 1.877987181 | EQ12: 1.868757463 | ER12: 1.858625509 | ES12: 1.847593439 | ET12: 1.835663554 | EU12: 1.822838341 | EV12: 1.812453048
BJ13: AFG | BK13: Afghanistan | BL13: 45 | BM13: 30 | BN13: 95 | BO13: 0.002686106844 | BP13: 0.008933979414 | BQ13: 0.02030342254 | BR13: 0.03740802344 | BS13: 0.05869393469 | BT13: 0.08291530851 | BU13: 0.1080687227 | BV13: 0.1338183467 | BW13: 0.1598317194 | BX13: 0.1859282281 | BY13: 0.2120049668 | BZ13: 0.2380002586 | CA13: 0.26387864 | CB13: 0.2896086693 | CC13: 0.315178286 | CD13: 0.340589994 | CE13: 0.3661569633 | CF13: 0.3918294564 | CG13: 0.4173306188 | CH13: 0.4426584909 | CI13: 0.4678114683 | CJ13: 0.49278815 | CK13: 0.5175872519 | CL13: 0.5422075582 | CM13: 0.5663055066 | CN13: 0.590081482 | CO13: 0.6136778808 | CP13: 0.6370935994 | CQ13: 0.660327542 | CR13: 0.6833786187 | CS13: 0.7065176718 | CT13: 0.7297374044 | CU13: 0.7527681524 | CV13: 0.7756072019 | CW13: 0.7982388764 | CX13: 0.820678351 | CY13: 0.8429245419 | CZ13: 0.8649763723 | DA13: 0.8868327726 | DB13: 0.9084926795 | DC13: 0.9299550359 | DD13: 0.9511535544 | DE13: 0.9718690707 | DF13: 0.9923857248 | DG13: 1.0127025 | DH13: 1.032818387 | DI13: 1.052732382 | DJ13: 1.072443489 | DK13: 1.091950717 | DL13: 1.111253084 | DM13: 1.130349614 | DN13: 1.149239339 | DO13: 1.167921298 | DP13: 1.186394537 | DQ13: 1.204658111 | DR13: 1.222711082 | DS13: 1.24055252 | DT13: 1.258181503 | DU13: 1.275597119 | DV13: 1.292798462 | DW13: 1.309784635 | DX13: 1.326554752 | DY13: 1.343107934 | DZ13: 1.35944331 | EA13: 1.37556002 | EB13: 1.391457212 | EC13: 1.407134046 | ED13: 1.422589687 | EE13: 1.437823314 | EF13: 1.452834077 | EG13: 1.467613103 | EH13: 1.48216774 | EI13: 1.496497204 | EJ13: 1.510600725 | EK13: 1.524477539 | EL13: 1.538126897 | EM13: 1.551548057 | EN13: 1.564740289 | EO13: 1.577702876 | EP13: 1.590435109 | EQ13: 1.602936291 | ER13: 1.615205738 | ES13: 1.627242775 | ET13: 1.63904674 | EU13: 1.650616982 | EV13: 1.662470472
BJ14: AFG | BK14: Afghanistan | BL14: 70 | BM14: 30 | BN14: 95 | BO14: 2.301988995e-05 | BP14: -0.0004373741666 | BQ14: -0.0018269253 | BR14: -0.004551974954 | BS14: -0.008226304233 | BT14: -0.01209863696 | BU14: -0.01620965669 | BV14: -0.02043550885 | BW14: -0.0246993798 | BX14: -0.02884565454 | BY14: -0.03307974277 | BZ14: -0.03733792963 | CA14: -0.04145307688 | CB14: -0.04562802127 | CC14: -0.04989442405 | CD14: -0.05417359461 | CE14: -0.0584655116 | CF14: -0.06277012043 | CG14: -0.06708734354 | CH14: -0.07141710545 | CI14: -0.07575933707 | CJ14: -0.08012794745 | CK14: -0.08450917668 | CL14: -0.08890273123 | CM14: -0.09330855234 | CN14: -0.09772658157 | CO14: -0.1021679598 | CP14: -0.1067548281 | CQ14: -0.1113541943 | CR14: -0.1159659981 | CS14: -0.1205901794 | CT14: -0.1252266778 | CU14: -0.1298754333 | CV14: -0.1345363859 | CW14: -0.1392094755 | CX14: -0.1438946423 | CY14: -0.1485918263 | CZ14: -0.1533009678 | DA14: -0.1580220071 | DB14: -0.1627548844 | DC14: -0.1674995402 | DD14: -0.1722559149 | DE14: -0.1770239491 | DF14: -0.1818035833 | DG14: -0.1865947582 | DH14: -0.1913974147 | DI14: -0.1962114935 | DJ14: -0.2010369356 | DK14: -0.2058736819 | DL14: -0.2107216736 | DM14: -0.2155808518 | DN14: -0.2204511578 | DO14: -0.2253325329 | DP14: -0.2302249186 | DQ14: -0.2351282564 | DR14: -0.2400424879 | DS14: -0.244967555 | DT14: -0.2499033993 | DU14: -0.2548499628 | DV14: -0.2598071876 | DW14: -0.2647750159 | DX14: -0.2697533897 | DY14: -0.2747422516 | DZ14: -0.2797415439 | EA14: -0.2847512092 | EB14: -0.2897711902 | EC14: -0.2948014298 | ED14: -0.2998418707 | EE14: -0.3048924561 | EF14: -0.3099531291 | EG14: -0.315023833 | EH14: -0.3201045112 | EI14: -0.3251951071 | EJ14: -0.3302955645 | EK14: -0.3354058271 | EL14: -0.3405258388 | EM14: -0.3456555436 | EN14: -0.3507948857 | EO14: -0.3559438094 | EP14: -0.361102259 | EQ14: -0.3662701793 | ER14: -0.3714475148 | ES14: -0.3766342104 | ET14: -0.3818302111 | EU14: -0.387035462 | EV14: -0.3920846096
B15: IMPORTANT: The following notes and source must be used exactly as indicated to ensure correct description of the data, attribution, and compliance with copyright requirements of sources of raw climate data. References must be added to the reference list. | BJ15: AFG | BK15: Afghanistan | BL15: 70H | BM15: 30 | BN15: 95 | BO15: 7.333993248e-05 | BP15: -0.001394242238 | BQ15: -0.00582971751 | BR15: -0.01459022716 | BS15: -0.02638592764 | BT15: -0.03890047351 | BU15: -0.05225693739 | BV15: -0.06617306341 | BW15: -0.08005199152 | BX15: -0.09410660556 | BY15: -0.1077272285 | BZ15: -0.1223418567 | CA15: -0.136198706 | CB15: -0.1501870904 | CC15: -0.1645708626 | CD15: -0.1791749222 | CE15: -0.1938907115 | CF15: -0.2087164237 | CG15: -0.223650187 | CH15: -0.2386901445 | CI15: -0.2538344687 | CJ15: -0.2690857897 | CK15: -0.2844802533 | CL15: -0.2999741596 | CM15: -0.31556575 | CN15: -0.3312532785 | CO15: -0.3470350118 | CP15: -0.3629092298 | CQ15: -0.3792988364 | CR15: -0.3958389167 | CS15: -0.4124707819 | CT15: -0.4291926983 | CU15: -0.4460029476 | CV15: -0.4628998268 | CW15: -0.4798816491 | CX15: -0.496946744 | CY15: -0.5140934575 | CZ15: -0.5313201526 | DA15: -0.5486252098 | DB15: -0.5660070269 | DC15: -0.5834640195 | DD15: -0.6009946215 | DE15: -0.6185972848 | DF15: -0.6362704801 | DG15: -0.6540126968 | DH15: -0.6718224432 | DI15: -0.6896982466 | DJ15: -0.7076386538 | DK15: -0.7256422309 | DL15: -0.7437075636 | DM15: -0.7618332571 | DN15: -0.7800179367 | DO15: -0.7982602473 | DP15: -0.8165588538 | DQ15: -0.8349124412 | DR15: -0.8533197144 | DS15: -0.8717793986 | DT15: -0.8902902389 | DU15: -0.9088510006 | DV15: -0.9274604693 | DW15: -0.9461174503 | DX15: -0.9648207695 | DY15: -0.9835692724 | DZ15: -1.002361825 | EA15: -1.021197312 | EB15: -1.04007464 | EC15: -1.058992734 | ED15: -1.077950539 | EE15: -1.096947019 | EF15: -1.115981159 | EG15: -1.135051963 | EH15: -1.154158452 | EI15: -1.17329967 | EJ15: -1.192474677 | EK15: -1.211682552 | EL15: -1.230922395 | EM15: -1.250193323 | EN15: -1.269494471 | EO15: -1.288824992 | EP15: -1.308184059 | EQ15: -1.327570861 | ER15: -1.346984605 | ES15: -1.366424516 | ET15: -1.385889835 | EU15: -1.405379823 | EV15: -1.424308928
BU18: m options
BL19: 26 | BN19: 5 | BO19: =_xlfn._xlws.FILTER($BN4:$EV15,(D$8=$BN$3:$EV$3)) -> 0.1607380993 | BP19: =_xlfn._xlws.FILTER($BN4:$EV15,(E$8=$BN$3:$EV$3)) -> 0.3599868417 | BQ19: =_xlfn._xlws.FILTER($BN4:$EV15,(F$8=$BN$3:$EV$3)) -> 0.4926132588 | BR19: =_xlfn._xlws.FILTER($BN4:$EV15,(G$8=$BN$3:$EV$3)) -> 0.4762664856 | BU19: 20
B20: Source: Centorrino et al. (2025) using Kahn et al. (2021), and CMIP6 data (Copernicus Climate Change Service, Climate Data Store, 2021) processed by Massetti and Tagklis (2025). | BL20: 45 | BN20: 5 | BO20: 0.0873470816 | BP20: 0.2117119022 | BQ20: 0.341523283 | BR20: 0.4352035289 | BU20: 30
BL21: 70 | BN21: 5 | BO21: -0.211414964 | BP21: -0.5593393849 | BQ21: -1.020931995 | BR21: -1.504493493 | BU21: 40
BL22: 70H | BN22: 5 | BO22: -0.699571302 | BP22: -1.933481001 | BQ22: -3.651354384 | BR22: -5.467325742 | BU22: 50
B23: =CONCATENATE($BL$33,$D$2,$BL$34,$BL$37,$BL$35) -> Notes: The impact of the warming trend for each scenario is estimated using Kahn et al. (2021) under the assumption that adaptation can offset the warming trend after 30 years. 95 percent bootstrap confidence intervals in brackets. Impacts are measured as percentage deviations of real GDP per capita relative to a reference scenario in which the warming trend follows the historical pattern. Country specific warming trends are calculated for each scenario using the bias-adjusted ensemble median projections of temperature anomalies with respect to 1985-2014 over 31-year time periods centered around each year using CMIP6 data. The SSP1-2.6 scenario is in line with the Paris goal to keep global mean temperature increase below 2 ºC with respect to pre-industrial times. SSP2-4.5 represents continuation of present trends. SSP3-7.0 is a high emission scenario. SSP3-7. 90th p. uses the 90th percentile of the SSP3-7.0 ensemble instead of the median to provide a high-emission, fast-warming, pessimistic case. | BL23: 26 | BN23: 50 | BO23: 0.3877443901 | BP23: 0.8558863189 | BQ23: 1.160074035 | BR23: 1.120943117
BL24: 45 | BN24: 50 | BO24: 0.2107606498 | BP24: 0.5053842595 | BQ24: 0.8066789396 | BR24: 1.025223919
BL25: 70 | BN25: 50 | BO25: -0.1307600237 | BP25: -0.344863096 | BQ25: -0.628124552 | BR25: -0.9264634494
BL26: 70H | BN26: 50 | BO26: -0.4325546247 | BP26: -1.192684394 | BQ26: -2.24608633 | BR26: -3.366508125
BL27: 26 | BN27: 95 | BO27: 0.626444177 | BP27: 1.391413931 | BQ27: 1.880491591 | BR27: 1.812453048
BL28: 45 | BN28: 95 | BO28: 0.340589994 | BP28: 0.820678351 | BQ28: 1.309784635 | BR28: 1.662470472
J29: IMPORTANT: The following notes and source must be used exactly as indicated to ensure correct description of the data, attribution, and compliance with copyright requirements of sources of raw climate data. References must be added to the reference list. | X29: IMPORTANT: The following notes and source must be used exactly as indicated to ensure correct description of the data, attribution, and compliance with copyright requirements of sources of raw climate data. References must be added to the reference list. | BL29: 70 | BN29: 95 | BO29: -0.05417359461 | BP29: -0.1438946423 | BQ29: -0.2647750159 | BR29: -0.3920846096
BL30: 70H | BN30: 95 | BO30: -0.1791749222 | BP30: -0.496946744 | BQ30: -0.9461174503 | BR30: -1.424308928
B33: References: Samuele Centorrino, Emanuele Massetti, Mehdi Raissi, and Filippos Tagklis. "How to Include the Effects of Rising Temperatures in Long-Term GDP Projections", IMF How To Notes 2025, 009 (2025), https://doi.org/10.5089/9798229030021.061 Kahn, Matthew E., Kamiar Mohaddes, Ryan N. C. Ng, M. Hashem Pesaran, Mehdi Raissi, and Jui-Chung Yang. 2021. “Long-Term Macroeconomic Effects of Climate Change: A Cross-Country Analysis.” Energy Economics 104: 105624. https://doi.org/https://doi.org/10.1016/j.eneco.2021.105624. Copernicus Climate Change Service, Climate Data Store, (2021). CMIP6 climate projections. Copernicus Climate Change Service (C3S) Climate Data Store (CDS). DOI: 10.24381/cds.c866074c Massetti, E. and F. Tagklis (2025). FADCP Climate Dataset: Temperature and Precipitation. Reference Guide, Fiscal Affairs Department, International Monetary Fund, Washington DC. | BL33: Notes: The impact of the warming trend for each scenario is estimated using Kahn et al. (2021) under the assumption that adaptation can offset the warming trend after
J34: Source: Centorrino et al. (2025) using Kahn et al. (2021), and CMIP6 data (Copernicus Climate Change Service, Climate Data Store, 2021) processed by Massetti and Tagklis (2025). | X34: Source: Centorrino et al. (2025) using Kahn et al. (2021), and CMIP6 data (Copernicus Climate Change Service, Climate Data Store, 2021) processed by Massetti and Tagklis (2025). | BL34: years.
BL35: Impacts are measured as percentage deviations of real GDP per capita relative to a reference scenario in which the warming trend follows the historical pattern. Country specific warming trends are calculated for each scenario using the bias-adjusted ensemble median projections of temperature anomalies with respect to 1985-2014 over 31-year time periods centered around each year using CMIP6 data. The SSP1-2.6 scenario is in line with the Paris goal to keep global mean temperature increase below 2 ºC with respect to pre-industrial times. SSP2-4.5 represents continuation of present trends. SSP3-7.0 is a high emission scenario. SSP3-7. 90th p. uses the 90th percentile of the SSP3-7.0 ensemble instead of the median to provide a high-emission, fast-warming, pessimistic case.
BL36: Dotted lines indicate 95 percent bootstrap confidence intervals.
J37: =CONCATENATE($BL$33,$D$2,$BL$34,$BL$35) -> Notes: The impact of the warming trend for each scenario is estimated using Kahn et al. (2021) under the assumption that adaptation can offset the warming trend after 30 years. Impacts are measured as percentage deviations of real GDP per capita relative to a reference scenario in which the warming trend follows the historical pattern. Country specific warming trends are calculated for each scenario using the bias-adjusted ensemble median projections of temperature anomalies with respect to 1985-2014 over 31-year time periods centered around each year using CMIP6 data. The SSP1-2.6 scenario is in line with the Paris goal to keep global mean temperature increase below 2 ºC with respect to pre-industrial times. SSP2-4.5 represents continuation of present trends. SSP3-7.0 is a high emission scenario. SSP3-7. 90th p. uses the 90th percentile of the SSP3-7.0 ensemble instead of the median to provide a high-emission, fast-warming, pessimistic case. | X37: =CONCATENATE($BL$33,$D$2,$BL$34,$BL$36,$BL$35) -> Notes: The impact of the warming trend for each scenario is estimated using Kahn et al. (2021) under the assumption that adaptation can offset the warming trend after 30 years. Dotted lines indicate 95 percent bootstrap confidence intervals. Impacts are measured as percentage deviations of real GDP per capita relative to a reference scenario in which the warming trend follows the historical pattern. Country specific warming trends are calculated for each scenario using the bias-adjusted ensemble median projections of temperature anomalies with respect to 1985-2014 over 31-year time periods centered around each year using CMIP6 data. The SSP1-2.6 scenario is in line with the Paris goal to keep global mean temperature increase below 2 ºC with respect to pre-industrial times. SSP2-4.5 represents continuation of present trends. SSP3-7.0 is a high emission scenario. SSP3-7. 90th p. uses the 90th percentile of the SSP3-7.0 ensemble instead of the median to provide a high-emission, fast-warming, pessimistic case. | BL37: 95 percent bootstrap confidence intervals in brackets.
AL39: IMPORTANT: The following notes and source must be used exactly as indicated to ensure correct description of the data, attribution, and compliance with copyright requirements of sources of raw climate data. References must be added to the reference list.
AL44: Source: Centorrino et al. (2025) using Kahn et al. (2021), and CMIP6 data (Copernicus Climate Change Service, Climate Data Store, 2021) processed by Massetti and Tagklis (2025).
J46: References: Samuele Centorrino, Emanuele Massetti, Mehdi Raissi, and Filippos Tagklis. "How to Include the Effects of Rising Temperatures in Long-Term GDP Projections", IMF How To Notes 2025, 009 (2025), https://doi.org/10.5089/9798229030021.061 Kahn, Matthew E., Kamiar Mohaddes, Ryan N. C. Ng, M. Hashem Pesaran, Mehdi Raissi, and Jui-Chung Yang. 2021. “Long-Term Macroeconomic Effects of Climate Change: A Cross-Country Analysis.” Energy Economics 104: 105624. https://doi.org/https://doi.org/10.1016/j.eneco.2021.105624. Copernicus Climate Change Service, Climate Data Store, (2021). CMIP6 climate projections. Copernicus Climate Change Service (C3S) Climate Data Store (CDS). DOI: 10.24381/cds.c866074c Massetti, E. and F. Tagklis (2025). FADCP Climate Dataset: Temperature and Precipitation. Reference Guide, Fiscal Affairs Department, International Monetary Fund, Washington DC. | X46: References: Centorrino, S., E. Massetti, M. Raissi, and F. Tagklis (2025). How to Include the Effects of Rising Temperatures in Macro-Fiscal Projections. International Monetary Fund, How to Note ###. Kahn, Matthew E., Kamiar Mohaddes, Ryan N. C. Ng, M. Hashem Pesaran, Mehdi Raissi, and Jui-Chung Yang. 2021. “Long-Term Macroeconomic Effects of Climate Change: A Cross-Country Analysis.” Energy Economics 104: 105624. https://doi.org/https://doi.org/10.1016/j.eneco.2021.105624. Copernicus Climate Change Service, Climate Data Store, (2021). CMIP6 climate projections. Copernicus Climate Change Service (C3S) Climate Data Store (CDS). DOI: 10.24381/cds.c866074c Massetti, E. and F. Tagklis (2025). FADCP Climate Dataset: Temperature and Precipitation. Reference Guide, Fiscal Affairs Department, International Monetary Fund, Washington DC.
AL47: =CONCATENATE($BL$33,$D$2,$BL$34,$BL$36,$BL$35) -> Notes: The impact of the warming trend for each scenario is estimated using Kahn et al. (2021) under the assumption that adaptation can offset the warming trend after 30 years. Dotted lines indicate 95 percent bootstrap confidence intervals. Impacts are measured as percentage deviations of real GDP per capita relative to a reference scenario in which the warming trend follows the historical pattern. Country specific warming trends are calculated for each scenario using the bias-adjusted ensemble median projections of temperature anomalies with respect to 1985-2014 over 31-year time periods centered around each year using CMIP6 data. The SSP1-2.6 scenario is in line with the Paris goal to keep global mean temperature increase below 2 ºC with respect to pre-industrial times. SSP2-4.5 represents continuation of present trends. SSP3-7.0 is a high emission scenario. SSP3-7. 90th p. uses the 90th percentile of the SSP3-7.0 ensemble instead of the median to provide a high-emission, fast-warming, pessimistic case.
AL56: References: Centorrino, S., E. Massetti, M. Raissi, and F. Tagklis (2025). How to Include the Effects of Rising Temperatures in Macro-Fiscal Projections. International Monetary Fund, How to Note ###. Kahn, Matthew E., Kamiar Mohaddes, Ryan N. C. Ng, M. Hashem Pesaran, Mehdi Raissi, and Jui-Chung Yang. 2021. “Long-Term Macroeconomic Effects of Climate Change: A Cross-Country Analysis.” Energy Economics 104: 105624. https://doi.org/https://doi.org/10.1016/j.eneco.2021.105624. Copernicus Climate Change Service, Climate Data Store, (2021). CMIP6 climate projections. Copernicus Climate Change Service (C3S) Climate Data Store (CDS). DOI: 10.24381/cds.c866074c Massetti, E. and F. Tagklis (2025). FADCP Climate Dataset: Temperature and Precipitation. Reference Guide, Fiscal Affairs Department, International Monetary Fund, Washington DC.
B79: =CONCATENATE("Impact of Warming Trends on Real GDP, ", 'data-countries'!$F$3) -> Impact of Warming Trends on Real GDP, Afghanistan
B81: Percentage
B83: SSP | C83: Scenario Name | D83: 2030 | E83: 2050 | F83: 2075 | G83: 2100
B84: SSP1-2.6 | C84: Paris | D84: =CONCATENATE(ROUND(_xlfn._xlws.FILTER(_xlfn.ANCHORARRAY(BO$19),($BN$19:$BN$30=50)*($BL$19:$BL$30=26)),2)," [",ROUND(_xlfn._xlws.FILTER(_xlfn.ANCHORARRAY(BO$19),($BN$19:$BN$30=5)*($BL$19:$BL$30=26)),2)," , ",ROUND(_xlfn._xlws.FILTER(_xlfn.ANCHORARRAY(BO$19),($BN$19:$BN$30=95)*($BL$19:$BL$30=26)),2),"]") -> 0.39 [0.16 , 0.63] | E84: =CONCATENATE(ROUND(_xlfn._xlws.FILTER(_xlfn.ANCHORARRAY(BP$19),($BN$19:$BN$30=50)*($BL$19:$BL$30=26)),2)," [",ROUND(_xlfn._xlws.FILTER(_xlfn.ANCHORARRAY(BP$19),($BN$19:$BN$30=5)*($BL$19:$BL$30=26)),2)," , ",ROUND(_xlfn._xlws.FILTER(_xlfn.ANCHORARRAY(BP$19),($BN$19:$BN$30=95)*($BL$19:$BL$30=26)),2),"]") -> 0.86 [0.36 , 1.39] | F84: =CONCATENATE(ROUND(_xlfn._xlws.FILTER(_xlfn.ANCHORARRAY(BQ$19),($BN$19:$BN$30=50)*($BL$19:$BL$30=26)),2)," [",ROUND(_xlfn._xlws.FILTER(_xlfn.ANCHORARRAY(BQ$19),($BN$19:$BN$30=5)*($BL$19:$BL$30=26)),2)," , ",ROUND(_xlfn._xlws.FILTER(_xlfn.ANCHORARRAY(BQ$19),($BN$19:$BN$30=95)*($BL$19:$BL$30=26)),2),"]") -> 1.16 [0.49 , 1.88] | G84: =CONCATENATE(ROUND(_xlfn._xlws.FILTER(_xlfn.ANCHORARRAY(BR$19),($BN$19:$BN$30=50)*($BL$19:$BL$30=26)),2)," [",ROUND(_xlfn._xlws.FILTER(_xlfn.ANCHORARRAY(BR$19),($BN$19:$BN$30=5)*($BL$19:$BL$30=26)),2)," , ",ROUND(_xlfn._xlws.FILTER(_xlfn.ANCHORARRAY(BR$19),($BN$19:$BN$30=95)*($BL$19:$BL$30=26)),2),"]") -> 1.12 [0.48 , 1.81]
B85: SSP2-4.5 | C85: Moderate | D85: =CONCATENATE(ROUND(_xlfn._xlws.FILTER(_xlfn.ANCHORARRAY(BO$19),($BN$19:$BN$30=50)*($BL$19:$BL$30=45)),2)," [",ROUND(_xlfn._xlws.FILTER(_xlfn.ANCHORARRAY(BO$19),($BN$19:$BN$30=5)*($BL$19:$BL$30=45)),2)," , ",ROUND(_xlfn._xlws.FILTER(_xlfn.ANCHORARRAY(BO$19),($BN$19:$BN$30=95)*($BL$19:$BL$30=45)),2),"]") -> 0.21 [0.09 , 0.34] | E85: =CONCATENATE(ROUND(_xlfn._xlws.FILTER(_xlfn.ANCHORARRAY(BP$19),($BN$19:$BN$30=50)*($BL$19:$BL$30=45)),2)," [",ROUND(_xlfn._xlws.FILTER(_xlfn.ANCHORARRAY(BP$19),($BN$19:$BN$30=5)*($BL$19:$BL$30=45)),2)," , ",ROUND(_xlfn._xlws.FILTER(_xlfn.ANCHORARRAY(BP$19),($BN$19:$BN$30=95)*($BL$19:$BL$30=45)),2),"]") -> 0.51 [0.21 , 0.82] | F85: =CONCATENATE(ROUND(_xlfn._xlws.FILTER(_xlfn.ANCHORARRAY(BQ$19),($BN$19:$BN$30=50)*($BL$19:$BL$30=45)),2)," [",ROUND(_xlfn._xlws.FILTER(_xlfn.ANCHORARRAY(BQ$19),($BN$19:$BN$30=5)*($BL$19:$BL$30=45)),2)," , ",ROUND(_xlfn._xlws.FILTER(_xlfn.ANCHORARRAY(BQ$19),($BN$19:$BN$30=95)*($BL$19:$BL$30=45)),2),"]") -> 0.81 [0.34 , 1.31] | G85: =CONCATENATE(ROUND(_xlfn._xlws.FILTER(_xlfn.ANCHORARRAY(BR$19),($BN$19:$BN$30=50)*($BL$19:$BL$30=45)),2)," [",ROUND(_xlfn._xlws.FILTER(_xlfn.ANCHORARRAY(BR$19),($BN$19:$BN$30=5)*($BL$19:$BL$30=45)),2)," , ",ROUND(_xlfn._xlws.FILTER(_xlfn.ANCHORARRAY(BR$19),($BN$19:$BN$30=95)*($BL$19:$BL$30=45)),2),"]") -> 1.03 [0.44 , 1.66]
B86: SSP3-7.0 | C86: High | D86: =CONCATENATE(ROUND(_xlfn._xlws.FILTER(_xlfn.ANCHORARRAY(BO$19),($BN$19:$BN$30=50)*($BL$19:$BL$30=70)),2)," [",ROUND(_xlfn._xlws.FILTER(_xlfn.ANCHORARRAY(BO$19),($BN$19:$BN$30=5)*($BL$19:$BL$30=70)),2)," , ",ROUND(_xlfn._xlws.FILTER(_xlfn.ANCHORARRAY(BO$19),($BN$19:$BN$30=95)*($BL$19:$BL$30=70)),2),"]") -> -0.13 [-0.21 , -0.05] | E86: =CONCATENATE(ROUND(_xlfn._xlws.FILTER(_xlfn.ANCHORARRAY(BP$19),($BN$19:$BN$30=50)*($BL$19:$BL$30=70)),2)," [",ROUND(_xlfn._xlws.FILTER(_xlfn.ANCHORARRAY(BP$19),($BN$19:$BN$30=5)*($BL$19:$BL$30=70)),2)," , ",ROUND(_xlfn._xlws.FILTER(_xlfn.ANCHORARRAY(BP$19),($BN$19:$BN$30=95)*($BL$19:$BL$30=70)),2),"]") -> -0.34 [-0.56 , -0.14] | F86: =CONCATENATE(ROUND(_xlfn._xlws.FILTER(_xlfn.ANCHORARRAY(BQ$19),($BN$19:$BN$30=50)*($BL$19:$BL$30=70)),2)," [",ROUND(_xlfn._xlws.FILTER(_xlfn.ANCHORARRAY(BQ$19),($BN$19:$BN$30=5)*($BL$19:$BL$30=70)),2)," , ",ROUND(_xlfn._xlws.FILTER(_xlfn.ANCHORARRAY(BQ$19),($BN$19:$BN$30=95)*($BL$19:$BL$30=70)),2),"]") -> -0.63 [-1.02 , -0.26] | G86: =CONCATENATE(ROUND(_xlfn._xlws.FILTER(_xlfn.ANCHORARRAY(BR$19),($BN$19:$BN$30=50)*($BL$19:$BL$30=70)),2)," [",ROUND(_xlfn._xlws.FILTER(_xlfn.ANCHORARRAY(BR$19),($BN$19:$BN$30=5)*($BL$19:$BL$30=70)),2)," , ",ROUND(_xlfn._xlws.FILTER(_xlfn.ANCHORARRAY(BR$19),($BN$19:$BN$30=95)*($BL$19:$BL$30=70)),2),"]") -> -0.93 [-1.5 , -0.39]
B87: SSP3-7.0 90th | C87: Hot | D87: =CONCATENATE(ROUND(_xlfn._xlws.FILTER(_xlfn.ANCHORARRAY(BO$19),($BN$19:$BN$30=50)*($BL$19:$BL$30="70H")),2)," [",ROUND(_xlfn._xlws.FILTER(_xlfn.ANCHORARRAY(BO$19),($BN$19:$BN$30=5)*($BL$19:$BL$30="70H")),2)," , ",ROUND(_xlfn._xlws.FILTER(_xlfn.ANCHORARRAY(BO$19),($BN$19:$BN$30=95)*($BL$19:$BL$30="70H")),2),"]") -> -0.43 [-0.7 , -0.18] | E87: =CONCATENATE(ROUND(_xlfn._xlws.FILTER(_xlfn.ANCHORARRAY(BP$19),($BN$19:$BN$30=50)*($BL$19:$BL$30="70H")),2)," [",ROUND(_xlfn._xlws.FILTER(_xlfn.ANCHORARRAY(BP$19),($BN$19:$BN$30=5)*($BL$19:$BL$30="70H")),2)," , ",ROUND(_xlfn._xlws.FILTER(_xlfn.ANCHORARRAY(BP$19),($BN$19:$BN$30=95)*($BL$19:$BL$30="70H")),2),"]") -> -1.19 [-1.93 , -0.5] | F87: =CONCATENATE(ROUND(_xlfn._xlws.FILTER(_xlfn.ANCHORARRAY(BQ$19),($BN$19:$BN$30=50)*($BL$19:$BL$30="70H")),2)," [",ROUND(_xlfn._xlws.FILTER(_xlfn.ANCHORARRAY(BQ$19),($BN$19:$BN$30=5)*($BL$19:$BL$30="70H")),2)," , ",ROUND(_xlfn._xlws.FILTER(_xlfn.ANCHORARRAY(BQ$19),($BN$19:$BN$30=95)*($BL$19:$BL$30="70H")),2),"]") -> -2.25 [-3.65 , -0.95] | G87: =CONCATENATE(ROUND(_xlfn._xlws.FILTER(_xlfn.ANCHORARRAY(BR$19),($BN$19:$BN$30=50)*($BL$19:$BL$30="70H")),2)," [",ROUND(_xlfn._xlws.FILTER(_xlfn.ANCHORARRAY(BR$19),($BN$19:$BN$30=5)*($BL$19:$BL$30="70H")),2)," , ",ROUND(_xlfn._xlws.FILTER(_xlfn.ANCHORARRAY(BR$19),($BN$19:$BN$30=95)*($BL$19:$BL$30="70H")),2),"]") -> -3.37 [-5.47 , -1.42]
B90: IMPORTANT: The following notes and source but be used exactly as indicated to ensure correct description of the data, attribution, and compliance with copyright requirements of sources of raw climate data. References must be added to the reference list.
B95: Source: Centorrino et al. (2025) using Kahn et al. (2021), and CMIP6 data (Copernicus Climate Change Service, Climate Data Store, 2021) processed by Massetti and Tagklis (2025).
B98: =CONCATENATE($BL$33,$D$2,$BL$34,$BL$37,$BL$35) -> Notes: The impact of the warming trend for each scenario is estimated using Kahn et al. (2021) under the assumption that adaptation can offset the warming trend after 30 years. 95 percent bootstrap confidence intervals in brackets. Impacts are measured as percentage deviations of real GDP per capita relative to a reference scenario in which the warming trend follows the historical pattern. Country specific warming trends are calculated for each scenario using the bias-adjusted ensemble median projections of temperature anomalies with respect to 1985-2014 over 31-year time periods centered around each year using CMIP6 data. The SSP1-2.6 scenario is in line with the Paris goal to keep global mean temperature increase below 2 ºC with respect to pre-industrial times. SSP2-4.5 represents continuation of present trends. SSP3-7.0 is a high emission scenario. SSP3-7. 90th p. uses the 90th percentile of the SSP3-7.0 ensemble instead of the median to provide a high-emission, fast-warming, pessimistic case.
B108: References: Centorrino, S., E. Massetti, M. Raissi, and F. Tagklis (2025). How to Include the Effects of Rising Temperatures in Macro-Fiscal Projections. International Monetary Fund, How to Note ###. Kahn, Matthew E., Kamiar Mohaddes, Ryan N. C. Ng, M. Hashem Pesaran, Mehdi Raissi, and Jui-Chung Yang. 2021. “Long-Term Macroeconomic Effects of Climate Change: A Cross-Country Analysis.” Energy Economics 104: 105624. https://doi.org/https://doi.org/10.1016/j.eneco.2021.105624. Copernicus Climate Change Service, Climate Data Store, (2021). CMIP6 climate projections. Copernicus Climate Change Service (C3S) Climate Data Store (CDS). DOI: 10.24381/cds.c866074c Massetti, E. and F. Tagklis (2025). FADCP Climate Dataset: Temperature and Precipitation. Reference Guide, Fiscal Affairs Department, International Monetary Fund, Washington DC.

Sheet impact-by-scenario (Growth)
B1: Selected Country | D1: ='data-countries'!F3 -> Afghanistan
B2: Choose Adaptation Horizon | D2: 30 | E2: This is the m parameter in Kahn et al. (2021). Default: m = 30. | BP2: Total | BX2: Share of GDP
BJ3: ISO3 | BK3: Country | BL3: Strategy | BM3: m | BN3: p | BO3: 2015 | BP3: 2016 | BQ3: 2017 | BR3: 2018 | BS3: 2019 | BT3: 2020 | BU3: 2021 | BV3: 2022 | BW3: 2023 | BX3: 2024 | BY3: 2025 | BZ3: 2070H | CA3: 2027 | CB3: 2028 | CC3: 2029 | CD3: 2030 | CE3: 2031 | CF3: 2032 | CG3: 2033 | CH3: 2034 | CI3: 2035 | CJ3: 2036 | CK3: 2037 | CL3: 2038 | CM3: 2039 | CN3: 2040 | CO3: 2041 | CP3: 2042 | CQ3: 2043 | CR3: 2044 | CS3: 2045 | CT3: 2046 | CU3: 2047 | CV3: 2048 | CW3: 2049 | CX3: 2050 | CY3: 2051 | CZ3: 2052 | DA3: 2053 | DB3: 2054 | DC3: 2055 | DD3: 2056 | DE3: 2057 | DF3: 2058 | DG3: 2059 | DH3: 2060 | DI3: 2061 | DJ3: 2062 | DK3: 2063 | DL3: 2064 | DM3: 2065 | DN3: 2066 | DO3: 2067 | DP3: 2068 | DQ3: 2069 | DR3: 2070 | DS3: 2071 | DT3: 2072 | DU3: 2073 | DV3: 2074 | DW3: 2075 | DX3: 2076 | DY3: 2077 | DZ3: 2078 | EA3: 2079 | EB3: 2080 | EC3: 2081 | ED3: 2082 | EE3: 2083 | EF3: 2084 | EG3: 2085 | EH3: 2086 | EI3: 2087 | EJ3: 2088 | EK3: 2089 | EL3: 2090 | EM3: 2091 | EN3: 2092 | EO3: 2093 | EP3: 2094 | EQ3: 2095 | ER3: 2096 | ES3: 2097 | ET3: 2098 | EU3: 2099 | EV3: 2100
B4: =CONCATENATE("Impact of Warming Trends on Real GDP Growth, ", 'data-countries'!$F$3) -> Impact of Warming Trends on Real GDP Growth, Afghanistan | J4: =CONCATENATE("Impact of Warming Trends on Real GDP Growth, ",'data-countries'!$F$3) -> Impact of Warming Trends on Real GDP Growth, Afghanistan | X4: =CONCATENATE("Impact of Warming Trends on Real GDP Growth, ",'data-countries'!$F$3) -> Impact of Warming Trends on Real GDP Growth, Afghanistan | AL4: =CONCATENATE("Impact of Warming Trends on Real GDP Growth, ",'data-countries'!$F$3) -> Impact of Warming Trends on Real GDP Growth, Afghanistan | BJ4: =_xlfn._xlws.FILTER('data-gdp-growth'!A$2:A$10000,('data-countries'!$G$3='data-gdp-growth'!$A$2:$A$10000)*('data-gdp-growth'!D2:D10000=$D$2)) -> AFG | BK4: =_xlfn._xlws.FILTER('data-gdp-growth'!B$2:B$10000,('data-countries'!$G$3='data-gdp-growth'!$A$2:$A$10000)*('data-gdp-growth'!D2:D10000=$D$2)) -> Afghanistan | BL4: =_xlfn._xlws.FILTER('data-gdp-growth'!C$2:C$10000,('data-countries'!$G$3='data-gdp-growth'!$A$2:$A$10000)*('data-gdp-growth'!D2:D10000=$D$2)) -> 26 | BM4: =_xlfn._xlws.FILTER('data-gdp-growth'!D$2:D$10000,('data-countries'!$G$3='data-gdp-growth'!$A$2:$A$10000)*('data-gdp-growth'!D2:D10000=$D$2)) -> 30 | BN4: =_xlfn._xlws.FILTER('data-gdp-growth'!E$2:E$10000,('data-countries'!$G$3='data-gdp-growth'!$A$2:$A$10000)*('data-gdp-growth'!D2:D10000=$D$2)) -> 5 | BO4: =_xlfn._xlws.FILTER('data-gdp-growth'!F$2:F$10000,('data-countries'!$G$3='data-gdp-growth'!$A$2:$A$10000)*('data-gdp-growth'!$D$2:$D$10000=$D$2)) -> -7.478558972e-05 | BP4: =_xlfn._xlws.FILTER('data-gdp-growth'!G$2:G$10000,('data-countries'!$G$3='data-gdp-growth'!$A$2:$A$10000)*('data-gdp-growth'!$D$2:$D$10000=$D$2)) -> 0.001494044716 | BQ4: =_xlfn._xlws.FILTER('data-gdp-growth'!H$2:H$10000,('data-countries'!$G$3='data-gdp-growth'!$A$2:$A$10000)*('data-gdp-growth'!$D$2:$D$10000=$D$2)) -> 0.004496577696 | BR4: =_xlfn._xlws.FILTER('data-gdp-growth'!I$2:I$10000,('data-countries'!$G$3='data-gdp-growth'!$A$2:$A$10000)*('data-gdp-growth'!$D$2:$D$10000=$D$2)) -> 0.008687560832 | BS4: =_xlfn._xlws.FILTER('data-gdp-growth'!J$2:J$10000,('data-countries'!$G$3='data-gdp-growth'!$A$2:$A$10000)*('data-gdp-growth'!$D$2:$D$10000=$D$2)) -> 0.01174370368 | BT4: =_xlfn._xlws.FILTER('data-gdp-growth'!K$2:K$10000,('data-countries'!$G$3='data-gdp-growth'!$A$2:$A$10000)*('data-gdp-growth'!$D$2:$D$10000=$D$2)) -> 0.0121968041 | BU4: =_xlfn._xlws.FILTER('data-gdp-growth'!L$2:L$10000,('data-countries'!$G$3='data-gdp-growth'!$A$2:$A$10000)*('data-gdp-growth'!$D$2:$D$10000=$D$2)) -> 0.01279024904 | BV4: =_xlfn._xlws.FILTER('data-gdp-growth'!M$2:M$10000,('data-countries'!$G$3='data-gdp-growth'!$A$2:$A$10000)*('data-gdp-growth'!$D$2:$D$10000=$D$2)) -> 0.01295344849 | BW4: =_xlfn._xlws.FILTER('data-gdp-growth'!N$2:N$10000,('data-countries'!$G$3='data-gdp-growth'!$A$2:$A$10000)*('data-gdp-growth'!$D$2:$D$10000=$D$2)) -> 0.01296956963 | BX4: =_xlfn._xlws.FILTER('data-gdp-growth'!O$2:O$10000,('data-countries'!$G$3='data-gdp-growth'!$A$2:$A$10000)*('data-gdp-growth'!$D$2:$D$10000=$D$2)) -> 0.01169338207 | BY4: =_xlfn._xlws.FILTER('data-gdp-growth'!P$2:P$10000,('data-countries'!$G$3='data-gdp-growth'!$A$2:$A$10000)*('data-gdp-growth'!$D$2:$D$10000=$D$2)) -> 0.01294991127 | BZ4: =_xlfn._xlws.FILTER('data-gdp-growth'!Q$2:Q$10000,('data-countries'!$G$3='data-gdp-growth'!$A$2:$A$10000)*('data-gdp-growth'!$D$2:$D$10000=$D$2)) -> 0.01172039709 | CA4: =_xlfn._xlws.FILTER('data-gdp-growth'!R$2:R$10000,('data-countries'!$G$3='data-gdp-growth'!$A$2:$A$10000)*('data-gdp-growth'!$D$2:$D$10000=$D$2)) -> 0.0119541676 | CB4: =_xlfn._xlws.FILTER('data-gdp-growth'!S$2:S$10000,('data-countries'!$G$3='data-gdp-growth'!$A$2:$A$10000)*('data-gdp-growth'!$D$2:$D$10000=$D$2)) -> 0.01184914507 | CC4: =_xlfn._xlws.FILTER('data-gdp-growth'!T$2:T$10000,('data-countries'!$G$3='data-gdp-growth'!$A$2:$A$10000)*('data-gdp-growth'!$D$2:$D$10000=$D$2)) -> 0.01168155658 | CD4: =_xlfn._xlws.FILTER('data-gdp-growth'!U$2:U$10000,('data-countries'!$G$3='data-gdp-growth'!$A$2:$A$10000)*('data-gdp-growth'!$D$2:$D$10000=$D$2)) -> 0.01151271236 | CE4: =_xlfn._xlws.FILTER('data-gdp-growth'!V$2:V$10000,('data-countries'!$G$3='data-gdp-growth'!$A$2:$A$10000)*('data-gdp-growth'!$D$2:$D$10000=$D$2)) -> 0.01134209089 | CF4: =_xlfn._xlws.FILTER('data-gdp-growth'!W$2:W$10000,('data-countries'!$G$3='data-gdp-growth'!$A$2:$A$10000)*('data-gdp-growth'!$D$2:$D$10000=$D$2)) -> 0.01116959584 | CG4: =_xlfn._xlws.FILTER('data-gdp-growth'!X$2:X$10000,('data-countries'!$G$3='data-gdp-growth'!$A$2:$A$10000)*('data-gdp-growth'!$D$2:$D$10000=$D$2)) -> 0.01102052159 | CH4: =_xlfn._xlws.FILTER('data-gdp-growth'!Y$2:Y$10000,('data-countries'!$G$3='data-gdp-growth'!$A$2:$A$10000)*('data-gdp-growth'!$D$2:$D$10000=$D$2)) -> 0.01086662115 | CI4: =_xlfn._xlws.FILTER('data-gdp-growth'!Z$2:Z$10000,('data-countries'!$G$3='data-gdp-growth'!$A$2:$A$10000)*('data-gdp-growth'!$D$2:$D$10000=$D$2)) -> 0.01068787402 | CJ4: =_xlfn._xlws.FILTER('data-gdp-growth'!AA$2:AA$10000,('data-countries'!$G$3='data-gdp-growth'!$A$2:$A$10000)*('data-gdp-growth'!$D$2:$D$10000=$D$2)) -> 0.01050728533 | CK4: =_xlfn._xlws.FILTER('data-gdp-growth'!AB$2:AB$10000,('data-countries'!$G$3='data-gdp-growth'!$A$2:$A$10000)*('data-gdp-growth'!$D$2:$D$10000=$D$2)) -> 0.01032488079 | CL4: =_xlfn._xlws.FILTER('data-gdp-growth'!AC$2:AC$10000,('data-countries'!$G$3='data-gdp-growth'!$A$2:$A$10000)*('data-gdp-growth'!$D$2:$D$10000=$D$2)) -> 0.01056305787 | CM4: =_xlfn._xlws.FILTER('data-gdp-growth'!AD$2:AD$10000,('data-countries'!$G$3='data-gdp-growth'!$A$2:$A$10000)*('data-gdp-growth'!$D$2:$D$10000=$D$2)) -> 0.01044770369 | CN4: =_xlfn._xlws.FILTER('data-gdp-growth'!AE$2:AE$10000,('data-countries'!$G$3='data-gdp-growth'!$A$2:$A$10000)*('data-gdp-growth'!$D$2:$D$10000=$D$2)) -> 0.01025485266 | CO4: =_xlfn._xlws.FILTER('data-gdp-growth'!AF$2:AF$10000,('data-countries'!$G$3='data-gdp-growth'!$A$2:$A$10000)*('data-gdp-growth'!$D$2:$D$10000=$D$2)) -> 0.01006019592 | CP4: =_xlfn._xlws.FILTER('data-gdp-growth'!AG$2:AG$10000,('data-countries'!$G$3='data-gdp-growth'!$A$2:$A$10000)*('data-gdp-growth'!$D$2:$D$10000=$D$2)) -> 0.009863757659 | CQ4: =_xlfn._xlws.FILTER('data-gdp-growth'!AH$2:AH$10000,('data-countries'!$G$3='data-gdp-growth'!$A$2:$A$10000)*('data-gdp-growth'!$D$2:$D$10000=$D$2)) -> 0.009665562365 | CR4: =_xlfn._xlws.FILTER('data-gdp-growth'!AI$2:AI$10000,('data-countries'!$G$3='data-gdp-growth'!$A$2:$A$10000)*('data-gdp-growth'!$D$2:$D$10000=$D$2)) -> 0.009465635108 | CS4: =_xlfn._xlws.FILTER('data-gdp-growth'!AJ$2:AJ$10000,('data-countries'!$G$3='data-gdp-growth'!$A$2:$A$10000)*('data-gdp-growth'!$D$2:$D$10000=$D$2)) -> 0.009264001713 | CT4: =_xlfn._xlws.FILTER('data-gdp-growth'!AK$2:AK$10000,('data-countries'!$G$3='data-gdp-growth'!$A$2:$A$10000)*('data-gdp-growth'!$D$2:$D$10000=$D$2)) -> 0.009060688834 | CU4: =_xlfn._xlws.FILTER('data-gdp-growth'!AL$2:AL$10000,('data-countries'!$G$3='data-gdp-growth'!$A$2:$A$10000)*('data-gdp-growth'!$D$2:$D$10000=$D$2)) -> 0.008855723993 | CV4: =_xlfn._xlws.FILTER('data-gdp-growth'!AM$2:AM$10000,('data-countries'!$G$3='data-gdp-growth'!$A$2:$A$10000)*('data-gdp-growth'!$D$2:$D$10000=$D$2)) -> 0.008649135596 | CW4: =_xlfn._xlws.FILTER('data-gdp-growth'!AN$2:AN$10000,('data-countries'!$G$3='data-gdp-growth'!$A$2:$A$10000)*('data-gdp-growth'!$D$2:$D$10000=$D$2)) -> 0.008440952937 | CX4: =_xlfn._xlws.FILTER('data-gdp-growth'!AO$2:AO$10000,('data-countries'!$G$3='data-gdp-growth'!$A$2:$A$10000)*('data-gdp-growth'!$D$2:$D$10000=$D$2)) -> 0.008231206193 | CY4: =_xlfn._xlws.FILTER('data-gdp-growth'!AP$2:AP$10000,('data-countries'!$G$3='data-gdp-growth'!$A$2:$A$10000)*('data-gdp-growth'!$D$2:$D$10000=$D$2)) -> 0.008019926416 | CZ4: =_xlfn._xlws.FILTER('data-gdp-growth'!AQ$2:AQ$10000,('data-countries'!$G$3='data-gdp-growth'!$A$2:$A$10000)*('data-gdp-growth'!$D$2:$D$10000=$D$2)) -> 0.007807145523 | DA4: =_xlfn._xlws.FILTER('data-gdp-growth'!AR$2:AR$10000,('data-countries'!$G$3='data-gdp-growth'!$A$2:$A$10000)*('data-gdp-growth'!$D$2:$D$10000=$D$2)) -> 0.007592896281 | DB4: =_xlfn._xlws.FILTER('data-gdp-growth'!AS$2:AS$10000,('data-countries'!$G$3='data-gdp-growth'!$A$2:$A$10000)*('data-gdp-growth'!$D$2:$D$10000=$D$2)) -> 0.007377212299 | DC4: =_xlfn._xlws.FILTER('data-gdp-growth'!AT$2:AT$10000,('data-countries'!$G$3='data-gdp-growth'!$A$2:$A$10000)*('data-gdp-growth'!$D$2:$D$10000=$D$2)) -> 0.007160128005 | DD4: =_xlfn._xlws.FILTER('data-gdp-growth'!AU$2:AU$10000,('data-countries'!$G$3='data-gdp-growth'!$A$2:$A$10000)*('data-gdp-growth'!$D$2:$D$10000=$D$2)) -> 0.006941678638 | DE4: =_xlfn._xlws.FILTER('data-gdp-growth'!AV$2:AV$10000,('data-countries'!$G$3='data-gdp-growth'!$A$2:$A$10000)*('data-gdp-growth'!$D$2:$D$10000=$D$2)) -> 0.006721900224 | DF4: =_xlfn._xlws.FILTER('data-gdp-growth'!AW$2:AW$10000,('data-countries'!$G$3='data-gdp-growth'!$A$2:$A$10000)*('data-gdp-growth'!$D$2:$D$10000=$D$2)) -> 0.006500829567 | DG4: =_xlfn._xlws.FILTER('data-gdp-growth'!AX$2:AX$10000,('data-countries'!$G$3='data-gdp-growth'!$A$2:$A$10000)*('data-gdp-growth'!$D$2:$D$10000=$D$2)) -> 0.006278504221 | DH4: =_xlfn._xlws.FILTER('data-gdp-growth'!AY$2:AY$10000,('data-countries'!$G$3='data-gdp-growth'!$A$2:$A$10000)*('data-gdp-growth'!$D$2:$D$10000=$D$2)) -> 0.00605496248 | DI4: =_xlfn._xlws.FILTER('data-gdp-growth'!AZ$2:AZ$10000,('data-countries'!$G$3='data-gdp-growth'!$A$2:$A$10000)*('data-gdp-growth'!$D$2:$D$10000=$D$2)) -> 0.005830243352 | DJ4: =_xlfn._xlws.FILTER('data-gdp-growth'!BA$2:BA$10000,('data-countries'!$G$3='data-gdp-growth'!$A$2:$A$10000)*('data-gdp-growth'!$D$2:$D$10000=$D$2)) -> 0.005604386543 | DK4: =_xlfn._xlws.FILTER('data-gdp-growth'!BB$2:BB$10000,('data-countries'!$G$3='data-gdp-growth'!$A$2:$A$10000)*('data-gdp-growth'!$D$2:$D$10000=$D$2)) -> 0.005377432431 | DL4: =_xlfn._xlws.FILTER('data-gdp-growth'!BC$2:BC$10000,('data-countries'!$G$3='data-gdp-growth'!$A$2:$A$10000)*('data-gdp-growth'!$D$2:$D$10000=$D$2)) -> 0.00514942205 | DM4: =_xlfn._xlws.FILTER('data-gdp-growth'!BD$2:BD$10000,('data-countries'!$G$3='data-gdp-growth'!$A$2:$A$10000)*('data-gdp-growth'!$D$2:$D$10000=$D$2)) -> 0.004920397063 | DN4: =_xlfn._xlws.FILTER('data-gdp-growth'!BE$2:BE$10000,('data-countries'!$G$3='data-gdp-growth'!$A$2:$A$10000)*('data-gdp-growth'!$D$2:$D$10000=$D$2)) -> 0.004689273448 | DO4: =_xlfn._xlws.FILTER('data-gdp-growth'!BF$2:BF$10000,('data-countries'!$G$3='data-gdp-growth'!$A$2:$A$10000)*('data-gdp-growth'!$D$2:$D$10000=$D$2)) -> 0.004268085209 | DP4: =_xlfn._xlws.FILTER('data-gdp-growth'!BG$2:BG$10000,('data-countries'!$G$3='data-gdp-growth'!$A$2:$A$10000)*('data-gdp-growth'!$D$2:$D$10000=$D$2)) -> 0.00403725798 | DQ4: =_xlfn._xlws.FILTER('data-gdp-growth'!BH$2:BH$10000,('data-countries'!$G$3='data-gdp-growth'!$A$2:$A$10000)*('data-gdp-growth'!$D$2:$D$10000=$D$2)) -> 0.003805624975 | DR4: =_xlfn._xlws.FILTER('data-gdp-growth'!BI$2:BI$10000,('data-countries'!$G$3='data-gdp-growth'!$A$2:$A$10000)*('data-gdp-growth'!$D$2:$D$10000=$D$2)) -> 0.003573230701 | DS4: =_xlfn._xlws.FILTER('data-gdp-growth'!BJ$2:BJ$10000,('data-countries'!$G$3='data-gdp-growth'!$A$2:$A$10000)*('data-gdp-growth'!$D$2:$D$10000=$D$2)) -> 0.003340120132 | DT4: =_xlfn._xlws.FILTER('data-gdp-growth'!BK$2:BK$10000,('data-countries'!$G$3='data-gdp-growth'!$A$2:$A$10000)*('data-gdp-growth'!$D$2:$D$10000=$D$2)) -> 0.003106338676 | DU4: =_xlfn._xlws.FILTER('data-gdp-growth'!BL$2:BL$10000,('data-countries'!$G$3='data-gdp-growth'!$A$2:$A$10000)*('data-gdp-growth'!$D$2:$D$10000=$D$2)) -> 0.002871932152 | DV4: =_xlfn._xlws.FILTER('data-gdp-growth'!BM$2:BM$10000,('data-countries'!$G$3='data-gdp-growth'!$A$2:$A$10000)*('data-gdp-growth'!$D$2:$D$10000=$D$2)) -> 0.002636946761 | DW4: =_xlfn._xlws.FILTER('data-gdp-growth'!BN$2:BN$10000,('data-countries'!$G$3='data-gdp-growth'!$A$2:$A$10000)*('data-gdp-growth'!$D$2:$D$10000=$D$2)) -> 0.002401429057 | DX4: =_xlfn._xlws.FILTER('data-gdp-growth'!BO$2:BO$10000,('data-countries'!$G$3='data-gdp-growth'!$A$2:$A$10000)*('data-gdp-growth'!$D$2:$D$10000=$D$2)) -> 0.002165425922 | DY4: =_xlfn._xlws.FILTER('data-gdp-growth'!BP$2:BP$10000,('data-countries'!$G$3='data-gdp-growth'!$A$2:$A$10000)*('data-gdp-growth'!$D$2:$D$10000=$D$2)) -> 0.001928984538 | DZ4: =_xlfn._xlws.FILTER('data-gdp-growth'!BQ$2:BQ$10000,('data-countries'!$G$3='data-gdp-growth'!$A$2:$A$10000)*('data-gdp-growth'!$D$2:$D$10000=$D$2)) -> 0.001692152353 | EA4: =_xlfn._xlws.FILTER('data-gdp-growth'!BR$2:BR$10000,('data-countries'!$G$3='data-gdp-growth'!$A$2:$A$10000)*('data-gdp-growth'!$D$2:$D$10000=$D$2)) -> 0.001454977058 | EB4: =_xlfn._xlws.FILTER('data-gdp-growth'!BS$2:BS$10000,('data-countries'!$G$3='data-gdp-growth'!$A$2:$A$10000)*('data-gdp-growth'!$D$2:$D$10000=$D$2)) -> 0.001217506555 | EC4: =_xlfn._xlws.FILTER('data-gdp-growth'!BT$2:BT$10000,('data-countries'!$G$3='data-gdp-growth'!$A$2:$A$10000)*('data-gdp-growth'!$D$2:$D$10000=$D$2)) -> 0.0009797889291 | ED4: =_xlfn._xlws.FILTER('data-gdp-growth'!BU$2:BU$10000,('data-countries'!$G$3='data-gdp-growth'!$A$2:$A$10000)*('data-gdp-growth'!$D$2:$D$10000=$D$2)) -> 0.000741872416 | EE4: =_xlfn._xlws.FILTER('data-gdp-growth'!BV$2:BV$10000,('data-countries'!$G$3='data-gdp-growth'!$A$2:$A$10000)*('data-gdp-growth'!$D$2:$D$10000=$D$2)) -> 0.0005038053755 | EF4: =_xlfn._xlws.FILTER('data-gdp-growth'!BW$2:BW$10000,('data-countries'!$G$3='data-gdp-growth'!$A$2:$A$10000)*('data-gdp-growth'!$D$2:$D$10000=$D$2)) -> 0.0002656362602 | EG4: =_xlfn._xlws.FILTER('data-gdp-growth'!BX$2:BX$10000,('data-countries'!$G$3='data-gdp-growth'!$A$2:$A$10000)*('data-gdp-growth'!$D$2:$D$10000=$D$2)) -> 2.741358567e-05 | EH4: =_xlfn._xlws.FILTER('data-gdp-growth'!BY$2:BY$10000,('data-countries'!$G$3='data-gdp-growth'!$A$2:$A$10000)*('data-gdp-growth'!$D$2:$D$10000=$D$2)) -> -0.0002108140996 | EI4: =_xlfn._xlws.FILTER('data-gdp-growth'!BZ$2:BZ$10000,('data-countries'!$G$3='data-gdp-growth'!$A$2:$A$10000)*('data-gdp-growth'!$D$2:$D$10000=$D$2)) -> -0.0004489982439 | EJ4: =_xlfn._xlws.FILTER('data-gdp-growth'!CA$2:CA$10000,('data-countries'!$G$3='data-gdp-growth'!$A$2:$A$10000)*('data-gdp-growth'!$D$2:$D$10000=$D$2)) -> -0.0006870903227 | EK4: =_xlfn._xlws.FILTER('data-gdp-growth'!CB$2:CB$10000,('data-countries'!$G$3='data-gdp-growth'!$A$2:$A$10000)*('data-gdp-growth'!$D$2:$D$10000=$D$2)) -> -0.0009250418687 | EL4: =_xlfn._xlws.FILTER('data-gdp-growth'!CC$2:CC$10000,('data-countries'!$G$3='data-gdp-growth'!$A$2:$A$10000)*('data-gdp-growth'!$D$2:$D$10000=$D$2)) -> -0.001162804501 | EM4: =_xlfn._xlws.FILTER('data-gdp-growth'!CD$2:CD$10000,('data-countries'!$G$3='data-gdp-growth'!$A$2:$A$10000)*('data-gdp-growth'!$D$2:$D$10000=$D$2)) -> -0.001400329957 | EN4: =_xlfn._xlws.FILTER('data-gdp-growth'!CE$2:CE$10000,('data-countries'!$G$3='data-gdp-growth'!$A$2:$A$10000)*('data-gdp-growth'!$D$2:$D$10000=$D$2)) -> -0.00163757012 | EO4: =_xlfn._xlws.FILTER('data-gdp-growth'!CF$2:CF$10000,('data-countries'!$G$3='data-gdp-growth'!$A$2:$A$10000)*('data-gdp-growth'!$D$2:$D$10000=$D$2)) -> -0.001874477048 | EP4: =_xlfn._xlws.FILTER('data-gdp-growth'!CG$2:CG$10000,('data-countries'!$G$3='data-gdp-growth'!$A$2:$A$10000)*('data-gdp-growth'!$D$2:$D$10000=$D$2)) -> -0.002111003007 | EQ4: =_xlfn._xlws.FILTER('data-gdp-growth'!CH$2:CH$10000,('data-countries'!$G$3='data-gdp-growth'!$A$2:$A$10000)*('data-gdp-growth'!$D$2:$D$10000=$D$2)) -> -0.002347100497 | ER4: =_xlfn._xlws.FILTER('data-gdp-growth'!CI$2:CI$10000,('data-countries'!$G$3='data-gdp-growth'!$A$2:$A$10000)*('data-gdp-growth'!$D$2:$D$10000=$D$2)) -> -0.002582722282 | ES4: =_xlfn._xlws.FILTER('data-gdp-growth'!CJ$2:CJ$10000,('data-countries'!$G$3='data-gdp-growth'!$A$2:$A$10000)*('data-gdp-growth'!$D$2:$D$10000=$D$2)) -> -0.002817821418 | ET4: =_xlfn._xlws.FILTER('data-gdp-growth'!CK$2:CK$10000,('data-countries'!$G$3='data-gdp-growth'!$A$2:$A$10000)*('data-gdp-growth'!$D$2:$D$10000=$D$2)) -> -0.003052351283 | EU4: =_xlfn._xlws.FILTER('data-gdp-growth'!CL$2:CL$10000,('data-countries'!$G$3='data-gdp-growth'!$A$2:$A$10000)*('data-gdp-growth'!$D$2:$D$10000=$D$2)) -> -0.003286265604 | EV4: =_xlfn.FORECAST.LINEAR(EV3,EQ4:EU4,EQ3:EU3) -> -0.003521639982
BJ5: AFG | BK5: Afghanistan | BL5: 45 | BM5: 30 | BN5: 5 | BO5: -3.920138379e-05 | BP5: 0.000783475896 | BQ5: 0.00236048713 | BR5: 0.00458583891 | BS5: 0.006194310389 | BT5: 0.006468977636 | BU5: 0.006816381547 | BV5: 0.006932109345 | BW5: 0.006986471368 | BX5: 0.006434665949 | BY5: 0.00711267382 | BZ5: 0.006463978295 | CA5: 0.00649986664 | CB5: 0.006613745458 | CC5: 0.006570547147 | CD5: 0.006527409513 | CE5: 0.006484054812 | CF5: 0.006440426406 | CG5: 0.006396485797 | CH5: 0.006364748561 | CI5: 0.006332007484 | CJ5: 0.006287026387 | CK5: 0.006241765109 | CL5: 0.006196226426 | CM5: 0.006233193454 | CN5: 0.006352759465 | CO5: 0.006304996327 | CP5: 0.006256950036 | CQ5: 0.006208621964 | CR5: 0.006160013339 | CS5: 0.006111125325 | CT5: 0.006061959076 | CU5: 0.006012515751 | CV5: 0.005962796537 | CW5: 0.005912802645 | CX5: 0.005862535324 | CY5: 0.005811995858 | CZ5: 0.005761185567 | DA5: 0.005710105807 | DB5: 0.005658757975 | DC5: 0.005607143502 | DD5: 0.005555263859 | DE5: 0.005503120555 | DF5: 0.005450715136 | DG5: 0.005398049185 | DH5: 0.005345124324 | DI5: 0.005291942211 | DJ5: 0.005238504543 | DK5: 0.005184813054 | DL5: 0.005130869514 | DM5: 0.005076675731 | DN5: 0.005022233551 | DO5: 0.004967544853 | DP5: 0.004912611558 | DQ5: 0.004857435619 | DR5: 0.004802019028 | DS5: 0.004746363812 | DT5: 0.004690472034 | DU5: 0.004634345793 | DV5: 0.004577987223 | DW5: 0.004521398495 | DX5: 0.004464581812 | DY5: 0.004407539415 | DZ5: 0.004350273578 | EA5: 0.00429278661 | EB5: 0.004235080853 | EC5: 0.004177158685 | ED5: 0.004119022516 | EE5: 0.004060674789 | EF5: 0.004002117981 | EG5: 0.003943354602 | EH5: 0.003884387192 | EI5: 0.003788255347 | EJ5: 0.003698797069 | EK5: 0.003639504902 | EL5: 0.003580022333 | EM5: 0.003520352065 | EN5: 0.003460496829 | EO5: 0.003400459388 | EP5: 0.003340242531 | EQ5: 0.003279849078 | ER5: 0.003219281876 | ES5: 0.003158543802 | ET5: 0.003097637758 | EU5: 0.003036566676 | EV5: =_xlfn.FORECAST.LINEAR(EV4,EQ5:EU5,EQ4:EU4) -> 0.002975913965
B6: Percentage Points | J6: Percentage Points | X6: Percentage Points | AL6: Percentage Points | BJ6: AFG | BK6: Afghanistan | BL6: 70 | BM6: 30 | BN6: 5 | BO6: -0.001577339317 | BP6: -0.003679790648 | BQ6: -0.006727572843 | BR6: -0.01016583184 | BS6: -0.01270983592 | BT6: -0.01448717576 | BU6: -0.01522053468 | BV6: -0.01570427322 | BW6: -0.01600122647 | BX6: -0.01619476053 | BY6: -0.01632957366 | BZ6: -0.01642934854 | CA6: -0.0165091672 | CB6: -0.01657555232 | CC6: -0.01662673471 | CD6: -0.01668418487 | CE6: -0.01673931307 | CF6: -0.01704386481 | CG6: -0.01719331187 | CH6: -0.01724683755 | CI6: -0.01729988868 | CJ6: -0.01735258088 | CK6: -0.01740497988 | CL6: -0.0174571234 | CM6: -0.01750903299 | CN6: -0.01756072093 | CO6: -0.01749599003 | CP6: -0.01738063524 | CQ6: -0.01743068467 | CR6: -0.01748053051 | CS6: -0.01753017358 | CT6: -0.01757961439 | CU6: -0.01762885331 | CV6: -0.01777666265 | CW6: -0.01803986117 | CX6: -0.01808962043 | CY6: -0.01813917129 | CZ6: -0.01818851518 | DA6: -0.01823765312 | DB6: -0.01827751551 | DC6: -0.01832506956 | DD6: -0.01837355745 | DE6: -0.01842184166 | DF6: -0.0184699225 | DG6: -0.01851780026 | DH6: -0.01856547521 | DI6: -0.0186129476 | DJ6: -0.01866021769 | DK6: -0.01870728571 | DL6: -0.0186227312 | DM6: -0.01860201957 | DN6: -0.01864778695 | DO6: -0.01869335548 | DP6: -0.01873872542 | DQ6: -0.01878389705 | DR6: -0.01882887064 | DS6: -0.01887364646 | DT6: -0.01891822482 | DU6: -0.018962606 | DV6: -0.01900679029 | DW6: -0.01905077801 | DX6: -0.01909456947 | DY6: -0.01913816499 | DZ6: -0.01918156488 | EA6: -0.01922476947 | EB6: -0.01926777911 | EC6: -0.01931059413 | ED6: -0.01935321488 | EE6: -0.0193956417 | EF6: -0.01943787497 | EG6: -0.01947991503 | EH6: -0.01952176225 | EI6: -0.01956341702 | EJ6: -0.0196048797 | EK6: -0.01964615069 | EL6: -0.01968723037 | EM6: -0.01972811914 | EN6: -0.0197688174 | EO6: -0.01980932554 | EP6: -0.01984964399 | EQ6: -0.01988977315 | ER6: -0.01992971345 | ES6: -0.01996946532 | ET6: -0.02000902917 | EU6: -0.02004840545 | EV6: -0.02008825001
BJ7: AFG | BK7: Afghanistan | BL7: 70H | BM7: 30 | BN7: 5 | BO7: -0.005025304607 | BP7: -0.01175091711 | BQ7: -0.02156156036 | BR7: -0.03269157975 | BS7: -0.04101201058 | BT7: -0.04682544562 | BU7: -0.04960940323 | BV7: -0.05147283195 | BW7: -0.0527554955 | BX7: -0.05370860956 | BY7: -0.05447209186 | BZ7: -0.0551199952 | CA7: -0.05569956773 | CB7: -0.05623723964 | CC7: -0.05671186566 | CD7: -0.05720025289 | CE7: -0.05767905413 | CF7: -0.05838050941 | CG7: -0.0597414089 | CH7: -0.06020666126 | CI7: -0.0606646748 | CJ7: -0.06111584181 | CK7: -0.06156039998 | CL7: -0.06199850083 | CM7: -0.06243024682 | CN7: -0.06285571326 | CO7: -0.0632749607 | CP7: -0.06350115295 | CQ7: -0.06314082904 | CR7: -0.06353177032 | CS7: -0.06391679788 | CT7: -0.06429595952 | CU7: -0.06466930394 | CV7: -0.06503688088 | CW7: -0.0653987412 | CX7: -0.06659673794 | CY7: -0.06718799313 | CZ7: -0.06754388521 | DA7: -0.06789414702 | DB7: -0.06823883703 | DC7: -0.06857801417 | DD7: -0.06888317803 | DE7: -0.06920360175 | DF7: -0.06952625844 | DG7: -0.06984364862 | DH7: -0.07015583462 | DI7: -0.07046287942 | DJ7: -0.07076484668 | DK7: -0.07106180065 | DL7: -0.07135380618 | DM7: -0.07164092861 | DN7: -0.07181965059 | DO7: -0.07147375733 | DP7: -0.07174020218 | DQ7: -0.07200211218 | DR7: -0.07225955419 | DS7: -0.07251259533 | DT7: -0.07276130288 | DU7: -0.0730057443 | DV7: -0.07324598716 | DW7: -0.07348209906 | DX7: -0.07371414768 | DY7: -0.07394220064 | DZ7: -0.07416632556 | EA7: -0.07438658992 | EB7: -0.07460306114 | EC7: -0.07481580642 | ED7: -0.07502489282 | EE7: -0.07523038715 | EF7: -0.07543235596 | EG7: -0.07563086552 | EH7: -0.07582598178 | EI7: -0.07601777034 | EJ7: -0.07620629643 | EK7: -0.07639162486 | EL7: -0.07657382002 | EM7: -0.07675294586 | EN7: -0.07692906581 | EO7: -0.07710224283 | EP7: -0.07727253934 | EQ7: -0.07744001722 | ER7: -0.07760473777 | ES7: -0.07776676171 | ET7: -0.07792614916 | EU7: -0.0780829596 | EV7: -0.07824631765
B8: SSP | C8: Scenario Name | D8: 2030 | E8: 2050 | F8: 2075 | G8: 2100 | BJ8: AFG | BK8: Afghanistan | BL8: 26 | BM8: 30 | BN8: 50 | BO8: 0.002295743023 | BP8: 0.006209140661 | BQ8: 0.01240598136 | BR8: 0.01976254782 | BS8: 0.02580240159 | BT8: 0.0280828403 | BU8: 0.02932305703 | BV8: 0.02991675857 | BW8: 0.0300519922 | BX8: 0.02996190437 | BY8: 0.02973996233 | BZ8: 0.02943879589 | CA8: 0.0290920861 | CB8: 0.02871760212 | CC8: 0.02832542006 | CD8: 0.02792136806 | CE8: 0.02750871144 | CF8: 0.02708931219 | CG8: 0.02666424225 | CH8: 0.02623412298 | CI8: 0.0257993235 | CJ8: 0.02536007139 | CK8: 0.02491651497 | CL8: 0.02446875877 | CM8: 0.0240168835 | CN8: 0.02356095727 | CO8: 0.02310104203 | CP8: 0.02263719711 | CQ8: 0.02216948128 | CR8: 0.02169795383 | CS8: 0.02122267528 | CT8: 0.02074370766 | CU8: 0.02026111474 | CV8: 0.01977496208 | CW8: 0.01928531714 | CX8: 0.01879224921 | CY8: 0.01829582946 | CZ8: 0.0177961309 | DA8: 0.01729322836 | DB8: 0.01678719846 | DC8: 0.01627811957 | DD8: 0.01576607178 | DE8: 0.01525113686 | DF8: 0.01473339825 | DG8: 0.01421294095 | DH8: 0.01368985155 | DI8: 0.01316421814 | DJ8: 0.01263613028 | DK8: 0.01210567896 | DL8: 0.01157295653 | DM8: 0.01103805667 | DN8: 0.01050107434 | DO8: 0.009962105718 | DP8: 0.009421248131 | DQ8: 0.008878600035 | DR8: 0.008334260937 | DS8: 0.007788331346 | DT8: 0.007240912711 | DU8: 0.006692107365 | DV8: 0.006142018465 | DW8: 0.005590749932 | DX8: 0.005038406392 | DY8: 0.004485093109 | DZ8: 0.003930915931 | EA8: 0.003375981218 | EB8: 0.002820395787 | EC8: 0.002264266842 | ED8: 0.001707701915 | EE8: 0.001150808798 | EF8: 0.0005936954789 | EG8: 3.647007856e-05 | EH8: -0.000520759216 | EI8: -0.001077884216 | EJ8: -0.001634796795 | EK8: -0.002191388957 | EL8: -0.002747552897 | EM8: -0.003303181068 | EN8: -0.003858166246 | EO8: -0.004412401593 | EP8: -0.00496578072 | EQ8: -0.005518197753 | ER8: -0.006069547393 | ES8: -0.006619724977 | ET8: -0.007168626546 | EU8: -0.007716148899 | EV8: -0.008266822948
B9: SSP1-2.6 | C9: Paris | D9: =CONCATENATE(ROUND(_xlfn._xlws.FILTER(_xlfn.ANCHORARRAY(BO$19),($BN$19:$BN$30=50)*($BL$19:$BL$30=26)),2)," [",ROUND(_xlfn._xlws.FILTER(_xlfn.ANCHORARRAY(BO$19),($BN$19:$BN$30=5)*($BL$19:$BL$30=26)),2)," , ",ROUND(_xlfn._xlws.FILTER(_xlfn.ANCHORARRAY(BO$19),($BN$19:$BN$30=95)*($BL$19:$BL$30=26)),2),"]") -> 0.03 [0.01 , 0.04] | E9: =CONCATENATE(ROUND(_xlfn._xlws.FILTER(_xlfn.ANCHORARRAY(BP$19),($BN$19:$BN$30=50)*($BL$19:$BL$30=26)),2)," [",ROUND(_xlfn._xlws.FILTER(_xlfn.ANCHORARRAY(BP$19),($BN$19:$BN$30=5)*($BL$19:$BL$30=26)),2)," , ",ROUND(_xlfn._xlws.FILTER(_xlfn.ANCHORARRAY(BP$19),($BN$19:$BN$30=95)*($BL$19:$BL$30=26)),2),"]") -> 0.02 [0.01 , 0.03] | F9: =CONCATENATE(ROUND(_xlfn._xlws.FILTER(_xlfn.ANCHORARRAY(BQ$19),($BN$19:$BN$30=50)*($BL$19:$BL$30=26)),2)," [",ROUND(_xlfn._xlws.FILTER(_xlfn.ANCHORARRAY(BQ$19),($BN$19:$BN$30=5)*($BL$19:$BL$30=26)),2)," , ",ROUND(_xlfn._xlws.FILTER(_xlfn.ANCHORARRAY(BQ$19),($BN$19:$BN$30=95)*($BL$19:$BL$30=26)),2),"]") -> 0.01 [0 , 0.01] | G9: =CONCATENATE(ROUND(_xlfn._xlws.FILTER(_xlfn.ANCHORARRAY(BR$19),($BN$19:$BN$30=50)*($BL$19:$BL$30=26)),2)," [",ROUND(_xlfn._xlws.FILTER(_xlfn.ANCHORARRAY(BR$19),($BN$19:$BN$30=5)*($BL$19:$BL$30=26)),2)," , ",ROUND(_xlfn._xlws.FILTER(_xlfn.ANCHORARRAY(BR$19),($BN$19:$BN$30=95)*($BL$19:$BL$30=26)),2),"]") -> -0.01 [0 , -0.01] | BJ9: AFG | BK9: Afghanistan | BL9: 45 | BM9: 30 | BN9: 50 | BO9: 0.00120339097 | BP9: 0.003261081683 | BQ9: 0.006526875964 | BR9: 0.01041871408 | BS9: 0.01364250484 | BT9: 0.01491449256 | BU9: 0.01565001459 | BV9: 0.01605266348 | BW9: 0.01621926365 | BX9: 0.01627082466 | BY9: 0.01625575174 | BZ9: 0.01620129158 | CA9: 0.01612489812 | CB9: 0.01603577055 | CC9: 0.0159391201 | CD9: 0.01583795589 | CE9: 0.01573395712 | CF9: 0.0156280743 | CG9: 0.0155208473 | CH9: 0.01541258122 | CI9: 0.01530344931 | CJ9: 0.01519355035 | CK9: 0.015082941 | CL9: 0.01497165414 | CM9: 0.01485970931 | CN9: 0.01474711847 | CO9: 0.0146338894 | CP9: 0.01452002749 | CQ9: 0.01440553689 | CR9: 0.01429042101 | CS9: 0.01417468292 | CT9: 0.01405832554 | CU9: 0.01394135173 | CV9: 0.01382376432 | CW9: 0.01370556623 | CX9: 0.0135867604 | CY9: 0.01346734985 | CZ9: 0.01334733769 | DA9: 0.01322672709 | DB9: 0.0131055213 | DC9: 0.01298372366 | DD9: 0.0128613376 | DE9: 0.01273836661 | DF9: 0.01261481428 | DG9: 0.01249068428 | DH9: 0.01236598035 | DI9: 0.01224070633 | DJ9: 0.01211486613 | DK9: 0.01198846374 | DL9: 0.01186150323 | DM9: 0.01173398877 | DN9: 0.01160592458 | DO9: 0.01147731498 | DP9: 0.01134816437 | DQ9: 0.01121847722 | DR9: 0.01108825809 | DS9: 0.0109575116 | DT9: 0.01082624246 | DU9: 0.01069445547 | DV9: 0.01056215548 | DW9: 0.01042934744 | DX9: 0.01029603636 | DY9: 0.01016222733 | DZ9: 0.01002792553 | EA9: 0.009893136183 | EB9: 0.009757864615 | EC9: 0.009622116211 | ED9: 0.009485896431 | EE9: 0.009349210806 | EF9: 0.009212064941 | EG9: 0.009074464507 | EH9: 0.008936415248 | EI9: 0.008797922976 | EJ9: 0.008658993573 | EK9: 0.008519632984 | EL9: 0.008379847226 | EM9: 0.008239642378 | EN9: 0.008099024586 | EO9: 0.007958000061 | EP9: 0.007816575075 | EQ9: 0.007674755965 | ER9: 0.007532549129 | ES9: 0.007389961024 | ET9: 0.00724699817 | EU9: 0.007103667145 | EV9: 0.006961300763
B10: SSP2-4.5 | C10: Moderate | D10: =CONCATENATE(ROUND(_xlfn._xlws.FILTER(_xlfn.ANCHORARRAY(BO$19),($BN$19:$BN$30=50)*($BL$19:$BL$30=45)),2)," [",ROUND(_xlfn._xlws.FILTER(_xlfn.ANCHORARRAY(BO$19),($BN$19:$BN$30=5)*($BL$19:$BL$30=45)),2)," , ",ROUND(_xlfn._xlws.FILTER(_xlfn.ANCHORARRAY(BO$19),($BN$19:$BN$30=95)*($BL$19:$BL$30=45)),2),"]") -> 0.02 [0.01 , 0.03] | E10: =CONCATENATE(ROUND(_xlfn._xlws.FILTER(_xlfn.ANCHORARRAY(BP$19),($BN$19:$BN$30=50)*($BL$19:$BL$30=45)),2)," [",ROUND(_xlfn._xlws.FILTER(_xlfn.ANCHORARRAY(BP$19),($BN$19:$BN$30=5)*($BL$19:$BL$30=45)),2)," , ",ROUND(_xlfn._xlws.FILTER(_xlfn.ANCHORARRAY(BP$19),($BN$19:$BN$30=95)*($BL$19:$BL$30=45)),2),"]") -> 0.01 [0.01 , 0.02] | F10: =CONCATENATE(ROUND(_xlfn._xlws.FILTER(_xlfn.ANCHORARRAY(BQ$19),($BN$19:$BN$30=50)*($BL$19:$BL$30=45)),2)," [",ROUND(_xlfn._xlws.FILTER(_xlfn.ANCHORARRAY(BQ$19),($BN$19:$BN$30=5)*($BL$19:$BL$30=45)),2)," , ",ROUND(_xlfn._xlws.FILTER(_xlfn.ANCHORARRAY(BQ$19),($BN$19:$BN$30=95)*($BL$19:$BL$30=45)),2),"]") -> 0.01 [0 , 0.02] | G10: =CONCATENATE(ROUND(_xlfn._xlws.FILTER(_xlfn.ANCHORARRAY(BR$19),($BN$19:$BN$30=50)*($BL$19:$BL$30=45)),2)," [",ROUND(_xlfn._xlws.FILTER(_xlfn.ANCHORARRAY(BR$19),($BN$19:$BN$30=5)*($BL$19:$BL$30=45)),2)," , ",ROUND(_xlfn._xlws.FILTER(_xlfn.ANCHORARRAY(BR$19),($BN$19:$BN$30=95)*($BL$19:$BL$30=45)),2),"]") -> 0.01 [0 , 0.01] | BJ10: AFG | BK10: Afghanistan | BL10: 70 | BM10: 30 | BN10: 50 | BO10: -0.0007066568831 | BP10: -0.001921292398 | BQ10: -0.003856342802 | BR10: -0.006176774598 | BS10: -0.008126395621 | BT10: -0.008947700753 | BU10: -0.009461551732 | BV10: -0.009784619344 | BW10: -0.009971952522 | BX10: -0.01009337588 | BY10: -0.01017671108 | BZ10: -0.01023761275 | CA10: -0.01028613151 | CB10: -0.01032756069 | CC10: -0.01036489922 | CD10: -0.01039987948 | CE10: -0.01043346794 | CF10: -0.01046621143 | CG10: -0.01049842026 | CH10: -0.01053026941 | CI10: -0.01056185786 | CJ10: -0.01059324161 | CK10: -0.01062445233 | CL10: -0.01065550793 | CM10: -0.01068641859 | CN10: -0.01071719007 | CO10: -0.01074782566 | CP10: -0.01077832726 | CQ10: -0.01080869596 | CR10: -0.01083893243 | CS10: -0.01086903708 | CT10: -0.01089901018 | CU10: -0.01092885193 | CV10: -0.01095856247 | CW10: -0.01098814194 | CX10: -0.01101759047 | CY10: -0.01104690818 | CZ10: -0.01107609517 | DA10: -0.01110515158 | DB10: -0.01113407752 | DC10: -0.01116287312 | DD10: -0.01119153852 | DE10: -0.01122007385 | DF10: -0.01124847925 | DG10: -0.01127675485 | DH10: -0.01130490082 | DI10: -0.0113329173 | DJ10: -0.01136080444 | DK10: -0.01138856241 | DL10: -0.01141619138 | DM10: -0.0114436915 | DN10: -0.01147106296 | DO10: -0.01149830592 | DP10: -0.01152542058 | DQ10: -0.01155240711 | DR10: -0.0115792657 | DS10: -0.01160599655 | DT10: -0.01163259985 | DU10: -0.0116590758 | DV10: -0.01168542462 | DW10: -0.01171164649 | DX10: -0.01173774165 | DY10: -0.01176371029 | DZ10: -0.01178955265 | EA10: -0.01181526895 | EB10: -0.0118408594 | EC10: -0.01186632425 | ED10: -0.01189166373 | EE10: -0.01191687806 | EF10: -0.01194196751 | EG10: -0.0119669323 | EH10: -0.01199177269 | EI10: -0.01201648893 | EJ10: -0.01204108127 | EK10: -0.01206554997 | EL10: -0.0120898953 | EM10: -0.01211411752 | EN10: -0.01213821689 | EO10: -0.01216219369 | EP10: -0.01218604819 | EQ10: -0.01220978068 | ER10: -0.01223339142 | ES10: -0.01225688071 | ET10: -0.01228024883 | EU10: -0.01230349608 | EV10: -0.01232704008
B11: SSP3-7.0 | C11: High | D11: =CONCATENATE(ROUND(_xlfn._xlws.FILTER(_xlfn.ANCHORARRAY(BO$19),($BN$19:$BN$30=50)*($BL$19:$BL$30=70)),2)," [",ROUND(_xlfn._xlws.FILTER(_xlfn.ANCHORARRAY(BO$19),($BN$19:$BN$30=5)*($BL$19:$BL$30=70)),2)," , ",ROUND(_xlfn._xlws.FILTER(_xlfn.ANCHORARRAY(BO$19),($BN$19:$BN$30=95)*($BL$19:$BL$30=70)),2),"]") -> -0.01 [-0.02 , 0] | E11: =CONCATENATE(ROUND(_xlfn._xlws.FILTER(_xlfn.ANCHORARRAY(BP$19),($BN$19:$BN$30=50)*($BL$19:$BL$30=70)),2)," [",ROUND(_xlfn._xlws.FILTER(_xlfn.ANCHORARRAY(BP$19),($BN$19:$BN$30=5)*($BL$19:$BL$30=70)),2)," , ",ROUND(_xlfn._xlws.FILTER(_xlfn.ANCHORARRAY(BP$19),($BN$19:$BN$30=95)*($BL$19:$BL$30=70)),2),"]") -> -0.01 [-0.02 , 0] | F11: =CONCATENATE(ROUND(_xlfn._xlws.FILTER(_xlfn.ANCHORARRAY(BQ$19),($BN$19:$BN$30=50)*($BL$19:$BL$30=70)),2)," [",ROUND(_xlfn._xlws.FILTER(_xlfn.ANCHORARRAY(BQ$19),($BN$19:$BN$30=5)*($BL$19:$BL$30=70)),2)," , ",ROUND(_xlfn._xlws.FILTER(_xlfn.ANCHORARRAY(BQ$19),($BN$19:$BN$30=95)*($BL$19:$BL$30=70)),2),"]") -> -0.01 [-0.02 , 0] | G11: =CONCATENATE(ROUND(_xlfn._xlws.FILTER(_xlfn.ANCHORARRAY(BR$19),($BN$19:$BN$30=50)*($BL$19:$BL$30=70)),2)," [",ROUND(_xlfn._xlws.FILTER(_xlfn.ANCHORARRAY(BR$19),($BN$19:$BN$30=5)*($BL$19:$BL$30=70)),2)," , ",ROUND(_xlfn._xlws.FILTER(_xlfn.ANCHORARRAY(BR$19),($BN$19:$BN$30=95)*($BL$19:$BL$30=70)),2),"]") -> -0.01 [-0.02 , -0.01] | BJ11: AFG | BK11: Afghanistan | BL11: 70H | BM11: 30 | BN11: 50 | BO11: -0.00225136472 | BP11: -0.006136798389 | BQ11: -0.01234440194 | BR11: -0.01982306625 | BS11: -0.02617205789 | BT11: -0.02896790438 | BU11: -0.03079948078 | BV11: -0.03203097537 | BW11: -0.03283305446 | BX11: -0.03342497641 | BY11: -0.03389381364 | BZ11: -0.03428854793 | CA11: -0.03464069107 | CB11: -0.03496683449 | CC11: -0.03527638506 | CD11: -0.03557478553 | CE11: -0.03586507925 | CF11: -0.03614899582 | CG11: -0.03642752468 | CH11: -0.03670123234 | CI11: -0.03697044811 | CJ11: -0.03723536781 | CK11: -0.03749611206 | CL11: -0.03775275959 | CM11: -0.03800536587 | CN11: -0.03825397374 | CO11: -0.03849861931 | CP11: -0.03873933538 | CQ11: -0.03897615328 | CR11: -0.03920910392 | CS11: -0.0394382184 | CT11: -0.03966352828 | CU11: -0.0398850658 | CV11: -0.04010286389 | CW11: -0.04031695625 | CX11: -0.0405273773 | CY11: -0.04073416223 | CZ11: -0.04093734692 | DA11: -0.04113696795 | DB11: -0.04133306254 | DC11: -0.04152566854 | DD11: -0.04171482438 | DE11: -0.04190056906 | DF11: -0.0420829421 | DG11: -0.0422619835 | DH11: -0.04243773372 | DI11: -0.04261023365 | DJ11: -0.04277952456 | DK11: -0.0429456481 | DL11: -0.04310864624 | DM11: -0.04326856123 | DN11: -0.04342543562 | DO11: -0.04357931216 | DP11: -0.04373023384 | DQ11: -0.04387824381 | DR11: -0.04402338537 | DS11: -0.04416570195 | DT11: -0.04430523706 | DU11: -0.04444203428 | DV11: -0.04457613723 | DW11: -0.04470758955 | DX11: -0.04483643486 | DY11: -0.04496271674 | DZ11: -0.04508647871 | EA11: -0.04520776422 | EB11: -0.04532661659 | EC11: -0.04544307902 | ED11: -0.04555719456 | EE11: -0.0456690061 | EF11: -0.0457785563 | EG11: -0.04588588763 | EH11: -0.04599104235 | EI11: -0.04609406242 | EJ11: -0.04619498958 | EK11: -0.04629386525 | EL11: -0.04639073056 | EM11: -0.04648562634 | EN11: -0.04657859306 | EO11: -0.04666967085 | EP11: -0.0467588995 | EQ11: -0.04684631841 | ER11: -0.04693196658 | ES11: -0.04701588264 | ET11: -0.04709810479 | EU11: -0.04717867083 | EV11: -0.04726342741
B12: SSP3-7.0 90th | C12: Hot | D12: =CONCATENATE(ROUND(_xlfn._xlws.FILTER(_xlfn.ANCHORARRAY(BO$19),($BN$19:$BN$30=50)*($BL$19:$BL$30="70H")),2)," [",ROUND(_xlfn._xlws.FILTER(_xlfn.ANCHORARRAY(BO$19),($BN$19:$BN$30=5)*($BL$19:$BL$30="70H")),2)," , ",ROUND(_xlfn._xlws.FILTER(_xlfn.ANCHORARRAY(BO$19),($BN$19:$BN$30=95)*($BL$19:$BL$30="70H")),2),"]") -> -0.04 [-0.06 , -0.01] | E12: =CONCATENATE(ROUND(_xlfn._xlws.FILTER(_xlfn.ANCHORARRAY(BP$19),($BN$19:$BN$30=50)*($BL$19:$BL$30="70H")),2)," [",ROUND(_xlfn._xlws.FILTER(_xlfn.ANCHORARRAY(BP$19),($BN$19:$BN$30=5)*($BL$19:$BL$30="70H")),2)," , ",ROUND(_xlfn._xlws.FILTER(_xlfn.ANCHORARRAY(BP$19),($BN$19:$BN$30=95)*($BL$19:$BL$30="70H")),2),"]") -> -0.04 [-0.07 , -0.02] | F12: =CONCATENATE(ROUND(_xlfn._xlws.FILTER(_xlfn.ANCHORARRAY(BQ$19),($BN$19:$BN$30=50)*($BL$19:$BL$30="70H")),2)," [",ROUND(_xlfn._xlws.FILTER(_xlfn.ANCHORARRAY(BQ$19),($BN$19:$BN$30=5)*($BL$19:$BL$30="70H")),2)," , ",ROUND(_xlfn._xlws.FILTER(_xlfn.ANCHORARRAY(BQ$19),($BN$19:$BN$30=95)*($BL$19:$BL$30="70H")),2),"]") -> -0.04 [-0.07 , -0.02] | G12: =CONCATENATE(ROUND(_xlfn._xlws.FILTER(_xlfn.ANCHORARRAY(BR$19),($BN$19:$BN$30=50)*($BL$19:$BL$30="70H")),2)," [",ROUND(_xlfn._xlws.FILTER(_xlfn.ANCHORARRAY(BR$19),($BN$19:$BN$30=5)*($BL$19:$BL$30="70H")),2)," , ",ROUND(_xlfn._xlws.FILTER(_xlfn.ANCHORARRAY(BR$19),($BN$19:$BN$30=95)*($BL$19:$BL$30="70H")),2),"]") -> -0.05 [-0.08 , -0.02] | BJ12: AFG | BK12: Afghanistan | BL12: 26 | BM12: 30 | BN12: 95 | BO12: 0.005124362075 | BP12: 0.01189781533 | BQ12: 0.02158808594 | BR12: 0.03238493455 | BS12: 0.04017448742 | BT12: 0.04565111652 | BU12: 0.0470403588 | BV12: 0.04788767409 | BW12: 0.04808028645 | BX12: 0.04791942481 | BY12: 0.04755519943 | BZ12: 0.0470673182 | CA12: 0.04650639453 | CB12: 0.04587144381 | CC12: 0.04522677841 | CD12: 0.04465083882 | CE12: 0.04504532389 | CF12: 0.044355299 | CG12: 0.04365581795 | CH12: 0.04294811107 | CI12: 0.04223291675 | CJ12: 0.04151068438 | CK12: 0.04054321411 | CL12: 0.03908662613 | CM12: 0.03835505862 | CN12: 0.03761732291 | CO12: 0.03687352015 | CP12: 0.03612374568 | CQ12: 0.03608849291 | CR12: 0.03568372707 | CS12: 0.03488369946 | CT12: 0.03408462382 | CU12: 0.03329523606 | CV12: 0.03250027918 | CW12: 0.03169987083 | CX12: 0.03089412725 | CY12: 0.0299587145 | CZ12: 0.02851746455 | DA12: 0.02770331831 | DB12: 0.0268844173 | DC12: 0.02606088271 | DD12: 0.02523283822 | DE12: 0.02440041004 | DF12: 0.02356372677 | DG12: 0.02272291939 | DH12: 0.02187812118 | DI12: 0.02102946766 | DJ12: 0.02017709652 | DK12: 0.01932114755 | DL12: 0.01846176255 | DM12: 0.01759908528 | DN12: 0.01673326138 | DO12: 0.01585547955 | DP12: 0.01497096183 | DQ12: 0.01409671984 | DR12: 0.01321993452 | DS12: 0.01234075966 | DT12: 0.01145935044 | DU12: 0.01057586333 | DV12: 0.009690455984 | DW12: 0.008803287194 | DX12: 0.007914516758 | DY12: 0.007024305404 | DZ12: 0.006132814699 | EA12: 0.005240206954 | EB12: 0.004346645126 | EC12: 0.003452292732 | ED12: 0.002557313745 | EE12: 0.001661872504 | EF12: 0.0007661336174 | EG12: -0.0001297381355 | EH12: -0.001025577898 | EI12: -0.001921220834 | EJ12: -0.002816502222 | EK12: -0.003711257555 | EL12: -0.004605322634 | EM12: -0.005498533662 | EN12: -0.006390727345 | EO12: -0.007281740979 | EP12: -0.008171412552 | EQ12: -0.009059580832 | ER12: -0.009946085463 | ES12: -0.01083076706 | ET12: -0.01171346728 | EU12: -0.01259402895 | EV12: -0.01347917551
BJ13: AFG | BK13: Afghanistan | BL13: 45 | BM13: 30 | BN13: 95 | BO13: 0.002686106844 | BP13: 0.00624770475 | BQ13: 0.01136842747 | BR13: 0.01710112879 | BS13: 0.02127795158 | BT13: 0.02420716569 | BU13: 0.02513257541 | BV13: 0.02572182673 | BW13: 0.0259786086 | BX13: 0.02605486478 | BY13: 0.0260283447 | BZ13: 0.02594029706 | CA13: 0.02581693696 | CB13: 0.02566231198 | CC13: 0.02549577867 | CD13: 0.02533186745 | CE13: 0.02548018637 | CF13: 0.02557883439 | CG13: 0.02540163131 | CH13: 0.02522261045 | CI13: 0.02504212635 | CJ13: 0.02486038199 | CK13: 0.02467749409 | CL13: 0.02449353094 | CM13: 0.02396799207 | CN13: 0.023642089 | CO13: 0.02345797759 | CP13: 0.02327289803 | CQ13: 0.02308685771 | CR13: 0.02289986258 | CS13: 0.02298199901 | CT13: 0.02305683202 | CU13: 0.02286390158 | CV13: 0.02266840892 | CW13: 0.02245749254 | CX13: 0.02226177253 | CY13: 0.0220651073 | CZ13: 0.0218675039 | DA13: 0.02166896882 | DB13: 0.02146950819 | DC13: 0.02126912796 | DD13: 0.02100319818 | DE13: 0.02052033645 | DF13: 0.02031917823 | DG13: 0.02011713584 | DH13: 0.01991421515 | DI13: 0.01971042218 | DJ13: 0.01950576304 | DK13: 0.01930024398 | DL13: 0.01909387137 | DM13: 0.01888665171 | DN13: 0.01867859159 | DO13: 0.01846969774 | DP13: 0.01825997702 | DQ13: 0.01804943639 | DR13: 0.01783808293 | DS13: 0.01762592385 | DT13: 0.01741296646 | DU13: 0.01719921821 | DV13: 0.01698468663 | DW13: 0.01676937939 | DX13: 0.01655330427 | DY13: 0.01633646917 | DZ13: 0.01611888207 | EA13: 0.0159005511 | EB13: 0.01568148447 | EC13: 0.01546169053 | ED13: 0.0152411777 | EE13: 0.01501995454 | EF13: 0.0147979941 | EG13: 0.01456738609 | EH13: 0.01434412033 | EI13: 0.01412017978 | EJ13: 0.01389557351 | EK13: 0.01367031069 | EL13: 0.01344440059 | EM13: 0.01321785257 | EN13: 0.01299067609 | EO13: 0.01276288071 | EP13: 0.01253447608 | EQ13: 0.01230547194 | ER13: 0.01207587812 | ES13: 0.01184570456 | ET13: 0.01161496126 | EU13: 0.01138365833 | EV13: 0.01115390297
BJ14: AFG | BK14: Afghanistan | BL14: 70 | BM14: 30 | BN14: 95 | BO14: 2.301988995e-05 | BP14: -0.0004603939506 | BQ14: -0.001389557211 | BR14: -0.00272509944 | BS14: -0.003674496541 | BT14: -0.003872651305 | BU14: -0.004111517169 | BV14: -0.00422653726 | BW14: -0.004264742472 | BX14: -0.004147299098 | BY14: -0.004235309936 | BZ14: -0.004259595926 | CA14: -0.00411668433 | CB14: -0.004176675755 | CC14: -0.004268350345 | CD14: -0.00428130669 | CE14: -0.00429424334 | CF14: -0.004307127007 | CG14: -0.004319934738 | CH14: -0.004332668584 | CI14: -0.004345334935 | CJ14: -0.004371922515 | CK14: -0.004384742639 | CL14: -0.004397270645 | CM14: -0.004409741494 | CN14: -0.004422155482 | CO14: -0.004445722921 | CP14: -0.004591559321 | CQ14: -0.004604281515 | CR14: -0.004616945017 | CS14: -0.004629549932 | CT14: -0.004642096338 | CU14: -0.004654584299 | CV14: -0.00466701387 | CW14: -0.004679385105 | CX14: -0.004691698058 | CY14: -0.004703952783 | CZ14: -0.004716149334 | DA14: -0.00472828777 | DB14: -0.004740368148 | DC14: -0.004752390529 | DD14: -0.004764354975 | DE14: -0.004776261551 | DF14: -0.004788110322 | DG14: -0.004799901358 | DH14: -0.004811634727 | DI14: -0.004823310503 | DJ14: -0.004834928758 | DK14: -0.004846489568 | DL14: -0.004857993011 | DM14: -0.004869439166 | DN14: -0.004880828114 | DO14: -0.004892159938 | DP14: -0.004903434723 | DQ14: -0.004914652555 | DR14: -0.004925813523 | DS14: -0.004936917716 | DT14: -0.004947965227 | DU14: -0.004958956149 | DV14: -0.004969890576 | DW14: -0.004980768607 | DX14: -0.004991590339 | DY14: -0.005002355873 | DZ14: -0.00501306531 | EA14: -0.005023718754 | EB14: -0.00503431631 | EC14: -0.005044858085 | ED14: -0.005055344187 | EE14: -0.005065774726 | EF14: -0.005076149814 | EG14: -0.005086469562 | EH14: -0.005096734087 | EI14: -0.005106943504 | EJ14: -0.00511709793 | EK14: -0.005127197484 | EL14: -0.005137242288 | EM14: -0.005147232462 | EN14: -0.005157168131 | EO14: -0.005167049418 | EP14: -0.005176876451 | EQ14: -0.005186649356 | ER14: -0.005196368263 | ES14: -0.005206033302 | ET14: -0.005215644605 | EU14: -0.005225202304 | EV14: -0.005234888543
B15: IMPORTANT: The following notes and source must be used exactly as indicated to ensure correct description of the data, attribution, and compliance with copyright requirements of sources of raw climate data. References must be added to the reference list. | BJ15: AFG | BK15: Afghanistan | BL15: 70H | BM15: 30 | BN15: 95 | BO15: 7.333993248e-05 | BP15: -0.001467581094 | BQ15: -0.004435537114 | BR15: -0.008761020392 | BS15: -0.01179742176 | BT15: -0.01251784882 | BU15: -0.01336166163 | BV15: -0.01392340196 | BW15: -0.0138881183 | BX15: -0.01406587406 | BY15: -0.01363345291 | BZ15: -0.01463038911 | CA15: -0.01387382283 | CB15: -0.01400746237 | CC15: -0.01440540729 | CD15: -0.01462813319 | CE15: -0.01474220366 | CF15: -0.0148545137 | CG15: -0.0149649977 | CH15: -0.01507366982 | CI15: -0.01518055869 | CJ15: -0.01529013264 | CK15: -0.01543599965 | CL15: -0.01553810921 | CM15: -0.01563850184 | CN15: -0.01573718964 | CO15: -0.01583418459 | CP15: -0.01592949894 | CQ15: -0.01644930263 | CR15: -0.01660305547 | CS15: -0.01669796224 | CT15: -0.01679117514 | CU15: -0.01688270859 | CV15: -0.0169725774 | CW15: -0.01706079671 | CX15: -0.017147382 | CY15: -0.0172323491 | CZ15: -0.01731571414 | DA15: -0.01739749358 | DB15: -0.01747770415 | DC15: -0.01755636287 | DD15: -0.01763348699 | DE15: -0.01770909403 | DF15: -0.01778320174 | DG15: -0.01785582806 | DH15: -0.01792699116 | DI15: -0.01799670938 | DJ15: -0.01806500121 | DK15: -0.01813188533 | DL15: -0.01819738053 | DM15: -0.01826150575 | DN15: -0.01832428003 | DO15: -0.01838572251 | DP15: -0.01844585242 | DQ15: -0.01850468906 | DR15: -0.01856225179 | DS15: -0.01861856002 | DT15: -0.01867363319 | DU15: -0.01872749077 | DV15: -0.01878015224 | DW15: -0.01883163706 | DX15: -0.0188819647 | DY15: -0.0189311546 | DZ15: -0.01897922616 | EA15: -0.01902619875 | EB15: -0.01907209167 | EC15: -0.01911692417 | ED15: -0.0191607154 | EE15: -0.01920348445 | EF15: -0.01924525032 | EG15: -0.01928603189 | EH15: -0.01932584794 | EI15: -0.01936471714 | EJ15: -0.01940265802 | EK15: -0.01943968898 | EL15: -0.01947582829 | EM15: -0.01951109406 | EN15: -0.01954550426 | EO15: -0.01957907669 | EP15: -0.01961182898 | EQ15: -0.0196437786 | ER15: -0.01967494285 | ES15: -0.01970533881 | ET15: -0.01973498342 | EU15: -0.0197638934 | EV15: -0.01979465415
BU18: m options
BL19: 26 | BN19: 5 | BO19: =_xlfn._xlws.FILTER($BN4:$EV15,(D$8=$BN$3:$EV$3)) -> 0.01151271236 | BP19: =_xlfn._xlws.FILTER($BN4:$EV15,(E$8=$BN$3:$EV$3)) -> 0.008231206193 | BQ19: =_xlfn._xlws.FILTER($BN4:$EV15,(F$8=$BN$3:$EV$3)) -> 0.002401429057 | BR19: =_xlfn._xlws.FILTER($BN4:$EV15,(G$8=$BN$3:$EV$3)) -> -0.003521639982 | BU19: 20
B20: Source: Centorrino et al. (2025) using Kahn et al. (2021), and CMIP6 data (Copernicus Climate Change Service, Climate Data Store, 2021) processed by Massetti and Tagklis (2025). | BL20: 45 | BN20: 5 | BO20: 0.006527409513 | BP20: 0.005862535324 | BQ20: 0.004521398495 | BR20: 0.002975913965 | BU20: 30
BL21: 70 | BN21: 5 | BO21: -0.01668418487 | BP21: -0.01808962043 | BQ21: -0.01905077801 | BR21: -0.02008825001 | BU21: 40
BL22: 70H | BN22: 5 | BO22: -0.05720025289 | BP22: -0.06659673794 | BQ22: -0.07348209906 | BR22: -0.07824631765 | BU22: 50
B23: =CONCATENATE($BL$33,$D$2,$BL$34,$BL$37,$BL$35) -> Notes: The impact of the warming trend for each scenario is estimated using Kahn et al. (2021) under the assumption that adaptation can offset the warming trend after 30 years. 95 percent bootstrap confidence intervals in brackets. Impacts are measured as percentage points deviations of real GDP growth relative to a reference scenario in which the warming trend follows the historical pattern. Country specific warming trends are calculated for each scenario using the bias-adjusted ensemble median projections of temperature anomalies with respect to 1985-2014 over 31-year time periods centered around each year using CMIP6 data. The SSP1-2.6 scenario is in line with the Paris goal to keep global mean temperature increase below 2 ºC with respect to pre-industrial times. SSP2-4.5 represents continuation of present trends. SSP3-7.0 is a high emission scenario. SSP3-7. 90th p. uses the 90th percentile of the SSP3-7.0 ensemble instead of the median to provide a high-emission, fast-warming, pessimistic case. | BL23: 26 | BN23: 50 | BO23: 0.02792136806 | BP23: 0.01879224921 | BQ23: 0.005590749932 | BR23: -0.008266822948
BL24: 45 | BN24: 50 | BO24: 0.01583795589 | BP24: 0.0135867604 | BQ24: 0.01042934744 | BR24: 0.006961300763
BL25: 70 | BN25: 50 | BO25: -0.01039987948 | BP25: -0.01101759047 | BQ25: -0.01171164649 | BR25: -0.01232704008
BL26: 70H | BN26: 50 | BO26: -0.03557478553 | BP26: -0.0405273773 | BQ26: -0.04470758955 | BR26: -0.04726342741
BL27: 26 | BN27: 95 | BO27: 0.04465083882 | BP27: 0.03089412725 | BQ27: 0.008803287194 | BR27: -0.01347917551
BL28: 45 | BN28: 95 | BO28: 0.02533186745 | BP28: 0.02226177253 | BQ28: 0.01676937939 | BR28: 0.01115390297
J29: IMPORTANT: The following notes and source must be used exactly as indicated to ensure correct description of the data, attribution, and compliance with copyright requirements of sources of raw climate data. References must be added to the reference list. | X29: IMPORTANT: The following notes and source must be used exactly as indicated to ensure correct description of the data, attribution, and compliance with copyright requirements of sources of raw climate data. References must be added to the reference list. | BL29: 70 | BN29: 95 | BO29: -0.00428130669 | BP29: -0.004691698058 | BQ29: -0.004980768607 | BR29: -0.005234888543
BL30: 70H | BN30: 95 | BO30: -0.01462813319 | BP30: -0.017147382 | BQ30: -0.01883163706 | BR30: -0.01979465415
B33: References: Samuele Centorrino, Emanuele Massetti, Mehdi Raissi, and Filippos Tagklis. "How to Include the Effects of Rising Temperatures in Long-Term GDP Projections", IMF How To Notes 2025, 009 (2025), https://doi.org/10.5089/9798229030021.061 Kahn, Matthew E., Kamiar Mohaddes, Ryan N. C. Ng, M. Hashem Pesaran, Mehdi Raissi, and Jui-Chung Yang. 2021. “Long-Term Macroeconomic Effects of Climate Change: A Cross-Country Analysis.” Energy Economics 104: 105624. https://doi.org/https://doi.org/10.1016/j.eneco.2021.105624. Copernicus Climate Change Service, Climate Data Store, (2021). CMIP6 climate projections. Copernicus Climate Change Service (C3S) Climate Data Store (CDS). DOI: 10.24381/cds.c866074c Massetti, E. and F. Tagklis (2025). FADCP Climate Dataset: Temperature and Precipitation. Reference Guide, Fiscal Affairs Department, International Monetary Fund, Washington DC. | BL33: Notes: The impact of the warming trend for each scenario is estimated using Kahn et al. (2021) under the assumption that adaptation can offset the warming trend after
J34: Source: Centorrino et al. (2025) using Kahn et al. (2021), and CMIP6 data (Copernicus Climate Change Service, Climate Data Store, 2021) processed by Massetti and Tagklis (2025). | X34: Source: Centorrino et al. (2025) using Kahn et al. (2021), and CMIP6 data (Copernicus Climate Change Service, Climate Data Store, 2021) processed by Massetti and Tagklis (2025). | BL34: years.
BL35: Impacts are measured as percentage points deviations of real GDP growth relative to a reference scenario in which the warming trend follows the historical pattern. Country specific warming trends are calculated for each scenario using the bias-adjusted ensemble median projections of temperature anomalies with respect to 1985-2014 over 31-year time periods centered around each year using CMIP6 data. The SSP1-2.6 scenario is in line with the Paris goal to keep global mean temperature increase below 2 ºC with respect to pre-industrial times. SSP2-4.5 represents continuation of present trends. SSP3-7.0 is a high emission scenario. SSP3-7. 90th p. uses the 90th percentile of the SSP3-7.0 ensemble instead of the median to provide a high-emission, fast-warming, pessimistic case.
BL36: Dotted lines indicate 95 percent bootstrap confidence intervals.
J37: =CONCATENATE($BL$33,$D$2,$BL$34,$BL$35) -> Notes: The impact of the warming trend for each scenario is estimated using Kahn et al. (2021) under the assumption that adaptation can offset the warming trend after 30 years. Impacts are measured as percentage points deviations of real GDP growth relative to a reference scenario in which the warming trend follows the historical pattern. Country specific warming trends are calculated for each scenario using the bias-adjusted ensemble median projections of temperature anomalies with respect to 1985-2014 over 31-year time periods centered around each year using CMIP6 data. The SSP1-2.6 scenario is in line with the Paris goal to keep global mean temperature increase below 2 ºC with respect to pre-industrial times. SSP2-4.5 represents continuation of present trends. SSP3-7.0 is a high emission scenario. SSP3-7. 90th p. uses the 90th percentile of the SSP3-7.0 ensemble instead of the median to provide a high-emission, fast-warming, pessimistic case. | X37: =CONCATENATE($BL$33,$D$2,$BL$34,$BL$36,$BL$35) -> Notes: The impact of the warming trend for each scenario is estimated using Kahn et al. (2021) under the assumption that adaptation can offset the warming trend after 30 years. Dotted lines indicate 95 percent bootstrap confidence intervals. Impacts are measured as percentage points deviations of real GDP growth relative to a reference scenario in which the warming trend follows the historical pattern. Country specific warming trends are calculated for each scenario using the bias-adjusted ensemble median projections of temperature anomalies with respect to 1985-2014 over 31-year time periods centered around each year using CMIP6 data. The SSP1-2.6 scenario is in line with the Paris goal to keep global mean temperature increase below 2 ºC with respect to pre-industrial times. SSP2-4.5 represents continuation of present trends. SSP3-7.0 is a high emission scenario. SSP3-7. 90th p. uses the 90th percentile of the SSP3-7.0 ensemble instead of the median to provide a high-emission, fast-warming, pessimistic case. | BL37: 95 percent bootstrap confidence intervals in brackets.
AL39: IMPORTANT: The following notes and source must be used exactly as indicated to ensure correct description of the data, attribution, and compliance with copyright requirements of sources of raw climate data. References must be added to the reference list.
AL44: Source: Centorrino et al. (2025) using Kahn et al. (2021), and CMIP6 data (Copernicus Climate Change Service, Climate Data Store, 2021) processed by Massetti and Tagklis (2025).
J46: References: Samuele Centorrino, Emanuele Massetti, Mehdi Raissi, and Filippos Tagklis. "How to Include the Effects of Rising Temperatures in Long-Term GDP Projections", IMF How To Notes 2025, 009 (2025), https://doi.org/10.5089/9798229030021.061 Kahn, Matthew E., Kamiar Mohaddes, Ryan N. C. Ng, M. Hashem Pesaran, Mehdi Raissi, and Jui-Chung Yang. 2021. “Long-Term Macroeconomic Effects of Climate Change: A Cross-Country Analysis.” Energy Economics 104: 105624. https://doi.org/https://doi.org/10.1016/j.eneco.2021.105624. Copernicus Climate Change Service, Climate Data Store, (2021). CMIP6 climate projections. Copernicus Climate Change Service (C3S) Climate Data Store (CDS). DOI: 10.24381/cds.c866074c Massetti, E. and F. Tagklis (2025). FADCP Climate Dataset: Temperature and Precipitation. Reference Guide, Fiscal Affairs Department, International Monetary Fund, Washington DC. | X46: References: Centorrino, S., E. Massetti, M. Raissi, and F. Tagklis (2025). How to Include the Effects of Rising Temperatures in Macro-Fiscal Projections. International Monetary Fund, How to Note ###. Kahn, Matthew E., Kamiar Mohaddes, Ryan N. C. Ng, M. Hashem Pesaran, Mehdi Raissi, and Jui-Chung Yang. 2021. “Long-Term Macroeconomic Effects of Climate Change: A Cross-Country Analysis.” Energy Economics 104: 105624. https://doi.org/https://doi.org/10.1016/j.eneco.2021.105624. Copernicus Climate Change Service, Climate Data Store, (2021). CMIP6 climate projections. Copernicus Climate Change Service (C3S) Climate Data Store (CDS). DOI: 10.24381/cds.c866074c Massetti, E. and F. Tagklis (2025). FADCP Climate Dataset: Temperature and Precipitation. Reference Guide, Fiscal Affairs Department, International Monetary Fund, Washington DC.
AL47: =CONCATENATE($BL$33,$D$2,$BL$34,$BL$36,$BL$35) -> Notes: The impact of the warming trend for each scenario is estimated using Kahn et al. (2021) under the assumption that adaptation can offset the warming trend after 30 years. Dotted lines indicate 95 percent bootstrap confidence intervals. Impacts are measured as percentage points deviations of real GDP growth relative to a reference scenario in which the warming trend follows the historical pattern. Country specific warming trends are calculated for each scenario using the bias-adjusted ensemble median projections of temperature anomalies with respect to 1985-2014 over 31-year time periods centered around each year using CMIP6 data. The SSP1-2.6 scenario is in line with the Paris goal to keep global mean temperature increase below 2 ºC with respect to pre-industrial times. SSP2-4.5 represents continuation of present trends. SSP3-7.0 is a high emission scenario. SSP3-7. 90th p. uses the 90th percentile of the SSP3-7.0 ensemble instead of the median to provide a high-emission, fast-warming, pessimistic case.
AL56: References: Centorrino, S., E. Massetti, M. Raissi, and F. Tagklis (2025). How to Include the Effects of Rising Temperatures in Macro-Fiscal Projections. International Monetary Fund, How to Note ###. Kahn, Matthew E., Kamiar Mohaddes, Ryan N. C. Ng, M. Hashem Pesaran, Mehdi Raissi, and Jui-Chung Yang. 2021. “Long-Term Macroeconomic Effects of Climate Change: A Cross-Country Analysis.” Energy Economics 104: 105624. https://doi.org/https://doi.org/10.1016/j.eneco.2021.105624. Copernicus Climate Change Service, Climate Data Store, (2021). CMIP6 climate projections. Copernicus Climate Change Service (C3S) Climate Data Store (CDS). DOI: 10.24381/cds.c866074c Massetti, E. and F. Tagklis (2025). FADCP Climate Dataset: Temperature and Precipitation. Reference Guide, Fiscal Affairs Department, International Monetary Fund, Washington DC.

Sheet adaptation
B1: Selected Country: | C1: ='data-countries'!F3 -> Afghanistan | W1: THIS FIGURE USES DIFFERENT SCALES FOR THE VERTICAL AXIS IN EACH PANEL TO MAGNIFY DIFFERENCES
BU2: Total | CC2: Share of GDP
BO3: ISO3 | BP3: Country | BQ3: Strategy | BR3: m | BS3: p | BT3: 2015 | BU3: 2016 | BV3: 2017 | BW3: 2018 | BX3: 2019 | BY3: 2020 | BZ3: 2021 | CA3: 2022 | CB3: 2023 | CC3: 2024 | CD3: 2025 | CE3: 2026 | CF3: 2027 | CG3: 2028 | CH3: 2029 | CI3: 2030 | CJ3: 2031 | CK3: 2032 | CL3: 2033 | CM3: 2034 | CN3: 2035 | CO3: 2036 | CP3: 2037 | CQ3: 2038 | CR3: 2039 | CS3: 2040 | CT3: 2041 | CU3: 2042 | CV3: 2043 | CW3: 2044 | CX3: 2045 | CY3: 2046 | CZ3: 2047 | DA3: 2048 | DB3: 2049 | DC3: 2050 | DD3: 2051 | DE3: 2052 | DF3: 2053 | DG3: 2054 | DH3: 2055 | DI3: 2056 | DJ3: 2057 | DK3: 2058 | DL3: 2059 | DM3: 2060 | DN3: 2061 | DO3: 2062 | DP3: 2063 | DQ3: 2064 | DR3: 2065 | DS3: 2066 | DT3: 2067 | DU3: 2068 | DV3: 2069 | DW3: 2070 | DX3: 2071 | DY3: 2072 | DZ3: 2073 | EA3: 2074 | EB3: 2075 | EC3: 2076 | ED3: 2077 | EE3: 2078 | EF3: 2079 | EG3: 2080 | EH3: 2081 | EI3: 2082 | EJ3: 2083 | EK3: 2084 | EL3: 2085 | EM3: 2086 | EN3: 2087 | EO3: 2088 | EP3: 2089 | EQ3: 2090 | ER3: 2091 | ES3: 2092 | ET3: 2093 | EU3: 2094 | EV3: 2095 | EW3: 2096 | EX3: 2097 | EY3: 2098 | EZ3: 2099 | FA3: 2100
B4: ="Impact of Warming Trends on Real GDP" -> Impact of Warming Trends on Real GDP | J4: =CONCATENATE("Impact of Warming Trends on Real GDP, ", 'data-countries'!$F$3) -> Impact of Warming Trends on Real GDP, Afghanistan | W4: =CONCATENATE("Impact of Warming Trends on Real GDP, ", 'data-countries'!$F$3) -> Impact of Warming Trends on Real GDP, Afghanistan | BO4: =_xlfn._xlws.FILTER('data-gdp-level'!A$2:A$10000,('data-countries'!$G$3='data-gdp-level'!$A$2:$A$10000)*('data-gdp-level'!$E$2:$E$10000=50)) -> AFG | BP4: =_xlfn._xlws.FILTER('data-gdp-level'!B$2:B$10000,('data-countries'!$G$3='data-gdp-level'!$A$2:$A$10000)*('data-gdp-level'!$E$2:$E$10000=50)) -> Afghanistan | BQ4: =_xlfn._xlws.FILTER('data-gdp-level'!C$2:C$10000,('data-countries'!$G$3='data-gdp-level'!$A$2:$A$10000)*('data-gdp-level'!$E$2:$E$10000=50)) -> 26 | BR4: =_xlfn._xlws.FILTER('data-gdp-level'!D$2:D$10000,('data-countries'!$G$3='data-gdp-level'!$A$2:$A$10000)*('data-gdp-level'!$E$2:$E$10000=50)) -> 20 | BS4: =_xlfn._xlws.FILTER('data-gdp-level'!E$2:E$10000,('data-countries'!$G$3='data-gdp-level'!$A$2:$A$10000)*('data-gdp-level'!$E$2:$E$10000=50)) -> 50 | BT4: =_xlfn._xlws.FILTER('data-gdp-level'!F$2:F$10000,('data-countries'!$G$3='data-gdp-level'!$A$2:$A$10000)*('data-gdp-level'!$E$2:$E$10000=50)) -> 0.001192535316 | BU4: =_xlfn._xlws.FILTER('data-gdp-level'!G$2:G$10000,('data-countries'!$G$3='data-gdp-level'!$A$2:$A$10000)*('data-gdp-level'!$E$2:$E$10000=50)) -> 0.004039446445 | BV4: =_xlfn._xlws.FILTER('data-gdp-level'!H$2:H$10000,('data-countries'!$G$3='data-gdp-level'!$A$2:$A$10000)*('data-gdp-level'!$E$2:$E$10000=50)) -> 0.009475600895 | BW4: =_xlfn._xlws.FILTER('data-gdp-level'!I$2:I$10000,('data-countries'!$G$3='data-gdp-level'!$A$2:$A$10000)*('data-gdp-level'!$E$2:$E$10000=50)) -> 0.01828690692 | BX4: =_xlfn._xlws.FILTER('data-gdp-level'!J$2:J$10000,('data-countries'!$G$3='data-gdp-level'!$A$2:$A$10000)*('data-gdp-level'!$E$2:$E$10000=50)) -> 0.02998225567 | BY4: =_xlfn._xlws.FILTER('data-gdp-level'!K$2:K$10000,('data-countries'!$G$3='data-gdp-level'!$A$2:$A$10000)*('data-gdp-level'!$E$2:$E$10000=50)) -> 0.04272568653 | BZ4: =_xlfn._xlws.FILTER('data-gdp-level'!L$2:L$10000,('data-countries'!$G$3='data-gdp-level'!$A$2:$A$10000)*('data-gdp-level'!$E$2:$E$10000=50)) -> 0.05603383164 | CA4: =_xlfn._xlws.FILTER('data-gdp-level'!M$2:M$10000,('data-countries'!$G$3='data-gdp-level'!$A$2:$A$10000)*('data-gdp-level'!$E$2:$E$10000=50)) -> 0.0696056918 | CB4: =_xlfn._xlws.FILTER('data-gdp-level'!N$2:N$10000,('data-countries'!$G$3='data-gdp-level'!$A$2:$A$10000)*('data-gdp-level'!$E$2:$E$10000=50)) -> 0.08322345778 | CC4: =_xlfn._xlws.FILTER('data-gdp-level'!O$2:O$10000,('data-countries'!$G$3='data-gdp-level'!$A$2:$A$10000)*('data-gdp-level'!$E$2:$E$10000=50)) -> 0.09678216144 | CD4: =_xlfn._xlws.FILTER('data-gdp-level'!P$2:P$10000,('data-countries'!$G$3='data-gdp-level'!$A$2:$A$10000)*('data-gdp-level'!$E$2:$E$10000=50)) -> 0.1102206782 | CE4: =_xlfn._xlws.FILTER('data-gdp-level'!Q$2:Q$10000,('data-countries'!$G$3='data-gdp-level'!$A$2:$A$10000)*('data-gdp-level'!$E$2:$E$10000=50)) -> 0.1235025569 | CF4: =_xlfn._xlws.FILTER('data-gdp-level'!R$2:R$10000,('data-countries'!$G$3='data-gdp-level'!$A$2:$A$10000)*('data-gdp-level'!$E$2:$E$10000=50)) -> 0.1366073415 | CG4: =_xlfn._xlws.FILTER('data-gdp-level'!S$2:S$10000,('data-countries'!$G$3='data-gdp-level'!$A$2:$A$10000)*('data-gdp-level'!$E$2:$E$10000=50)) -> 0.1495229397 | CH4: =_xlfn._xlws.FILTER('data-gdp-level'!T$2:T$10000,('data-countries'!$G$3='data-gdp-level'!$A$2:$A$10000)*('data-gdp-level'!$E$2:$E$10000=50)) -> 0.1622420039 | CI4: =_xlfn._xlws.FILTER('data-gdp-level'!U$2:U$10000,('data-countries'!$G$3='data-gdp-level'!$A$2:$A$10000)*('data-gdp-level'!$E$2:$E$10000=50)) -> 0.1747599354 | CJ4: =_xlfn._xlws.FILTER('data-gdp-level'!V$2:V$10000,('data-countries'!$G$3='data-gdp-level'!$A$2:$A$10000)*('data-gdp-level'!$E$2:$E$10000=50)) -> 0.1870736713 | CK4: =_xlfn._xlws.FILTER('data-gdp-level'!W$2:W$10000,('data-countries'!$G$3='data-gdp-level'!$A$2:$A$10000)*('data-gdp-level'!$E$2:$E$10000=50)) -> 0.1991810236 | CL4: =_xlfn._xlws.FILTER('data-gdp-level'!X$2:X$10000,('data-countries'!$G$3='data-gdp-level'!$A$2:$A$10000)*('data-gdp-level'!$E$2:$E$10000=50)) -> 0.2110803065 | CM4: =_xlfn._xlws.FILTER('data-gdp-level'!Y$2:Y$10000,('data-countries'!$G$3='data-gdp-level'!$A$2:$A$10000)*('data-gdp-level'!$E$2:$E$10000=50)) -> 0.2227701238 | CN4: =_xlfn._xlws.FILTER('data-gdp-level'!Z$2:Z$10000,('data-countries'!$G$3='data-gdp-level'!$A$2:$A$10000)*('data-gdp-level'!$E$2:$E$10000=50)) -> 0.2342492494 | CO4: =_xlfn._xlws.FILTER('data-gdp-level'!AA$2:AA$10000,('data-countries'!$G$3='data-gdp-level'!$A$2:$A$10000)*('data-gdp-level'!$E$2:$E$10000=50)) -> 0.24551656 | CP4: =_xlfn._xlws.FILTER('data-gdp-level'!AB$2:AB$10000,('data-countries'!$G$3='data-gdp-level'!$A$2:$A$10000)*('data-gdp-level'!$E$2:$E$10000=50)) -> 0.2565709976 | CQ4: =_xlfn._xlws.FILTER('data-gdp-level'!AC$2:AC$10000,('data-countries'!$G$3='data-gdp-level'!$A$2:$A$10000)*('data-gdp-level'!$E$2:$E$10000=50)) -> 0.2674115476 | CR4: =_xlfn._xlws.FILTER('data-gdp-level'!AD$2:AD$10000,('data-countries'!$G$3='data-gdp-level'!$A$2:$A$10000)*('data-gdp-level'!$E$2:$E$10000=50)) -> 0.2780372273 | CS4: =_xlfn._xlws.FILTER('data-gdp-level'!AE$2:AE$10000,('data-countries'!$G$3='data-gdp-level'!$A$2:$A$10000)*('data-gdp-level'!$E$2:$E$10000=50)) -> 0.2884470791 | CT4: =_xlfn._xlws.FILTER('data-gdp-level'!AF$2:AF$10000,('data-countries'!$G$3='data-gdp-level'!$A$2:$A$10000)*('data-gdp-level'!$E$2:$E$10000=50)) -> 0.2986401671 | CU4: =_xlfn._xlws.FILTER('data-gdp-level'!AG$2:AG$10000,('data-countries'!$G$3='data-gdp-level'!$A$2:$A$10000)*('data-gdp-level'!$E$2:$E$10000=50)) -> 0.3086155748 | CV4: =_xlfn._xlws.FILTER('data-gdp-level'!AH$2:AH$10000,('data-countries'!$G$3='data-gdp-level'!$A$2:$A$10000)*('data-gdp-level'!$E$2:$E$10000=50)) -> 0.3183724043 | CW4: =_xlfn._xlws.FILTER('data-gdp-level'!AI$2:AI$10000,('data-countries'!$G$3='data-gdp-level'!$A$2:$A$10000)*('data-gdp-level'!$E$2:$E$10000=50)) -> 0.327909776 | CX4: =_xlfn._xlws.FILTER('data-gdp-level'!AJ$2:AJ$10000,('data-countries'!$G$3='data-gdp-level'!$A$2:$A$10000)*('data-gdp-level'!$E$2:$E$10000=50)) -> 0.3372268281 | CY4: =_xlfn._xlws.FILTER('data-gdp-level'!AK$2:AK$10000,('data-countries'!$G$3='data-gdp-level'!$A$2:$A$10000)*('data-gdp-level'!$E$2:$E$10000=50)) -> 0.3463227169 | CZ4: =_xlfn._xlws.FILTER('data-gdp-level'!AL$2:AL$10000,('data-countries'!$G$3='data-gdp-level'!$A$2:$A$10000)*('data-gdp-level'!$E$2:$E$10000=50)) -> 0.3551966166 | DA4: =_xlfn._xlws.FILTER('data-gdp-level'!AM$2:AM$10000,('data-countries'!$G$3='data-gdp-level'!$A$2:$A$10000)*('data-gdp-level'!$E$2:$E$10000=50)) -> 0.3638477199 | DB4: =_xlfn._xlws.FILTER('data-gdp-level'!AN$2:AN$10000,('data-countries'!$G$3='data-gdp-level'!$A$2:$A$10000)*('data-gdp-level'!$E$2:$E$10000=50)) -> 0.3722752378 | DC4: =_xlfn._xlws.FILTER('data-gdp-level'!AO$2:AO$10000,('data-countries'!$G$3='data-gdp-level'!$A$2:$A$10000)*('data-gdp-level'!$E$2:$E$10000=50)) -> 0.3804784 | DD4: =_xlfn._xlws.FILTER('data-gdp-level'!AP$2:AP$10000,('data-countries'!$G$3='data-gdp-level'!$A$2:$A$10000)*('data-gdp-level'!$E$2:$E$10000=50)) -> 0.3884564547 | DE4: =_xlfn._xlws.FILTER('data-gdp-level'!AQ$2:AQ$10000,('data-countries'!$G$3='data-gdp-level'!$A$2:$A$10000)*('data-gdp-level'!$E$2:$E$10000=50)) -> 0.3962086696 | DF4: =_xlfn._xlws.FILTER('data-gdp-level'!AR$2:AR$10000,('data-countries'!$G$3='data-gdp-level'!$A$2:$A$10000)*('data-gdp-level'!$E$2:$E$10000=50)) -> 0.4037343312 | DG4: =_xlfn._xlws.FILTER('data-gdp-level'!AS$2:AS$10000,('data-countries'!$G$3='data-gdp-level'!$A$2:$A$10000)*('data-gdp-level'!$E$2:$E$10000=50)) -> 0.4110327456 | DH4: =_xlfn._xlws.FILTER('data-gdp-level'!AT$2:AT$10000,('data-countries'!$G$3='data-gdp-level'!$A$2:$A$10000)*('data-gdp-level'!$E$2:$E$10000=50)) -> 0.4181032384 | DI4: =_xlfn._xlws.FILTER('data-gdp-level'!AU$2:AU$10000,('data-countries'!$G$3='data-gdp-level'!$A$2:$A$10000)*('data-gdp-level'!$E$2:$E$10000=50)) -> 0.4249451552 | DJ4: =_xlfn._xlws.FILTER('data-gdp-level'!AV$2:AV$10000,('data-countries'!$G$3='data-gdp-level'!$A$2:$A$10000)*('data-gdp-level'!$E$2:$E$10000=50)) -> 0.4315578613 | DK4: =_xlfn._xlws.FILTER('data-gdp-level'!AW$2:AW$10000,('data-countries'!$G$3='data-gdp-level'!$A$2:$A$10000)*('data-gdp-level'!$E$2:$E$10000=50)) -> 0.4379407423 | DL4: =_xlfn._xlws.FILTER('data-gdp-level'!AX$2:AX$10000,('data-countries'!$G$3='data-gdp-level'!$A$2:$A$10000)*('data-gdp-level'!$E$2:$E$10000=50)) -> 0.4440932039 | DM4: =_xlfn._xlws.FILTER('data-gdp-level'!AY$2:AY$10000,('data-countries'!$G$3='data-gdp-level'!$A$2:$A$10000)*('data-gdp-level'!$E$2:$E$10000=50)) -> 0.4500146726 | DN4: =_xlfn._xlws.FILTER('data-gdp-level'!AZ$2:AZ$10000,('data-countries'!$G$3='data-gdp-level'!$A$2:$A$10000)*('data-gdp-level'!$E$2:$E$10000=50)) -> 0.4557045953 | DO4: =_xlfn._xlws.FILTER('data-gdp-level'!BA$2:BA$10000,('data-countries'!$G$3='data-gdp-level'!$A$2:$A$10000)*('data-gdp-level'!$E$2:$E$10000=50)) -> 0.4611624397 | DP4: =_xlfn._xlws.FILTER('data-gdp-level'!BB$2:BB$10000,('data-countries'!$G$3='data-gdp-level'!$A$2:$A$10000)*('data-gdp-level'!$E$2:$E$10000=50)) -> 0.4663876946 | DQ4: =_xlfn._xlws.FILTER('data-gdp-level'!BC$2:BC$10000,('data-countries'!$G$3='data-gdp-level'!$A$2:$A$10000)*('data-gdp-level'!$E$2:$E$10000=50)) -> 0.4713798697 | DR4: =_xlfn._xlws.FILTER('data-gdp-level'!BD$2:BD$10000,('data-countries'!$G$3='data-gdp-level'!$A$2:$A$10000)*('data-gdp-level'!$E$2:$E$10000=50)) -> 0.4761384961 | DS4: =_xlfn._xlws.FILTER('data-gdp-level'!BE$2:BE$10000,('data-countries'!$G$3='data-gdp-level'!$A$2:$A$10000)*('data-gdp-level'!$E$2:$E$10000=50)) -> 0.4806631261 | DT4: =_xlfn._xlws.FILTER('data-gdp-level'!BF$2:BF$10000,('data-countries'!$G$3='data-gdp-level'!$A$2:$A$10000)*('data-gdp-level'!$E$2:$E$10000=50)) -> 0.4849533335 | DU4: =_xlfn._xlws.FILTER('data-gdp-level'!BG$2:BG$10000,('data-countries'!$G$3='data-gdp-level'!$A$2:$A$10000)*('data-gdp-level'!$E$2:$E$10000=50)) -> 0.4890087137 | DV4: =_xlfn._xlws.FILTER('data-gdp-level'!BH$2:BH$10000,('data-countries'!$G$3='data-gdp-level'!$A$2:$A$10000)*('data-gdp-level'!$E$2:$E$10000=50)) -> 0.492828884 | DW4: =_xlfn._xlws.FILTER('data-gdp-level'!BI$2:BI$10000,('data-countries'!$G$3='data-gdp-level'!$A$2:$A$10000)*('data-gdp-level'!$E$2:$E$10000=50)) -> 0.4964134833 | DX4: =_xlfn._xlws.FILTER('data-gdp-level'!BJ$2:BJ$10000,('data-countries'!$G$3='data-gdp-level'!$A$2:$A$10000)*('data-gdp-level'!$E$2:$E$10000=50)) -> 0.4997621726 | DY4: =_xlfn._xlws.FILTER('data-gdp-level'!BK$2:BK$10000,('data-countries'!$G$3='data-gdp-level'!$A$2:$A$10000)*('data-gdp-level'!$E$2:$E$10000=50)) -> 0.5028746347 | DZ4: =_xlfn._xlws.FILTER('data-gdp-level'!BL$2:BL$10000,('data-countries'!$G$3='data-gdp-level'!$A$2:$A$10000)*('data-gdp-level'!$E$2:$E$10000=50)) -> 0.5057505746 | EA4: =_xlfn._xlws.FILTER('data-gdp-level'!BM$2:BM$10000,('data-countries'!$G$3='data-gdp-level'!$A$2:$A$10000)*('data-gdp-level'!$E$2:$E$10000=50)) -> 0.5083897197 | EB4: =_xlfn._xlws.FILTER('data-gdp-level'!BN$2:BN$10000,('data-countries'!$G$3='data-gdp-level'!$A$2:$A$10000)*('data-gdp-level'!$E$2:$E$10000=50)) -> 0.5107918195 | EC4: =_xlfn._xlws.FILTER('data-gdp-level'!BO$2:BO$10000,('data-countries'!$G$3='data-gdp-level'!$A$2:$A$10000)*('data-gdp-level'!$E$2:$E$10000=50)) -> 0.5129566457 | ED4: =_xlfn._xlws.FILTER('data-gdp-level'!BP$2:BP$10000,('data-countries'!$G$3='data-gdp-level'!$A$2:$A$10000)*('data-gdp-level'!$E$2:$E$10000=50)) -> 0.5148839927 | EE4: =_xlfn._xlws.FILTER('data-gdp-level'!BQ$2:BQ$10000,('data-countries'!$G$3='data-gdp-level'!$A$2:$A$10000)*('data-gdp-level'!$E$2:$E$10000=50)) -> 0.5165736773 | EF4: =_xlfn._xlws.FILTER('data-gdp-level'!BR$2:BR$10000,('data-countries'!$G$3='data-gdp-level'!$A$2:$A$10000)*('data-gdp-level'!$E$2:$E$10000=50)) -> 0.5180255385 | EG4: =_xlfn._xlws.FILTER('data-gdp-level'!BS$2:BS$10000,('data-countries'!$G$3='data-gdp-level'!$A$2:$A$10000)*('data-gdp-level'!$E$2:$E$10000=50)) -> 0.5192394384 | EH4: =_xlfn._xlws.FILTER('data-gdp-level'!BT$2:BT$10000,('data-countries'!$G$3='data-gdp-level'!$A$2:$A$10000)*('data-gdp-level'!$E$2:$E$10000=50)) -> 0.5202152614 | EI4: =_xlfn._xlws.FILTER('data-gdp-level'!BU$2:BU$10000,('data-countries'!$G$3='data-gdp-level'!$A$2:$A$10000)*('data-gdp-level'!$E$2:$E$10000=50)) -> 0.5209529144 | EJ4: =_xlfn._xlws.FILTER('data-gdp-level'!BV$2:BV$10000,('data-countries'!$G$3='data-gdp-level'!$A$2:$A$10000)*('data-gdp-level'!$E$2:$E$10000=50)) -> 0.5214523272 | EK4: =_xlfn._xlws.FILTER('data-gdp-level'!BW$2:BW$10000,('data-countries'!$G$3='data-gdp-level'!$A$2:$A$10000)*('data-gdp-level'!$E$2:$E$10000=50)) -> 0.5217134524 | EL4: =_xlfn._xlws.FILTER('data-gdp-level'!BX$2:BX$10000,('data-countries'!$G$3='data-gdp-level'!$A$2:$A$10000)*('data-gdp-level'!$E$2:$E$10000=50)) -> 0.5217362649 | EM4: =_xlfn._xlws.FILTER('data-gdp-level'!BY$2:BY$10000,('data-countries'!$G$3='data-gdp-level'!$A$2:$A$10000)*('data-gdp-level'!$E$2:$E$10000=50)) -> 0.5215207626 | EN4: =_xlfn._xlws.FILTER('data-gdp-level'!BZ$2:BZ$10000,('data-countries'!$G$3='data-gdp-level'!$A$2:$A$10000)*('data-gdp-level'!$E$2:$E$10000=50)) -> 0.5210669661 | EO4: =_xlfn._xlws.FILTER('data-gdp-level'!CA$2:CA$10000,('data-countries'!$G$3='data-gdp-level'!$A$2:$A$10000)*('data-gdp-level'!$E$2:$E$10000=50)) -> 0.5203749187 | EP4: =_xlfn._xlws.FILTER('data-gdp-level'!CB$2:CB$10000,('data-countries'!$G$3='data-gdp-level'!$A$2:$A$10000)*('data-gdp-level'!$E$2:$E$10000=50)) -> 0.5194446861 | EQ4: =_xlfn._xlws.FILTER('data-gdp-level'!CC$2:CC$10000,('data-countries'!$G$3='data-gdp-level'!$A$2:$A$10000)*('data-gdp-level'!$E$2:$E$10000=50)) -> 0.5182763572 | ER4: =_xlfn._xlws.FILTER('data-gdp-level'!CD$2:CD$10000,('data-countries'!$G$3='data-gdp-level'!$A$2:$A$10000)*('data-gdp-level'!$E$2:$E$10000=50)) -> 0.516870043 | ES4: =_xlfn._xlws.FILTER('data-gdp-level'!CE$2:CE$10000,('data-countries'!$G$3='data-gdp-level'!$A$2:$A$10000)*('data-gdp-level'!$E$2:$E$10000=50)) -> 0.5152258774 | ET4: =_xlfn._xlws.FILTER('data-gdp-level'!CF$2:CF$10000,('data-countries'!$G$3='data-gdp-level'!$A$2:$A$10000)*('data-gdp-level'!$E$2:$E$10000=50)) -> 0.513344017 | EU4: =_xlfn._xlws.FILTER('data-gdp-level'!CG$2:CG$10000,('data-countries'!$G$3='data-gdp-level'!$A$2:$A$10000)*('data-gdp-level'!$E$2:$E$10000=50)) -> 0.5112246406 | EV4: =_xlfn._xlws.FILTER('data-gdp-level'!CH$2:CH$10000,('data-countries'!$G$3='data-gdp-level'!$A$2:$A$10000)*('data-gdp-level'!$E$2:$E$10000=50)) -> 0.5088679498 | EW4: =_xlfn._xlws.FILTER('data-gdp-level'!CI$2:CI$10000,('data-countries'!$G$3='data-gdp-level'!$A$2:$A$10000)*('data-gdp-level'!$E$2:$E$10000=50)) -> 0.5062741683 | EX4: =_xlfn._xlws.FILTER('data-gdp-level'!CJ$2:CJ$10000,('data-countries'!$G$3='data-gdp-level'!$A$2:$A$10000)*('data-gdp-level'!$E$2:$E$10000=50)) -> 0.5034435424 | EY4: =_xlfn._xlws.FILTER('data-gdp-level'!CK$2:CK$10000,('data-countries'!$G$3='data-gdp-level'!$A$2:$A$10000)*('data-gdp-level'!$E$2:$E$10000=50)) -> 0.5003763406 | EZ4: =_xlfn._xlws.FILTER('data-gdp-level'!CL$2:CL$10000,('data-countries'!$G$3='data-gdp-level'!$A$2:$A$10000)*('data-gdp-level'!$E$2:$E$10000=50)) -> 0.4970728537 | FA4: =_xlfn.FORECAST.LINEAR(FA3,EV4:EZ4,EV3:EZ3) -> 0.494360565
BO5: AFG | BP5: Afghanistan | BQ5: 45 | BR5: 20 | BS5: 50 | BT5: 0.0006254249423 | BU5: 0.00212238906 | BV5: 0.004986684516 | BW5: 0.009639163668 | BX5: 0.01583371224 | BY5: 0.02261755513 | BZ5: 0.02974149719 | CA5: 0.03705049255 | CB5: 0.04443219251 | CC5: 0.05183274669 | CD5: 0.05922097077 | CE5: 0.06657842862 | CF5: 0.07389495703 | CG5: 0.0811647134 | CH5: 0.08838430319 | CI5: 0.09555174797 | CJ5: 0.1026658576 | CK5: 0.109725888 | CL5: 0.1167313487 | CM5: 0.1236818919 | CN5: 0.1305772515 | CO5: 0.1374172076 | CP5: 0.1442015667 | CQ5: 0.1509301511 | CR5: 0.1576027921 | CS5: 0.1642193265 | CT5: 0.1707795951 | CU5: 0.1772834407 | CV5: 0.1837307085 | CW5: 0.1901212448 | CX5: 0.1964548975 | CY5: 0.2027315157 | CZ5: 0.2089509495 | DA5: 0.2151130504 | DB5: 0.2212176708 | DC5: 0.2272646643 | DD5: 0.2332538859 | DE5: 0.2391851913 | DF5: 0.2450584378 | DG5: 0.2508734835 | DH5: 0.2566301878 | DI5: 0.2623284115 | DJ5: 0.2679680163 | DK5: 0.2735488652 | DL5: 0.2790708225 | DM5: 0.2845337535 | DN5: 0.2899375251 | DO5: 0.2952820051 | DP5: 0.3005670627 | DQ5: 0.3057925684 | DR5: 0.3109583939 | DS5: 0.3160644121 | DT5: 0.3211104974 | DU5: 0.3260965255 | DV5: 0.3310223731 | DW5: 0.3358879185 | DX5: 0.3406930413 | DY5: 0.3454376223 | DZ5: 0.3501215438 | EA5: 0.3547446894 | EB5: 0.359306944 | EC5: 0.363808194 | ED5: 0.368248327 | EE5: 0.3726272322 | EF5: 0.3769448 | EG5: 0.3812009224 | EH5: 0.3853954925 | EI5: 0.3895284053 | EJ5: 0.3935995568 | EK5: 0.3976088446 | EL5: 0.4015561678 | EM5: 0.4054414269 | EN5: 0.4092645238 | EO5: 0.4130253619 | EP5: 0.4167238462 | EQ5: 0.4203598829 | ER5: 0.42393338 | ES5: 0.4274442469 | ET5: 0.4308923944 | EU5: 0.4342777348 | EV5: 0.4376001822 | EW5: 0.4408596518 | EX5: 0.4440560606 | EY5: 0.4471893271 | EZ5: 0.4502593714 | FA5: =_xlfn.FORECAST.LINEAR(FA4,EV5:EZ5,EV4:EZ4) -> 0.4534606882
B6: Percentage | J6: Percentage | W6: Percentage | BO6: AFG | BP6: Afghanistan | BQ6: 70 | BR6: 20 | BS6: 50 | BT6: -0.0003675888679 | BU6: -0.001251334598 | BV6: -0.002948124457 | BW6: -0.005713949502 | BX6: -0.009415501564 | BY6: -0.01350268899 | BZ6: -0.01783305854 | CA6: -0.02231796473 | CB6: -0.02689290634 | CC6: -0.03152707306 | CD6: -0.03620264594 | CE6: -0.04090910757 | CF6: -0.04564068994 | CG6: -0.05039410246 | CH6: -0.05516745786 | CI6: -0.05995968075 | CJ6: -0.06477014728 | CK6: -0.06959848889 | CL6: -0.07444448176 | CM6: -0.07930798352 | CN6: -0.08418889779 | CO6: -0.08908715416 | CP6: -0.09400269684 | CQ6: -0.09893547823 | CR6: -0.1038854554 | CS6: -0.1088525879 | CT6: -0.1138368368 | CU6: -0.118838164 | CV6: -0.1238565315 | CW6: -0.1288919018 | CX6: -0.1339442375 | CY6: -0.1390135009 | CZ6: -0.1440996547 | DA6: -0.1492026612 | DB6: -0.1543224828 | DC6: -0.1594590819 | DD6: -0.1646124208 | DE6: -0.1697824616 | DF6: -0.1749691666 | DG6: -0.1801724978 | DH6: -0.1853924173 | DI6: -0.1906288869 | DJ6: -0.1958818688 | DK6: -0.2011513246 | DL6: -0.2064372162 | DM6: -0.2117395053 | DN6: -0.2170581537 | DO6: -0.2223931229 | DP6: -0.2277443745 | DQ6: -0.2331118701 | DR6: -0.238495571 | DS6: -0.2438954387 | DT6: -0.2493114347 | DU6: -0.25474352 | DV6: -0.2601916561 | DW6: -0.2656558042 | DX6: -0.2711359253 | DY6: -0.2766319807 | DZ6: -0.2821439313 | EA6: -0.2876717383 | EB6: -0.2932153625 | EC6: -0.2987747649 | ED6: -0.3043499064 | EE6: -0.3099407478 | EF6: -0.31554725 | EG6: -0.3211693737 | EH6: -0.3268070796 | EI6: -0.3324603283 | EJ6: -0.3381290807 | EK6: -0.3438132971 | EL6: -0.3495129383 | EM6: -0.3552279647 | EN6: -0.3609583368 | EO6: -0.3667040151 | EP6: -0.37246496 | EQ6: -0.378241132 | ER6: -0.3840324912 | ES6: -0.3898389982 | ET6: -0.3956606132 | EU6: -0.4014972964 | EV6: -0.4073490081 | EW6: -0.4132157085 | EX6: -0.4190973578 | EY6: -0.4249939161 | EZ6: -0.4309053436 | FA6: -0.436727181
BO7: AFG | BP7: Afghanistan | BQ7: 70H | BR7: 20 | BS7: 50 | BT7: -0.001171955257 | BU7: -0.003999360738 | BV7: -0.00944243738 | BW7: -0.01833878717 | BX7: -0.03029141566 | BY7: -0.04357061426 | BZ7: -0.05773130223 | CA7: -0.07249601407 | CB7: -0.08766181095 | CC7: -0.1031313922 | CD7: -0.1188480229 | CE7: -0.1347777507 | CF7: -0.1509014707 | CG7: -0.1672078122 | CH7: -0.1836897828 | CI7: -0.2003429217 | CJ7: -0.2171641731 | CK7: -0.2341512734 | CL7: -0.2513024062 | CM7: -0.2686160042 | CN7: -0.2860906393 | CO7: -0.3037249599 | CP7: -0.3215176556 | CQ7: -0.3394674379 | CR7: -0.3575730288 | CS7: -0.3758331547 | CT7: -0.3942465432 | CU7: -0.4128119215 | CV7: -0.4315280149 | CW7: -0.4503935471 | CX7: -0.4694072397 | CY7: -0.4885678122 | CZ7: -0.5078739823 | DA7: -0.5273244661 | DB7: -0.5469179781 | DC7: -0.5666532318 | DD7: -0.5865289393 | DE7: -0.6065438123 | DF7: -0.6266965618 | DG7: -0.6469858984 | DH7: -0.6674105327 | DI7: -0.6879691754 | DJ7: -0.7086605378 | DK7: -0.7294833314 | DL7: -0.7504362689 | DM7: -0.7715180638 | DN7: -0.792727431 | DO7: -0.8140630869 | DP7: -0.8355237494 | DQ7: -0.8571081386 | DR7: -0.8788149765 | DS7: -0.9006429875 | DT7: -0.9225908986 | DU7: -0.9446574394 | DV7: -0.9668413425 | DW7: -0.9891413436 | DX7: -1.011556182 | DY7: -1.034084599 | DZ7: -1.056725343 | EA7: -1.079477162 | EB7: -1.102338811 | EC7: -1.125309049 | ED7: -1.148386638 | EE7: -1.171570345 | EF7: -1.194858943 | EG7: -1.218251209 | EH7: -1.241745924 | EI7: -1.265341876 | EJ7: -1.289037858 | EK7: -1.312832667 | EL7: -1.336725108 | EM7: -1.360713991 | EN7: -1.384798131 | EO7: -1.408976349 | EP7: -1.433247474 | EQ7: -1.45761034 | ER7: -1.482063789 | ES7: -1.506606666 | ET7: -1.531237828 | EU7: -1.555956134 | EV7: -1.580760453 | EW7: -1.605649661 | EX7: -1.630622638 | EY7: -1.655678276 | EZ7: -1.68081547 | FA7: -1.705524591
B8: SSP | C8: Scenario Name | D8: 2030 | E8: 2050 | F8: 2075 | G8: 2100 | BO8: AFG | BP8: Afghanistan | BQ8: 26 | BR8: 30 | BS8: 50 | BT8: 0.002295743023 | BU8: 0.00850502623 | BV8: 0.02091206272 | BW8: 0.0406787433 | BX8: 0.06649164098 | BY8: 0.09459315401 | BZ8: 0.1239439486 | CA8: 0.1538977872 | CB8: 0.1839960288 | CC8: 0.2140130619 | CD8: 0.2438166716 | CE8: 0.2733272442 | CF8: 0.3024988469 | CG8: 0.3313033194 | CH8: 0.3597225825 | CI8: 0.3877443901 | CJ8: 0.415359765 | CK8: 0.4425615953 | CL8: 0.4693438432 | CM8: 0.4957010944 | CN8: 0.5216283055 | CO8: 0.5471206622 | CP8: 0.5721735005 | CQ8: 0.5967822631 | CR8: 0.6209424751 | CS8: 0.6446497323 | CT8: 0.6678996952 | CU8: 0.690688086 | CV8: 0.7130106893 | CW8: 0.7348633519 | CX8: 0.7562419848 | CY8: 0.7771425651 | CZ8: 0.7975611376 | DA8: 0.8174938171 | DB8: 0.8369367905 | DC8: 0.8558863189 | DD8: 0.8743387399 | DE8: 0.8922904693 | DF8: 0.9097380035 | DG8: 0.9266779214 | DH8: 0.9431068867 | DI8: 0.9590216494 | DJ8: 0.974419048 | DK8: 0.9892960113 | DL8: 1.00364956 | DM8: 1.01747681 | DN8: 1.030774971 | DO8: 1.043541351 | DP8: 1.055773358 | DQ8: 1.067468499 | DR8: 1.078624383 | DS8: 1.089238725 | DT8: 1.099309342 | DU8: 1.108834158 | DV8: 1.117811207 | DW8: 1.12623863 | DX8: 1.134114676 | DY8: 1.141437709 | DZ8: 1.148206203 | EA8: 1.154418744 | EB8: 1.160074035 | EC8: 1.16517089 | ED8: 1.169708243 | EE8: 1.173685139 | EF8: 1.177100743 | EG8: 1.179954338 | EH8: 1.182245322 | EI8: 1.183973213 | EJ8: 1.185137647 | EK8: 1.185738379 | EL8: 1.185775281 | EM8: 1.185248347 | EN8: 1.184157687 | EO8: 1.182503532 | EP8: 1.18028623 | EQ8: 1.177506248 | ER8: 1.174164172 | ES8: 1.170260704 | ET8: 1.165796666 | EU8: 1.160772994 | EV8: 1.155190743 | EW8: 1.149051081 | EX8: 1.142355292 | EY8: 1.135104774 | EZ8: 1.127301039 | FA8: 1.120942998
B9: SSP1-2.6 | C9: Paris | BO9: AFG | BP9: Afghanistan | BQ9: 45 | BR9: 30 | BS9: 50 | BT9: 0.00120339097 | BU9: 0.004464511896 | BV9: 0.01099167925 | BW9: 0.02141153852 | BX9: 0.03505696444 | BY9: 0.04997668557 | BZ9: 0.06563452152 | CA9: 0.08169772109 | CB9: 0.09793023551 | CC9: 0.1142169942 | CD9: 0.1304913128 | CE9: 0.1467137457 | CF9: 0.1628623012 | CG9: 0.178924188 | CH9: 0.194891827 | CI9: 0.2107606498 | CJ9: 0.2265277679 | CK9: 0.2421912442 | CL9: 0.2577496816 | CM9: 0.2732019887 | CN9: 0.2885472473 | CO9: 0.3037846383 | CP9: 0.3189133989 | CQ9: 0.3339327997 | CR9: 0.3488421304 | CS9: 0.363640693 | CT9: 0.3783277972 | CU9: 0.392902758 | CV9: 0.4073648947 | CW9: 0.4217135298 | CX9: 0.4359479893 | CY9: 0.4500676018 | CZ9: 0.4640716991 | DA9: 0.4779596156 | DB9: 0.4917306889 | DC9: 0.5053842595 | DD9: 0.5189196713 | DE9: 0.5323362709 | DF9: 0.5456334087 | DG9: 0.5588104381 | DH9: 0.5718667161 | DI9: 0.5848016034 | DJ9: 0.5976144642 | DK9: 0.6103046664 | DL9: 0.622871582 | DM9: 0.6353145865 | DN9: 0.6476330598 | DO9: 0.6598263858 | DP9: 0.6718939526 | DQ9: 0.6838351525 | DR9: 0.6956493825 | DS9: 0.7073360436 | DT9: 0.7188945417 | DU9: 0.7303242875 | DV9: 0.7416246959 | DW9: 0.7527951873 | DX9: 0.7638351865 | DY9: 0.7747441236 | DZ9: 0.7855214338 | EA9: 0.7961665572 | EB9: 0.8066789396 | EC9: 0.817058032 | ED9: 0.8273032906 | EE9: 0.8374141775 | EF9: 0.8473901602 | EG9: 0.857230712 | EH9: 0.8669353119 | EI9: 0.8765034449 | EJ9: 0.8859346019 | EK9: 0.8952282797 | EL9: 0.9043839814 | EM9: 0.9134012161 | EN9: 0.9222794995 | EO9: 0.9310183532 | EP9: 0.9396173055 | EQ9: 0.9480758912 | ER9: 0.9563936516 | ES9: 0.9645701348 | ET9: 0.9726048953 | EU9: 0.9804974948 | EV9: 0.9882475016 | EW9: 0.9958544909 | EX9: 1.003318045 | EY9: 1.010637754 | EZ9: 1.017813213 | FA9: 1.025224044
C10: m=20 | D10: =CONCATENATE(ROUND(_xlfn._xlws.FILTER('data-gdp-level'!U$2:U$10000,('data-gdp-level'!$E$2:$E$10000=50)*('data-gdp-level'!$C$2:$C$10000=$DE27)*('data-gdp-level'!$D$2:$D$10000=adaptation!$DD27)*('data-gdp-level'!$A$2:$A$10000='data-countries'!$G$3)),2)," [",ROUND(_xlfn._xlws.FILTER('data-gdp-level'!U$2:U$10000,('data-gdp-level'!$E$2:$E$10000=5)*('data-gdp-level'!$C$2:$C$10000=$DE27)*('data-gdp-level'!$D$2:$D$10000=adaptation!$DD27)*('data-gdp-level'!$A$2:$A$10000='data-countries'!$G$3)),2)," , ",ROUND(_xlfn._xlws.FILTER('data-gdp-level'!U$2:U$10000,('data-gdp-level'!$E$2:$E$10000=95)*('data-gdp-level'!$C$2:$C$10000=$DE27)*('data-gdp-level'!$D$2:$D$10000=adaptation!$DD27)*('data-gdp-level'!$A$2:$A$10000='data-countries'!$G$3)),2),"]") -> 0.17 [0.07 , 0.3] | E10: =CONCATENATE(ROUND(_xlfn._xlws.FILTER('data-gdp-level'!AO$2:AO$10000,('data-gdp-level'!$E$2:$E$10000=50)*('data-gdp-level'!$C$2:$C$10000=$DE27)*('data-gdp-level'!$D$2:$D$10000=adaptation!$DD27)*('data-gdp-level'!$A$2:$A$10000='data-countries'!$G$3)),2)," [",ROUND(_xlfn._xlws.FILTER('data-gdp-level'!AO$2:AO$10000,('data-gdp-level'!$E$2:$E$10000=5)*('data-gdp-level'!$C$2:$C$10000=$DE27)*('data-gdp-level'!$D$2:$D$10000=adaptation!$DD27)*('data-gdp-level'!$A$2:$A$10000='data-countries'!$G$3)),2)," , ",ROUND(_xlfn._xlws.FILTER('data-gdp-level'!AO$2:AO$10000,('data-gdp-level'!$E$2:$E$10000=95)*('data-gdp-level'!$C$2:$C$10000=$DE27)*('data-gdp-level'!$D$2:$D$10000=adaptation!$DD27)*('data-gdp-level'!$A$2:$A$10000='data-countries'!$G$3)),2),"]") -> 0.38 [0.15 , 0.66] | F10: =CONCATENATE(ROUND(_xlfn._xlws.FILTER('data-gdp-level'!BN$2:BN$10000,('data-gdp-level'!$E$2:$E$10000=50)*('data-gdp-level'!$C$2:$C$10000=$DE27)*('data-gdp-level'!$D$2:$D$10000=adaptation!$DD27)*('data-gdp-level'!$A$2:$A$10000='data-countries'!$G$3)),2)," [",ROUND(_xlfn._xlws.FILTER('data-gdp-level'!BN$2:BN$10000,('data-gdp-level'!$E$2:$E$10000=5)*('data-gdp-level'!$C$2:$C$10000=$DE27)*('data-gdp-level'!$D$2:$D$10000=adaptation!$DD27)*('data-gdp-level'!$A$2:$A$10000='data-countries'!$G$3)),2)," , ",ROUND(_xlfn._xlws.FILTER('data-gdp-level'!BN$2:BN$10000,('data-gdp-level'!$E$2:$E$10000=95)*('data-gdp-level'!$C$2:$C$10000=$DE27)*('data-gdp-level'!$D$2:$D$10000=adaptation!$DD27)*('data-gdp-level'!$A$2:$A$10000='data-countries'!$G$3)),2),"]") -> 0.51 [0.21 , 0.88] | G10: =CONCATENATE(ROUND(_xlfn._xlws.FILTER('data-gdp-level'!CL$2:CL$10000,('data-gdp-level'!$E$2:$E$10000=50)*('data-gdp-level'!$C$2:$C$10000=$DE27)*('data-gdp-level'!$D$2:$D$10000=adaptation!$DD27)*('data-gdp-level'!$A$2:$A$10000='data-countries'!$G$3)),2)," [",ROUND(_xlfn._xlws.FILTER('data-gdp-level'!CL$2:CL$10000,('data-gdp-level'!$E$2:$E$10000=5)*('data-gdp-level'!$C$2:$C$10000=$DE27)*('data-gdp-level'!$D$2:$D$10000=adaptation!$DD27)*('data-gdp-level'!$A$2:$A$10000='data-countries'!$G$3)),2)," , ",ROUND(_xlfn._xlws.FILTER('data-gdp-level'!CL$2:CL$10000,('data-gdp-level'!$E$2:$E$10000=95)*('data-gdp-level'!$C$2:$C$10000=$DE27)*('data-gdp-level'!$D$2:$D$10000=adaptation!$DD27)*('data-gdp-level'!$A$2:$A$10000='data-countries'!$G$3)),2),"]") -> 0.5 [0.21 , 0.86] | BO10: AFG | BP10: Afghanistan | BQ10: 70 | BR10: 30 | BS10: 50 | BT10: -0.0007066568831 | BU10: -0.002627935704 | BV10: -0.006484177164 | BW10: -0.01266055125 | BX10: -0.02078591802 | BY10: -0.02973175892 | BZ10: -0.03919049756 | CA10: -0.04897128226 | CB10: -0.05893835139 | CC10: -0.06902577841 | CD10: -0.07919546493 | CE10: -0.08942496995 | CF10: -0.09970190309 | CG10: -0.110019167 | CH10: -0.1203726628 | CI10: -0.1307600237 | CJ10: -0.1411798489 | CK10: -0.1516312841 | CL10: -0.1621137855 | CM10: -0.1726269839 | CN10: -0.1831706091 | CO10: -0.193744447 | CP10: -0.204348315 | CQ10: -0.2149820486 | CR10: -0.2256454933 | CS10: -0.2363385006 | CT10: -0.247060925 | CU10: -0.2578126232 | CV10: -0.268593453 | CW10: -0.2794032727 | CX10: -0.2902419414 | CY10: -0.3011093181 | CZ10: -0.3120052622 | DA10: -0.3229296334 | DB10: -0.3338822914 | DC10: -0.344863096 | DD10: -0.3558719075 | DE10: -0.366908586 | DF10: -0.3779729918 | DG10: -0.3890649855 | DH10: -0.4001844278 | DI10: -0.4113311795 | DJ10: -0.4225051017 | DK10: -0.4337060556 | DL10: -0.4449339024 | DM10: -0.4561885039 | DN10: -0.4674697218 | DO10: -0.4787774179 | DP10: -0.4901114544 | DQ10: -0.5014716937 | DR10: -0.5128579984 | DS10: -0.5242702311 | DT10: -0.5357082548 | DU10: -0.5471719327 | DV10: -0.5586611283 | DW10: -0.5701757052 | DX10: -0.5817155271 | DY10: -0.5932804583 | DZ10: -0.6048703631 | EA10: -0.6164851061 | EB10: -0.628124552 | EC10: -0.639788566 | ED10: -0.6514770134 | EE10: -0.6631897599 | EF10: -0.6749266712 | EG10: -0.6866876134 | EH10: -0.6984724531 | EI10: -0.7102810568 | EJ10: -0.7221132916 | EK10: -0.7339690245 | EL10: -0.7458481233 | EM10: -0.7577504556 | EN10: -0.7696758895 | EO10: -0.7816242935 | EP10: -0.7935955362 | EQ10: -0.8055894866 | ER10: -0.817606014 | ES10: -0.8296449881 | ET10: -0.8417062788 | EU10: -0.8537897563 | EV10: -0.8658952911 | EW10: -0.8780227542 | EX10: -0.8901720167 | EY10: -0.9023429502 | EZ10: -0.9145354265 | FA10: -0.9264636553
C11: m=30 | D11: =CONCATENATE(ROUND(_xlfn._xlws.FILTER('data-gdp-level'!U$2:U$10000,('data-gdp-level'!$E$2:$E$10000=50)*('data-gdp-level'!$C$2:$C$10000=$DE28)*('data-gdp-level'!$D$2:$D$10000=adaptation!$DD28)*('data-gdp-level'!$A$2:$A$10000='data-countries'!$G$3)),2)," [",ROUND(_xlfn._xlws.FILTER('data-gdp-level'!U$2:U$10000,('data-gdp-level'!$E$2:$E$10000=5)*('data-gdp-level'!$C$2:$C$10000=$DE28)*('data-gdp-level'!$D$2:$D$10000=adaptation!$DD28)*('data-gdp-level'!$A$2:$A$10000='data-countries'!$G$3)),2)," , ",ROUND(_xlfn._xlws.FILTER('data-gdp-level'!U$2:U$10000,('data-gdp-level'!$E$2:$E$10000=95)*('data-gdp-level'!$C$2:$C$10000=$DE28)*('data-gdp-level'!$D$2:$D$10000=adaptation!$DD28)*('data-gdp-level'!$A$2:$A$10000='data-countries'!$G$3)),2),"]") -> 0.39 [0.16 , 0.63] | E11: =CONCATENATE(ROUND(_xlfn._xlws.FILTER('data-gdp-level'!AO$2:AO$10000,('data-gdp-level'!$E$2:$E$10000=50)*('data-gdp-level'!$C$2:$C$10000=$DE28)*('data-gdp-level'!$D$2:$D$10000=adaptation!$DD28)*('data-gdp-level'!$A$2:$A$10000='data-countries'!$G$3)),2)," [",ROUND(_xlfn._xlws.FILTER('data-gdp-level'!AO$2:AO$10000,('data-gdp-level'!$E$2:$E$10000=5)*('data-gdp-level'!$C$2:$C$10000=$DE28)*('data-gdp-level'!$D$2:$D$10000=adaptation!$DD28)*('data-gdp-level'!$A$2:$A$10000='data-countries'!$G$3)),2)," , ",ROUND(_xlfn._xlws.FILTER('data-gdp-level'!AO$2:AO$10000,('data-gdp-level'!$E$2:$E$10000=95)*('data-gdp-level'!$C$2:$C$10000=$DE28)*('data-gdp-level'!$D$2:$D$10000=adaptation!$DD28)*('data-gdp-level'!$A$2:$A$10000='data-countries'!$G$3)),2),"]") -> 0.86 [0.36 , 1.39] | F11: =CONCATENATE(ROUND(_xlfn._xlws.FILTER('data-gdp-level'!BN$2:BN$10000,('data-gdp-level'!$E$2:$E$10000=50)*('data-gdp-level'!$C$2:$C$10000=$DE28)*('data-gdp-level'!$D$2:$D$10000=adaptation!$DD28)*('data-gdp-level'!$A$2:$A$10000='data-countries'!$G$3)),2)," [",ROUND(_xlfn._xlws.FILTER('data-gdp-level'!BN$2:BN$10000,('data-gdp-level'!$E$2:$E$10000=5)*('data-gdp-level'!$C$2:$C$10000=$DE28)*('data-gdp-level'!$D$2:$D$10000=adaptation!$DD28)*('data-gdp-level'!$A$2:$A$10000='data-countries'!$G$3)),2)," , ",ROUND(_xlfn._xlws.FILTER('data-gdp-level'!BN$2:BN$10000,('data-gdp-level'!$E$2:$E$10000=95)*('data-gdp-level'!$C$2:$C$10000=$DE28)*('data-gdp-level'!$D$2:$D$10000=adaptation!$DD28)*('data-gdp-level'!$A$2:$A$10000='data-countries'!$G$3)),2),"]") -> 1.16 [0.49 , 1.88] | G11: =CONCATENATE(ROUND(_xlfn._xlws.FILTER('data-gdp-level'!CL$2:CL$10000,('data-gdp-level'!$E$2:$E$10000=50)*('data-gdp-level'!$C$2:$C$10000=$DE28)*('data-gdp-level'!$D$2:$D$10000=adaptation!$DD28)*('data-gdp-level'!$A$2:$A$10000='data-countries'!$G$3)),2)," [",ROUND(_xlfn._xlws.FILTER('data-gdp-level'!CL$2:CL$10000,('data-gdp-level'!$E$2:$E$10000=5)*('data-gdp-level'!$C$2:$C$10000=$DE28)*('data-gdp-level'!$D$2:$D$10000=adaptation!$DD28)*('data-gdp-level'!$A$2:$A$10000='data-countries'!$G$3)),2)," , ",ROUND(_xlfn._xlws.FILTER('data-gdp-level'!CL$2:CL$10000,('data-gdp-level'!$E$2:$E$10000=95)*('data-gdp-level'!$C$2:$C$10000=$DE28)*('data-gdp-level'!$D$2:$D$10000=adaptation!$DD28)*('data-gdp-level'!$A$2:$A$10000='data-countries'!$G$3)),2),"]") -> 1.13 [0.48 , 1.82] | BO11: AFG | BP11: Afghanistan | BQ11: 70H | BR11: 30 | BS11: 50 | BT11: -0.00225136472 | BU11: -0.008388024947 | BV11: -0.02073139143 | BW11: -0.04055034808 | BX11: -0.06671179311 | BY11: -0.09566037248 | BZ11: -0.1264303904 | CA11: -0.1584208688 | CB11: -0.1912019089 | CC11: -0.2245629761 | CD11: -0.2583806768 | CE11: -0.2925806297 | CF11: -0.3271199689 | CG11: -0.3619724198 | CH11: -0.3971211141 | CI11: -0.4325546247 | CJ11: -0.4682645678 | CK11: -0.5042442907 | CL11: -0.5404881317 | CM11: -0.5769909982 | CN11: -0.6137481302 | CO11: -0.6507549666 | CP11: -0.6880070709 | CQ11: -0.7255000888 | CR11: -0.7632297257 | CS11: -0.8011917337 | CT11: -0.8393819053 | CU11: -0.8777960697 | CV11: -0.9164300918 | CW11: -0.9552798717 | CX11: -0.9943413448 | CY11: -1.033610482 | CZ11: -1.073083292 | DA11: -1.112755819 | DB11: -1.152624146 | DC11: -1.192684394 | DD11: -1.232932727 | DE11: -1.273365344 | DF11: -1.313978488 | DG11: -1.354768443 | DH11: -1.395731535 | DI11: -1.436864132 | DJ11: -1.478162647 | DK11: -1.519623535 | DL11: -1.561243295 | DM11: -1.603018473 | DN11: -1.644945656 | DO11: -1.687021481 | DP11: -1.729242627 | DQ11: -1.77160582 | DR11: -1.814107833 | DS11: -1.856745484 | DT11: -1.899515639 | DU11: -1.942415211 | DV11: -1.985441157 | DW11: -2.028590484 | DX11: -2.071860244 | DY11: -2.115247539 | DZ11: -2.158749514 | EA11: -2.202363364 | EB11: -2.24608633 | EC11: -2.2899157 | ED11: -2.333848808 | EE11: -2.377883037 | EF11: -2.422015813 | EG11: -2.466244612 | EH11: -2.510566954 | EI11: -2.554980404 | EJ11: -2.599482576 | EK11: -2.644071127 | EL11: -2.688743759 | EM11: -2.73349822 | EN11: -2.778332302 | EO11: -2.823243841 | EP11: -2.868230718 | EQ11: -2.913290855 | ER11: -2.95842222 | ES11: -3.003622822 | ET11: -3.048890712 | EU11: -3.094223984 | EV11: -3.139620772 | EW11: -3.185079253 | EX11: -3.230597642 | EY11: -3.276174197 | EZ11: -3.321807212 | FA11: -3.366508896
C12: m=40 | D12: =CONCATENATE(ROUND(_xlfn._xlws.FILTER('data-gdp-level'!U$2:U$10000,('data-gdp-level'!$E$2:$E$10000=50)*('data-gdp-level'!$C$2:$C$10000=$DE29)*('data-gdp-level'!$D$2:$D$10000=adaptation!$DD29)*('data-gdp-level'!$A$2:$A$10000='data-countries'!$G$3)),2)," [",ROUND(_xlfn._xlws.FILTER('data-gdp-level'!U$2:U$10000,('data-gdp-level'!$E$2:$E$10000=5)*('data-gdp-level'!$C$2:$C$10000=$DE29)*('data-gdp-level'!$D$2:$D$10000=adaptation!$DD29)*('data-gdp-level'!$A$2:$A$10000='data-countries'!$G$3)),2)," , ",ROUND(_xlfn._xlws.FILTER('data-gdp-level'!U$2:U$10000,('data-gdp-level'!$E$2:$E$10000=95)*('data-gdp-level'!$C$2:$C$10000=$DE29)*('data-gdp-level'!$D$2:$D$10000=adaptation!$DD29)*('data-gdp-level'!$A$2:$A$10000='data-countries'!$G$3)),2),"]") -> 0.56 [0.24 , 0.93] | E12: =CONCATENATE(ROUND(_xlfn._xlws.FILTER('data-gdp-level'!AO$2:AO$10000,('data-gdp-level'!$E$2:$E$10000=50)*('data-gdp-level'!$C$2:$C$10000=$DE29)*('data-gdp-level'!$D$2:$D$10000=adaptation!$DD29)*('data-gdp-level'!$A$2:$A$10000='data-countries'!$G$3)),2)," [",ROUND(_xlfn._xlws.FILTER('data-gdp-level'!AO$2:AO$10000,('data-gdp-level'!$E$2:$E$10000=5)*('data-gdp-level'!$C$2:$C$10000=$DE29)*('data-gdp-level'!$D$2:$D$10000=adaptation!$DD29)*('data-gdp-level'!$A$2:$A$10000='data-countries'!$G$3)),2)," , ",ROUND(_xlfn._xlws.FILTER('data-gdp-level'!AO$2:AO$10000,('data-gdp-level'!$E$2:$E$10000=95)*('data-gdp-level'!$C$2:$C$10000=$DE29)*('data-gdp-level'!$D$2:$D$10000=adaptation!$DD29)*('data-gdp-level'!$A$2:$A$10000='data-countries'!$G$3)),2),"]") -> 1.26 [0.53 , 2.09] | F12: =CONCATENATE(ROUND(_xlfn._xlws.FILTER('data-gdp-level'!BN$2:BN$10000,('data-gdp-level'!$E$2:$E$10000=50)*('data-gdp-level'!$C$2:$C$10000=$DE29)*('data-gdp-level'!$D$2:$D$10000=adaptation!$DD29)*('data-gdp-level'!$A$2:$A$10000='data-countries'!$G$3)),2)," [",ROUND(_xlfn._xlws.FILTER('data-gdp-level'!BN$2:BN$10000,('data-gdp-level'!$E$2:$E$10000=5)*('data-gdp-level'!$C$2:$C$10000=$DE29)*('data-gdp-level'!$D$2:$D$10000=adaptation!$DD29)*('data-gdp-level'!$A$2:$A$10000='data-countries'!$G$3)),2)," , ",ROUND(_xlfn._xlws.FILTER('data-gdp-level'!BN$2:BN$10000,('data-gdp-level'!$E$2:$E$10000=95)*('data-gdp-level'!$C$2:$C$10000=$DE29)*('data-gdp-level'!$D$2:$D$10000=adaptation!$DD29)*('data-gdp-level'!$A$2:$A$10000='data-countries'!$G$3)),2),"]") -> 1.73 [0.74 , 2.87] | G12: =CONCATENATE(ROUND(_xlfn._xlws.FILTER('data-gdp-level'!CL$2:CL$10000,('data-gdp-level'!$E$2:$E$10000=50)*('data-gdp-level'!$C$2:$C$10000=$DE29)*('data-gdp-level'!$D$2:$D$10000=adaptation!$DD29)*('data-gdp-level'!$A$2:$A$10000='data-countries'!$G$3)),2)," [",ROUND(_xlfn._xlws.FILTER('data-gdp-level'!CL$2:CL$10000,('data-gdp-level'!$E$2:$E$10000=5)*('data-gdp-level'!$C$2:$C$10000=$DE29)*('data-gdp-level'!$D$2:$D$10000=adaptation!$DD29)*('data-gdp-level'!$A$2:$A$10000='data-countries'!$G$3)),2)," , ",ROUND(_xlfn._xlws.FILTER('data-gdp-level'!CL$2:CL$10000,('data-gdp-level'!$E$2:$E$10000=95)*('data-gdp-level'!$C$2:$C$10000=$DE29)*('data-gdp-level'!$D$2:$D$10000=adaptation!$DD29)*('data-gdp-level'!$A$2:$A$10000='data-countries'!$G$3)),2),"]") -> 1.68 [0.72 , 2.78] | BO12: AFG | BP12: Afghanistan | BQ12: 26 | BR12: 40 | BS12: 50 | BT12: 0.003234402964 | BU12: 0.01216257971 | BV12: 0.03019632582 | BW12: 0.0584754061 | BX12: 0.09537511704 | BY12: 0.1356015613 | BZ12: 0.1776785599 | CA12: 0.2207030043 | CB12: 0.2640267995 | CC12: 0.3073294585 | CD12: 0.3504221827 | CE12: 0.3931897183 | CF12: 0.4355640975 | CG12: 0.4775022789 | CH12: 0.5189753166 | CI12: 0.5599624014 | CJ12: 0.6004472576 | CK12: 0.6404161702 | CL12: 0.6798568767 | CM12: 0.7187579356 | CN12: 0.7571083753 | CO12: 0.7948974991 | CP12: 0.8321147781 | CQ12: 0.8687497941 | CR12: 0.9047922116 | CS12: 0.9402317649 | CT12: 0.9750582548 | CU12: 1.009261551 | CV12: 1.042831595 | CW12: 1.075758411 | CX12: 1.108032107 | CY12: 1.139642888 | CZ12: 1.170581064 | DA12: 1.200837054 | DB12: 1.230401401 | DC12: 1.259264775 | DD12: 1.287417985 | DE12: 1.314851989 | DF12: 1.341557897 | DG12: 1.367526986 | DH12: 1.392750703 | DI12: 1.417220679 | DJ12: 1.44092873 | DK12: 1.463866873 | DL12: 1.48602733 | DM12: 1.507402534 | DN12: 1.527985141 | DO12: 1.547768036 | DP12: 1.566744338 | DQ12: 1.58490741 | DR12: 1.602250866 | DS12: 1.618768575 | DT12: 1.634454671 | DU12: 1.649303556 | DV12: 1.663309909 | DW12: 1.676468689 | DX12: 1.688775143 | DY12: 1.700224807 | DZ12: 1.710813517 | EA12: 1.720537408 | EB12: 1.729392922 | EC12: 1.73737681 | ED12: 1.744486134 | EE12: 1.750718274 | EF12: 1.75607093 | EG12: 1.760542121 | EH12: 1.764130191 | EI12: 1.766833811 | EJ12: 1.768651977 | EK12: 1.769584015 | EL12: 1.769629577 | EM12: 1.768788649 | EN12: 1.767061542 | EO12: 1.764448899 | EP12: 1.76095169 | EQ12: 1.756571212 | ER12: 1.751309089 | ES12: 1.745167267 | ET12: 1.738148017 | EU12: 1.730253927 | EV12: 1.7214879 | EW12: 1.711853156 | EX12: 1.701353223 | EY12: 1.689991934 | EZ12: 1.677773424 | FA12: 1.667892651
C13: m=50 | D13: =CONCATENATE(ROUND(_xlfn._xlws.FILTER('data-gdp-level'!U$2:U$10000,('data-gdp-level'!$E$2:$E$10000=50)*('data-gdp-level'!$C$2:$C$10000=$DE30)*('data-gdp-level'!$D$2:$D$10000=adaptation!$DD30)*('data-gdp-level'!$A$2:$A$10000='data-countries'!$G$3)),2)," [",ROUND(_xlfn._xlws.FILTER('data-gdp-level'!U$2:U$10000,('data-gdp-level'!$E$2:$E$10000=5)*('data-gdp-level'!$C$2:$C$10000=$DE30)*('data-gdp-level'!$D$2:$D$10000=adaptation!$DD30)*('data-gdp-level'!$A$2:$A$10000='data-countries'!$G$3)),2)," , ",ROUND(_xlfn._xlws.FILTER('data-gdp-level'!U$2:U$10000,('data-gdp-level'!$E$2:$E$10000=95)*('data-gdp-level'!$C$2:$C$10000=$DE30)*('data-gdp-level'!$D$2:$D$10000=adaptation!$DD30)*('data-gdp-level'!$A$2:$A$10000='data-countries'!$G$3)),2),"]") -> 0.83 [0.41 , 1.35] | E13: =CONCATENATE(ROUND(_xlfn._xlws.FILTER('data-gdp-level'!AO$2:AO$10000,('data-gdp-level'!$E$2:$E$10000=50)*('data-gdp-level'!$C$2:$C$10000=$DE30)*('data-gdp-level'!$D$2:$D$10000=adaptation!$DD30)*('data-gdp-level'!$A$2:$A$10000='data-countries'!$G$3)),2)," [",ROUND(_xlfn._xlws.FILTER('data-gdp-level'!AO$2:AO$10000,('data-gdp-level'!$E$2:$E$10000=5)*('data-gdp-level'!$C$2:$C$10000=$DE30)*('data-gdp-level'!$D$2:$D$10000=adaptation!$DD30)*('data-gdp-level'!$A$2:$A$10000='data-countries'!$G$3)),2)," , ",ROUND(_xlfn._xlws.FILTER('data-gdp-level'!AO$2:AO$10000,('data-gdp-level'!$E$2:$E$10000=95)*('data-gdp-level'!$C$2:$C$10000=$DE30)*('data-gdp-level'!$D$2:$D$10000=adaptation!$DD30)*('data-gdp-level'!$A$2:$A$10000='data-countries'!$G$3)),2),"]") -> 1.91 [0.92 , 3.11] | F13: =CONCATENATE(ROUND(_xlfn._xlws.FILTER('data-gdp-level'!BN$2:BN$10000,('data-gdp-level'!$E$2:$E$10000=50)*('data-gdp-level'!$C$2:$C$10000=$DE30)*('data-gdp-level'!$D$2:$D$10000=adaptation!$DD30)*('data-gdp-level'!$A$2:$A$10000='data-countries'!$G$3)),2)," [",ROUND(_xlfn._xlws.FILTER('data-gdp-level'!BN$2:BN$10000,('data-gdp-level'!$E$2:$E$10000=5)*('data-gdp-level'!$C$2:$C$10000=$DE30)*('data-gdp-level'!$D$2:$D$10000=adaptation!$DD30)*('data-gdp-level'!$A$2:$A$10000='data-countries'!$G$3)),2)," , ",ROUND(_xlfn._xlws.FILTER('data-gdp-level'!BN$2:BN$10000,('data-gdp-level'!$E$2:$E$10000=95)*('data-gdp-level'!$C$2:$C$10000=$DE30)*('data-gdp-level'!$D$2:$D$10000=adaptation!$DD30)*('data-gdp-level'!$A$2:$A$10000='data-countries'!$G$3)),2),"]") -> 2.66 [1.27 , 4.33] | G13: =CONCATENATE(ROUND(_xlfn._xlws.FILTER('data-gdp-level'!CL$2:CL$10000,('data-gdp-level'!$E$2:$E$10000=50)*('data-gdp-level'!$C$2:$C$10000=$DE30)*('data-gdp-level'!$D$2:$D$10000=adaptation!$DD30)*('data-gdp-level'!$A$2:$A$10000='data-countries'!$G$3)),2)," [",ROUND(_xlfn._xlws.FILTER('data-gdp-level'!CL$2:CL$10000,('data-gdp-level'!$E$2:$E$10000=5)*('data-gdp-level'!$C$2:$C$10000=$DE30)*('data-gdp-level'!$D$2:$D$10000=adaptation!$DD30)*('data-gdp-level'!$A$2:$A$10000='data-countries'!$G$3)),2)," , ",ROUND(_xlfn._xlws.FILTER('data-gdp-level'!CL$2:CL$10000,('data-gdp-level'!$E$2:$E$10000=95)*('data-gdp-level'!$C$2:$C$10000=$DE30)*('data-gdp-level'!$D$2:$D$10000=adaptation!$DD30)*('data-gdp-level'!$A$2:$A$10000='data-countries'!$G$3)),2),"]") -> 2.57 [1.23 , 4.21] | BO13: AFG | BP13: Afghanistan | BQ13: 45 | BR13: 40 | BS13: 50 | BT13: 0.001694423655 | BU13: 0.006378604701 | BV13: 0.01585241568 | BW13: 0.03073334448 | BX13: 0.05019399717 | BY13: 0.07148234249 | BZ13: 0.09383592007 | CA13: 0.116789728 | CB13: 0.1400106903 | CC13: 0.1633361485 | CD13: 0.1866718632 | CE13: 0.2099618055 | CF13: 0.2331745376 | CG13: 0.2562915884 | CH13: 0.2793018239 | CI13: 0.3021983497 | CJ13: 0.3249766356 | CK13: 0.3476334872 | CL13: 0.3701664668 | CM13: 0.3925735618 | CN13: 0.4148529987 | CO13: 0.4370031375 | CP13: 0.4590224127 | CQ13: 0.4809092996 | CR13: 0.5026622955 | CS13: 0.5242799091 | CT13: 0.5457606549 | CU13: 0.5671030499 | CV13: 0.5883056117 | CW13: 0.6093668583 | CX13: 0.6302853069 | CY13: 0.6510594747 | CZ13: 0.6716878783 | DA13: 0.6921690344 | DB13: 0.7125014597 | DC13: 0.7326836713 | DD13: 0.7527141871 | DE13: 0.7725915257 | DF13: 0.7923142072 | DG13: 0.8118807533 | DH13: 0.8312896874 | DI13: 0.8505395353 | DJ13: 0.8696288254 | DK13: 0.8885560887 | DL13: 0.9073198596 | DM13: 0.925918676 | DN13: 0.9443510796 | DO13: 0.9626156162 | DP13: 0.9807108364 | DQ13: 0.9986352954 | DR13: 1.016387554 | DS13: 1.033966177 | DT13: 1.051369738 | DU13: 1.068596813 | DV13: 1.085645989 | DW13: 1.102515855 | DX13: 1.119205012 | DY13: 1.135712064 | DZ13: 1.152035627 | EA13: 1.168174323 | EB13: 1.184126783 | EC13: 1.199891647 | ED13: 1.215467564 | EE13: 1.230853193 | EF13: 1.246047203 | EG13: 1.261048273 | EH13: 1.275855093 | EI13: 1.290466364 | EJ13: 1.304880799 | EK13: 1.31909712 | EL13: 1.333114064 | EM13: 1.346930379 | EN13: 1.360544826 | EO13: 1.373956178 | EP13: 1.387163224 | EQ13: 1.400164763 | ER13: 1.412959611 | ES13: 1.425546597 | ET13: 1.437924565 | EU13: 1.450092373 | EV13: 1.462048895 | EW13: 1.473793021 | EX13: 1.485323657 | EY13: 1.496639723 | EZ13: 1.507740159 | FA13: 1.519090084
BO14: AFG | BP14: Afghanistan | BQ14: 70 | BR14: 40 | BS14: 50 | BT14: -0.0009939820775 | BU14: -0.003748612488 | BV14: -0.009331793852 | BW14: -0.01812515936 | BX14: -0.02966541609 | BY14: -0.04235714136 | BZ14: -0.05576118268 | CA14: -0.06960990764 | CB14: -0.08371126368 | CC14: -0.09797186948 | CD14: -0.1123378518 | CE14: -0.1267773926 | CF14: -0.1412728894 | CG14: -0.1558142327 | CH14: -0.1703955542 | CI14: -0.1850134386 | CJ14: -0.1996658396 | CK14: -0.2143514866 | CL14: -0.2290695492 | CM14: -0.243819446 | CN14: -0.2586007369 | CO14: -0.2734130621 | CP14: -0.288256108 | CQ14: -0.303129587 | CR14: -0.3180332272 | CS14: -0.3329667657 | CT14: -0.3479299454 | CU14: -0.3629225128 | CV14: -0.3779442171 | CW14: -0.3929948093 | CX14: -0.408074042 | CY14: -0.4231816692 | CZ14: -0.4383174462 | DA14: -0.4534811294 | DB14: -0.4686724767 | DC14: -0.4838912468 | DD14: -0.4991371998 | DE14: -0.5144100969 | DF14: -0.5297097005 | DG14: -0.5450357741 | DH14: -0.5603880826 | DI14: -0.5757663917 | DJ14: -0.5911704688 | DK14: -0.606600082 | DL14: -0.622055001 | DM14: -0.6375349964 | DN14: -0.6530398402 | DO14: -0.6685693056 | DP14: -0.6841231669 | DQ14: -0.6997011998 | DR14: -0.7153031811 | DS14: -0.7309288889 | DT14: -0.7465781026 | DU14: -0.7622506026 | DV14: -0.7779461708 | DW14: -0.7936645903 | DX14: -0.8094056453 | DY14: -0.8251691215 | DZ14: -0.8409548056 | EA14: -0.8567624858 | EB14: -0.8725919514 | EC14: -0.8884429931 | ED14: -0.9043154026 | EE14: -0.9202089733 | EF14: -0.9361234995 | EG14: -0.9520587769 | EH14: -0.9680146025 | EI14: -0.9839907746 | EJ14: -0.9999870927 | EK14: -1.016003358 | EL14: -1.032039372 | EM14: -1.048094938 | EN14: -1.064169861 | EO14: -1.080263948 | EP14: -1.096377005 | EQ14: -1.11250884 | ER14: -1.128659264 | ES14: -1.144828088 | ET14: -1.161015124 | EU14: -1.177220185 | EV14: -1.193443088 | EW14: -1.209683647 | EX14: -1.225941681 | EY14: -1.242217008 | EZ14: -1.258509449 | FA14: -1.274342684
B15: SSP2-4.5 | C15: Moderate | BO15: AFG | BP15: Afghanistan | BQ15: 70H | BR15: 40 | BS15: 50 | BT15: -0.003164151056 | BU15: -0.01194960533 | BV15: -0.0297846783 | BW15: -0.05792990907 | BX15: -0.09496092369 | BY15: -0.1358398525 | BZ15: -0.1791813838 | CA15: -0.2241382896 | CB15: -0.2700991545 | CC15: -0.3167633116 | CD15: -0.3639542756 | CE15: -0.4115649037 | CF15: -0.4595328447 | CG15: -0.5078193966 | CH15: -0.556399294 | CI15: -0.6052550939 | CJ15: -0.6543737724 | CK15: -0.7037448606 | CL15: -0.7533593938 | CM15: -0.803209312 | CN15: -0.8532871216 | CO15: -0.9035857061 | CP15: -0.9540982181 | CQ15: -1.004818019 | CR15: -1.055738645 | CS15: -1.106853787 | CT15: -1.158157281 | CU15: -1.209643102 | CV15: -1.26130536 | CW15: -1.313138297 | CX15: -1.365136286 | CY15: -1.417293833 | CZ15: -1.469605569 | DA15: -1.522066259 | DB15: -1.57467079 | DC15: -1.62741418 | DD15: -1.680291572 | DE15: -1.733298232 | DF15: -1.786429551 | DG15: -1.839681042 | DH15: -1.893048339 | DI15: -1.946527196 | DJ15: -2.000113483 | DK15: -2.05380319 | DL15: -2.10759242 | DM15: -2.161477388 | DN15: -2.215454424 | DO15: -2.269519965 | DP15: -2.323670557 | DQ15: -2.377902852 | DR15: -2.432213607 | DS15: -2.486599681 | DT15: -2.541058034 | DU15: -2.595585722 | DV15: -2.650179901 | DW15: -2.704837819 | DX15: -2.759556818 | DY15: -2.814334329 | DZ15: -2.869167873 | EA15: -2.924055055 | EB15: -2.978993567 | EC15: -3.033981181 | ED15: -3.089015751 | EE15: -3.144095208 | EF15: -3.19921756 | EG15: -3.254380887 | EH15: -3.309583343 | EI15: -3.364823153 | EJ15: -3.420098608 | EK15: -3.475408067 | EL15: -3.530749951 | EM15: -3.586122745 | EN15: -3.641524996 | EO15: -3.696955306 | EP15: -3.752412336 | EQ15: -3.807894803 | ER15: -3.863401475 | ES15: -3.918931172 | ET15: -3.974482766 | EU15: -4.030055174 | EV15: -4.085647361 | EW15: -4.141258338 | EX15: -4.196887157 | EY15: -4.252532914 | EZ15: -4.308194744 | FA15: -4.36239161
C16: m=20 | D16: =CONCATENATE(ROUND(_xlfn._xlws.FILTER('data-gdp-level'!U$2:U$10000,('data-gdp-level'!$E$2:$E$10000=50)*('data-gdp-level'!$C$2:$C$10000=$DE31)*('data-gdp-level'!$D$2:$D$10000=adaptation!$DD31)*('data-gdp-level'!$A$2:$A$10000='data-countries'!$G$3)),2)," [",ROUND(_xlfn._xlws.FILTER('data-gdp-level'!U$2:U$10000,('data-gdp-level'!$E$2:$E$10000=5)*('data-gdp-level'!$C$2:$C$10000=$DE31)*('data-gdp-level'!$D$2:$D$10000=adaptation!$DD31)*('data-gdp-level'!$A$2:$A$10000='data-countries'!$G$3)),2)," , ",ROUND(_xlfn._xlws.FILTER('data-gdp-level'!U$2:U$10000,('data-gdp-level'!$E$2:$E$10000=95)*('data-gdp-level'!$C$2:$C$10000=$DE31)*('data-gdp-level'!$D$2:$D$10000=adaptation!$DD31)*('data-gdp-level'!$A$2:$A$10000='data-countries'!$G$3)),2),"]") -> 0.1 [0.04 , 0.17] | E16: =CONCATENATE(ROUND(_xlfn._xlws.FILTER('data-gdp-level'!AO$2:AO$10000,('data-gdp-level'!$E$2:$E$10000=50)*('data-gdp-level'!$C$2:$C$10000=$DE31)*('data-gdp-level'!$D$2:$D$10000=adaptation!$DD31)*('data-gdp-level'!$A$2:$A$10000='data-countries'!$G$3)),2)," [",ROUND(_xlfn._xlws.FILTER('data-gdp-level'!AO$2:AO$10000,('data-gdp-level'!$E$2:$E$10000=5)*('data-gdp-level'!$C$2:$C$10000=$DE31)*('data-gdp-level'!$D$2:$D$10000=adaptation!$DD31)*('data-gdp-level'!$A$2:$A$10000='data-countries'!$G$3)),2)," , ",ROUND(_xlfn._xlws.FILTER('data-gdp-level'!AO$2:AO$10000,('data-gdp-level'!$E$2:$E$10000=95)*('data-gdp-level'!$C$2:$C$10000=$DE31)*('data-gdp-level'!$D$2:$D$10000=adaptation!$DD31)*('data-gdp-level'!$A$2:$A$10000='data-countries'!$G$3)),2),"]") -> 0.23 [0.09 , 0.39] | F16: =CONCATENATE(ROUND(_xlfn._xlws.FILTER('data-gdp-level'!BN$2:BN$10000,('data-gdp-level'!$E$2:$E$10000=50)*('data-gdp-level'!$C$2:$C$10000=$DE31)*('data-gdp-level'!$D$2:$D$10000=adaptation!$DD31)*('data-gdp-level'!$A$2:$A$10000='data-countries'!$G$3)),2)," [",ROUND(_xlfn._xlws.FILTER('data-gdp-level'!BN$2:BN$10000,('data-gdp-level'!$E$2:$E$10000=5)*('data-gdp-level'!$C$2:$C$10000=$DE31)*('data-gdp-level'!$D$2:$D$10000=adaptation!$DD31)*('data-gdp-level'!$A$2:$A$10000='data-countries'!$G$3)),2)," , ",ROUND(_xlfn._xlws.FILTER('data-gdp-level'!BN$2:BN$10000,('data-gdp-level'!$E$2:$E$10000=95)*('data-gdp-level'!$C$2:$C$10000=$DE31)*('data-gdp-level'!$D$2:$D$10000=adaptation!$DD31)*('data-gdp-level'!$A$2:$A$10000='data-countries'!$G$3)),2),"]") -> 0.36 [0.15 , 0.62] | G16: =CONCATENATE(ROUND(_xlfn._xlws.FILTER('data-gdp-level'!CL$2:CL$10000,('data-gdp-level'!$E$2:$E$10000=50)*('data-gdp-level'!$C$2:$C$10000=$DE31)*('data-gdp-level'!$D$2:$D$10000=adaptation!$DD31)*('data-gdp-level'!$A$2:$A$10000='data-countries'!$G$3)),2)," [",ROUND(_xlfn._xlws.FILTER('data-gdp-level'!CL$2:CL$10000,('data-gdp-level'!$E$2:$E$10000=5)*('data-gdp-level'!$C$2:$C$10000=$DE31)*('data-gdp-level'!$D$2:$D$10000=adaptation!$DD31)*('data-gdp-level'!$A$2:$A$10000='data-countries'!$G$3)),2)," , ",ROUND(_xlfn._xlws.FILTER('data-gdp-level'!CL$2:CL$10000,('data-gdp-level'!$E$2:$E$10000=95)*('data-gdp-level'!$C$2:$C$10000=$DE31)*('data-gdp-level'!$D$2:$D$10000=adaptation!$DD31)*('data-gdp-level'!$A$2:$A$10000='data-countries'!$G$3)),2),"]") -> 0.45 [0.18 , 0.78] | BO16: AFG | BP16: Afghanistan | BQ16: 26 | BR16: 50 | BS16: 50 | BT16: 0.004664657183 | BU16: 0.01779531299 | BV16: 0.04421468968 | BW16: 0.08562689268 | BX16: 0.1396936631 | BY16: 0.1987350542 | BZ16: 0.2606144323 | CA16: 0.3240216668 | CB16: 0.3880148995 | CC16: 0.4521271906 | CD16: 0.5160820123 | CE16: 0.5797091596 | CF16: 0.6429067514 | CG16: 0.7056088027 | CH16: 0.7677695337 | CI16: 0.8293547358 | CJ16: 0.8903365479 | CK16: 0.9506905991 | CL16: 1.010394405 | CM16: 1.069426457 | CN16: 1.127765717 | CO16: 1.18539134 | CP16: 1.242282528 | CQ16: 1.298418452 | CR16: 1.353778219 | CS16: 1.408340863 | CT16: 1.462085351 | CU16: 1.514990591 | CV16: 1.567035455 | CW16: 1.618198794 | CX16: 1.668459466 | CY16: 1.717796354 | CZ16: 1.766188396 | DA16: 1.813614606 | DB16: 1.860054103 | DC16: 1.905486137 | DD16: 1.949890116 | DE16: 1.99324563 | DF16: 2.035532483 | DG16: 2.076730719 | DH16: 2.116820649 | DI16: 2.155782879 | DJ16: 2.193598337 | DK16: 2.230248304 | DL16: 2.265714438 | DM16: 2.2999788 | DN16: 2.333023888 | DO16: 2.364832656 | DP16: 2.395388543 | DQ16: 2.4246755 | DR16: 2.452678015 | DS16: 2.479381135 | DT16: 2.504770494 | DU16: 2.528832331 | DV16: 2.551553517 | DW16: 2.572921574 | DX16: 2.592924697 | DY16: 2.611551771 | DZ16: 2.628792393 | EA16: 2.644636886 | EB16: 2.659076318 | EC16: 2.672102517 | ED16: 2.68370808 | EE16: 2.693886395 | EF16: 2.702631641 | EG16: 2.709938809 | EH16: 2.715803702 | EI16: 2.720222946 | EJ16: 2.723193997 | EK16: 2.724715143 | EL16: 2.724785507 | EM16: 2.723405051 | EN16: 2.720574572 | EO16: 2.716295705 | EP16: 2.710570918 | EQ16: 2.703403507 | ER16: 2.694797592 | ES16: 2.684758107 | ET16: 2.673290798 | EU16: 2.660402203 | EV16: 2.646099652 | EW16: 2.630391245 | EX16: 2.613285845 | EY16: 2.594793058 | EZ16: 2.574923221 | FA16: 2.558968083
C17: m=30 | D17: =CONCATENATE(ROUND(_xlfn._xlws.FILTER('data-gdp-level'!U$2:U$10000,('data-gdp-level'!$E$2:$E$10000=50)*('data-gdp-level'!$C$2:$C$10000=$DE32)*('data-gdp-level'!$D$2:$D$10000=adaptation!$DD32)*('data-gdp-level'!$A$2:$A$10000='data-countries'!$G$3)),2)," [",ROUND(_xlfn._xlws.FILTER('data-gdp-level'!U$2:U$10000,('data-gdp-level'!$E$2:$E$10000=5)*('data-gdp-level'!$C$2:$C$10000=$DE32)*('data-gdp-level'!$D$2:$D$10000=adaptation!$DD32)*('data-gdp-level'!$A$2:$A$10000='data-countries'!$G$3)),2)," , ",ROUND(_xlfn._xlws.FILTER('data-gdp-level'!U$2:U$10000,('data-gdp-level'!$E$2:$E$10000=95)*('data-gdp-level'!$C$2:$C$10000=$DE32)*('data-gdp-level'!$D$2:$D$10000=adaptation!$DD32)*('data-gdp-level'!$A$2:$A$10000='data-countries'!$G$3)),2),"]") -> 0.21 [0.09 , 0.34] | E17: =CONCATENATE(ROUND(_xlfn._xlws.FILTER('data-gdp-level'!AO$2:AO$10000,('data-gdp-level'!$E$2:$E$10000=50)*('data-gdp-level'!$C$2:$C$10000=$DE32)*('data-gdp-level'!$D$2:$D$10000=adaptation!$DD32)*('data-gdp-level'!$A$2:$A$10000='data-countries'!$G$3)),2)," [",ROUND(_xlfn._xlws.FILTER('data-gdp-level'!AO$2:AO$10000,('data-gdp-level'!$E$2:$E$10000=5)*('data-gdp-level'!$C$2:$C$10000=$DE32)*('data-gdp-level'!$D$2:$D$10000=adaptation!$DD32)*('data-gdp-level'!$A$2:$A$10000='data-countries'!$G$3)),2)," , ",ROUND(_xlfn._xlws.FILTER('data-gdp-level'!AO$2:AO$10000,('data-gdp-level'!$E$2:$E$10000=95)*('data-gdp-level'!$C$2:$C$10000=$DE32)*('data-gdp-level'!$D$2:$D$10000=adaptation!$DD32)*('data-gdp-level'!$A$2:$A$10000='data-countries'!$G$3)),2),"]") -> 0.51 [0.21 , 0.82] | F17: =CONCATENATE(ROUND(_xlfn._xlws.FILTER('data-gdp-level'!BN$2:BN$10000,('data-gdp-level'!$E$2:$E$10000=50)*('data-gdp-level'!$C$2:$C$10000=$DE32)*('data-gdp-level'!$D$2:$D$10000=adaptation!$DD32)*('data-gdp-level'!$A$2:$A$10000='data-countries'!$G$3)),2)," [",ROUND(_xlfn._xlws.FILTER('data-gdp-level'!BN$2:BN$10000,('data-gdp-level'!$E$2:$E$10000=5)*('data-gdp-level'!$C$2:$C$10000=$DE32)*('data-gdp-level'!$D$2:$D$10000=adaptation!$DD32)*('data-gdp-level'!$A$2:$A$10000='data-countries'!$G$3)),2)," , ",ROUND(_xlfn._xlws.FILTER('data-gdp-level'!BN$2:BN$10000,('data-gdp-level'!$E$2:$E$10000=95)*('data-gdp-level'!$C$2:$C$10000=$DE32)*('data-gdp-level'!$D$2:$D$10000=adaptation!$DD32)*('data-gdp-level'!$A$2:$A$10000='data-countries'!$G$3)),2),"]") -> 0.81 [0.34 , 1.31] | G17: =CONCATENATE(ROUND(_xlfn._xlws.FILTER('data-gdp-level'!CL$2:CL$10000,('data-gdp-level'!$E$2:$E$10000=50)*('data-gdp-level'!$C$2:$C$10000=$DE32)*('data-gdp-level'!$D$2:$D$10000=adaptation!$DD32)*('data-gdp-level'!$A$2:$A$10000='data-countries'!$G$3)),2)," [",ROUND(_xlfn._xlws.FILTER('data-gdp-level'!CL$2:CL$10000,('data-gdp-level'!$E$2:$E$10000=5)*('data-gdp-level'!$C$2:$C$10000=$DE32)*('data-gdp-level'!$D$2:$D$10000=adaptation!$DD32)*('data-gdp-level'!$A$2:$A$10000='data-countries'!$G$3)),2)," , ",ROUND(_xlfn._xlws.FILTER('data-gdp-level'!CL$2:CL$10000,('data-gdp-level'!$E$2:$E$10000=95)*('data-gdp-level'!$C$2:$C$10000=$DE32)*('data-gdp-level'!$D$2:$D$10000=adaptation!$DD32)*('data-gdp-level'!$A$2:$A$10000='data-countries'!$G$3)),2),"]") -> 1.02 [0.43 , 1.65] | BO17: AFG | BP17: Afghanistan | BQ17: 45 | BR17: 50 | BS17: 50 | BT17: 0.002442277139 | BU17: 0.009324259628 | BV17: 0.02318443408 | BW17: 0.04493672272 | BX17: 0.07338255536 | BY17: 0.1045245916 | BZ17: 0.1372574096 | CA17: 0.1709057139 | CB17: 0.2049854936 | CC17: 0.2392603039 | CD17: 0.2735929481 | CE17: 0.3079016983 | CF17: 0.3421405357 | CG17: 0.3762822583 | CH17: 0.4103103088 | CI17: 0.4442142741 | CJ17: 0.4779871603 | CK17: 0.5116238984 | CL17: 0.5451205021 | CM17: 0.5784735858 | CN17: 0.6116800938 | CO17: 0.6447371476 | CP17: 0.677641959 | CQ17: 0.7103917819 | CR17: 0.7429838849 | CS17: 0.7754155357 | CT17: 0.8076839931 | CU17: 0.8397865025 | CV17: 0.8717202933 | CW17: 0.903482578 | CX17: 0.9350705521 | CY17: 0.9664813939 | CZ17: 0.9977122646 | DA17: 1.02876031 | DB17: 1.059622658 | DC17: 1.090296424 | DD17: 1.120778706 | DE17: 1.151066592 | DF17: 1.181157153 | DG17: 1.21104745 | DH17: 1.24073453 | DI17: 1.270215432 | DJ17: 1.299487184 | DK17: 1.328546803 | DL17: 1.357391298 | DM17: 1.386017673 | DN17: 1.414422923 | DO17: 1.442604035 | DP17: 1.470557996 | DQ17: 1.498281784 | DR17: 1.525772377 | DS17: 1.553026748 | DT17: 1.580041872 | DU17: 1.606814719 | DV17: 1.633342264 | DW17: 1.659621481 | DX17: 1.685649346 | DY17: 1.711422839 | DZ17: 1.736938946 | EA17: 1.762194655 | EB17: 1.787186965 | EC17: 1.811912879 | ED17: 1.836369409 | EE17: 1.860553577 | EF17: 1.884462416 | EG17: 1.908092971 | EH17: 1.931442299 | EI17: 1.95450747 | EJ17: 1.97728557 | EK17: 1.999773701 | EL17: 2.021968982 | EM17: 2.04386855 | EN17: 2.065469561 | EO17: 2.086769192 | EP17: 2.107764639 | EQ17: 2.128453125 | ER17: 2.148831891 | ES17: 2.168898208 | ET17: 2.188649369 | EU17: 2.208082696 | EV17: 2.227195537 | EW17: 2.245985271 | EX17: 2.264449306 | EY17: 2.28258508 | EZ17: 2.300390065 | FA17: 2.318407945
C18: m=40 | D18: =CONCATENATE(ROUND(_xlfn._xlws.FILTER('data-gdp-level'!U$2:U$10000,('data-gdp-level'!$E$2:$E$10000=50)*('data-gdp-level'!$C$2:$C$10000=$DE33)*('data-gdp-level'!$D$2:$D$10000=adaptation!$DD33)*('data-gdp-level'!$A$2:$A$10000='data-countries'!$G$3)),2)," [",ROUND(_xlfn._xlws.FILTER('data-gdp-level'!U$2:U$10000,('data-gdp-level'!$E$2:$E$10000=5)*('data-gdp-level'!$C$2:$C$10000=$DE33)*('data-gdp-level'!$D$2:$D$10000=adaptation!$DD33)*('data-gdp-level'!$A$2:$A$10000='data-countries'!$G$3)),2)," , ",ROUND(_xlfn._xlws.FILTER('data-gdp-level'!U$2:U$10000,('data-gdp-level'!$E$2:$E$10000=95)*('data-gdp-level'!$C$2:$C$10000=$DE33)*('data-gdp-level'!$D$2:$D$10000=adaptation!$DD33)*('data-gdp-level'!$A$2:$A$10000='data-countries'!$G$3)),2),"]") -> 0.3 [0.13 , 0.5] | E18: =CONCATENATE(ROUND(_xlfn._xlws.FILTER('data-gdp-level'!AO$2:AO$10000,('data-gdp-level'!$E$2:$E$10000=50)*('data-gdp-level'!$C$2:$C$10000=$DE33)*('data-gdp-level'!$D$2:$D$10000=adaptation!$DD33)*('data-gdp-level'!$A$2:$A$10000='data-countries'!$G$3)),2)," [",ROUND(_xlfn._xlws.FILTER('data-gdp-level'!AO$2:AO$10000,('data-gdp-level'!$E$2:$E$10000=5)*('data-gdp-level'!$C$2:$C$10000=$DE33)*('data-gdp-level'!$D$2:$D$10000=adaptation!$DD33)*('data-gdp-level'!$A$2:$A$10000='data-countries'!$G$3)),2)," , ",ROUND(_xlfn._xlws.FILTER('data-gdp-level'!AO$2:AO$10000,('data-gdp-level'!$E$2:$E$10000=95)*('data-gdp-level'!$C$2:$C$10000=$DE33)*('data-gdp-level'!$D$2:$D$10000=adaptation!$DD33)*('data-gdp-level'!$A$2:$A$10000='data-countries'!$G$3)),2),"]") -> 0.73 [0.31 , 1.22] | F18: =CONCATENATE(ROUND(_xlfn._xlws.FILTER('data-gdp-level'!BN$2:BN$10000,('data-gdp-level'!$E$2:$E$10000=50)*('data-gdp-level'!$C$2:$C$10000=$DE33)*('data-gdp-level'!$D$2:$D$10000=adaptation!$DD33)*('data-gdp-level'!$A$2:$A$10000='data-countries'!$G$3)),2)," [",ROUND(_xlfn._xlws.FILTER('data-gdp-level'!BN$2:BN$10000,('data-gdp-level'!$E$2:$E$10000=5)*('data-gdp-level'!$C$2:$C$10000=$DE33)*('data-gdp-level'!$D$2:$D$10000=adaptation!$DD33)*('data-gdp-level'!$A$2:$A$10000='data-countries'!$G$3)),2)," , ",ROUND(_xlfn._xlws.FILTER('data-gdp-level'!BN$2:BN$10000,('data-gdp-level'!$E$2:$E$10000=95)*('data-gdp-level'!$C$2:$C$10000=$DE33)*('data-gdp-level'!$D$2:$D$10000=adaptation!$DD33)*('data-gdp-level'!$A$2:$A$10000='data-countries'!$G$3)),2),"]") -> 1.18 [0.5 , 1.97] | G18: =CONCATENATE(ROUND(_xlfn._xlws.FILTER('data-gdp-level'!CL$2:CL$10000,('data-gdp-level'!$E$2:$E$10000=50)*('data-gdp-level'!$C$2:$C$10000=$DE33)*('data-gdp-level'!$D$2:$D$10000=adaptation!$DD33)*('data-gdp-level'!$A$2:$A$10000='data-countries'!$G$3)),2)," [",ROUND(_xlfn._xlws.FILTER('data-gdp-level'!CL$2:CL$10000,('data-gdp-level'!$E$2:$E$10000=5)*('data-gdp-level'!$C$2:$C$10000=$DE33)*('data-gdp-level'!$D$2:$D$10000=adaptation!$DD33)*('data-gdp-level'!$A$2:$A$10000='data-countries'!$G$3)),2)," , ",ROUND(_xlfn._xlws.FILTER('data-gdp-level'!CL$2:CL$10000,('data-gdp-level'!$E$2:$E$10000=95)*('data-gdp-level'!$C$2:$C$10000=$DE33)*('data-gdp-level'!$D$2:$D$10000=adaptation!$DD33)*('data-gdp-level'!$A$2:$A$10000='data-countries'!$G$3)),2),"]") -> 1.51 [0.64 , 2.51] | BO18: AFG | BP18: Afghanistan | BQ18: 70 | BR18: 50 | BS18: 50 | BT18: -0.001431242534 | BU18: -0.005471177778 | BV18: -0.013620057 | BW18: -0.02643341468 | BX18: -0.04323162648 | BY18: -0.06169179789 | BZ18: -0.08117472439 | CA18: -0.101290257 | CB18: -0.1217585156 | CC18: -0.1424433904 | CD18: -0.1632663085 | CE18: -0.1841808507 | CF18: -0.2051613238 | CG18: -0.2261929606 | CH18: -0.2472671814 | CI18: -0.2683789865 | CJ18: -0.289525376 | CK18: -0.3107044831 | CL18: -0.3319150858 | CM18: -0.3531563276 | CN18: -0.3744275598 | CO18: -0.395728253 | CP18: -0.4170579466 | CQ18: -0.4384162204 | CR18: -0.4598026783 | CS18: -0.4812169394 | CT18: -0.5026586327 | CU18: -0.5241273944 | CV18: -0.545622866 | CW18: -0.5671446934 | CX18: -0.5886925266 | CY18: -0.610266019 | CZ18: -0.6318648277 | DA18: -0.6534886131 | DB18: -0.6751370387 | DC18: -0.6968097714 | DD18: -0.7185064813 | DE18: -0.7402268419 | DF18: -0.7619705295 | DG18: -0.7837372239 | DH18: -0.8055266079 | DI18: -0.8273383677 | DJ18: -0.8491721924 | DK18: -0.8710277742 | DL18: -0.8929048088 | DM18: -0.9148029947 | DN18: -0.9367220335 | DO18: -0.9586616301 | DP18: -0.9806214923 | DQ18: -1.002601331 | DR18: -1.02460086 | DS18: -1.046619797 | DT18: -1.068657862 | DU18: -1.090714777 | DV18: -1.11279027 | DW18: -1.134884068 | DX18: -1.156995904 | DY18: -1.179125513 | DZ18: -1.201272634 | EA18: -1.223437006 | EB18: -1.245618374 | EC18: -1.267816485 | ED18: -1.290031087 | EE18: -1.312261934 | EF18: -1.334508781 | EG18: -1.356771386 | EH18: -1.37904951 | EI18: -1.401342917 | EJ18: -1.423651373 | EK18: -1.445974648 | EL18: -1.468312513 | EM18: -1.490664743 | EN18: -1.513031117 | EO18: -1.535411414 | EP18: -1.557805416 | EQ18: -1.580212911 | ER18: -1.602633685 | ES18: -1.625067529 | ET18: -1.647514237 | EU18: -1.669973605 | EV18: -1.692445432 | EW18: -1.714929518 | EX18: -1.737425667 | EY18: -1.759933685 | EZ18: -1.782453381 | FA18: -1.804185992
C19: m=50 | D19: =CONCATENATE(ROUND(_xlfn._xlws.FILTER('data-gdp-level'!U$2:U$10000,('data-gdp-level'!$E$2:$E$10000=50)*('data-gdp-level'!$C$2:$C$10000=$DE34)*('data-gdp-level'!$D$2:$D$10000=adaptation!$DD34)*('data-gdp-level'!$A$2:$A$10000='data-countries'!$G$3)),2)," [",ROUND(_xlfn._xlws.FILTER('data-gdp-level'!U$2:U$10000,('data-gdp-level'!$E$2:$E$10000=5)*('data-gdp-level'!$C$2:$C$10000=$DE34)*('data-gdp-level'!$D$2:$D$10000=adaptation!$DD34)*('data-gdp-level'!$A$2:$A$10000='data-countries'!$G$3)),2)," , ",ROUND(_xlfn._xlws.FILTER('data-gdp-level'!U$2:U$10000,('data-gdp-level'!$E$2:$E$10000=95)*('data-gdp-level'!$C$2:$C$10000=$DE34)*('data-gdp-level'!$D$2:$D$10000=adaptation!$DD34)*('data-gdp-level'!$A$2:$A$10000='data-countries'!$G$3)),2),"]") -> 0.44 [0.22 , 0.72] | E19: =CONCATENATE(ROUND(_xlfn._xlws.FILTER('data-gdp-level'!AO$2:AO$10000,('data-gdp-level'!$E$2:$E$10000=50)*('data-gdp-level'!$C$2:$C$10000=$DE34)*('data-gdp-level'!$D$2:$D$10000=adaptation!$DD34)*('data-gdp-level'!$A$2:$A$10000='data-countries'!$G$3)),2)," [",ROUND(_xlfn._xlws.FILTER('data-gdp-level'!AO$2:AO$10000,('data-gdp-level'!$E$2:$E$10000=5)*('data-gdp-level'!$C$2:$C$10000=$DE34)*('data-gdp-level'!$D$2:$D$10000=adaptation!$DD34)*('data-gdp-level'!$A$2:$A$10000='data-countries'!$G$3)),2)," , ",ROUND(_xlfn._xlws.FILTER('data-gdp-level'!AO$2:AO$10000,('data-gdp-level'!$E$2:$E$10000=95)*('data-gdp-level'!$C$2:$C$10000=$DE34)*('data-gdp-level'!$D$2:$D$10000=adaptation!$DD34)*('data-gdp-level'!$A$2:$A$10000='data-countries'!$G$3)),2),"]") -> 1.09 [0.53 , 1.78] | F19: =CONCATENATE(ROUND(_xlfn._xlws.FILTER('data-gdp-level'!BN$2:BN$10000,('data-gdp-level'!$E$2:$E$10000=50)*('data-gdp-level'!$C$2:$C$10000=$DE34)*('data-gdp-level'!$D$2:$D$10000=adaptation!$DD34)*('data-gdp-level'!$A$2:$A$10000='data-countries'!$G$3)),2)," [",ROUND(_xlfn._xlws.FILTER('data-gdp-level'!BN$2:BN$10000,('data-gdp-level'!$E$2:$E$10000=5)*('data-gdp-level'!$C$2:$C$10000=$DE34)*('data-gdp-level'!$D$2:$D$10000=adaptation!$DD34)*('data-gdp-level'!$A$2:$A$10000='data-countries'!$G$3)),2)," , ",ROUND(_xlfn._xlws.FILTER('data-gdp-level'!BN$2:BN$10000,('data-gdp-level'!$E$2:$E$10000=95)*('data-gdp-level'!$C$2:$C$10000=$DE34)*('data-gdp-level'!$D$2:$D$10000=adaptation!$DD34)*('data-gdp-level'!$A$2:$A$10000='data-countries'!$G$3)),2),"]") -> 1.79 [0.86 , 2.91] | G19: =CONCATENATE(ROUND(_xlfn._xlws.FILTER('data-gdp-level'!CL$2:CL$10000,('data-gdp-level'!$E$2:$E$10000=50)*('data-gdp-level'!$C$2:$C$10000=$DE34)*('data-gdp-level'!$D$2:$D$10000=adaptation!$DD34)*('data-gdp-level'!$A$2:$A$10000='data-countries'!$G$3)),2)," [",ROUND(_xlfn._xlws.FILTER('data-gdp-level'!CL$2:CL$10000,('data-gdp-level'!$E$2:$E$10000=5)*('data-gdp-level'!$C$2:$C$10000=$DE34)*('data-gdp-level'!$D$2:$D$10000=adaptation!$DD34)*('data-gdp-level'!$A$2:$A$10000='data-countries'!$G$3)),2)," , ",ROUND(_xlfn._xlws.FILTER('data-gdp-level'!CL$2:CL$10000,('data-gdp-level'!$E$2:$E$10000=95)*('data-gdp-level'!$C$2:$C$10000=$DE34)*('data-gdp-level'!$D$2:$D$10000=adaptation!$DD34)*('data-gdp-level'!$A$2:$A$10000='data-countries'!$G$3)),2),"]") -> 2.3 [1.1 , 3.75] | BO19: AFG | BP19: Afghanistan | BQ19: 70H | BR19: 50 | BS19: 50 | BT19: -0.004552403412 | BU19: -0.01741890294 | BV19: -0.04340067789 | BW19: -0.08430979998 | BX19: -0.1380336402 | BY19: -0.1972222388 | BZ19: -0.2598519866 | CA19: -0.3246833498 | CB19: -0.3908227155 | CC19: -0.4578304778 | CD19: -0.5254485886 | CE19: -0.5935205725 | CF19: -0.6619555995 | CG19: -0.7306975785 | CH19: -0.7997102277 | CI19: -0.8689688582 | CJ19: -0.9384553904 | CK19: -1.008155621 | CL19: -1.078057682 | CM19: -1.148151153 | CN19: -1.218426562 | CO19: -1.288875103 | CP19: -1.359488471 | CQ19: -1.430258765 | CR19: -1.501178437 | CS19: -1.572240252 | CT19: -1.643437269 | CU19: -1.714762826 | CV19: -1.786210529 | CW19: -1.857774239 | CX19: -1.92944807 | CY19: -2.001226379 | CZ19: -2.073103757 | DA19: -2.145075026 | DB19: -2.21713523 | DC19: -2.289279627 | DD19: -2.361503687 | DE19: -2.433803083 | DF19: -2.506173682 | DG19: -2.578611543 | DH19: -2.651112909 | DI19: -2.723674198 | DJ19: -2.796292001 | DK19: -2.868963075 | DL19: -2.941684333 | DM19: -3.014452843 | DN19: -3.087265821 | DO19: -3.160120622 | DP19: -3.233014738 | DQ19: -3.305945792 | DR19: -3.378911532 | DS19: -3.451909823 | DT19: -3.524938648 | DU19: -3.597996097 | DV19: -3.671080368 | DW19: -3.744189755 | DX19: -3.81732265 | DY19: -3.890477535 | DZ19: -3.963652981 | EA19: -4.036847638 | EB19: -4.110060237 | EC19: -4.183289584 | ED19: -4.256534555 | EE19: -4.329794095 | EF19: -4.403067209 | EG19: -4.476352968 | EH19: -4.549650498 | EI19: -4.622958978 | EJ19: -4.696277642 | EK19: -4.769605769 | EL19: -4.842942686 | EM19: -4.916287764 | EN19: -4.989640414 | EO19: -5.063000086 | EP19: -5.136366266 | EQ19: -5.209738475 | ER19: -5.283116265 | ES19: -5.356499221 | ET19: -5.429886953 | EU19: -5.5032791 | EV19: -5.576675326 | EW19: -5.650075318 | EX19: -5.723478786 | EY19: -5.796885459 | EZ19: -5.870295087 | FA19: -5.941225586
B21: SSP3-7.0 | C21: High
C22: m=20 | D22: =CONCATENATE(ROUND(_xlfn._xlws.FILTER('data-gdp-level'!U$2:U$10000,('data-gdp-level'!$E$2:$E$10000=50)*('data-gdp-level'!$C$2:$C$10000=$DE35)*('data-gdp-level'!$D$2:$D$10000=adaptation!$DD35)*('data-gdp-level'!$A$2:$A$10000='data-countries'!$G$3)),2)," [",ROUND(_xlfn._xlws.FILTER('data-gdp-level'!U$2:U$10000,('data-gdp-level'!$E$2:$E$10000=5)*('data-gdp-level'!$C$2:$C$10000=$DE35)*('data-gdp-level'!$D$2:$D$10000=adaptation!$DD35)*('data-gdp-level'!$A$2:$A$10000='data-countries'!$G$3)),2)," , ",ROUND(_xlfn._xlws.FILTER('data-gdp-level'!U$2:U$10000,('data-gdp-level'!$E$2:$E$10000=95)*('data-gdp-level'!$C$2:$C$10000=$DE35)*('data-gdp-level'!$D$2:$D$10000=adaptation!$DD35)*('data-gdp-level'!$A$2:$A$10000='data-countries'!$G$3)),2),"]") -> -0.06 [-0.1 , -0.02] | E22: =CONCATENATE(ROUND(_xlfn._xlws.FILTER('data-gdp-level'!AO$2:AO$10000,('data-gdp-level'!$E$2:$E$10000=50)*('data-gdp-level'!$C$2:$C$10000=$DE35)*('data-gdp-level'!$D$2:$D$10000=adaptation!$DD35)*('data-gdp-level'!$A$2:$A$10000='data-countries'!$G$3)),2)," [",ROUND(_xlfn._xlws.FILTER('data-gdp-level'!AO$2:AO$10000,('data-gdp-level'!$E$2:$E$10000=5)*('data-gdp-level'!$C$2:$C$10000=$DE35)*('data-gdp-level'!$D$2:$D$10000=adaptation!$DD35)*('data-gdp-level'!$A$2:$A$10000='data-countries'!$G$3)),2)," , ",ROUND(_xlfn._xlws.FILTER('data-gdp-level'!AO$2:AO$10000,('data-gdp-level'!$E$2:$E$10000=95)*('data-gdp-level'!$C$2:$C$10000=$DE35)*('data-gdp-level'!$D$2:$D$10000=adaptation!$DD35)*('data-gdp-level'!$A$2:$A$10000='data-countries'!$G$3)),2),"]") -> -0.16 [-0.28 , -0.06] | F22: =CONCATENATE(ROUND(_xlfn._xlws.FILTER('data-gdp-level'!BN$2:BN$10000,('data-gdp-level'!$E$2:$E$10000=50)*('data-gdp-level'!$C$2:$C$10000=$DE35)*('data-gdp-level'!$D$2:$D$10000=adaptation!$DD35)*('data-gdp-level'!$A$2:$A$10000='data-countries'!$G$3)),2)," [",ROUND(_xlfn._xlws.FILTER('data-gdp-level'!BN$2:BN$10000,('data-gdp-level'!$E$2:$E$10000=5)*('data-gdp-level'!$C$2:$C$10000=$DE35)*('data-gdp-level'!$D$2:$D$10000=adaptation!$DD35)*('data-gdp-level'!$A$2:$A$10000='data-countries'!$G$3)),2)," , ",ROUND(_xlfn._xlws.FILTER('data-gdp-level'!BN$2:BN$10000,('data-gdp-level'!$E$2:$E$10000=95)*('data-gdp-level'!$C$2:$C$10000=$DE35)*('data-gdp-level'!$D$2:$D$10000=adaptation!$DD35)*('data-gdp-level'!$A$2:$A$10000='data-countries'!$G$3)),2),"]") -> -0.29 [-0.51 , -0.12] | G22: =CONCATENATE(ROUND(_xlfn._xlws.FILTER('data-gdp-level'!CL$2:CL$10000,('data-gdp-level'!$E$2:$E$10000=50)*('data-gdp-level'!$C$2:$C$10000=$DE35)*('data-gdp-level'!$D$2:$D$10000=adaptation!$DD35)*('data-gdp-level'!$A$2:$A$10000='data-countries'!$G$3)),2)," [",ROUND(_xlfn._xlws.FILTER('data-gdp-level'!CL$2:CL$10000,('data-gdp-level'!$E$2:$E$10000=5)*('data-gdp-level'!$C$2:$C$10000=$DE35)*('data-gdp-level'!$D$2:$D$10000=adaptation!$DD35)*('data-gdp-level'!$A$2:$A$10000='data-countries'!$G$3)),2)," , ",ROUND(_xlfn._xlws.FILTER('data-gdp-level'!CL$2:CL$10000,('data-gdp-level'!$E$2:$E$10000=95)*('data-gdp-level'!$C$2:$C$10000=$DE35)*('data-gdp-level'!$D$2:$D$10000=adaptation!$DD35)*('data-gdp-level'!$A$2:$A$10000='data-countries'!$G$3)),2),"]") -> -0.43 [-0.75 , -0.18]
C23: m=30 | D23: =CONCATENATE(ROUND(_xlfn._xlws.FILTER('data-gdp-level'!U$2:U$10000,('data-gdp-level'!$E$2:$E$10000=50)*('data-gdp-level'!$C$2:$C$10000=$DE36)*('data-gdp-level'!$D$2:$D$10000=adaptation!$DD36)*('data-gdp-level'!$A$2:$A$10000='data-countries'!$G$3)),2)," [",ROUND(_xlfn._xlws.FILTER('data-gdp-level'!U$2:U$10000,('data-gdp-level'!$E$2:$E$10000=5)*('data-gdp-level'!$C$2:$C$10000=$DE36)*('data-gdp-level'!$D$2:$D$10000=adaptation!$DD36)*('data-gdp-level'!$A$2:$A$10000='data-countries'!$G$3)),2)," , ",ROUND(_xlfn._xlws.FILTER('data-gdp-level'!U$2:U$10000,('data-gdp-level'!$E$2:$E$10000=95)*('data-gdp-level'!$C$2:$C$10000=$DE36)*('data-gdp-level'!$D$2:$D$10000=adaptation!$DD36)*('data-gdp-level'!$A$2:$A$10000='data-countries'!$G$3)),2),"]") -> -0.13 [-0.21 , -0.05] | E23: =CONCATENATE(ROUND(_xlfn._xlws.FILTER('data-gdp-level'!AO$2:AO$10000,('data-gdp-level'!$E$2:$E$10000=50)*('data-gdp-level'!$C$2:$C$10000=$DE36)*('data-gdp-level'!$D$2:$D$10000=adaptation!$DD36)*('data-gdp-level'!$A$2:$A$10000='data-countries'!$G$3)),2)," [",ROUND(_xlfn._xlws.FILTER('data-gdp-level'!AO$2:AO$10000,('data-gdp-level'!$E$2:$E$10000=5)*('data-gdp-level'!$C$2:$C$10000=$DE36)*('data-gdp-level'!$D$2:$D$10000=adaptation!$DD36)*('data-gdp-level'!$A$2:$A$10000='data-countries'!$G$3)),2)," , ",ROUND(_xlfn._xlws.FILTER('data-gdp-level'!AO$2:AO$10000,('data-gdp-level'!$E$2:$E$10000=95)*('data-gdp-level'!$C$2:$C$10000=$DE36)*('data-gdp-level'!$D$2:$D$10000=adaptation!$DD36)*('data-gdp-level'!$A$2:$A$10000='data-countries'!$G$3)),2),"]") -> -0.34 [-0.56 , -0.14] | F23: =CONCATENATE(ROUND(_xlfn._xlws.FILTER('data-gdp-level'!BN$2:BN$10000,('data-gdp-level'!$E$2:$E$10000=50)*('data-gdp-level'!$C$2:$C$10000=$DE36)*('data-gdp-level'!$D$2:$D$10000=adaptation!$DD36)*('data-gdp-level'!$A$2:$A$10000='data-countries'!$G$3)),2)," [",ROUND(_xlfn._xlws.FILTER('data-gdp-level'!BN$2:BN$10000,('data-gdp-level'!$E$2:$E$10000=5)*('data-gdp-level'!$C$2:$C$10000=$DE36)*('data-gdp-level'!$D$2:$D$10000=adaptation!$DD36)*('data-gdp-level'!$A$2:$A$10000='data-countries'!$G$3)),2)," , ",ROUND(_xlfn._xlws.FILTER('data-gdp-level'!BN$2:BN$10000,('data-gdp-level'!$E$2:$E$10000=95)*('data-gdp-level'!$C$2:$C$10000=$DE36)*('data-gdp-level'!$D$2:$D$10000=adaptation!$DD36)*('data-gdp-level'!$A$2:$A$10000='data-countries'!$G$3)),2),"]") -> -0.63 [-1.02 , -0.26] | G23: =CONCATENATE(ROUND(_xlfn._xlws.FILTER('data-gdp-level'!CL$2:CL$10000,('data-gdp-level'!$E$2:$E$10000=50)*('data-gdp-level'!$C$2:$C$10000=$DE36)*('data-gdp-level'!$D$2:$D$10000=adaptation!$DD36)*('data-gdp-level'!$A$2:$A$10000='data-countries'!$G$3)),2)," [",ROUND(_xlfn._xlws.FILTER('data-gdp-level'!CL$2:CL$10000,('data-gdp-level'!$E$2:$E$10000=5)*('data-gdp-level'!$C$2:$C$10000=$DE36)*('data-gdp-level'!$D$2:$D$10000=adaptation!$DD36)*('data-gdp-level'!$A$2:$A$10000='data-countries'!$G$3)),2)," , ",ROUND(_xlfn._xlws.FILTER('data-gdp-level'!CL$2:CL$10000,('data-gdp-level'!$E$2:$E$10000=95)*('data-gdp-level'!$C$2:$C$10000=$DE36)*('data-gdp-level'!$D$2:$D$10000=adaptation!$DD36)*('data-gdp-level'!$A$2:$A$10000='data-countries'!$G$3)),2),"]") -> -0.91 [-1.48 , -0.39]
